Workbook

Sheet PLANILHA UNIFICADA
A1: PLANILHA DE CUSTOS – PONTES E GALERIAS – PROJETO JEQUITAÍ – OAE E PAVIMENTAÇÃO
A2: OBRA: | C2: OBRAS DE ARTE ESPECIAIS E PAVIMENTAÇÃO (PONTES E GALERIAS) | I2: DATA: | J2: SETEMBRO.2020
A3: LOCAL: | C3: ÁREA DE INTERFERÊNCIA DIRETA DA BARRAGEM JEQUITAÍ I - MUNICÍPIO DE FRANCISCO DUMONT/MG | H3: VALOR TOTAL C/BDI (R$): | J3: =SUM(J778) -> 30440349.11
A4: DATA BASE TABELAS: | C4: SINAPI JUL2020 / DEER-MG ABR2020 / SICRO-MG JAN2020 / SIURB JAN2020 / DER-SP-JUN2020 / ORSE MAI2020 | H4: BDI (%): | J4: =BDI!$C$23 -> 0.2467
A5: PRAZO EXECUÇÃO: | C5: 18 (DEZOITO) MESES
A7: Item | B7: Código | C7: Fonte | D7: Especificação | E7: Unidade | F7: Quantidade | G7: Preço Unitário (R$) | I7: Preço Total
G8: Sem BDI | H8: Com BDI | I8: Sem BDI | J8: Com BDI
A10: 1 - MOBILIZAÇÃO E SERVIÇOS PRELIMINARES
A11: 1.1 | B11: CANTEIRO DE OBRAS | I11: =SUM(I12:I21) -> 2566672.43 | J11: =SUM(J12:J21) -> 3199870.51
A12: 1.1.1 | B12: C1 | C12: CPU | D12: ADMINISTRAÇÃO LOCAL E MANUTENÇÃO DO CANTEIRO DE OBRAS - PRAZO DE OBRA IGUAL A 18 MESES | E12: gl | F12: 1 | G12: =VLOOKUP(B12,'PREÇO UNITÁRIO'!$B$4:$F$124,5,0) -> 2476647.04 | H12: =G12*(1+$J$4) -> 3087635.865 | I12: =ROUND(F12*G12,2) -> 2476647.04 | J12: =ROUND(F12*H12,2) -> 3087635.86
A13: 1.1.2 | B13: C2 | C13: CPU | D13: MOBILIZAÇÃO DE PESSOAL E EQUIPAMENTOS | E13: unid | F13: 1 | G13: =VLOOKUP(B13,'PREÇO UNITÁRIO'!$B$4:$F$124,5,0) -> 13361.4 | H13: 16657.65738 | I13: 13361.4 | J13: =ROUND(F13*H13,2) -> 16657.66
A14: 1.1.3 | B14: 93207 | C14: SINAPI | D14: EXECUÇÃO DE ESCRITÓRIO EM CANTEIRO DE OBRA EM CHAPA DE MADEIRA COMPENSADA, NÃO INCLUSO MOBILIÁRIO E EQUIPAMENTOS | E14: m² | F14: =6.6*3.3 -> 21.78 | G14: 751.29 | H14: =G14*(1+$J$4) -> 936.633243 | I14: =ROUND(F14*G14,2) -> 16363.1 | J14: =ROUND(F14*H14,2) -> 20399.87
A15: 1.1.4 | B15: 93208 | C15: SINAPI | D15: EXECUÇÃO DE ALMOXARIFADO EM CANTEIRO DE OBRA EM ALVENARIA, INCLUSO PRA TELEIRAS | E15: m² | F15: =5.5*4.4 -> 24.2 | G15: 592.44 | H15: 738.594948 | I15: 14337.05 | J15: 17874
A16: 1.1.5 | B16: 93210 | C16: SINAPI | D16: EXECUÇÃO DE REFEITÓRIO EM CANTEIRO DE OBRA EM CHAPA DE MADEIRA COMPENSADA, NÃO INCLUSO MOBILIÁRIO E EQUIPAMENTOS | E16: m² | F16: =4.4*6.6 -> 29.04 | G16: 383.42 | H16: 478.009714 | I16: 11134.52 | J16: 13881.4
A17: 1.1.6 | B17: 93212 | C17: SINAPI | D17: EXECUÇÃO DE SANITÁRIO E VESTIÁRIO EM CANTEIRO DE OBRA EM CHAPA DE MADEIRA COMPENSADA, NÃO INCLUSO MOBILIÁRIO | E17: m² | F17: =5.5*3.3 -> 18.15 | G17: 672.06 | H17: 837.857202 | I17: 12197.89 | J17: 15207.11
A18: 1.1.7 | B18: 93582 | C18: SINAPI | D18: EXECUÇÃO DE CENTRAL DE ARMADURA EM CANTEIRO DE OBRA, NÃO INCLUSO MOBILIÁRIO E EQUIPAMENTOS | E18: m² | F18: 20 | G18: 184.24 | H18: 229.692008 | I18: 3684.8 | J18: 4593.84
A19: 1.1.8 | B19: 93583 | C19: SINAPI | D19: EXECUÇÃO DE CENTRAL DE FÔRMAS, PRODUÇÃO DE ARGAMASSA OU CONCRETO EM CANTEIRO DE OBRA, NÃO INCLUSO MOBILIÁRIO E EQUIPAMENTOS | E19: m² | F19: 20 | G19: 299.06 | H19: 372.838102 | I19: 5981.2 | J19: 7456.76
A20: 1.1.9 | B20: 93243 | C20: SINAPI | D20: EXECUÇÃO DE RESERVATÓRIO ELEVADO DE ÁGUA (2000 LITROS) EM CANTEIRO DE OBRA, APOIADO EM ESTRUTURA DE MADEIRA | E20: unid. | F20: 1 | G20: 7200.75 | H20: 8977.175025 | I20: 7200.75 | J20: 8977.18
A21: 1.1.10 | B21: 74209/001 | C21: SINAPI | D21: PLACA DE OBRA EM CHAPA DE ACO GALVANIZADO | E21: m² | F21: =L21*(3*1.5) -> 18 | G21: =VLOOKUP(B21,'PREÇO UNITÁRIO'!$B$4:$F$124,5,0) -> 320.26 | H21: 399.268142 | I21: 5764.68 | J21: =ROUND(F21*H21,2) -> 7186.83 | K21: DEFINIR QUANT. PLACAS | L21: 4
A22: 1.2 | B22: SERVIÇOS PRELIMINARES (PONTES A/B/C) | I22: =SUM(I23:I32) -> 2215484.28 | J22: =SUM(J23:J32) -> 2762044.27
A23: 1.2.1 | B23: RO-41291 | C23: DEER/MG | D23: REMOÇÃO DE CERCAS | E23: m | F23: ='PL-ORÇ-DEF.A'!F13+'PL-ORÇ-DEF.B'!F13+'PL-ORÇ-DEF.C'!F13 -> 4400.84 | G23: =VLOOKUP(B23,'PREÇO UNITÁRIO'!$B$4:$F$124,5,0) -> 6.64 | H23: =G23*(1+$J$4) -> 8.278088 | I23: =ROUND(F23*G23,2) -> 29221.58 | J23: =ROUND(F23*H23,2) -> 36430.54 | O23: quantidade/hectare
A24: 1.2.2 | B24: 98529 | C24: SINAPI | D24: CORTE RASO E RECORTE DE ÁRVORE COM DIÂMETRO DE TRONCO MAIOR OU IGUAL A 0,20 M E MENOR QUE 0,40 | E24: unid. | F24: =ROUND(((F27+F28+F57+F622+F632+F664+F676+F688+F698+F707+F738)*O24/10000),0) -> 30515 | G24: =VLOOKUP(B24,'PREÇO UNITÁRIO'!$B$4:$F$124,5,0) -> 53.77 | H24: =G24*(1+$J$4) -> 67.035059 | I24: =ROUND(F24*G24,2) -> 1640791.55 | J24: =ROUND(F24*H24,2) -> 2045574.83 | L24: colocar os quantitativos conforme informações do Samuel da UMA (multiplicando pela área de todas as limpezas mecanizadas/10000) | N24: até 40cm = | O24: 1648
A25: 1.2.3 | B25: 98530 | C25: SINAPI | D25: CORTE RASO E RECORTE DE ÁRVORE COM DIÂMETRO DE TRONCO MAIOR OU IGUAL A 0,40 M E MENOR QUE 0,60 | E25: unid. | F25: =ROUND(((F27+F28+F57+F622+F632+F664+F676+F688+F698+F707+F738)*O25/10000),0) -> 426 | G25: =VLOOKUP(B25,'PREÇO UNITÁRIO'!$B$4:$F$124,5,0) -> 95.78 | H25: 119.408926 | I25: 40802.28 | J25: 50868.2 | N25: entre 40-60cm = | O25: 23
A26: 1.2.4 | B26: 98531 | C26: SINAPI | D26: CORTE RASO E RECORTE DE ÁRVORE COM DIÂMETRO DE TRONCO MAIOR OU IGUAL A 0,60 M | E26: unid. | F26: =ROUND(((F27+F28+F57+F622+F632+F664+F676+F688+F698+F707+F738)*O26/10000),0) -> 111 | G26: =VLOOKUP(B26,'PREÇO UNITÁRIO'!$B$4:$F$124,5,0) -> 192.46 | H26: 239.939882 | I26: 21363.06 | J26: 26633.33 | N26: mais de 60cm = | O26: 6
A27: 1.2.5 | B27: 98525 | C27: SINAPI | D27: LIMPEZA MECANIZADA DE CAMADA VEGETAL, VEGETAÇÃO E PEQUENAS ÁRVORES (DIÂMETRO DE TRONCO MENOR QUE 0,20 M), COM TRATOR DE ESTEIRAS (JAZIDA) | E27: m² | F27: ='PL-ORÇ-DEF.A'!F14+'PL-ORÇ-DEF.B'!F14+'PL-ORÇ-DEF.C'!F14 -> 3000 | G27: =VLOOKUP(B27,'PREÇO UNITÁRIO'!$B$4:$F$124,5,0) -> 0.27 | H27: =G27*(1+$J$4) -> 0.336609 | I27: 810 | J27: =ROUND(F27*H27,2) -> 1009.83
A28: 1.2.6 | B28: 98525 | C28: SINAPI | D28: LIMPEZA MECANIZADA DE CAMADA VEGETAL, VEGETAÇÃO E PEQUENAS ÁRVORES (DIÂMETRO DE TRONCO MENOR QUE 0,20 M), COM TRATOR DE ESTEIRAS (ESTRADA NOVA) | E28: m² | F28: ='PL-ORÇ-DEF.A'!F15+'PL-ORÇ-DEF.B'!F15+'PL-ORÇ-DEF.C'!F15 -> 58181.72 | G28: =VLOOKUP(B28,'PREÇO UNITÁRIO'!$B$4:$F$124,5,0) -> 0.27 | H28: 0.336609 | I28: 15709.06 | J28: =ROUND(F28*H28,2) -> 19584.49
A29: 1.2.7 | B29: 72898 | C29: SINAPI | D29: CARGA E DESCARGA MECANIZADAS DE ENTULHO EM CAMINHAO BASCULANTE 6 M3 | E29: m³ | F29: ='PL-ORÇ-DEF.A'!F16+'PL-ORÇ-DEF.B'!F16+'PL-ORÇ-DEF.C'!F16 -> 12236.34 | G29: =VLOOKUP(B29,'PREÇO UNITÁRIO'!$B$4:$F$124,5,0) -> 5.16 | H29: 6.432972 | I29: 63139.51 | J29: =ROUND(F29*H29,2) -> 78716.03
A30: 1.2.8 | B30: 97916 | C30: SINAPI | D30: TRANSPORTE COM CAMINHÃO BASCULANTE DE 6 M3, EM VIA URBANA EM LEITO NATURAL TXKM (UNIDADE: TXKM). AF_01/2018 | E30: txkm | F30: ='PL-ORÇ-DEF.A'!F17+'PL-ORÇ-DEF.B'!F17+'PL-ORÇ-DEF.C'!F17 -> 296462 | G30: =VLOOKUP(B30,'PREÇO UNITÁRIO'!$B$4:$F$124,5,0) -> 1.35 | H30: 1.683045 | I30: 400223.7 | J30: 498958.89
A31: 1.2.9 | B31: RO-42263 | C31: DEER/MG | D31: ESPALHAMENTO DE MATERIAL EM BOTA-FORA | E31: m³ | F31: ='PL-ORÇ-DEF.A'!F18+'PL-ORÇ-DEF.B'!F18+'PL-ORÇ-DEF.C'!F18 -> 12236.34 | G31: =VLOOKUP(B31,'PREÇO UNITÁRIO'!$B$4:$F$124,5,0) -> 0.18 | H31: 0.224406 | I31: 2202.54 | J31: =ROUND(F31*H31,2) -> 2745.91
A32: 1.2.10 | B32: 99064 | C32: SINAPI | D32: LOCAÇÃO DE PAVIMENTAÇÃO. AF_10/2018 | E32: m | F32: ='PL-ORÇ-DEF.A'!F19+'PL-ORÇ-DEF.B'!F19+'PL-ORÇ-DEF.C'!F19 -> 2220 | G32: =VLOOKUP(B32,'PREÇO UNITÁRIO'!$B$4:$F$124,5,0) -> 0.55 | H32: 0.685685 | I32: 1221 | J32: =ROUND(F32*H32,2) -> 1522.22
A33: 1.3 | B33: TRANSPORTES DE EQUIPAMENTOS | I33: =SUM(I34) -> 33146.81 | J33: =SUM(J34) -> 41324.13
A34: 1.3.1 | B34: C10 | C34: CPU | D34: MOBILIZAÇÃO/DESMOBILIZAÇÃO DE EQUIPAMENTOS ESPECIAIS (VIBROACABADORA, ESCAVADEIRA HIDRÁULICA, ROLO COMPACTADOR, MOTONIVELADORA, ETC.) | E34: EQUIP. | F34: 12 | G34: =VLOOKUP(B34,'PREÇO UNITÁRIO'!$B$4:$F$124,5,0) -> 2762.23424 | H34: =G34*(1+$J$4) -> 3443.677427 | I34: =ROUND(F34*G34,2) -> 33146.81 | J34: =ROUND(F34*H34,2) -> 41324.13
H35: TOTAL MOBILIZAÇÃO E SERVIÇOS PRELIMINARES | I35: =I22+I33+I11 -> 4815303.52 | J35: =J22+J33+J11 -> 6003238.91
A37: 2 - CONTROLE TECNOLÓGICO (PONTES A/B/C) | L37: SOMENTE PONTES A/B/C
A38: 2.1 | B38: ENSAIO DE SOLO | I38: =SUM(I39:I41) -> 17262.99 | J38: =SUM(J39:J41) -> 21521.76
A39: 2.1.1 | B39: ED-49564 | C39: DEER/MG | D39: ENSAIO DE TEOR DE UMIDADE - PROCESSO SPEEDY - SOLOS E AGREGADOS MIUDOS | E39: unid. | F39: ='PL-ORÇ-DEF.A'!F71+'PL-ORÇ-DEF.B'!F66+'PL-ORÇ-DEF.C'!F62 -> 299 | G39: =VLOOKUP(B39,'PREÇO UNITÁRIO'!$B$4:$F$124,5,0) -> 30.02 | H39: =G39*(1+$J$4) -> 37.425934 | I39: =ROUND(F39*G39,2) -> 8975.98 | J39: =ROUND(F39*H39,2) -> 11190.35
A40: 2.1.2 | B40: ED-49555 | C40: DEER/MG | D40: ENSAIO DE COMPACTAÇÃO - AMOSTRAS NÃO TRABALHADAS - ENERGIA NORMAL - SOLOS | E40: unid. | F40: ='PL-ORÇ-DEF.A'!F72+'PL-ORÇ-DEF.B'!F67+'PL-ORÇ-DEF.C'!F63 -> 61 | G40: =VLOOKUP(B40,'PREÇO UNITÁRIO'!$B$4:$F$124,5,0) -> 95.08 | H40: 118.536236 | I40: 5799.88 | J40: =ROUND(F40*H40,2) -> 7230.71
A41: 2.1.3 | B41: ED-49559 | C41: DEER/MG | D41: ENSAIO DE MASSA ESPECIFICA - IN SITU - METODO FRASCO DE AREIA - SOLOS | E41: unid. | F41: ='PL-ORÇ-DEF.A'!F73+'PL-ORÇ-DEF.B'!F68+'PL-ORÇ-DEF.C'!F64 -> 71 | G41: =VLOOKUP(B41,'PREÇO UNITÁRIO'!$B$4:$F$124,5,0) -> 35.03 | H41: 43.671901 | I41: 2487.13 | J41: =ROUND(F41*H41,2) -> 3100.7
A42: 2.2 | B42: ENSAIO DE PAVIMENTO | I42: =SUM(I43:I46) -> 123661.2 | J42: =SUM(J43:J46) -> 154168.42
A43: 2.2.1 | B43: 02-06-15 | C43: SIURB | D43: ENSAIOS DE LABORATÓRIO - VISCOSIDADE | E43: unid. | F43: ='PL-ORÇ-DEF.A'!F75+'PL-ORÇ-DEF.B'!F70+'PL-ORÇ-DEF.C'!F66 -> 195 | G43: =VLOOKUP(B43,'PREÇO UNITÁRIO'!$B$4:$F$124,5,0) -> 164.14 | H43: =G43*(1+$J$4) -> 204.633338 | I43: =ROUND(F43*G43,2) -> 32007.3 | J43: =ROUND(F43*H43,2) -> 39903.5
A44: 2.2.2 | B44: 02-06-17 | C44: SIURB | D44: ENSAIOS DE LABORATÓRIO - PONTO DE FULGOR | E44: unid. | F44: ='PL-ORÇ-DEF.A'!F76+'PL-ORÇ-DEF.B'!F71+'PL-ORÇ-DEF.C'!F67 -> 195 | G44: =VLOOKUP(B44,'PREÇO UNITÁRIO'!$B$4:$F$124,5,0) -> 141.58 | H44: 176.507786 | I44: 27608.1 | J44: =ROUND(F44*H44,2) -> 34419.02
A45: 2.2.3 | B45: 02-06-18 | C45: SIURB | D45: ENSAIOS DE LABORATÓRIO - PENETRAÇÃO | E45: unid. | F45: ='PL-ORÇ-DEF.A'!F77+'PL-ORÇ-DEF.B'!F72+'PL-ORÇ-DEF.C'!F68 -> 195 | G45: =VLOOKUP(B45,'PREÇO UNITÁRIO'!$B$4:$F$124,5,0) -> 204.85 | H45: 255.386495 | I45: 39945.75 | J45: =ROUND(F45*H45,2) -> 49800.37
A46: 2.2.4 | B46: 02-06-19 | C46: SIURB | D46: ENSAIOS DE LABORATÓRIO - PONTO DE AMOLECIMENTO | E46: unid. | F46: ='PL-ORÇ-DEF.A'!F78+'PL-ORÇ-DEF.B'!F73+'PL-ORÇ-DEF.C'!F69 -> 195 | G46: =VLOOKUP(B46,'PREÇO UNITÁRIO'!$B$4:$F$124,5,0) -> 123.59 | H46: 154.079653 | I46: 24100.05 | J46: =ROUND(F46*H46,2) -> 30045.53
A47: 2.3 | B47: ENSAIO DE AGREGADOS | I47: =SUM(I48:I50) -> 51035.88 | J47: =SUM(J48:J50) -> 63626.44
A48: 2.3.1 | B48: 02-06-11 | C48: SIURB | D48: ENSAIOS DE LABORATÓRIO - LOS ANGELES | E48: unid. | F48: ='PL-ORÇ-DEF.A'!F80+'PL-ORÇ-DEF.B'!F75+'PL-ORÇ-DEF.C'!F71 -> 3 | G48: =VLOOKUP(B48,'PREÇO UNITÁRIO'!$B$4:$F$124,5,0) -> 454.15 | H48: =G48*(1+$J$4) -> 566.188805 | I48: =ROUND(F48*G48,2) -> 1362.45 | J48: =ROUND(F48*H48,2) -> 1698.57
A49: 2.3.2 | B49: 02-06-13 | C49: SIURB | D49: ENSAIOS DE LABORATÓRIO - DURABILIDADE | E49: unid. | F49: ='PL-ORÇ-DEF.A'!F81+'PL-ORÇ-DEF.B'!F76+'PL-ORÇ-DEF.C'!F72 -> 3 | G49: =VLOOKUP(B49,'PREÇO UNITÁRIO'!$B$4:$F$124,5,0) -> 490.46 | H49: 611.456482 | I49: 1471.38 | J49: =ROUND(F49*H49,2) -> 1834.37
A50: 2.3.3 | B50: 02-06-14 | C50: SIURB | D50: ENSAIOS DE LABORATÓRIO - ADESIVIDADE | E50: unid. | F50: ='PL-ORÇ-DEF.A'!F82+'PL-ORÇ-DEF.B'!F77+'PL-ORÇ-DEF.C'!F73 -> 195 | G50: =VLOOKUP(B50,'PREÇO UNITÁRIO'!$B$4:$F$124,5,0) -> 247.19 | H50: 308.171773 | I50: 48202.05 | J50: =ROUND(F50*H50,2) -> 60093.5
A51: 2.4 | B51: ENSAIO DE CONCRETO | I51: =SUM(I52:I52) -> 3692.87 | J51: =SUM(J52:J52) -> 4603.9
A52: 2.4.1 | B52: ED-49546 | C52: DEER/MG | D52: ENSAIO DE RESISTENCIA A COMPRESSÃO SIMPLES - CONCRETO | E52: unid. | F52: ='PL-ORÇ-DEF.A'!F84+'PL-ORÇ-DEF.B'!F79+'PL-ORÇ-DEF.C'!F75 -> 41 | G52: =VLOOKUP(B52,'PREÇO UNITÁRIO'!$B$4:$F$124,5,0) -> 90.07 | H52: =G52*(1+$J$4) -> 112.290269 | I52: =ROUND(F52*G52,2) -> 3692.87 | J52: =ROUND(F52*H52,2) -> 4603.9
H53: TOTAL CONTROLE TECNOLÓGICO | I53: =I38+I42+I47+I51 -> 195652.94 | J53: =J38+J42+J47+J51 -> 243920.52
A55: 3 - DESVIO DE TRÁFEGO - GERAL (PONTES A/B/C/N/R)
A56: 3.1 | B56: DESVIO DE TRÁFEGO | I56: =SUM(I57:I63) -> 241753.7 | J56: =SUM(J57:J63) -> 301394.34
A57: 3.1.1 | B57: 98525 | C57: SINAPI | D57: LIMPEZA MECANIZADA DE CAMADA VEGETAL, VEGETAÇÃO E PEQUENAS ÁRVORES (DIÂMETRO DE TRONCO MENOR QUE 0,20 M), COM TRATOR DE ESTEIRAS | E57: m² | F57: ='PL-ORÇ-DEF.A'!F36+'PL-ORÇ-DEF.B'!F36+'PL-ORÇ-DEF.C'!F36+ENGECORPS!G128+ENGECORPS!G187 -> 32740.02 | G57: =VLOOKUP(B57,'PREÇO UNITÁRIO'!$B$4:$F$124,5,0) -> 0.27 | H57: =G57*(1+$J$4) -> 0.336609 | I57: =ROUND(F57*G57,2) -> 8839.81 | J57: =ROUND(F57*H57,2) -> 11020.59
A58: 3.1.2 | B58: 72898 | C58: SINAPI | D58: CARGA E DESCARGA MECANIZADAS DE ENTULHO EM CAMINHAO BASCULANTE 6 M3 | E58: m³ | F58: ='PL-ORÇ-DEF.A'!F37+'PL-ORÇ-DEF.B'!F37+'PL-ORÇ-DEF.C'!F37+ENGECORPS!G188+ENGECORPS!G129 -> 6547.998 | G58: =VLOOKUP(B58,'PREÇO UNITÁRIO'!$B$4:$F$124,5,0) -> 5.16 | H58: 6.432972 | I58: 33787.67 | J58: =ROUND(F58*H58,2) -> 42123.09
A59: 3.1.3 | B59: 97916 | C59: SINAPI | D59: TRANSPORTE COM CAMINHÃO BASCULANTE DE 6 M3, EM VIA URBANA EM LEITO NATURAL TXKM (UNIDADE: TXKM). AF_01/2018 | E59: txkm | F59: ='PL-ORÇ-DEF.A'!F38+'PL-ORÇ-DEF.B'!F38+'PL-ORÇ-DEF.C'!F38 -> 98746.88 | G59: =VLOOKUP(B59,'PREÇO UNITÁRIO'!$B$4:$F$124,5,0) -> 1.35 | H59: 1.683045 | I59: 133308.29 | J59: 166195.44
A60: 3.1.4 | B60: RO-42263 | C60: DEER/MG | D60: ESPALHAMENTO DE MATERIAL EM BOTA-FORA | E60: m³ | F60: ='PL-ORÇ-DEF.A'!F39+'PL-ORÇ-DEF.B'!F39+'PL-ORÇ-DEF.C'!F39+ENGECORPS!G129+ENGECORPS!G188 -> 6547.99 | G60: =VLOOKUP(B60,'PREÇO UNITÁRIO'!$B$4:$F$124,5,0) -> 0.18 | H60: 0.224406 | I60: 1178.64 | J60: =ROUND(F60*H60,2) -> 1469.41
A61: 3.1.5 | B61: RO-43112 | C61: DEER/MG | D61: SUB-BASE, SEM MISTURA, COMPACTADA NA ENERGIA DO PROCTOR INTERMEDIÁRIO (EXECUÇÃO, INCLUINDO ESCAVAÇÃO, CARGA, DESCARGA, ESPALHAMENTO, UMIDECIMENTO E COMPACTAÇÃO DO MATERIAL; EXCLUI AQUISIÇÃO E TRANSPORTE DO MATERIAL) | E61: m³ | F61: ='PL-ORÇ-DEF.A'!F40+'PL-ORÇ-DEF.B'!F40+'PL-ORÇ-DEF.C'!F40 -> 1299.83 | G61: =VLOOKUP(B61,'PREÇO UNITÁRIO'!$B$4:$F$124,5,0) -> 14.05 | H61: 17.516135 | I61: 18262.61 | J61: =ROUND(F61*H61,2) -> 22768 | L61: CONSIDERADO NAS PONTES NA MG208, PQ AS DEMAIS POSSUEM ALTERANTIVAS DE TRÁFEGO
A62: 3.1.6 | B62: RO-43113 | C62: DEER/MG | D62: BASE DE SOLO SEM MISTURA, COMPACTADA NA ENERGIA DO PROCTOR INTERMEDIÁRIO (EXECUÇÃO, INCLUINDO ESCAVAÇÃO, CARGA, DESCARGA, ESPALHAMENTO, UMIDECIMENTO E COMPACTAÇÃO DO MATERIAL; EXCLUI AQUISIÇÃO E TRANSPORTE DO MATERIAL) | E62: m³ | F62: ='PL-ORÇ-DEF.A'!F41+'PL-ORÇ-DEF.B'!F41+'PL-ORÇ-DEF.C'!F41 -> 1299.83 | G62: =VLOOKUP(B62,'PREÇO UNITÁRIO'!$B$4:$F$124,5,0) -> 14.05 | H62: 17.516135 | I62: 18262.61 | J62: =ROUND(F62*H62,2) -> 22768
A63: 3.1.7 | B63: 72884 | C63: SINAPI | D63: TRANSPORTE COMERCIAL COM CAMINHAO CARROCERIA 9 T | E63: m³xkm | F63: ='PL-ORÇ-DEF.A'!F42+'PL-ORÇ-DEF.B'!F42+'PL-ORÇ-DEF.C'!F42 -> 38512.426 | G63: =VLOOKUP(B63,'PREÇO UNITÁRIO'!$B$4:$F$124,5,0) -> 0.73 | H63: 0.910091 | I63: 28114.07 | J63: =ROUND(F63*H63,2) -> 35049.81
H64: TOTAL DESVIO DE TRÁFEGO | I64: =SUM(I56) -> 241753.7 | J64: =SUM(J56) -> 301394.34
A66: 4 - PONTE A
A67: 4.1 | B67: OBRAS DE ARTE CORRENTE E DRENAGEM
A68: 4.1.1 | B68: VALETA DE PROTEÇÃO DE ATERRO | I68: =SUM(I69) -> 2013.71 | J68: =SUM(J69) -> 2510.49
A69: 4.1.1.1 | B69: RO-40514 | C69: DEER/MG | D69: VALETA DE PROTEÇÃO DE ATERRO TIPO DR.VPA (EXECUÇÃO,INCLUINDO ESCAVAÇÃO) | E69: m | F69: 79 | G69: =VLOOKUP(B69,'PREÇO UNITÁRIO'!$B$4:$F$124,5,0) -> 25.49 | H69: =G69*(1+$J$4) -> 31.778383 | I69: =ROUND(F69*G69,2) -> 2013.71 | J69: =ROUND(F69*H69,2) -> 2510.49
A70: 4.1.2 | B70: DISSIPADOR DE ENERGIA | I70: =SUM(I71) -> 769.08 | J70: =SUM(J71) -> 958.81
A71: 4.1.2.1 | B71: 2003441 | C71: DNIT/MG | D71: DISSIPADOR DE ENERGIA DE 501 - AREIA E PEDRA DE MÃO COMERCIAIS | E71: und | F71: 6 | G71: =VLOOKUP(B71,'PREÇO UNITÁRIO'!$B$4:$F$124,5,0) -> 128.18 | H71: =G71*(1+$J$4) -> 159.802006 | I71: =ROUND(F71*G71,2) -> 769.08 | J71: =ROUND(F71*H71,2) -> 958.81
A72: 4.1.3 | B72: CAIXA COLETORA EM ALVENARIA | I72: =SUM(I73:I77) -> 1338.5 | J72: =SUM(J73:J77) -> 1668.71
A73: 4.1.3.1 | B73: RO-40160 | C73: DEER/MG | D73: ESCAVAÇÃO, CARGA, DESCARGA, ESPALHAMENTO E TRANSPORTE DE MATERIAL DE 1ª CATEGORIA, COMCAMINHÃO. DISTÂNCIA MÉDIA DE TRANSPORTE DE 3.001 A 4.000 M | E73: m³ | F73: 8.98 | G73: =VLOOKUP(B73,'PREÇO UNITÁRIO'!$B$4:$F$124,5,0) -> 7.44 | H73: =G73*(1+$J$4) -> 9.275448 | I73: =ROUND(F73*G73,2) -> 66.81 | J73: =ROUND(F73*H73,2) -> 83.29
A74: 4.1.3.2 | B74: ED-48193 | C74: DEER/MG | D74: ALVENARIA DE VEDAÇÃO COM BLOCO DE CONCRETO, ESP.19 CM, PARA REVESTIMENTO, INCLUSIVE ARGAMASSA PARA ASSENTAMENTO | E74: m² | F74: 3.83 | G74: =VLOOKUP(B74,'PREÇO UNITÁRIO'!$B$4:$F$124,5,0) -> 49.12 | H74: 61.237904 | I74: 188.13 | J74: =ROUND(F74*H74,2) -> 234.54
A75: 4.1.3.3 | B75: ED-50732 | C75: DEER/MG | D75: EMBOÇO COM ARGAMASSA, TRAÇO 1:6 (CIMENTO E AREIA), ESP. 20MM, APLICAÇÃO MANUAL, PREPARO MECÂNICO | E75: m² | F75: 3.03 | G75: =VLOOKUP(B75,'PREÇO UNITÁRIO'!$B$4:$F$124,5,0) -> 22.84 | H75: 28.474628 | I75: 69.21 | J75: =ROUND(F75*H75,2) -> 86.28
A76: 4.1.3.4 | B76: RO-41624 | C76: DEER/MG | D76: CONCRETO DE CIMENTO PORTLAND, FCK>=15,0MPA (EXECUÇÃO, INCLUINDO O FORNECIMENTO E TRANSPORTE DOS AGREGADOS) | E76: m³ | F76: 0.402 | G76: =VLOOKUP(B76,'PREÇO UNITÁRIO'!$B$4:$F$124,5,0) -> 365.06 | H76: 455.120302 | I76: 146.75 | J76: =ROUND(F76*H76,2) -> 182.96
A77: 4.1.3.5 | B77: ED-48676 | C77: DEER/MG | D77: FORNECIMENTO, ASSENTAMENTO E REJUNTAMENTO DE TUBO DE CONCRETO SIMPLES PS1 D = 400 MM | E77: m | F77: 10 | G77: =VLOOKUP(B77,'PREÇO UNITÁRIO'!$B$4:$F$124,5,0) -> 86.76 | H77: 108.163692 | I77: 867.6 | J77: =ROUND(F77*H77,2) -> 1081.64
A78: 4.1.4 | B78: SARJETA DE CONCRETO ATERRO | I78: =SUM(I79) -> 9053.7 | J78: =SUM(J79) -> 11287.25
A79: 4.1.4.1 | B79: RO-40613 | C79: DEER/MG | D79: SARJETA DE CONCRETO EM ATERRO,TIPO DR.SCA- X/Y. LARGURA=60CM TIPO 30/10 (EXECUÇÃO, INCLUINDO ESCAVAÇÃO, FORNECIMENTO, TRANSPORTE E PLANTIO DA GRAMA) | E79: m | F79: 309 | G79: =VLOOKUP(B79,'PREÇO UNITÁRIO'!$B$4:$F$124,5,0) -> 29.3 | H79: =G79*(1+$J$4) -> 36.52831 | I79: =ROUND(F79*G79,2) -> 9053.7 | J79: =ROUND(F79*H79,2) -> 11287.25
A80: 4.1.5 | B80: SARJETA DE CONCRETO CORTE | I80: =SUM(I81) -> 7613.45 | J80: =SUM(J81) -> 9491.69
A81: 4.1.5.1 | B81: RO-40661 | C81: DEER/MG | D81: SARJETA DE CONCRETO EM CORTE TIPO DR.SCC-X/Y. LARGURA=90CM TIPO 80/10 (EXECUÇÃO, INCLUINDO ESCAVAÇÃO, FORNECIMENTO E TRANSPORTE DE TODOS OS MATERIAIS) | E81: m | F81: 169 | G81: =VLOOKUP(B81,'PREÇO UNITÁRIO'!$B$4:$F$124,5,0) -> 45.05 | H81: =G81*(1+$J$4) -> 56.163835 | I81: =ROUND(F81*G81,2) -> 7613.45 | J81: =ROUND(F81*H81,2) -> 9491.69
A82: 4.1.6 | B82: CANALETA | I82: =SUM(I83) -> 2843.76 | J82: =SUM(J83) -> 3545.32
A83: 4.1.6.1 | B83: ED-14723 | C83: DEER/MG | D83: CANALETA PARA DRENAGEM, EM CONCRETO COM FCK 15MPA, MOLDADA IN LOCO, SEÇÃO 60X60CM, FORMA EM CONTRA BARRANCO, EXCLUSIVE TAMPA, INCLUSIVE ESCAVAÇÃO, REATERRO COM TRANSPORTE E RETIRADA DO MATERIAL ESCAVADO (EM CAÇAMBA) | E83: m | F83: 12 | G83: =VLOOKUP(B83,'PREÇO UNITÁRIO'!$B$4:$F$124,5,0) -> 236.98 | H83: =G83*(1+$J$4) -> 295.442966 | I83: =ROUND(F83*G83,2) -> 2843.76 | J83: =ROUND(F83*H83,2) -> 3545.32
A84: 4.1.7 | B84: DESCIDA D'ÁGUA | I84: =SUM(I85) -> 8395.79 | J84: =SUM(J85) -> 10467.03
A85: 4.1.7.1 | B85: ED-48598 | C85: DEER/MG | D85: DESCIDA D´ÁGUA TIPO CALHA DN 500, EXCLUSIVE BOTA FORA | E85: m | F85: 29 | G85: =VLOOKUP(B85,'PREÇO UNITÁRIO'!$B$4:$F$124,5,0) -> 289.51 | H85: =G85*(1+$J$4) -> 360.932117 | I85: =ROUND(F85*G85,2) -> 8395.79 | J85: =ROUND(F85*H85,2) -> 10467.03
A86: 4.1.8 | B86: GABIÃO | I86: =SUM(I87:I88) -> 268781.1 | J86: =SUM(J87:J88) -> 335089.39
A87: 4.1.8.1 | B87: 92757 | C87: SINAPI | D87: PROTEÇÃO SUPERFICIAL DE CANAL EM GABIÃO TIPO COLCHÃO, ALTURA DE 30 CENTÍMETROS, ENCHIMENTO COM PEDRA DE MÃO TIPO RACHÃO - FORNECIMENTO E EXECUÇÃO | E87: m² | F87: 1281.35 | G87: =VLOOKUP(B87,'PREÇO UNITÁRIO'!$B$4:$F$124,5,0) -> 182.17 | H87: =G87*(1+$J$4) -> 227.111339 | I87: =ROUND(F87*G87,2) -> 233423.53 | J87: =ROUND(F87*H87,2) -> 291009.11
A88: 4.1.8.2 | B88: RO-41352 OBR-VIA-370 | C88: DEER/MG | D88: TRANSPORTE DE ROCHAS E MATERIAL DE 3A CATEGORIA, DISTÂNCIA MÉDIA DE TRANSPORTE > 50,10 KM | E88: m³*km | F88: =F87*0.3*L88 -> 48435.03 | G88: =VLOOKUP(B88,'PREÇO UNITÁRIO'!$B$4:$F$124,5,0) -> 0.73 | H88: 0.910091 | I88: 35357.57 | J88: =ROUND(F88*H88,2) -> 44080.28 | K88: VER DMT. ADOTEI >>>>>>> | L88: =TRANSPORTES!E7+TRANSPORTES!G7 -> 126
H89: TOTAL OBRAS DE ARTE CORRENTE E DRENAGEM | I89: =SUM(I68+I70+I72+I78+I80+I82+I84+I86) -> 300809.09 | J89: =SUM(J68+J70+J72+J78+J80+J82+J84+J86) -> 375018.69
A91: 4.2 | B91: OBRAS DE ARTE ESPECIAIS
A92: 4.2.1 | B92: INFRA ESTRUTURA | I92: =SUM(I93:I100) -> 30882.71 | J92: =SUM(J93:J100) -> 38501.46
A93: 4.2.1.1 | B93: 72917 | C93: SINAPI | D93: ESCAVACAO MECANICA DE VALA EM MATERIAL 2A CATEGORIA COM UTILIZACAO DE ESCAVADEIRA HIDRAULICA | E93: m³ | F93: 726.54 | G93: =VLOOKUP(B93,'PREÇO UNITÁRIO'!$B$4:$F$124,5,0) -> 10.35 | H93: =G93*(1+$J$4) -> 12.903345 | I93: =ROUND(F93*G93,2) -> 7519.69 | J93: =ROUND(F93*H93,2) -> 9374.8
A94: 4.2.1.2 | B94: 93382 | C94: SINAPI | D94: REATERRO MANUAL DE VALAS COM COMPACTAÇÃO MECANIZADA. AF_04/2016 | E94: m³ | F94: 699.08 | G94: =VLOOKUP(B94,'PREÇO UNITÁRIO'!$B$4:$F$124,5,0) -> 24.07 | H94: 30.008069 | I94: 16826.86 | J94: 20978.04
A95: 4.2.1.3 | B95: 83534 | C95: SINAPI | D95: LASTRO DE CONCRETO, PREPARO MECÂNICO, INCLUSOS ADITIVO IMPERMEABILIZANTE, LANÇAMENTO E ADENSAMENTO | E95: m³ | F95: 1.94 | G95: =VLOOKUP(B95,'PREÇO UNITÁRIO'!$B$4:$F$124,5,0) -> 427.75 | H95: 533.275925 | I95: 829.84 | J95: 1034.56
A96: 4.2.1.4 | B96: 5914569 | C96: DNIT/MG | D96: TRANSPORTE COM CAMINHÃO BETONEIRA - RODOVIA PAVIMENTADA (Entre Bocaiúva/MG e Francisco Dumont/MG - 69,00km) | E96: txkm | F96: =SUM(F98*2.4)*L96 -> 2227.32 | G96: =VLOOKUP(B96,'PREÇO UNITÁRIO'!$B$4:$F$124,5,0) -> 0.36 | H96: 0.448812 | I96: 801.84 | J96: 999.65 | K96: VER DMT. ADOTEI >>>>>>> | L96: =TRANSPORTES!F15 -> 69
A97: 4.2.1.5 | B97: 5914539 | C97: DNIT/MG | D97: TRANSPORTE COM CAMINHÃO BETONEIRA - RODOVIA EM LEITO NATURAL (Entre Francisco Dumont/MG e Área A - 15,00km) | E97: txkm | F97: =SUM(F98*2.4)*L97 -> 484.2 | G97: =VLOOKUP(B97,'PREÇO UNITÁRIO'!$B$4:$F$124,5,0) -> 0.55 | H97: 0.685685 | I97: 266.31 | J97: 332.01 | K97: VER DMT. ADOTEI >>>>>>> | L97: =TRANSPORTES!H15 -> 15
A98: 4.2.1.6 | B98: 1106280 | C98: DNIT/MG | D98: CONCRETO PARA BOMBEAMENTO FCK = 30 MPA - CONFECÇÃO EM CENTRAL DOSADORA DE 30 M³/H - AREIA E BRITA COMERCIAIS | E98: m³ | F98: 13.45 | G98: =VLOOKUP(B98,'PREÇO UNITÁRIO'!$B$4:$F$124,5,0) -> 270.4 | H98: 337.10768 | I98: 3636.88 | J98: 4534.1
A99: 4.2.1.7 | B99: 1107860 | C99: DNIT/MG | D99: LANÇAMENTO MECÂNICO DE CONCRETO COM BOMBA LANÇA SOBRE CHASSI COM CAPACIDADE DE 45 M³/H - CONFECÇÃO EM CENTRAL DOSADORA DE 40 M³/H | E99: m³ | F99: =F98 -> 13.45 | G99: =VLOOKUP(B99,'PREÇO UNITÁRIO'!$B$4:$F$124,5,0) -> 31.39 | H99: =G99*(1+$J$4) -> 39.133913 | I99: =ROUND(F99*G99,2) -> 422.2 | J99: =ROUND(F99*H99,2) -> 526.35
A100: 4.2.1.8 | B100: 92270 | C100: SINAPI | D100: FABRICAÇÃO DE FÔRMA PARA VIGAS, COM MADEIRA SERRADA, E = 25 MM. AF_12/2015 | E100: m² | F100: 7.32 | G100: =VLOOKUP(B100,'PREÇO UNITÁRIO'!$B$4:$F$124,5,0) -> 79.11 | H100: 98.626437 | I100: 579.09 | J100: 721.95
A101: 4.2.2 | B101: MESO E SUPER ESTRUTURA | I101: =SUM(I102:I127) -> 757059.96 | J101: =SUM(J102:J127) -> 943826.68
A102: 4.2.2.1 | B102: 92263 | C102: SINAPI | D102: FABRICAÇÃO DE FÔRMA PARA PILARES E ESTRUTURAS SIMILARES, EM CHAPA DE MADEIRA COMPENSADA RESINADA, E = 17 MM. AF_12/2015 | E102: m² | F102: =1732.13821977567+87.32 -> 1819.45822 | G102: =VLOOKUP(B102,'PREÇO UNITÁRIO'!$B$4:$F$124,5,0) -> 89.2 | H102: =G102*(1+$J$4) -> 111.20564 | I102: =ROUND(F102*G102,2) -> 162295.67 | J102: =ROUND(F102*H102,2) -> 202334.02
A103: 4.2.2.2 | B103: 83534 | C103: SINAPI | D103: LASTRO DE CONCRETO, PREPARO MECÂNICO, INCLUSOS ADITIVO IMPERMEABILIZANTE, LANÇAMENTO E ADENSAMENTO | E103: m³ | F103: 5.342075 | G103: =VLOOKUP(B103,'PREÇO UNITÁRIO'!$B$4:$F$124,5,0) -> 427.75 | H103: 533.275925 | I103: 2285.07 | J103: 2848.8
A104: 4.2.2.3 | B104: 5914569 | C104: DNIT/MG | D104: TRANSPORTE COM CAMINHÃO BETONEIRA - RODOVIA PAVIMENTADA (Entre Bocaiúva/MG e Francisco Dumont/MG - 69,00km) | E104: txkm | F104: =SUM(($F$106+$F$107+$F$108)*2.4)*L104 -> 47110.39888 | G104: =VLOOKUP(B104,'PREÇO UNITÁRIO'!$B$4:$F$124,5,0) -> 0.36 | H104: 0.448812 | I104: 16959.74 | J104: 21143.71 | K104: VER DMT. ADOTEI >>>>>>> | L104: =L96 -> 69
A105: 4.2.2.4 | B105: 5914539 | C105: DNIT/MG | D105: TRANSPORTE COM CAMINHÃO BETONEIRA - RODOVIA EM LEITO NATURAL (Entre Francisco Dumont/MG e Área A - 15,00km) | E105: txkm | F105: =SUM(($F$106+$F$107+$F$108)*2.4)*L105 -> 10241.39106 | G105: =VLOOKUP(B105,'PREÇO UNITÁRIO'!$B$4:$F$124,5,0) -> 0.55 | H105: 0.685685 | I105: 5632.77 | J105: 7022.37 | K105: VER DMT. ADOTEI >>>>>>> | L105: =L97 -> 15
A106: 4.2.2.5 | B106: 1116263 | C106: DNIT/MG | D106: CONCRETO PARA BOMBEAMENTO FCK = 25 MPA - CONFECÇÃO EM CENTRAL DOSADORA DE 30 M³/H - AREIA E BRITA COMERCIAIS | E106: m³ | F106: 12.71998 | G106: =VLOOKUP(B106,'PREÇO UNITÁRIO'!$B$4:$F$124,5,0) -> 231.5 | H106: 288.61105 | I106: 2944.68 | J106: 3671.13
A107: 4.2.2.6 | B107: 1106280 | C107: DNIT/MG | D107: CONCRETO PARA BOMBEAMENTO FCK = 30 MPA - CONFECÇÃO EM CENTRAL DOSADORA DE 30 M³/H - AREIA E BRITA COMERCIAIS | E107: m³ | F107: 98.265905 | G107: =VLOOKUP(B107,'PREÇO UNITÁRIO'!$B$4:$F$124,5,0) -> 270.4 | H107: 337.10768 | I107: 26571.1 | J107: 33126.19
A108: 4.2.2.7 | B108: 1106281 | C108: DNIT/MG | D108: CONCRETO PARA BOMBEAMENTO FCK = 35 MPA - CONFECÇÃO EM CENTRAL DOSADORA DE 30 M³/H - AREIA E BRITA COMERCIAIS | E108: m³ | F108: 173.4972 | G108: =VLOOKUP(B108,'PREÇO UNITÁRIO'!$B$4:$F$124,5,0) -> 285.42 | H108: 355.833114 | I108: 49519.57 | J108: 61736.05
A109: 4.2.2.8 | B109: 1107860 | C109: DNIT/MG | D109: LANÇAMENTO MECÂNICO DE CONCRETO COM BOMBA LANÇA SOBRE CHASSI COM CAPACIDADE DE 45 M³/H - CONFECÇÃO EM CENTRAL DOSADORA DE 40 M³/H | E109: m³ | F109: =SUM(F106+F107+F108) -> 284.483085 | G109: =VLOOKUP(B109,'PREÇO UNITÁRIO'!$B$4:$F$124,5,0) -> 31.39 | H109: 39.133913 | I109: 8929.92 | J109: 11132.94
A110: 4.2.2.9 | B110: ED-50430 | C110: DEER/MG | D110: FORNECIMENTO E APLICAÇÃO DE GROUT PARA ANCORAGENS | E110: m³ | F110: 0.288 | G110: =VLOOKUP(B110,'PREÇO UNITÁRIO'!$B$4:$F$124,5,0) -> 272.01 | H110: 339.114867 | I110: 78.34 | J110: 97.67
A111: 4.2.2.10 | B111: 92792 | C111: SINAPI | D111: CORTE E DOBRA DE AÇO CA-50, DIÂMETRO DE 6,3 MM, UTILIZADO EM ESTRUTURA S DIVERSAS | E111: kg | F111: 1778 | G111: =VLOOKUP(B111,'PREÇO UNITÁRIO'!$B$4:$F$124,5,0) -> 6.58 | H111: 8.203286 | I111: 11699.24 | J111: 14585.44
A112: 4.2.2.11 | B112: 92793 | C112: SINAPI | D112: CORTE E DOBRA DE AÇO CA-50, DIÂMETRO DE 8,0 MM, UTILIZADO EM ESTRUTURA S DIVERSAS | E112: kg | F112: 2412 | G112: =VLOOKUP(B112,'PREÇO UNITÁRIO'!$B$4:$F$124,5,0) -> 6.38 | H112: 7.953946 | I112: 15388.56 | J112: 19184.92
A113: 4.2.2.12 | B113: 92794 | C113: SINAPI | D113: CORTE E DOBRA DE AÇO CA-50, DIÂMETRO DE 10,0 MM, UTILIZADO EM ESTRUTURAS DIVERSAS | E113: kg | F113: 10991 | G113: =VLOOKUP(B113,'PREÇO UNITÁRIO'!$B$4:$F$124,5,0) -> 5.82 | H113: 7.255794 | I113: 63967.62 | J113: 79748.43
A114: 4.2.2.13 | B114: 92795 | C114: SINAPI | D114: CORTE E DOBRA DE AÇO CA-50, DIÂMETRO DE 12,5 MM, UTILIZADO EM ESTRUTURAS DIVERSAS | E114: kg | F114: 6416 | G114: =VLOOKUP(B114,'PREÇO UNITÁRIO'!$B$4:$F$124,5,0) -> 4.95 | H114: 6.171165 | I114: 31759.2 | J114: 39594.19
A115: 4.2.2.14 | B115: 92796 | C115: SINAPI | D115: CORTE E DOBRA DE AÇO CA-50, DIÂMETRO DE 16,0 MM, UTILIZADO EM ESTRUTURAS DIVERSAS | E115: kg | F115: 10454 | G115: =VLOOKUP(B115,'PREÇO UNITÁRIO'!$B$4:$F$124,5,0) -> 4.87 | H115: 6.071429 | I115: 50910.98 | J115: 63470.72
A116: 4.2.2.15 | B116: 92797 | C116: SINAPI | D116: CORTE E DOBRA DE AÇO CA-50, DIÂMETRO DE 20,0 MM, UTILIZADO EM ESTRUTURAS DIVERSAS | E116: kg | F116: 6163 | G116: =VLOOKUP(B116,'PREÇO UNITÁRIO'!$B$4:$F$124,5,0) -> 5.72 | H116: 7.131124 | I116: 35252.36 | J116: 43949.12
A117: 4.2.2.16 | B117: 92798 | C117: SINAPI | D117: CORTE E DOBRA DE AÇO CA-50, DIÂMETRO DE 25,0 MM, UTILIZADO EM ESTRUTURAS DIVERSAS | E117: kg | F117: 334 | G117: =VLOOKUP(B117,'PREÇO UNITÁRIO'!$B$4:$F$124,5,0) -> 5.7 | H117: 7.10619 | I117: 1903.8 | J117: 2373.47
A118: 4.2.2.17 | B118: 92880 | C118: SINAPI | D118: CORTE E DOBRA DE AÇO CA-25, DIÂMETRO DE 20,0 MM. AF_12/2015 | E118: kg | F118: 372 | G118: =VLOOKUP(B118,'PREÇO UNITÁRIO'!$B$4:$F$124,5,0) -> 6.16 | H118: 7.679672 | I118: 2291.52 | J118: 2856.84
A119: 4.2.2.18 | B119: 307736 | C119: DNIT/MG | D119: JUNTA DE DILATAÇÃO EM PERFIL EXTRUDADO DE BORRACHA VULCANIZADA DE 40 X 70 MM - FORNECIMENTO E INSTALAÇÃO | E119: m | F119: 20.6 | G119: =VLOOKUP(B119,'PREÇO UNITÁRIO'!$B$4:$F$124,5,0) -> 1014.24 | H119: 1264.453008 | I119: 20893.34 | J119: 26047.73
A120: 4.2.2.19 | B120: 91790 | C120: SINAPI | D120: (COMPOSIÇÃO REPRESENTATIVA) DO SERVIÇO DE INSTALAÇÃO DE TUBOS DE PVC, SÉRIE R, ÁGUA PLUVIAL, DN 100 MM (INSTALADO EM RAMAL DE ENCAMINHAMENTO , OU CONDUTORES VERTICAIS), INCLUSIVE CONEXÕES, CORTES E FIXAÇÕES, PARA PRÉDIOS. AF_10/2015 | E120: m | F120: =2*F122 -> 172.48 | G120: =VLOOKUP(B120,'PREÇO UNITÁRIO'!$B$4:$F$124,5,0) -> 42.45 | H120: 52.922415 | I120: 7321.78 | J120: 9128.06
A121: 4.2.2.20 | B121: 84154 | C121: SINAPI | D121: APARELHO APOIO NEOPRENE FRETADO | E121: dm³ | F121: 45.12 | G121: =VLOOKUP(B121,'PREÇO UNITÁRIO'!$B$4:$F$124,5,0) -> 109.31 | H121: 136.276777 | I121: 4932.07 | J121: 6148.81
A122: 4.2.2.21 | B122: 73770/001 | C122: SINAPI | D122: BARREIRA PRE-MOLDADA EXTERNA CONCRETO ARMADO 0,25X0,40X1,14M FCK=25MPA ACO CA-50 INCL VIGOTA HORIZONTAL MONTANTE A CADA 1,00M FERROS DE LIGACAO E MATERIAIS. | E122: m | F122: =2*8.12+2*35 -> 86.24 | G122: =VLOOKUP(B122,'PREÇO UNITÁRIO'!$B$4:$F$124,5,0) -> 468.97 | H122: 584.664899 | I122: 40443.97 | J122: 50421.5
A123: 4.2.2.22 | B123: ED-50429 | C123: DEER/MG | D123: LANÇAMENTO DE TABULEIRO PRÉ-MOLDADO | E123: unid. | F123: 360 | G123: =VLOOKUP(B123,'PREÇO UNITÁRIO'!$B$4:$F$124,5,0) -> 63.14 | H123: 78.716638 | I123: 22730.4 | J123: 28337.99
A124: 4.2.2.23 | B124: 4507956 | C124: DNIT/MG | D124: CORDOALHA CP 190 RB D = 12,7 MM - FORNECIMENTO, PREPARO E COLOCAÇÃO | E124: Kg | F124: 5425.2 | G124: =VLOOKUP(B124,'PREÇO UNITÁRIO'!$B$4:$F$124,5,0) -> 9.19 | H124: 11.457173 | I124: 49857.59 | J124: 62157.45
A125: 4.2.2.24 | B125: 4508176 | C125: DNIT/MG | D125: BAINHA METÁLICA DIÂMETRO 95 MM PARA 19 CORDOALHAS D = 15,2 MM, SEMI-RÍGIDA, REDONDA, COM MONTAGEM E INJEÇÃO DE NATA DE CIMENTO | E125: m | F125: 554.4 | G125: =VLOOKUP(B125,'PREÇO UNITÁRIO'!$B$4:$F$124,5,0) -> 68.38 | H125: 85.249346 | I125: 37909.87 | J125: 47262.24
A126: 4.2.2.25 | B126: 4507755 | C126: DNIT/MG | D126: ANCORAGEM ATIVA PARA 12 CORDOALHAS D = 12,7 MM COM PLACA DE ANCORAGEM, BLOCO, CUNHAS TRIPARTIDAS, TROMBETA E PROTENSÃO | E126: unid. | F126: 32 | G126: =VLOOKUP(B126,'PREÇO UNITÁRIO'!$B$4:$F$124,5,0) -> 1458 | H126: 1817.6886 | I126: 46656 | J126: 58166.04
A127: 4.2.2.26 | B127: 26.13.01.99 | C127: DER/SP | D127: LANCAMENTO VIGA P<=50T-GUINDASTE AUTO PROPULSADO | E127: unid. | F127: 4 | G127: =VLOOKUP(B127,'PREÇO UNITÁRIO'!$B$4:$F$124,5,0) -> 9481.2 | H127: 11820.21204 | I127: 37924.8 | J127: 47280.85
H128: TOTAL OAE | I128: =SUM(I92+I101) -> 787942.67 | J128: =SUM(J92+J101) -> 982328.14
A130: 4.3 | B130: MATERIAIS E TRANSPORTE PARA PAVIMENTAÇÃO ASFÁLTICA (PARA USINA EM MONTES CLAROS)
A131: 4.3.1 | B131: CAP - CIMENTO ASFÁLTICO | I131: =SUM(I132:I133) -> 4558.35 | J131: =SUM(J132:J133) -> 5682.89
A132: 4.3.1.1 | B132: 72849 | C132: SINAPI | D132: CARGA, MANOBRAS E DESCARGA DE MISTURAS DE SOLOS E AGREGADOS (BASES ESTABILIZADAS EM USINA) COM CAMINHAO BASCULANTE 6 M3 | E132: t | F132: 22.1 | G132: =VLOOKUP(B132,'PREÇO UNITÁRIO'!$B$4:$F$124,5,0) -> 1.81 | H132: =G132*(1+$J$4) -> 2.256527 | I132: =ROUND(F132*G132,2) -> 40 | J132: =ROUND(F132*H132,2) -> 49.87
A133: 4.3.1.2 | B133: 93176 | C133: SINAPI | D133: TRANSPORTE DE MATERIAL ASFALTICO, COM CAMINHÃO COM CAPACIDADE DE 30000 L EM RODOVIA PAVIMENTADA. AF_02/2016 (P/ ITEM 6.1.9) (ORIUNDO DE BETIM/MG DISTANTE 435KM DE MONTES CLAROS/MG) | E133: txkm | F133: =F132*L133 -> 9613.5 | G133: =VLOOKUP(B133,'PREÇO UNITÁRIO'!$B$4:$F$124,5,0) -> 0.47 | H133: 0.585949 | I133: 4518.35 | J133: =ROUND(F133*H133,2) -> 5633.02 | K133: VER DMT. ADOTEI >>>>>>> | L133: =TRANSPORTES!D11 -> 435
A134: 4.3.2 | B134: AREIA | I134: =SUM(I135:I136) -> 10504.05 | J134: =SUM(J135:J136) -> 13095.38
A135: 4.3.2.1 | B135: 72888 | C135: SINAPI | D135: CARGA, MANOBRAS E DESCARGA DE AREIA, BRITA, PEDRA DE MAO E SOLOS COM CAMINHAO BASCULANTE 6 M3 (DESCARGA LIVRE) | E135: m³ | F135: 98.5 | G135: =VLOOKUP(B135,'PREÇO UNITÁRIO'!$B$4:$F$124,5,0) -> 0.79 | H135: =G135*(1+$J$4) -> 0.984893 | I135: =ROUND(F135*G135,2) -> 77.82 | J135: =ROUND(F135*H135,2) -> 97.01
A136: 4.3.2.2 | B136: 72884 | C136: SINAPI | D136: TRANSPORTE COMERCIAL COM CAMINHAO CARROCERIA 9 T (DA CIDADE DE BARRA DO GUAICUÍ/MG ATÉ MONTES CLAROS/MG = 145KM) | E136: m³*km | F136: =F135*L136 -> 14282.5 | G136: =VLOOKUP(B136,'PREÇO UNITÁRIO'!$B$4:$F$124,5,0) -> 0.73 | H136: 0.910091 | I136: 10426.23 | J136: =ROUND(F136*H136,2) -> 12998.37 | K136: VER DMT. ADOTEI >>>>>>> | L136: =TRANSPORTES!D6 -> 145
A137: 4.3.3 | B137: BRITA | I137: =SUM(I138:I139) -> 1073.54 | J137: =SUM(J138:J139) -> 1338.39
A138: 4.3.3.1 | B138: 72888 | C138: SINAPI | D138: CARGA, MANOBRAS E DESCARGA DE AREIA, BRITA, PEDRA DE MAO E SOLOS COM CAMINHAO BASCULANTE 6 M3 (DESCARGA LIVRE) | E138: m³ | F138: 132.7 | G138: =VLOOKUP(B138,'PREÇO UNITÁRIO'!$B$4:$F$124,5,0) -> 0.79 | H138: =G138*(1+$J$4) -> 0.984893 | I138: =ROUND(F138*G138,2) -> 104.83 | J138: =ROUND(F138*H138,2) -> 130.7
A139: 4.3.3.2 | B139: 72884 | C139: SINAPI | D139: TRANSPORTE COMERCIAL COM CAMINHAO CARROCERIA 9 T (DE JAZIDA DISTANTE 10KM DE MONTES CLAROS/MG) | E139: m³*km | F139: =F138*L139 -> 1327 | G139: =VLOOKUP(B139,'PREÇO UNITÁRIO'!$B$4:$F$124,5,0) -> 0.73 | H139: 0.910091 | I139: 968.71 | J139: =ROUND(F139*H139,2) -> 1207.69 | K139: VER DMT. ADOTEI >>>>>>> | L139: =TRANSPORTES!D7 -> 10
H140: TOTAL DE MATERIAIS DO CONCRETO | I140: =SUM(I131+I134+I137) -> 16135.94 | J140: =SUM(J131+J134+J137) -> 20116.66
A142: 4.4 | B142: PAVIMENTAÇÃO ASFÁLTICA
A143: 4.4.1 | B143: PAVIMENTO FLEXIVEL - NOVO E RECUPERAÇÃO | I143: =SUM(I144:I159) -> 285667.23 | J143: =SUM(J144:J159) -> 356141.34
A144: 4.4.1.1 | B144: 83338 | C144: SINAPI | D144: ESCAVACAO MECANICA, A CEU ABERTO, EM MATERIAL DE 1A CATEGORIA, COM ESCAVADEIRA HIDRAULICA, CAPACIDADE DE 0,78 M3 - CORTE | E144: m³ | F144: 464.7 | G144: =VLOOKUP(B144,'PREÇO UNITÁRIO'!$B$4:$F$124,5,0) -> 2.12 | H144: =G144*(1+$J$4) -> 2.643004 | I144: =ROUND(F144*G144,2) -> 985.16 | J144: =ROUND(F144*H144,2) -> 1228.2
A145: 4.4.1.2 | B145: 83338 | C145: SINAPI | D145: ESCAVACAO MECANICA, A CEU ABERTO, EM MATERIAL DE 1A CATEGORIA, COM ESCAVADEIRA HIDRAULICA, CAPACIDADE DE 0,78 M3 - CORTE JAZIDA | E145: m³ | F145: 7006.31 | G145: =VLOOKUP(B145,'PREÇO UNITÁRIO'!$B$4:$F$124,5,0) -> 2.12 | H145: 2.643004 | I145: 14853.38 | J145: 18517.71
A146: 4.4.1.3 | B146: RO-40251 | C146: DEER/MG | D146: COMPACTAÇÃO DE ATERRO A 100% PROCTOR NORMAL | E146: m³ | F146: 7006.31 | G146: =VLOOKUP(B146,'PREÇO UNITÁRIO'!$B$4:$F$124,5,0) -> 3.14 | H146: 3.914638 | I146: 21999.81 | J146: 27427.17
A147: 4.4.1.4 | B147: RO-43112 | C147: DEER/MG | D147: SUB-BASE, SEM MISTURA, COMPACTADA NA ENERGIA DO PROCTOR INTERMEDIÁRIO (EXECUÇÃO, INCLUINDO ESCAVAÇÃO, CARGA, DESCARGA, ESPALHAMENTO, UMIDECIMENTO E COMPACTAÇÃO DO MATERIAL; EXCLUI AQUISIÇÃO E TRANSPORTE DO MATERIAL) | E147: m³ | F147: 395.85 | G147: =VLOOKUP(B147,'PREÇO UNITÁRIO'!$B$4:$F$124,5,0) -> 14.05 | H147: 17.516135 | I147: 5561.69 | J147: 6933.76
A148: 4.4.1.5 | B148: RO-43113 | C148: DEER/MG | D148: BASE DE SOLO SEM MISTURA, COMPACTADA NA ENERGIA DO PROCTOR INTERMEDIÁRIO (EXECUÇÃO, INCLUINDO ESCAVAÇÃO, CARGA, DESCARGA, ESPALHAMENTO, UMIDECIMENTO E COMPACTAÇÃO DO MATERIAL; EXCLUI AQUISIÇÃO E TRANSPORTEDO MATERIAL) | E148: m³ | F148: 395.85 | G148: =VLOOKUP(B148,'PREÇO UNITÁRIO'!$B$4:$F$124,5,0) -> 14.05 | H148: 17.516135 | I148: 5561.69 | J148: 6933.76
A149: 4.4.1.6 | B149: 96401 | C149: SINAPI | D149: EXECUÇÃO DE IMPRIMAÇÃO COM ASFALTO DILUÍDO CM-30. AF_09/2017 | E149: m² | F149: 2919.04 | G149: =VLOOKUP(B149,'PREÇO UNITÁRIO'!$B$4:$F$124,5,0) -> 6.65 | H149: 8.290555 | I149: 19411.62 | J149: 24200.46
A150: 4.4.1.7 | B150: 93176 | C150: SINAPI | D150: TRANSPORTE DE MATERIAL ASFALTICO, COM CAMINHÃO COM CAPACIDADE DE 30000 L EM RODOVIA PAVIMENTADA. AF_02/2016 (P/ ITEM 6.1.9) (ORIUNDO DE BETIM/MG DISTANTE 377KM DIRETO FCO DUMONT) | E150: txkm | F150: =SUM(F149*0.0012)*L150 -> 1320.573696 | G150: =VLOOKUP(B150,'PREÇO UNITÁRIO'!$B$4:$F$124,5,0) -> 0.47 | H150: 0.585949 | I150: 620.67 | J150: 773.79 | K150: VER DMT. ADOTEI >>>>>>> | L150: =TRANSPORTES!F12 -> 377
A151: 4.4.1.8 | B151: 93178 | C151: SINAPI | D151: TRANSPORTE DE MATERIAL ASFALTICO, COM CAMINHÃO COM CAPACIDADE DE 30000 TXKM L EM RODOVIA NÃO PAVIMENTADA PARA DISTÂNCIAS MÉDIAS DE TRANSPORTE SUPERIORES A 100 KM. AF_02/2016 (ORIUNDO DE FCO DUMONT DISTANTE 15KM DIRETO PARA OBRA A) | E151: txkm | F151: =SUM(F149*0.0012)*L151 -> 52.54272 | G151: =VLOOKUP(B151,'PREÇO UNITÁRIO'!$B$4:$F$124,5,0) -> 0.53 | H151: 0.660751 | I151: 27.85 | J151: 34.72 | K151: VER DMT. ADOTEI >>>>>>> | L151: =TRANSPORTES!H12 -> 15
A152: 4.4.1.9 | B152: 72942 | C152: SINAPI | D152: PINTURA DE LIGACAO COM EMULSAO RR-1C | E152: m² | F152: 2919.04 | G152: =VLOOKUP(B152,'PREÇO UNITÁRIO'!$B$4:$F$124,5,0) -> 1.6 | H152: 1.99472 | I152: 4670.46 | J152: 5822.67
A153: 4.4.1.10 | B153: 93176 | C153: SINAPI | D153: TRANSPORTE DE MATERIAL ASFALTICO, COM CAMINHÃO COM CAPACIDADE DE 30000 L EM RODOVIA PAVIMENTADA. AF_02/2016 (P/ ITEM 6.1.9) (ORIUNDO DE BETIM/MG DISTANTE 377KM DIRETO FCO DUMONT) | E153: txkm | F153: =SUM(F152*0.0004)*L153 -> 440.191232 | G153: =VLOOKUP(B153,'PREÇO UNITÁRIO'!$B$4:$F$124,5,0) -> 0.47 | H153: 0.585949 | I153: 206.89 | J153: 257.93 | K153: VER DMT. ADOTEI >>>>>>> | L153: =L150 -> 377
A154: 4.4.1.11 | B154: 93178 | C154: SINAPI | D154: TRANSPORTE DE MATERIAL ASFALTICO, COM CAMINHÃO COM CAPACIDADE DE 30000 TXKM L EM RODOVIA NÃO PAVIMENTADA PARA DISTÂNCIAS MÉDIAS DE TRANSPORTE SUPERIORES A 100 KM. AF_02/2016 (ORIUNDO DE FCO DUMONT DISTANTE 15KM DIRETO PARA OBRA A) | E154: txkm | F154: =SUM(F152*0.0004)*L154 -> 17.51424 | G154: =VLOOKUP(B154,'PREÇO UNITÁRIO'!$B$4:$F$124,5,0) -> 0.53 | H154: 0.660751 | I154: 9.28 | J154: 11.57 | K154: VER DMT. ADOTEI >>>>>>> | L154: =L151 -> 15
A155: 4.4.1.12 | B155: 95995 | C155: SINAPI | D155: CONSTRUÇÃO DE PAVIMENTO COM APLICAÇÃO DE CONCRETO BETUMINOSO USINADO A QUENTE (CBUQ), CAMADA DE ROLAMENTO, COM ESPESSURA DE 5,0 CM - EXCLUSIVE TRANSPORTE. AF_03/2017 (PAVIMENTAÇÃO ESTRADA) | E155: m³ | F155: 131.95 | G155: =VLOOKUP(B155,'PREÇO UNITÁRIO'!$B$4:$F$124,5,0) -> 997.69 | H155: 1243.820123 | I155: 131645.2 | J155: 164122.07
A156: 4.4.1.13 | B156: 95995 | C156: SINAPI | D156: CONSTRUÇÃO DE PAVIMENTO COM APLICAÇÃO DE CONCRETO BETUMINOSO USINADO A QUENTE (CBUQ), CAMADA DE ROLAMENTO, COM ESPESSURA DE 5,0 CM - EXCLUSIVE TRANSPORTE. AF_03/2017 (PAVIMENTAÇÃO OAE) | E156: m³ | F156: 28 | G156: =VLOOKUP(B156,'PREÇO UNITÁRIO'!$B$4:$F$124,5,0) -> 997.69 | H156: 1243.820123 | I156: 27935.32 | J156: 34826.96
A157: 4.4.1.14 | B157: 93176 | C157: SINAPI | D157: TRANSPORTE DE MATERIAL ASFALTICO, COM CAMINHÃO COM CAPACIDADE DE 30000 L EM RODOVIA PAVIMENTADA. AF_02/2016 (P/ ITEM 2.1.12) (ORIUNDO D MONTES CLAROS/MG DIST. 111KM) | E157: txkm | F157: =SUM((F154+F155)*2.4)*L157 -> 39817.27354 | G157: =VLOOKUP(B157,'PREÇO UNITÁRIO'!$B$4:$F$124,5,0) -> 0.47 | H157: 0.585949 | I157: 18714.12 | J157: 23330.89 | K157: VER DMT. ADOTEI >>>>>>> | L157: =TRANSPORTES!E10 -> 111
A158: 4.4.1.15 | B158: 93178 | C158: SINAPI | D158: TRANSPORTE DE MATERIAL ASFALTICO, COM CAMINHÃO COM CAPACIDADE DE 30000 TXKM L EM RODOVIA NÃO PAVIMENTADA PARA DISTÂNCIAS MÉDIAS DE TRANSPORTE SUPERIORES A 100 KM. AF_02/2016 (JEQUITAÍ P/ ÁREA A - 15KM) | E158: txkm | F158: =SUM((F155+F156)*2.4)*L158 -> 5758.2 | G158: =VLOOKUP(B158,'PREÇO UNITÁRIO'!$B$4:$F$124,5,0) -> 0.53 | H158: 0.660751 | I158: 3051.85 | J158: 3804.74 | K158: VER DMT. ADOTEI >>>>>>> | L158: =TRANSPORTES!G10 -> 15
A159: 4.4.1.16 | B159: RO-41344 | C159: DEER/MG | D159: TRANSPORTE DE MATERIAL DE JAZIDA PARA CONSERVAÇÃO. DISTÂNCIA MÉDIA DE TRANSPORTE > 50,10 KM (ESCAVAÇÃO+BASE E SUB BASE) - 5,00KM | E159: m³xkm | F159: =SUM(F145+F147+F148)*L159 -> 38990.05 | G159: =VLOOKUP(B159,'PREÇO UNITÁRIO'!$B$4:$F$124,5,0) -> 0.78 | H159: 0.972426 | I159: 30412.24 | J159: 37914.94 | K159: VER DMT. ADOTEI >>>>>>> | L159: 5 | M159: BUSCAR JAZIDA PRÓXIMA
H160: TOTAL PAVIMENTAÇÃO ASFÁLTICA | I160: =SUM(I143) -> 285667.23 | J160: =SUM(J143) -> 356141.34
A162: 4.5 | B162: COMPLEMENTARES
A163: 4.5.1 | B163: RECOMPOSIÇÃO DE DIVISAS | I163: =SUM(I164) -> 12872.3 | J163: =SUM(J164) -> 16047.9
A164: 4.5.1.1 | B164: 74039/001 | C164: SINAPI | D164: CERCA COM MOUROES DE MADEIRA ROLICA, DIAMETRO 11CM, ESPACAMENTO DE 2M, ALTURA LIVRE DE 1M, CRAVADOS 0,5M, COM 5 FIOS DE ARAME FARPADO Nº 14 CLASSE 250 | E164: m | F164: 490 | G164: =VLOOKUP(B164,'PREÇO UNITÁRIO'!$B$4:$F$124,5,0) -> 26.27 | H164: =G164*(1+$J$4) -> 32.750809 | I164: =ROUND(F164*G164,2) -> 12872.3 | J164: =ROUND(F164*H164,2) -> 16047.9
H165: TOTAL COMPLEMENTARES | I165: =SUM(I163) -> 12872.3 | J165: =SUM(J163) -> 16047.9
A167: 4.6 | B167: SINALIZAÇÃO DE OBRA E DEFINITIVA
A168: 4.6.1 | B168: SINALIZAÇÃO DE OBRA | I168: =SUM(I169:I173) -> 24667.7 | J168: =SUM(J169:J173) -> 30753.2
A169: 4.6.1.1 | B169: 97051 | C169: SINAPI | D169: SINALIZAÇÃO COM FITA FIXADA NA ESTRUTURA. AF_11/2017 | E169: m | F169: 3000 | G169: =VLOOKUP(B169,'PREÇO UNITÁRIO'!$B$4:$F$124,5,0) -> 0.5 | H169: =G169*(1+$J$4) -> 0.62335 | I169: =ROUND(F169*G169,2) -> 1500 | J169: =ROUND(F169*H169,2) -> 1870.05
A170: 4.6.1.2 | B170: RO-41841 | C170: DEER/MG | D170: PLACA DE AÇO CARBONO COM PELÍCULA REFLETIVA GRAU TÉCNICO TIPO I DA ABNT - PLACA CIRCULAR (EXECUÇÃO, INCLUINDO FORNECIMENTO E TRANSPORTE DE TODOS OS MATERIAIS, INCLUSIVE POSTE DE SUSTENTAÇÃO) | E170: m² | F170: 0.78 | G170: =VLOOKUP(B170,'PREÇO UNITÁRIO'!$B$4:$F$124,5,0) -> 341.61 | H170: 425.885187 | I170: 266.46 | J170: =ROUND(F170*H170,2) -> 332.19
A171: 4.6.1.3 | B171: RO-41844 | C171: DEER/MG | D171: PLACA DE AÇO CARBONO COM PELÍCULA REFLETIVA GRAU TÉCNICO TIPO I DA ABNT - PLACA QUADRADA (EXECUÇÃO, INCLUINDO FORNECIMENTO E TRANSPORTE DE TODOS OS MATERIAIS, INCLUSIVE POSTE DE SUSTENTAÇÃO) | E171: m² | F171: 15.89 | G171: =VLOOKUP(B171,'PREÇO UNITÁRIO'!$B$4:$F$124,5,0) -> 331.13 | H171: 412.819771 | I171: 5261.66 | J171: =ROUND(F171*H171,2) -> 6559.71
A172: 4.6.1.4 | B172: RO-43226 | C172: DEER/MG | D172: COLOCAÇÃO DE PLACAS | E172: m² | F172: 16.67 | G172: =VLOOKUP(B172,'PREÇO UNITÁRIO'!$B$4:$F$124,5,0) -> 65.77 | H172: 81.995459 | I172: 1096.39 | J172: =ROUND(F172*H172,2) -> 1366.86
A173: 4.6.1.5 | B173: 85424 | C173: SINAPI | D173: ISOLAMENTO DE OBRA COM TELA PLASTICA COM MALHA DE 5MM E ESTRUTURA DE MADEIRA PONTALETEADA | E173: m | F173: 794.2 | G173: =VLOOKUP(B173,'PREÇO UNITÁRIO'!$B$4:$F$124,5,0) -> 20.83 | H173: 25.968761 | I173: 16543.19 | J173: =ROUND(F173*H173,2) -> 20624.39
A174: 4.6.2 | B174: SINALIZAÇÃO DEFINITIVA HORIZONTAL | I174: =SUM(I175:I176) -> 311.38 | J174: =SUM(J175:J176) -> 388.2
A175: 4.6.2.1 | B175: RO-41237 OBR-VIA-245 | C175: DEER/MG | D175: LINHAS DE RESINA ACRILICA 0,6MM DE ESPESSURA E LARGURA = 0,10M (EXECUÇÃO, INCLUSIVE PRÉ-MARCAÇÃO, FORNECIMENTO E TRANSPORTE DE TODOS OS MATERIAIS) - LINHAS BRANCAS | E175: m² | F175: 59.99 | G175: =VLOOKUP(B175,'PREÇO UNITÁRIO'!$B$4:$F$124,5,0) -> 1.73 | H175: =G175*(1+$J$4) -> 2.156791 | I175: =ROUND(F175*G175,2) -> 103.78 | J175: =ROUND(F175*H175,2) -> 129.39
A176: 4.6.2.2 | B176: RO-41237 OBR-VIA-245 | C176: DEER/MG | D176: LINHAS DE RESINA ACRILICA 0,6MM DE ESPESSURA E LARGURA = 0,10M (EXECUÇÃO, INCLUSIVE PRÉ-MARCAÇÃO, FORNECIMENTO E TRANSPORTE DE TODOS OS MATERIAIS) - LINHAS AMARELAS | E176: m² | F176: 120 | G176: =VLOOKUP(B176,'PREÇO UNITÁRIO'!$B$4:$F$124,5,0) -> 1.73 | H176: 2.156791 | I176: 207.6 | J176: =ROUND(F176*H176,2) -> 258.81
A177: 4.6.3 | B177: SINALIZAÇÃO DEFINITIVA VERTICAL | I177: =SUM(I178:I180) -> 555.78 | J177: =SUM(J178:J180) -> 692.89
A178: 4.6.3.1 | B178: RO-41841 | C178: DEER/MG | D178: PLACA DE AÇO CARBONO COM PELÍCULA REFLETIVA GRAU TÉCNICO TIPO I DA ABNT - PLACA CIRCULAR (EXECUÇÃO, INCLUINDO FORNECIMENTO E TRANSPORTE DE TODOS OS MATERIAIS, INCLUSIVE POSTE DE SUSTENTAÇÃO) | E178: m² | F178: 0.39 | G178: =VLOOKUP(B178,'PREÇO UNITÁRIO'!$B$4:$F$124,5,0) -> 341.61 | H178: =G178*(1+$J$4) -> 425.885187 | I178: =ROUND(F178*G178,2) -> 133.23 | J178: =ROUND(F178*H178,2) -> 166.1
A179: 4.6.3.2 | B179: RO-41844 | C179: DEER/MG | D179: PLACA DE AÇO CARBONO COM PELÍCULA REFLETIVA GRAU TÉCNICO TIPO I DA ABNT - PLACA QUADRADA (EXECUÇÃO, INCLUINDO FORNECIMENTO E TRANSPORTE DE TODOS OS MATERIAIS, INCLUSIVE POSTE DE SUSTENTAÇÃO) | E179: m² | F179: 1 | G179: =VLOOKUP(B179,'PREÇO UNITÁRIO'!$B$4:$F$124,5,0) -> 331.13 | H179: 412.819771 | I179: 331.13 | J179: =ROUND(F179*H179,2) -> 412.82
A180: 4.6.3.3 | B180: RO-43226 | C180: DEER/MG | D180: COLOCAÇÃO DE PLACAS | E180: m² | F180: 1.39 | G180: =VLOOKUP(B180,'PREÇO UNITÁRIO'!$B$4:$F$124,5,0) -> 65.77 | H180: 81.995459 | I180: 91.42 | J180: =ROUND(F180*H180,2) -> 113.97
A181: 4.6.4 | B181: DISPOSITIVOS DE SEGURANÇA | I181: =SUM(I182:I183) -> 74119.16 | J181: =SUM(J182:J183) -> 92404.35
A182: 4.6.4.1 | B182: RO-41763 | C182: DEER/MG | D182: DEFENSA SINGELA SEMI-MALEÁVEL SV-DSM-02 (EXECUÇÃO, INCLUINDO FORNECIMENTO, COLOCAÇÃO E TRANSPORTE DE TODOS OS MATERIAIS) | E182: m | F182: 275 | G182: =VLOOKUP(B182,'PREÇO UNITÁRIO'!$B$4:$F$124,5,0) -> 265.94 | H182: =G182*(1+$J$4) -> 331.547398 | I182: =ROUND(F182*G182,2) -> 73133.5 | J182: =ROUND(F182*H182,2) -> 91175.53
A183: 4.6.4.2 | B183: 28.10.01.99 | C183: DER/SP | D183: FORN./INSTAL. BALIZ.(CATADIOPTRICO) P/DEF. MET. C/PELICULA GT+GT, CONF.OP-06-05 | E183: un. | F183: 34 | G183: =VLOOKUP(B183,'PREÇO UNITÁRIO'!$B$4:$F$124,5,0) -> 28.99 | H183: 36.141833 | I183: 985.66 | J183: =ROUND(F183*H183,2) -> 1228.82
H184: TOTAL SINALIZAÇÃO DE OBRA E DEFINITIVA | I184: =SUM(I168+I174+I177+I181) -> 99654.02 | J184: =SUM(J168+J174+J177+J181) -> 124238.64
H186: TOTAL - PONTE A | I186: =I184+I165+I160+I140+I128+I89 -> 1503081.25 | J186: =J184+J165+J160+J140+J128+J89 -> 1873891.37
A188: 5 - PONTE B
A189: 5.1 | B189: OBRAS DE ARTE CORRENTE E DRENAGEM
A190: 5.1.1 | B190: VALETA DE PROTEÇÃO DE ATERRO | I190: =SUM(I191) -> 1886.26 | J190: =SUM(J191) -> 2351.6
A191: 5.1.1.1 | B191: RO-40514 | C191: DEER/MG | D191: VALETA DE PROTEÇÃO DE ATERRO TIPO DR.VPA (EXECUÇÃO,INCLUINDO ESCAVAÇÃO) | E191: m | F191: 74 | G191: =VLOOKUP(B191,'PREÇO UNITÁRIO'!$B$4:$F$124,5,0) -> 25.49 | H191: =G191*(1+$J$4) -> 31.778383 | I191: =ROUND(F191*G191,2) -> 1886.26 | J191: =ROUND(F191*H191,2) -> 2351.6
A192: 5.1.2 | B192: CAIXA COLETORA EM ALVENARIA | I192: =SUM(I193:I197) -> 1806.96 | J192: =SUM(J193:J197) -> 2252.75
A193: 5.1.2.1 | B193: RO-40160 | C193: DEER/MG | D193: ESCAVAÇÃO, CARGA, DESCARGA, ESPALHAMENTO E TRANSPORTE DE MATERIAL DE 1ª CATEGORIA, COMCAMINHÃO. DISTÂNCIA MÉDIA DE TRANSPORTE DE 3.001 A 4.000 M | E193: m³ | F193: 17.96 | G193: =VLOOKUP(B193,'PREÇO UNITÁRIO'!$B$4:$F$124,5,0) -> 7.44 | H193: =G193*(1+$J$4) -> 9.275448 | I193: =ROUND(F193*G193,2) -> 133.62 | J193: =ROUND(F193*H193,2) -> 166.59
A194: 5.1.2.2 | B194: ED-48193 | C194: DEER/MG | D194: ALVENARIA DE VEDAÇÃO COM BLOCO DE CONCRETO, ESP.19 CM, PARA REVESTIMENTO, INCLUSIVE ARGAMASSA PARA ASSENTAMENTO | E194: m² | F194: 7.64 | G194: =VLOOKUP(B194,'PREÇO UNITÁRIO'!$B$4:$F$124,5,0) -> 49.12 | H194: 61.237904 | I194: 375.28 | J194: =ROUND(F194*H194,2) -> 467.86
A195: 5.1.2.3 | B195: ED-50732 | C195: DEER/MG | D195: EMBOÇO COM ARGAMASSA, TRAÇO 1:6 (CIMENTO E AREIA), ESP. 20MM, APLICAÇÃO MANUAL, PREPARO MECÂNICO | E195: m² | F195: 6.06 | G195: =VLOOKUP(B195,'PREÇO UNITÁRIO'!$B$4:$F$124,5,0) -> 22.84 | H195: 28.474628 | I195: 138.41 | J195: =ROUND(F195*H195,2) -> 172.56
A196: 5.1.2.4 | B196: RO-41624 | C196: DEER/MG | D196: CONCRETO DE CIMENTO PORTLAND, FCK>=15,0MPA (EXECUÇÃO, INCLUINDO OFORNECIMENTO E TRANSPORTE DOS AGREGADOS) | E196: m³ | F196: 0.8 | G196: =VLOOKUP(B196,'PREÇO UNITÁRIO'!$B$4:$F$124,5,0) -> 365.06 | H196: 455.120302 | I196: 292.05 | J196: =ROUND(F196*H196,2) -> 364.1
A197: 5.1.2.5 | B197: ED-48676 | C197: DEER/MG | D197: FORNECIMENTO, ASSENTAMENTO E REJUNTAMENTO DE TUBO DE CONCRETO SIMPLES PS1 D = 400 MM | E197: m | F197: 10 | G197: =VLOOKUP(B197,'PREÇO UNITÁRIO'!$B$4:$F$124,5,0) -> 86.76 | H197: 108.163692 | I197: 867.6 | J197: =ROUND(F197*H197,2) -> 1081.64
A198: 5.1.3 | B198: SARJETA DE CONCRETO ATERRO | I198: =SUM(I199) -> 1875.2 | J198: =SUM(J199) -> 2337.81
A199: 5.1.3.1 | B199: RO-40613 | C199: DEER/MG | D199: SARJETA DE CONCRETO EM ATERRO,TIPO DR.SCA- X/Y. LARGURA=60CM TIPO 30/10 (EXECUÇÃO, INCLUINDO ESCAVAÇÃO, FORNECIMENTO, TRANSPORTE E PLANTIO DA GRAMA) | E199: m | F199: 64 | G199: =VLOOKUP(B199,'PREÇO UNITÁRIO'!$B$4:$F$124,5,0) -> 29.3 | H199: =G199*(1+$J$4) -> 36.52831 | I199: =ROUND(F199*G199,2) -> 1875.2 | J199: =ROUND(F199*H199,2) -> 2337.81
A200: 5.1.4 | B200: SARJETA DE CONCRETO CORTE | I200: =SUM(I201) -> 10271.4 | J200: =SUM(J201) -> 12805.35
A201: 5.1.4.1 | B201: RO-40661 | C201: DEER/MG | D201: SARJETA DE CONCRETO EM CORTE TIPO DR.SCC-X/Y. LARGURA=90CM TIPO80/10 (EXECUÇÃO, INCLUINDOESCAVAÇÃO, FORNECIMENTO E TRANSPORTE DE TODOS OS MATERIAIS) | E201: m | F201: 228 | G201: =VLOOKUP(B201,'PREÇO UNITÁRIO'!$B$4:$F$124,5,0) -> 45.05 | H201: =G201*(1+$J$4) -> 56.163835 | I201: =ROUND(F201*G201,2) -> 10271.4 | J201: =ROUND(F201*H201,2) -> 12805.35
A202: 5.1.5 | B202: CANALETA | I202: =SUM(I203) -> 233.48 | J202: =SUM(J203) -> 291.08
A203: 5.1.5.1 | B203: ED-48555 | C203: DEER/MG | D203: CANALETA PARA DRENAGEM, PRÉ-MOLDADA, TIPO MEIA CANA, DIÂMETRO 60CM, EXCLUSIVE TAMPA, INCLUSIVE ASSENTAMENTO EM ARGAMASSA, TRAÇO 1:3 (CIMENTO E AREIA), ESCAVAÇÃO, TRANSPORTE E RETIRADA DO MATERIAL ESCAVADO (EM CAÇAMBA) | E203: m | F203: 2 | G203: =VLOOKUP(B203,'PREÇO UNITÁRIO'!$B$4:$F$124,5,0) -> 116.74 | H203: =G203*(1+$J$4) -> 145.539758 | I203: =ROUND(F203*G203,2) -> 233.48 | J203: =ROUND(F203*H203,2) -> 291.08
A204: 5.1.6 | B204: DESCIDA D'ÁGUA | I204: =SUM(I205) -> 2895.1 | J204: =SUM(J205) -> 3609.32
A205: 5.1.6.1 | B205: ED-48598 | C205: DEER/MG | D205: DESCIDA D´ÁGUA TIPO CALHA DN 500, EXCLUSIVE BOTA FORA | E205: m | F205: 10 | G205: =VLOOKUP(B205,'PREÇO UNITÁRIO'!$B$4:$F$124,5,0) -> 289.51 | H205: =G205*(1+$J$4) -> 360.932117 | I205: =ROUND(F205*G205,2) -> 2895.1 | J205: =ROUND(F205*H205,2) -> 3609.32
H206: TOTAL OBRAS DE ARTE CORRENTE E DRENAGEM | I206: =SUM(I190+I192+I198+I200+I202+I204) -> 18968.4 | J206: =SUM(J190+J192+J198+J200+J202+J204) -> 23647.91
A208: 5.2 | B208: OBRAS DE ARTE ESPECIAIS
A209: 5.2.1 | B209: INFRA ESTRUTURA | I209: =SUM(I210:I217) -> 42382.46 | J209: =SUM(J210:J217) -> 52838.2
A210: 5.2.1.1 | B210: 72917 | C210: SINAPI | D210: ESCAVACAO MECANICA DE VALA EM MATERIAL 2A CATEGORIA COM UTILIZACAO DE ESCAVADEIRA HIDRAULICA | E210: m³ | F210: 853.73 | G210: =VLOOKUP(B210,'PREÇO UNITÁRIO'!$B$4:$F$124,5,0) -> 10.35 | H210: =G210*(1+$J$4) -> 12.903345 | I210: =ROUND(F210*G210,2) -> 8836.11 | J210: =ROUND(F210*H210,2) -> 11015.97
A211: 5.2.1.2 | B211: 93382 | C211: SINAPI | D211: REATERRO MANUAL DE VALAS COM COMPACTAÇÃO MECANIZADA. AF_04/2016 | E211: m³ | F211: 810.16 | G211: =VLOOKUP(B211,'PREÇO UNITÁRIO'!$B$4:$F$124,5,0) -> 24.07 | H211: 30.008069 | I211: 19500.55 | J211: 24311.34
A212: 5.2.1.3 | B212: 83534 | C212: SINAPI | D212: LASTRO DE CONCRETO, PREPARO MECÂNICO, INCLUSOS ADITIVO IMPERMEABILIZANTE, LANÇAMENTO E ADENSAMENTO | E212: m³ | F212: 3.31 | G212: =VLOOKUP(B212,'PREÇO UNITÁRIO'!$B$4:$F$124,5,0) -> 427.75 | H212: 533.275925 | I212: 1415.85 | J212: 1765.14
A213: 5.2.1.4 | B213: 5914569 | C213: DNIT/MG | D213: TRANSPORTE COM CAMINHÃO BETONEIRA - RODOVIA PAVIMENTADA (Entre Bocaiúva/MG e Francisco Dumont/MG - 69,00km) | E213: txkm | F213: =SUM(F215*2.4)*L213 -> 5266.08 | G213: =VLOOKUP(B213,'PREÇO UNITÁRIO'!$B$4:$F$124,5,0) -> 0.36 | H213: 0.448812 | I213: 1895.79 | J213: 2363.48 | K213: VER DMT. ADOTEI >>>>>>> | L213: =TRANSPORTES!F15 -> 69
... 529 more rows

Sheet CRONO 18 MESES
A1: PLANILHA DE CUSTOS – PONTES E GALERIAS – PROJETO JEQUITAÍ – OAE E PAVIMENTAÇÃO
A2: OBRA: | C2: OBRAS DE ARTE ESPECIAIS E PAVIMENTAÇÃO (PONTES E GALERIAS) | U2: DATA: | W2: SETEMBRO.2020
A3: LOCAL: | C3: ÁREA DE INTERFERÊNCIA DIRETA DA BARRAGEM JEQUITAÍ I - MUNICÍPIO DE FRANCISCO DUMONT/MG | U3: VALOR TOTAL C/BDI (R$): | W3: =C30 -> 30440349.11
A4: DATA BASE TABELAS: | C4: SINAPI JUL2020 / DEER-MG ABR2020 / SICRO-MG JAN2020 / SIURB JAN2020 / DER-SP-JUN2020 / ORSE MAI2020 | U4: BDI (%): | W4: =BDI!$C$23 -> 0.2467
A5: PRAZO EXECUÇÃO: | C5: 18 (DEZOITO) MESES
A7: CRONOGRAMA -FÍSICO/FINANCEIRO
A8: ITEM | B8: SERVIÇO | C8: VALOR TOTAL (R$) | E8: EXECUÇÃO X DESEMBOLSO | W8: VALOR ACUMULADO (R$) | X8: % ACUMULADO
E9: MÊS 01 | F9: MÊS 02 | G9: MÊS 03 | H9: MÊS 04 | I9: MÊS 05 | J9: MÊS 06 | K9: MÊS 07 | L9: MÊS 08 | M9: MÊS 09 | N9: MÊS 10 | O9: MÊS 11 | P9: MÊS 12 | Q9: MÊS 13 | R9: MÊS 14 | S9: MÊS 15 | T9: MÊS 16 | U9: MÊS 17 | V9: MÊS 18
A10: 1 | B10: MOBILIZAÇÃO E SERVIÇOS PRELIMINARES | C10: ='PLANILHA UNIFICADA'!J35 -> 6003238.91 | D10: % | E10: =((E13+E15+E17+E19+E21+E23+E25+E27+E29)/($C$30-$C$10)*100) -> 4.019677777 | F10: =((F13+F15+F17+F19+F21+F23+F25+F27+F29)/($C$30-$C$10)*100) -> 6.138028988 | G10: 7.763041442 | H10: 9.270644616 | I10: 9.937076001 | J10: 11.38401968 | K10: 8.574772532 | L10: 7.334451931 | M10: 6.094131331 | N10: 4.73047604 | O10: 4.680568233 | P10: 4.680568233 | Q10: 4.680568233 | R10: 4.680568233 | S10: 4.679356322 | T10: 1.230310669 | U10: 0.07304384542 | V10: 0.04869589695 | W10: =SUM(E11:V11) -> 6003238.91 | X10: =SUM(W10/$C$30) -> 0.1972132083 | Y10: =W10/C10 -> 1
D11: R$ | E11: =E10*$C$10/100 -> 241310.8604 | F11: =F10*$C$10/100 -> 368480.5445 | G11: 466033.9244 | H11: 556538.9448 | I11: 596546.413 | J11: 683409.8989 | K11: 514764.0811 | L11: 440304.6722 | M11: 365845.2633 | N11: 283981.7783 | O11: 280985.6934 | P11: 280985.6934 | Q11: 280985.6934 | R11: 280985.6934 | S11: 280912.9394 | T11: 73858.48877 | U11: 4384.99655 | V11: 2923.331033
A12: 2 | B12: CONTROLE TECNOLÓGICO (PONTES A/B/C) | C12: ='PLANILHA UNIFICADA'!J53 -> 243920.52 | D12: % | H12: 10 | I12: 10 | J12: 20 | K12: 10 | L12: 10 | M12: 10 | N12: 10 | O12: 5 | P12: 5 | Q12: 5 | R12: 5 | W12: =SUM(E13:V13) -> 243920.52 | X12: =SUM(W12/$C$30) -> 0.008013065787 | Y12: =W12/C12 -> 1
D13: R$ | E13: =SUM($C$12*E12%) -> 0 | F13: =SUM($C$12*F12%) -> 0 | G13: 0 | H13: 24392.052 | I13: 24392.052 | J13: 48784.104 | K13: =SUM($C$12*K12%) -> 24392.052 | L13: 24392.052 | M13: 24392.052 | N13: 24392.052 | O13: 12196.026 | P13: 12196.026 | Q13: 12196.026 | R13: 12196.026 | S13: 0 | T13: 0 | U13: 0 | V13: 0
A14: 3 | B14: DESVIO DE TRÁFEGO - GERAL (PONTES A/B/C/N/R) | C14: ='PLANILHA UNIFICADA'!J64 -> 301394.34 | D14: % | F14: 20 | H14: 10 | I14: 20 | J14: 20 | K14: 10 | L14: 10 | M14: 10 | W14: =SUM(E15:V15) -> 301394.34 | X14: =SUM(W14/$C$30) -> 0.009901145973 | Y14: =W14/C14 -> 1
D15: R$ | E15: =SUM($C$14*E14%) -> 0 | F15: =SUM($C$14*F14%) -> 60278.868 | G15: 0 | H15: 30139.434 | I15: 60278.868 | J15: 60278.868 | K15: =SUM($C$14*K14%) -> 30139.434 | L15: 30139.434 | M15: 30139.434 | N15: 0 | O15: 0 | P15: 0 | Q15: 0 | R15: 0 | S15: 0 | T15: 0 | U15: 0 | V15: 0
A16: 4 | B16: PONTE A | C16: ='PLANILHA UNIFICADA'!J186 -> 1873891.37 | D16: % | I16: 10 | J16: 30 | K16: 30 | L16: 20 | M16: 10 | W16: =SUM(E17:V17) -> 1873891.37 | X16: =SUM(W16/$C$30) -> 0.06155945726 | Y16: =W16/C16 -> 1
D17: R$ | E17: =SUM($C$16*E16%) -> 0 | F17: =SUM($C$16*F16%) -> 0 | G17: 0 | H17: 0 | I17: 187389.137 | J17: 562167.411 | K17: =SUM($C$16*K16%) -> 562167.411 | L17: 374778.274 | M17: 187389.137 | N17: 0 | O17: 0 | P17: 0 | Q17: 0 | R17: 0 | S17: 0 | T17: 0 | U17: 0 | V17: 0
A18: 5 | B18: PONTE B | C18: ='PLANILHA UNIFICADA'!J303 -> 1157093.75 | D18: % | I18: 10 | J18: 30 | K18: 30 | L18: 20 | M18: 10 | W18: =SUM(E19:V19) -> 1157093.75 | X18: =SUM(W18/$C$30) -> 0.0380118423 | Y18: =W18/C18 -> 1
D19: R$ | E19: =SUM($C$18*E18%) -> 0 | F19: =SUM($C$18*F18%) -> 0 | G19: 0 | H19: 0 | I19: 115709.375 | J19: 347128.125 | K19: =SUM($C$18*K18%) -> 347128.125 | L19: 231418.75 | M19: 115709.375 | N19: 0 | O19: 0 | P19: 0 | Q19: 0 | R19: 0 | S19: 0 | T19: 0 | U19: 0 | V19: 0
A20: 6 | B20: PONTE C | C20: ='PLANILHA UNIFICADA'!J420 -> 11315995.91 | D20: % | J20: =7.5+0.0008601 -> 7.5008601 | K20: 10 | L20: 10 | M20: 10 | N20: 10 | O20: 10 | P20: 10 | Q20: 10 | R20: 10 | S20: 10 | T20: =2.5-0.0008601 -> 2.4991399 | W20: =SUM(E21:V21) -> 11315995.91 | X20: =SUM(W20/$C$30) -> 0.3717433026 | Y20: =W20/C20 -> 1
D21: R$ | E21: =SUM($C$20*E20%) -> 0 | F21: =SUM($C$20*F20%) -> 0 | G21: 0 | H21: 0 | I21: 0 | J21: 848797.0221 | K21: 1131599.591 | L21: 1131599.591 | M21: 1131599.591 | N21: 1131599.591 | O21: 1131599.591 | P21: 1131599.591 | Q21: 1131599.591 | R21: 1131599.591 | S21: 1131599.591 | T21: 282802.5689 | U21: 0 | V21: 0
A22: 7 | B22: PONTE N | C22: ='PLANILHA UNIFICADA'!J521 -> 3138831.63 | D22: % | F22: 10 | G22: 20 | H22: 30 | I22: 20 | J22: 20 | W22: =SUM(E23:V23) -> 3138831.63 | X22: =SUM(W22/$C$30) -> 0.1031141798 | Y22: =W22/C22 -> 1
D23: R$ | E23: =SUM($C$22*E22%) -> 0 | F23: 313883.163 | G23: 627766.326 | H23: 941649.489 | I23: 627766.326 | J23: 627766.326 | K23: =SUM($C$22*K22%) -> 0 | L23: 0 | M23: 0 | N23: 0 | O23: 0 | P23: 0 | Q23: 0 | R23: 0 | S23: 0 | T23: 0 | U23: 0 | V23: 0
A24: 8 | B24: PONTE R | C24: ='PLANILHA UNIFICADA'!J617 -> 1435017.89 | D24: % | F24: 10 | G24: 20 | H24: 20 | I24: 30 | J24: 20 | W24: =SUM(E25:V25) -> 1435017.89 | X24: =SUM(W24/$C$30) -> 0.04714196558 | Y24: =W24/C24 -> 1
D25: R$ | E25: =SUM($C$24*E24%) -> 0 | F25: 143501.789 | G25: 287003.578 | H25: =SUM($C$24*H24%) -> 287003.578 | I25: =SUM($C$24*I24%) -> 430505.367 | J25: =SUM($C$24*J24%) -> 287003.578 | K25: =SUM($C$24*K24%) -> 0 | L25: 0 | M25: 0 | N25: 0 | O25: 0 | P25: 0 | Q25: 0 | R25: 0 | S25: 0 | T25: 0 | U25: 0 | V25: 0
A26: 9 | B26: GALERIAS | C26: ='PLANILHA UNIFICADA'!J770 -> 4911465.44 | D26: % | E26: 20 | F26: 20 | G26: 20 | H26: 20 | I26: 20 | W26: =SUM(E27:V27) -> 4911465.44 | X26: =SUM(W26/$C$30) -> 0.1613472113 | Y26: =W26/C26 -> 1
D27: R$ | E27: =SUM($C$26*E26%) -> 982293.088 | F27: 982293.088 | G27: 982293.088 | H27: =SUM($C$26*H26%) -> 982293.088 | I27: =SUM($C$26*I26%) -> 982293.088 | J27: =SUM($C$26*J26%) -> 0 | K27: =SUM($C$26*K26%) -> 0 | L27: 0 | M27: 0 | N27: 0 | O27: 0 | P27: 0 | Q27: 0 | R27: 0 | S27: 0 | T27: 0 | U27: 0 | V27: 0
A28: 10 | B28: DESMOBILIZAÇÃO | C28: ='PLANILHA UNIFICADA'!J776 -> 59499.35 | D28: % | S28: 20 | T28: 30 | U28: 30 | V28: 20 | W28: =SUM(E29:V29) -> 59499.35 | X28: =SUM(W28/$C$30) -> 0.001954621144 | Y28: =W28/C28 -> 1
D29: R$ | E29: =SUM($C$28*E28%) -> 0 | F29: 0 | G29: 0 | H29: 0 | I29: =SUM($C$28*I28%) -> 0 | J29: =SUM($C$28*J28%) -> 0 | K29: =SUM($C$28*K28%) -> 0 | L29: 0 | M29: 0 | N29: 0 | O29: 0 | P29: 0 | Q29: 0 | R29: 0 | S29: 11899.87 | T29: 17849.805 | U29: 17849.805 | V29: 11899.87
B30: TOTAL R$ | C30: =SUM(C10:C29) -> 30440349.11 | W30: =SUM(W10:W29) -> 30440349.11 | X30: =SUM(X10:X29) -> 1
A31: % Parcial | D31: % | E31: =SUM(E32/$W$30) -> 0.04019677777 | F31: 0.06138028988 | G31: 0.07763041442 | H31: 0.09270644616 | I31: 0.09937076001 | J31: 0.1138401968 | K31: 0.08574772532 | L31: 0.07334451931 | M31: 0.06094131331 | N31: 0.0473047604 | O31: 0.04680568233 | P31: 0.04680568233 | Q31: 0.04680568233 | R31: 0.04680568233 | S31: 0.04679356322 | T31: 0.01230310669 | U31: 0.0007304384542 | V31: 0.0004869589695
A32: Valor (R$) - Parcial | D32: R$ | E32: =SUM(E11+E13+E15+E17+E19+E21+E23+E25+E27+E29) -> 1223603.948 | F32: =SUM(F11+F13+F15+F17+F19+F21+F23+F25+F27+F29) -> 1868437.453 | G32: 2363096.916 | H32: 2822016.586 | I32: 3024880.626 | J32: 3465335.333 | K32: =SUM(K11+K13+K15+K17+K19+K21+K23+K25+K27+K29) -> 2610190.694 | L32: 2232632.773 | M32: 1855074.852 | N32: 1439973.421 | O32: 1424781.31 | P32: 1424781.31 | Q32: 1424781.31 | R32: 1424781.31 | S32: 1424412.4 | T32: 374510.8626 | U32: 22234.80155 | V32: 14823.20103
A33: % Acumulado | E33: =E31 -> 0.04019677777 | F33: =E33+F31 -> 0.1015770677 | G33: 0.1792074821 | H33: 0.2719139282 | I33: 0.3712846882 | J33: 0.485124885 | K33: =J33+K31 -> 0.5708726103 | L33: =K33+L31 -> 0.6442171297 | M33: =L33+M31 -> 0.705158443 | N33: =M33+N31 -> 0.7524632034 | O33: =N33+O31 -> 0.7992688857 | P33: =O33+P31 -> 0.846074568 | Q33: =P33+Q31 -> 0.8928802503 | R33: =Q33+R31 -> 0.9396859327 | S33: =R33+S31 -> 0.9864794959 | T33: =S33+T31 -> 0.9987826026 | U33: =T33+U31 -> 0.999513041 | V33: =U33+V31 -> 1
A34: Valor (R$) - Acumulado | E34: =E32 -> 1223603.948 | F34: 3092041.401 | G34: 5455138.317 | H34: 8277154.903 | I34: 11302035.53 | J34: 14767370.86 | K34: 17377561.56 | L34: 19610194.33 | M34: 21465269.18 | N34: 22905242.6 | O34: 24330023.91 | P34: 25754805.22 | Q34: 27179586.53 | R34: 28604367.84 | S34: 30028780.24 | T34: 30403291.11 | U34: 30425525.91 | V34: 30440349.11
J36: 14767370.86 | V36: 15672978.25
J37: =J34 -> 14767370.86 | V37: =J37+V36 -> 30440349.11
J38: =J36-J34 -> -0.002125266939 | V38: =V37-V34 -> 0.00212527439

Sheet TRANSPORTES
A1: TRANSPORTES - DISTÂNCIAS
A3: PRODUTO | C3: ORIGEM | D3: DESTINOS
D4: P/ M.Claros (km) | E4: P/ Jequitaí (km) | F4: P/ Francisco Dumont (km) | G4: P/ A (km) | I4: P/ B (km) | K4: P/ C (km) | M4: P/ N (km) | O4: P/ R (km) | Q4: P/ D (km) | S4: P/ E (km) | U4: P/ F (km) | W4: P/ G1 (km) | Y4: P/ G2 (km) | AA4: P/ H (km) | AC4: P/ M (km) | AE4: P/ O (km)
D5: Rodovia Pavimentada | E5: Rodovia Pavimentada | F5: Rodovia Pavimentada | G5: Est. Terra/ Jequitaí | H5: Est. Terra/ Fco Dum | I5: Est. Terra/ Jequitaí | J5: Est. Terra/ Fco Dum | K5: Est. Terra/ Jequitaí | L5: Est. Terra/ Fco Dum | M5: Est. Terra/ Jequitaí | N5: Est. Terra/ Fco Dum | O5: Est. Terra/ Jequitaí | P5: Est. Terra/ Fco Dum | Q5: Est. Terra/ Jequitaí | R5: Est. Terra/ Fco Dum | S5: Est. Terra/ Jequitaí | T5: Est. Terra/ Fco Dum | U5: Est. Terra/ Jequitaí | V5: Est. Terra/ Fco Dum | W5: Est. Terra/ Jequitaí | X5: Est. Terra/ Fco Dum | Y5: Est. Terra/ Jequitaí | Z5: Est. Terra/ Fco Dum | AA5: Est. Terra/ Jequitaí | AB5: Est. Terra/ Fco Dum | AC5: Est. Terra/ Jequitaí | AD5: Est. Terra/ Fco Dum | AE5: Est. Terra/ Jequitaí | AF5: Est. Terra/ Fco Dum
A6: AREIA - Fina / Média | C6: Barra do Guaicuí | D6: 145 | E6: 51 | F6: - | G6: 15 | H6: - | I6: 21 | J6: - | K6: 24 | L6: - | M6: - | N6: - | O6: - | P6: - | Q6: - | R6: - | S6: - | T6: - | U6: - | V6: - | W6: - | X6: - | Y6: - | Z6: - | AA6: - | AB6: - | AC6: - | AD6: - | AE6: - | AF6: -
A7: BRITA - 1 e 4 | C7: Montes Claros | D7: 10 | E7: 111 | F7: 127 | G7: 15 | H7: - | I7: 21 | J7: - | K7: 24 | L7: - | M7: - | N7: 6 | O7: - | P7: 13 | Q7: - | R7: 10 | S7: - | T7: 9 | U7: - | V7: 7.5 | W7: - | X7: 6 | Y7: - | Z7: 5.5 | AA7: - | AB7: 5 | AC7: - | AD7: 7 | AE7: - | AF7: 8
A8: FILLER (pó de pedra) | C8: Montes Claros | D8: 10 | E8: - | F8: - | G8: - | H8: - | I8: - | J8: - | K8: - | L8: - | M8: - | N8: 6 | O8: - | P8: 13 | Q8: - | R8: 10 | S8: - | T8: 9 | U8: - | V8: 7.5 | W8: - | X8: 6 | Y8: - | Z8: 5.5 | AA8: - | AB8: 5 | AC8: - | AD8: 7 | AE8: - | AF8: 8
A9: CIMENTO CPIII - 32 | C9: Montes Claros | D9: - | E9: - | F9: - | G9: - | H9: - | I9: - | J9: - | K9: - | L9: - | M9: - | N9: - | O9: - | P9: - | Q9: - | R9: - | S9: - | T9: - | U9: - | V9: - | W9: - | X9: - | Y9: - | Z9: - | AA9: - | AB9: - | AC9: - | AD9: - | AE9: - | AF9: -
A10: CBUQ | C10: Montes Claros | D10: - | E10: 111 | F10: 127 | G10: 15 | H10: 15 | I10: 21 | J10: 9 | K10: 24 | L10: 6 | M10: - | N10: - | O10: - | P10: - | Q10: - | R10: - | S10: - | T10: - | U10: - | V10: - | W10: - | X10: - | Y10: - | Z10: - | AA10: - | AB10: - | AC10: - | AD10: - | AE10: - | AF10: -
A11: CAP 30/45 - Massa Asfáltica | C11: Betim (BR135) | D11: 435 | E11: - | F11: - | G11: - | H11: - | I11: - | J11: - | K11: - | L11: - | M11: - | N11: - | O11: - | P11: - | Q11: - | R11: - | S11: - | T11: - | U11: - | V11: - | W11: - | X11: - | Y11: - | Z11: - | AA11: - | AB11: - | AC11: - | AD11: - | AE11: - | AF11: -
A12: CM30 - Imprimação | C12: Betim (BR135) | D12: - | E12: 413 | F12: 377 | G12: 15 | H12: 15 | I12: 21 | J12: 9 | K12: 24 | L12: 6 | M12: - | N12: - | O12: - | P12: - | Q12: - | R12: - | S12: - | T12: - | U12: - | V12: - | W12: - | X12: - | Y12: - | Z12: - | AA12: - | AB12: - | AC12: - | AD12: - | AE12: - | AF12: -
A13: RR-2C - Ligante | C13: Betim (BR135) | D13: - | E13: 413 | F13: 377 | G13: 15 | H13: 15 | I13: 21 | J13: 9 | K13: 24 | L13: 6 | M13: - | N13: - | O13: - | P13: - | Q13: - | R13: - | S13: - | T13: - | U13: - | V13: - | W13: - | X13: - | Y13: - | Z13: - | AA13: - | AB13: - | AC13: - | AD13: - | AE13: - | AF13: -
A14: Concreto | C14: Pirapora / MG | D14: - | E14: 75 | F14: - | G14: 15 | H14: 15 | I14: 21 | J14: 9 | K14: 24 | L14: 6 | M14: - | N14: 6 | O14: - | P14: 15 | Q14: - | R14: - | S14: - | T14: - | U14: - | V14: - | W14: - | X14: - | Y14: - | Z14: - | AA14: - | AB14: - | AC14: - | AD14: - | AE14: - | AF14: -
A15: Concreto | C15: Bocaiúva / MG | D15: - | E15: - | F15: 69 | G15: - | H15: 15 | I15: - | J15: 9 | K15: - | L15: 6 | M15: - | N15: 10 | O15: - | P15: 15 | Q15: - | R15: 10 | S15: - | T15: 9 | U15: - | V15: 7.5 | W15: - | X15: 6 | Y15: - | Z15: 5.5 | AA15: - | AB15: 5 | AC15: - | AD15: 10 | AE15: - | AF15: 10
A16: Material Jazida | C16: Próximo | D16: - | E16: - | F16: - | G16: 5 | H16: - | I16: 5 | J16: - | K16: 5 | L16: - | M16: - | N16: 5 | O16: - | P16: 5 | Q16: - | R16: 5 | S16: - | T16: 5 | U16: - | V16: 5 | W16: - | X16: 5 | Y16: - | Z16: 5 | AA16: - | AB16: 5 | AC16: - | AD16: 5 | AE16: - | AF16: 5
A17: Entulho (material limpeza) | C17: Próximo | D17: - | E17: - | F17: - | G17: 5 | H17: - | I17: 5 | J17: - | K17: 5 | L17: - | M17: - | N17: 5 | O17: - | P17: 5 | Q17: - | R17: 5 | S17: - | T17: 5 | U17: - | V17: 5 | W17: - | X17: 5 | Y17: - | Z17: 5 | AA17: - | AB17: 5 | AC17: - | AD17: 5 | AE17: - | AF17: 5
A19: ITEM 3.3.1 > CAMINHÃO PLATAFORMA 8X2, PBT 29.000 KG E DISTÂNCIA ENTRE EIXOS 4,8M - 188 KW - MOTORISTA E CAMINHÃO
A20: 24 horas x 10 dias = 240,00hs
A23: PARA MACRO ITEM 3 - EQUIPAMENTOS (TRANSPORTE)
A24: DNIT | B24: A9316 | C24: CAMINHÃO PLATAFORMA 8 X 2, PBT 29.000 KG E DISTÂNCIA ENTRE EIXOS 4,8 M - 188 KW - MOTORISTA DE CAMINHÃO
A25: Custo Prod. | B25: 144.8612 | C25: Custo Improd. | D25: 41.2113 | F25: Total: | G25: =B25 -> 144.8612 | H25: p/h
A26: Item | B26: Código | C26: Fonte | D26: Especificação | I26: Unidade | J26: Quant. | K26: Unidade | L26: Quant. | M26: Unidade | N26: Quant.
A28: 1 | B28: 5932 | C28: SINAPI | D28: MOTONIVELADORA POTÊNCIA BÁSICA LÍQUIDA (PRIMEIRA MARCHA) 125 HP, PESO CHP BRUTO 13032 KG, LARGURA DA LÂMINA DE 3,7 M - CHP DIURNO. AF_06/2014 - SINAPI 5932 (1X) | I28: H | J28: 1 | K28: H | L28: 1 | M28: H | N28: 1
A29: 2 | B29: 5679 | C29: SINAPI | D29: RETROESCAVADEIRA SOBRE RODAS COM CARREGADEIRA, TRAÇÃO 4X4, POTÊNCIA LÍQ. 88 HP, CAÇAMBA CARREG. CAP. MÍN. 1 M3, CAÇAMBA RETRO CAP. 0,26 M3, PESO OPERACIONAL MÍN. 6.674 KG, PROFUNDIDADE ESCAVAÇÃO MÁX. 4,37 M - CHI DIURNO. AF_06/2014 | I29: H | J29: 1 | K29: H | L29: 1 | M29: H | N29: 1
A30: 3 | B30: 7049 | C30: SINAPI | D30: ROLO COMPACTADOR PE DE CARNEIRO VIBRATORIO, POTENCIA 125 HP, PESO OPERACIONAL SEM/COM LASTRO 11,95 / 13,30 T, IMPACTO DINAMICO 38,5 / 22,5 T, LARGURA DE TRABALHO 2,15 M - CHP DIURNO. AF_06/2014 | I30: H | J30: 1 | K30: H | L30: 1 | M30: H | N30: 1
A31: 4 | B31: 5835 | C31: SINAPI | D31: VIBROACABADORA DE ASFALTO SOBRE ESTEIRAS, LARGURA DE PAVIMENTAÇÃO 1,90 M A CHP 5,30 M, POTÊNCIA 105 HP CAPACIDADE 450 T/H - CHP DIURNO. AF_11/2014 | I31: H | J31: 1 | K31: H | L31: 1 | M31: H | N31: 1
A32: 5 | B32: 96463 | C32: SINAPI | D32: ROLO COMPACTADOR DE PNEUS, ESTATICO, PRESSAO VARIAVEL, POTENCIA 110 HP, PE CHP SO SEM/COM LASTRO 10,8/27 T, LARGURA DE ROLAGEM 2,30 M - CHP DIURNO. AF_06 /2017 | I32: CHP | J32: 1 | K32: CHP | L32: 1 | M32: CHP | N32: 1
A33: 6 | B33: 90991 | C33: SINAPI | D33: ESCAVADEIRA HIDRÁULICA SOBRE ESTEIRAS, CAÇAMBA 0,80 M3, PESO OPERACIONAL 17,8 T, POTÊNCIA LÍQUIDA 110 HP - CHP DIURNO. AF_10/2014 | I33: CHP | J33: 1 | K33: CHP | L33: 1 | M33: CHP | N33: 1
A34: 7 | B34: 00010775 | C34: SINAPI | D34: CONTAINER 2,30 X 6,00 M, ALT. 2,50 M, COM 1 SANITARIO, PARA ESCRITORIO, COMPLETO, SEM DIVISORIAS INTERNAS (LOCACAO) | I34: UNID | J34: 1 | K34: UNID | L34: 1 | M34: UNID | N34: 1
A35: 8 | B35: 00010777 | C35: SINAPI | D35: CONTAINER 2,30 X 4,30 M, ALT. 2,50 M, PARA SANITARIO, COM 3 BACIAS, 4 CHUVEIROS, 1 LAVATORIO E 1 MICTORIO (LOCACÃO) | I35: UNID | J35: 1 | K35: UNID | L35: 1 | M35: UNID | N35: 1
A36: 9 | B36: ED-50144 | C36: DEER/MG | D36: ED-50144 IIO-CON-040 CONTAINER (6,0X2,3X2,5M) COM ISOLAMENTO TÉRMICO - REFEITÓRIO COMPLETO - DEER MG | I36: UNID | J36: 1 | K36: UNID | L36: 1 | M36: UNID | N36: 1
A38: itens 1 a 9 | B38: Máquinas provenientes de Montes Claros e transportadas pela BR365 até Jequitaí = 111,00km e mais 15,00km por terra até
B39: Área A. Utilização do caminhão plataforma por 10 dias > Disponibilidade 24,00 hs.
A41: Então: | B41: 10 | C41: dias x | D41: 24 | E41: =SUM(B41*D41) -> 240 | F41: hs

Sheet PREÇO UNITÁRIO
A2: Fonte | B2: Código | C2: SERVIÇO | D2: Unidade | E2: Preço Unitário (R$) | G2: Código | H2: Fonte
E3: VELHO | F3: NOVO
A4: SINAPI | B4: 91790 | C4: (COMPOSIÇÃO REPRESENTATIVA) DO SERVIÇO DE INSTALAÇÃO DE TUBOS DE PVC, SÉRIE R, ÁGUA PLUVIAL, DN 100 MM (INSTALADO EM RAMAL DE ENCAMINHAMENTO , OU CONDUTORES VERTICAIS), INCLUSIVE CONEXÕES, CORTES E FIXAÇÕES, PARA PRÉDIOS. AF_10/2015 | D4: m | E4: 40.95 | F4: 42.45 | G4: 91790 | H4: SINAPI
A5: CPU | B5: C1 | C5: ADMINISTRAÇÃO LOCAL E MANUTENÇÃO DO CANTEIRO DE OBRAS EM CONTAINER - PRAZO DE OBRA IGUAL A 08 MESES | D5: gl | E5: =CPU!$I$61 -> 2476647.04 | F5: =CPU!I61 -> 2476647.04 | G5: C1 | H5: CPU | I5: CONFERIR CPU
A6: DEER/MG | B6: ED-48193 | C6: ALVENARIA DE VEDAÇÃO COM BLOCO DE CONCRETO, ESP.19 CM, PARA REVESTIMENTO, INCLUSIVE ARGAMASSA PARA ASSENTAMENTO | D6: m² | E6: 49.27 | F6: 49.12 | G6: ED-48193 | H6: DEER/MG
A7: DNIT/MG | B7: 4507755 | C7: ANCORAGEM ATIVA PARA 12 CORDOALHAS D = 12,7 MM COM PLACA DE ANCORAGEM, BLOCO, CUNHAS TRIPARTIDAS, TROMBETA E PROTENSÃO | D7: unid. | E7: 1454.16 | F7: 1458 | G7: 4507755 | H7: DNIT/MG
A8: SINAPI | B8: 84154 | C8: APARELHO APOIO NEOPRENE FRETADO | D8: dm³ | E8: 109.06 | F8: 109.31 | G8: 84154 | H8: SINAPI | I8: sinapi 09.2019
A9: DNIT/MG | B9: 4508176 | C9: BAINHA METÁLICA DIÂMETRO 95 MM PARA 19 CORDOALHAS D = 15,2 MM, SEMI-RÍGIDA, REDONDA, COM MONTAGEM E INJEÇÃO DE NATA DE CIMENTO | D9: m | E9: 69.34 | F9: 68.38 | G9: 4508176 | H9: DNIT/MG
A10: SINAPI | B10: 73770/001 | C10: BARREIRA PRE-MOLDADA EXTERNA CONCRETO ARMADO 0,25X0,40X1,14M FCK=25MPA ACO CA-50 INCL VIGOTA HORIZONTAL MONTANTE A CADA 1,00M FERROS DE LIGACAO E MATERIAIS. | D10: m | E10: 450.09 | F10: 468.97 | G10: 73770/001 | H10: SINAPI | I10: sinapi 09.2019
A11: DEER/MG | B11: RO-43113 | C11: BASE DE SOLO SEM MISTURA, COMPACTADA NA ENERGIA DO PROCTOR INTERMEDIÁRIO (EXECUÇÃO, INCLUINDO ESCAVAÇÃO, CARGA, DESCARGA, ESPALHAMENTO, UMIDECIMENTO E COMPACTAÇÃO DO MATERIAL; EXCLUI AQUISIÇÃO E TRANSPORTE DO MATERIAL) | D11: m³ | E11: 14.25 | F11: 14.05 | G11: RO-43113 | H11: DEER/MG
A12: DNIT/MG | B12: A9316 | C12: CAMINHÃO PLATAFORMA 8 X 2, PBT 29.000 KG E DISTÂNCIA ENTRE EIXOS 4,8 M - 188 KW - MOTORISTA DE CAMINHÃO | D12: H | E12: 144.8612 | G12: A9316 | H12: DNIT/MG | I12: SUBSTITUIDO PELO CPU
A13: DEER/MG | B13: ED-48555 | C13: CANALETA PARA DRENAGEM, PRÉ-MOLDADA, TIPO MEIA CANA, DIÂMETRO 60CM, EXCLUSIVE TAMPA, INCLUSIVE ASSENTAMENTO EM ARGAMASSA, TRAÇO 1:3 (CIMENTO E AREIA), ESCAVAÇÃO, TRANSPORTE E RETIRADA DO MATERIAL ESCAVADO (EM CAÇAMBA) | D13: m | E13: 117.46 | F13: 116.74 | G13: ED-48566 | H13: DEER/MG
A14: DEER/MG | B14: ED-14723 | C14: CANALETA PARA DRENAGEM, EM CONCRETO COM FCK 15MPA, MOLDADA IN LOCO, SEÇÃO 60X60CM, FORMA EM CONTRA BARRANCO, EXCLUSIVE TAMPA, INCLUSIVE ESCAVAÇÃO, REATERRO COM TRANSPORTE E RETIRADA DO MATERIAL ESCAVADO (EM CAÇAMBA) | D14: m | E14: 236.39 | F14: 236.98 | G14: ED-14723 | H14: DEER/MG
A15: SINAPI | B15: 72898 | C15: CARGA E DESCARGA MECANIZADAS DE ENTULHO EM CAMINHAO BASCULANTE 6 M3 | D15: m³ | E15: 3.86 | F15: 5.16 | G15: 72898 | H15: SINAPI | I15: substitui pelo 100981
A16: SINAPI | B16: 72888 | C16: CARGA, MANOBRAS E DESCARGA DE AREIA, BRITA, PEDRA DE MAO E SOLOS COM CAMINHAO BASCULANTE 6 M3 (DESCARGA LIVRE) | D16: m³ | E16: 1.17 | F16: 0.79 | G16: 72888 | H16: SINAPI
A17: SINAPI | B17: 72849 | C17: CARGA, MANOBRAS E DESCARGA DE MISTURAS DE SOLOS E AGREGADOS (BASES ESTABILIZADAS EM USINA) COM CAMINHAO BASCULANTE 6 M3 | D17: t | E17: 2.68 | F17: 1.81 | G17: 72849 | H17: SINAPI
A18: SINAPI | B18: 74039/001 | C18: CERCA COM MOUROES DE MADEIRA ROLICA, DIAMETRO 11CM, ESPACAMENTO DE 2M, ALTURA LIVRE DE 1M, CRAVADOS 0,5M, COM 5 FIOS DE ARAME FARPADO Nº 14 CLASSE 250 | D18: m | E18: 24.45 | F18: 26.27 | G18: 74039/001 | H18: SINAPI | I18: sinapi 09.2019
A19: DEER/MG | B19: RO-43226 | C19: COLOCAÇÃO DE PLACAS | D19: m² | E19: 64.06 | F19: 65.77 | G19: RO-43226 | H19: DEER/MG
A20: DEER/MG | B20: RO-40251 | C20: COMPACTAÇÃO DE ATERRO A 100% PROCTOR NORMAL | D20: m³ | E20: 3.15 | F20: 3.14 | G20: RO-40251 | H20: DEER/MG
A21: DEER/MG | B21: RO-41624 | C21: CONCRETO DE CIMENTO PORTLAND, FCK>=15,0MPA (EXECUÇÃO, INCLUINDO OFORNECIMENTO E TRANSPORTE DOS AGREGADOS) | D21: m³ | E21: 358.39 | F21: 365.06 | G21: RO-41624 | H21: DEER/MG
A22: DNIT/MG | B22: 1116263 | C22: CONCRETO PARA BOMBEAMENTO FCK = 25 MPA - CONFECÇÃO EM CENTRAL DOSADORA DE 30 M³/H - AREIA E BRITA COMERCIAIS | D22: m³ | E22: 214.21 | F22: 231.5 | G22: 1116263 | H22: DNIT/MG
A23: DNIT/MG | B23: 1106280 | C23: CONCRETO PARA BOMBEAMENTO FCK = 30 MPA - CONFECÇÃO EM CENTRAL DOSADORA DE 30 M³/H - AREIA E BRITA COMERCIAIS | D23: m³ | E23: 224.51 | F23: 270.4 | G23: 1106280 | H23: DNIT/MG
A24: DNIT/MG | B24: 1106281 | C24: CONCRETO PARA BOMBEAMENTO FCK = 35 MPA - CONFECÇÃO EM CENTRAL DOSADORA DE 30 M³/H - AREIA E BRITA COMERCIAIS | D24: m³ | E24: 236.01 | F24: 285.42 | G24: 1106281 | H24: DNIT/MG
A25: SINAPI | B25: 95995 | C25: CONSTRUÇÃO DE PAVIMENTO COM APLICAÇÃO DE CONCRETO BETUMINOSO USINADO A QUENTE (CBUQ), CAMADA DE ROLAMENTO, COM ESPESSURA DE 5,0 CM - EXCLUSIVE TRANSPORTE. AF_03/2017 (PAVIMENTAÇÃO OAE) | D25: m³ | E25: 1017.65 | F25: 997.69 | G25: 95995 | H25: SINAPI | I25: sinapi 09.2019
A26: DNIT/MG | B26: 4507956 | C26: CORDOALHA CP 190 RB D = 12,7 MM - FORNECIMENTO, PREPARO E COLOCAÇÃO | D26: Kg | E26: 9.37 | F26: 9.19 | G26: 4507956 | H26: DNIT/MG
A27: SINAPI | B27: 92880 | C27: CORTE E DOBRA DE AÇO CA-25, DIÂMETRO DE 20,0 MM. AF_12/2015 | D27: kg | E27: 4.78 | F27: 6.16 | G27: 92880 | H27: SINAPI
A28: SINAPI | B28: 92881 | C28: CORTE E DOBRA DE AÇO CA-25, DIÂMETRO DE 25,0 MM. AF_12/2015 | D28: kg | F28: 6.14 | G28: 92881 | H28: SINAPI
A29: SINAPI | B29: 92794 | C29: CORTE E DOBRA DE AÇO CA-50, DIÂMETRO DE 10,0 MM, UTILIZADO EM ESTRUTURAS DIVERSAS | D29: kg | E29: 5.27 | F29: 5.82 | G29: 92794 | H29: SINAPI
A30: SINAPI | B30: 92795 | C30: CORTE E DOBRA DE AÇO CA-50, DIÂMETRO DE 12,5 MM, UTILIZADO EM ESTRUTURAS DIVERSAS | D30: kg | E30: 4.91 | F30: 4.95 | G30: 92795 | H30: SINAPI
A31: SINAPI | B31: 92796 | C31: CORTE E DOBRA DE AÇO CA-50, DIÂMETRO DE 16,0 MM, UTILIZADO EM ESTRUTURAS DIVERSAS | D31: kg | E31: 4.84 | F31: 4.87 | G31: 92796 | H31: SINAPI
A32: SINAPI | B32: 92797 | C32: CORTE E DOBRA DE AÇO CA-50, DIÂMETRO DE 20,0 MM, UTILIZADO EM ESTRUTURAS DIVERSAS | D32: kg | E32: 4.62 | F32: 5.72 | G32: 92797 | H32: SINAPI
A33: SINAPI | B33: 92798 | C33: CORTE E DOBRA DE AÇO CA-50, DIÂMETRO DE 25,0 MM, UTILIZADO EM ESTRUTURAS DIVERSAS | D33: kg | E33: 5.33 | F33: 5.7 | G33: 92798 | H33: SINAPI
A34: SINAPI | B34: 92792 | C34: CORTE E DOBRA DE AÇO CA-50, DIÂMETRO DE 6,3 MM, UTILIZADO EM ESTRUTURA S DIVERSAS | D34: kg | E34: 5.92 | F34: 6.58 | G34: 92792 | H34: SINAPI
A35: SINAPI | B35: 92793 | C35: CORTE E DOBRA DE AÇO CA-50, DIÂMETRO DE 8,0 MM, UTILIZADO EM ESTRUTURA S DIVERSAS | D35: kg | E35: 6.35 | F35: 6.38 | G35: 92793 | H35: SINAPI
A36: SINAPI | B36: 98529 | C36: CORTE RASO E RECORTE DE ÁRVORE COM DIÂMETRO DE TRONCO MAIOR OU IGUAL A 0,20 M E MENOR QUE 0,40 | D36: unid. | E36: NOVO | F36: 53.77 | G36: 98529 | H36: SINAPI
A37: SINAPI | B37: 98530 | C37: CORTE RASO E RECORTE DE ÁRVORE COM DIÂMETRO DE TRONCO MAIOR OU IGUAL A 0,40 M E MENOR QUE 0,60 | D37: unid. | E37: NOVO | F37: 95.78 | G37: 98530 | H37: SINAPI
A38: SINAPI | B38: 98531 | C38: CORTE RASO E RECORTE DE ÁRVORE COM DIÂMETRO DE TRONCO MAIOR OU IGUAL A 0,60 M | D38: unid. | E38: NOVO | F38: 192.46 | G38: 98531 | H38: SINAPI
A39: DEER/MG | B39: RO-41763 | C39: DEFENSA SINGELA SEMI-MALEÁVEL SV-DSM-02 (EXECUÇÃO, INCLUINDO FORNECIMENTO, COLOCAÇÃO E TRANSPORTE DE TODOS OS MATERIAIS) | D39: m | E39: 264.46 | F39: 265.94 | G39: RO-41763 | H39: DEER/MG
A40: DEER/MG | B40: ED-48598 | C40: DESCIDA D´ÁGUA TIPO CALHA DN 500, EXCLUSIVE BOTA FORA | D40: m | E40: 290.69 | F40: 289.51 | G40: ED-48598 | H40: DEER/MG
A41: DNIT/MG | B41: 2003441 | C41: DISSIPADOR DE ENERGIA DE 501 - AREIA E PEDRA DE MÃO COMERCIAIS | D41: und | E41: 125.78 | F41: 128.18 | G41: 2003441 | H41: DNIT/MG
A42: DEER/MG | B42: ED-50732 | C42: EMBOÇO COM MARGAMASSA, TRAÇO 1:6 (CIMENTO E AREIA), ESP. 20MM, APLICAÇÃO MANUAL, PREPARO MECÂNICO | D42: m² | E42: 23 | F42: 22.84 | G42: ED-50732 | H42: DEER/MG
A43: SINAPI | B43: 73698 | C43: ENROCAMENTO MANUAL, COM ARRUMACAO DO MATERIAL | D43: m³ | E43: 54.95 | F43: 89.82 | G43: 73698 | H43: SINAPI | I43: usei o 1505877 DNIT | J43: impactou bastante o custo final da obra
A44: DEER/MG | B44: ED-49559 | C44: ENSAIO DE MASSA ESPECIFICA - IN SITU - METODO FRASCO DE AREIA - SOLOS | D44: unid. | E44: 35.03 | F44: 35.03 | G44: ED-49559 | H44: DEER/MG
A45: DEER/MG | B45: ED-49555 | C45: ENSAIO DE COMPACTAÇÃO - AMOSTRAS NÃO TRABALHADAS - ENERGIA NORMAL - SOLOS | D45: unid. | E45: 95.08 | F45: 95.08 | G45: ED-49555 | H45: DEER/MG
A46: DEER/MG | B46: ED-49546 | C46: ENSAIO DE RESISTENCIA A COMPRESSÃO SIMPLES - CONCRETO | D46: unid. | E46: 90.07 | F46: 90.07 | G46: ED-49546 | H46: DEER/MG
A47: DEER/MG | B47: ED-49564 | C47: ENSAIO DE TEOR DE UMIDADE - PROCESSO SPEEDY - SOLOS E AGREGADOS MIUDOS | D47: unid. | E47: 30.02 | F47: 30.02 | G47: ED-49564 | H47: DEER/MG
A48: SIURB | B48: 02-06-14 | C48: ENSAIOS DE LABORATÓRIO - ADESIVIDADE | D48: unid. | E48: 237.18 | F48: 247.19 | G48: 02-06-14 | H48: SIURB
A49: SIURB | B49: 02-06-13 | C49: ENSAIOS DE LABORATÓRIO - DURABILIDADE | D49: unid. | E49: 470.64 | F49: 490.46 | G49: 02-06-13 | H49: SIURB
A50: SIURB | B50: 02-06-11 | C50: ENSAIOS DE LABORATÓRIO - LOS ANGELES | D50: unid. | E50: 435.4 | F50: 454.15 | G50: 02-06-11 | H50: SIURB
A51: SIURB | B51: 02-06-18 | C51: ENSAIOS DE LABORATÓRIO - PENETRAÇÃO | D51: unid. | E51: 196.42 | F51: 204.85 | G51: 02-06-18 | H51: SIURB
A52: SIURB | B52: 02-06-19 | C52: ENSAIOS DE LABORATÓRIO - PONTO DE AMOLECIMENTO | D52: unid. | E52: 118.59 | F52: 123.59 | G52: 02-06-19 | H52: SIURB
A53: SIURB | B53: 02-06-17 | C53: ENSAIOS DE LABORATÓRIO - PONTO DE FULGOR | D53: unid. | E53: 135.99 | F53: 141.58 | G53: 02-06-17 | H53: SIURB
A54: SIURB | B54: 02-06-15 | C54: ENSAIOS DE LABORATÓRIO - VISCOSIDADE | D54: unid. | E54: 157.48 | F54: 164.14 | G54: 02-06-15 | H54: SIURB
A55: SINAPI | B55: 72917 | C55: ESCAVACAO MECANICA DE VALA EM MATERIAL 2A CATEGORIA COM UTILIZACAO DE ESCAVADEIRA HIDRAULICA | D55: m³ | E55: 11.04 | F55: 10.35 | G55: 72917 | H55: SINAPI
A56: SINAPI | B56: 83338 | C56: ESCAVACAO MECANICA, A CEU ABERTO, EM MATERIAL DE 1A CATEGORIA, COM ESCAVADEIRA HIDRAULICA, CAPACIDADE DE 0,78 M3 - CORTE | D56: m³ | E56: 2.23 | F56: 2.12 | G56: 83338 | H56: SINAPI
A57: DEER/MG | B57: RO-40182 | C57: ESCAVAÇÃO, CARGA, DESCARGA, ESPALHAMENTO E TRANSPORTE DE MATERIAL DE 3ª CATEGORIA. DISTÂNCIA MÉDIA DE TRANSPORTE ATÉ 200 M | D57: m³ | E57: 41.33 | F57: 26.31 | G57: RO-40182 | H57: DEER/MG
A58: DEER/MG | B58: RO-40160 | C58: ESCAVAÇÃO, CARGA, DESCARGA, ESPALHAMENTO E TRANSPORTE DE MATERIAL DE 1ª CATEGORIA, COM CAMINHÃO. DISTÂNCIA MÉDIA DE TRANSPORTE DE 3.001 A 4.000 M | D58: m³ | E58: 7.46 | F58: 7.44 | G58: RO-40160 | H58: DEER/MG
A59: DNIT/MG | B59: 2003864 | C59: ESGOTAMENTO DE ÁGUA COM BOMBA SUBMERSA | D59: h | E59: 0.18 | F59: 11.84 | G59: 2003864 | H59: DNIT/MG | N59: DNIT/MG | O59: ESGOTAMENTO DE ÁGUA COM BOMBA SUBMERSA | P59: h
A60: DEER/MG | B60: RO-42263 | C60: ESPALHAMENTO DE MATERIAL EM BOTA-FORA | D60: m³ | E60: 0.18 | F60: 0.18 | G60: RO-42263 | H60: DEER/MG
A61: SINAPI | B61: 96162 | C61: ESTACA RAIZ Ø 41 cm EM SOLO | D61: m | E61: 323.21 | F61: 751.3 | G61: 96162 | H61: SINAPI | I61: substitui pelo 25.04.14 | J61: 2306071 | K61: 1372.29
A62: SINAPI | B62: 96401 | C62: EXECUÇÃO DE IMPRIMAÇÃO COM ASFALTO DILUÍDO CM-30. AF_09/2017 | D62: m² | E62: 6.24 | F62: 6.65 | G62: 96401 | H62: SINAPI
A63: SINAPI | B63: 92263 | C63: FABRICAÇÃO DE FÔRMA PARA PILARES E ESTRUTURAS SIMILARES, EM CHAPA DE MADEIRA COMPENSADA RESINADA, E = 17 MM. AF_12/2015 | D63: m² | E63: 84.2 | F63: 89.2 | G63: 92263 | H63: SINAPI
A64: SINAPI | B64: 92270 | C64: FABRICAÇÃO DE FÔRMA PARA VIGAS, COM MADEIRA SERRADA, E = 25 MM. AF_12/2015 | D64: m² | E64: 74.75 | F64: 79.11 | G64: 92270 | H64: SINAPI
A65: DER/SP | B65: 28.10.01.99 | C65: FORN./INSTAL. BALIZ.(CATADIOPTRICO) P/DEF. MET. C/PELICULA GT+GT, CONF.OP-06-05 | D65: un. | E65: =SUM(29.82/1.4179) -> 21.03110233 | F65: 28.99 | G65: 28.10.01.99 | H65: DER/SP
A66: DEER/MG | B66: ED-49799 | C66: FORNECIMENTO DE CONCRETO ESTRUTURAL, USINADO, COM FCK 30MPA | D66: m³ | E66: 346.7 | F66: 346.25 | G66: ED-49799 | H66: DEER/MG
A67: DEER/MG | B67: ED-50430 | C67: FORNECIMENTO E APLICAÇÃO DE GROUT PARA ANCORAGENS | D67: m³ | E67: 272.56 | F67: 272.01 | G67: ED-50430 | H67: DEER/MG
A68: SINAPI | B68: 92743 | C68: MURO DE GABIÃO, ENCHIMENTO COM PEDRA DE MÃO TIPO RACHÃO, DE GRAVIDADE, COM GAIOLAS DE COMPRIMENTO MENOR OU IGUAL A 2 M | D68: m³ | E68: 296.17 | F68: 401.37 | G68: 92743 | H68: SINAPI
A69: SINAPI | B69: 92755 | C69: PROTEÇÃO SUPERFICIAL DE CANAL EM GABIÃO TIPO COLCHÃO, ALTURA DE 17 CENTÍMETROS, ENCHIMENTO COM PEDRA DE MÃO TIPO RACHÃO - FORNECIMENTO E EXECUÇÃO. AF_12/2015 | D69: m³ | E69: =117.32 -> 117.32 | F69: 136.43 | G69: 92755 | H69: SINAPI
A70: SINAPI | B70: 73881/001 | C70: FORNECIMENTO E INSTALAÇÃO DE PROTEÇÃO DE TALUDE COM MANTA GEOTÊXTIL (200g/m²) | D70: m² | E70: 20.71 | F70: 5.22 | G70: 73881/001 | H70: SINAPI
A71: DEER/MG | B71: ED-48676 | C71: FORNECIMENTO, ASSENTAMENTO E REJUNTAMENTO DE TUBO DE CONCRETO SIMPLES PS1 D = 400 MM | D71: m | E71: 86.88 | F71: 86.76 | G71: ED-48676 | H71: DEER/MG
A72: SINAPI | B72: 85424 | C72: ISOLAMENTO DE OBRA COM TELA PLASTICA COM MALHA DE 5MM E ESTRUTURA DE MADEIRA PONTALETEADA | D72: m | E72: 18.87 | F72: 20.83 | G72: 85424 | H72: SINAPI | I72: sinapi 09.2019
A73: DNIT/MG | B73: 307736 | C73: JUNTA DE DILATAÇÃO EM PERFIL EXTRUDADO DE BORRACHA VULCANIZADA DE 40 X 70 MM - FORNECIMENTO E INSTALAÇÃO | D73: m | E73: 1017.84 | F73: 1014.24 | G73: 307736 | H73: DNIT/MG
A74: DEER/MG | B74: ED-50429 | C74: LANÇAMENTO DE TABULEIRO PRÉ-MOLDADO | D74: unid. | E74: 63.38 | F74: 63.14 | G74: ED-50429 | H74: DEER/MG
A75: DNIT/MG | B75: 1107860 | C75: LANÇAMENTO MECÂNICO DE CONCRETO COM BOMBA LANÇA SOBRE CHASSI COM CAPACIDADE DE 45 M³/H - CONFECÇÃO EM CENTRAL DOSADORA DE 40 M³/H | D75: m³ | E75: 31.52 | F75: 31.39 | G75: 1107860 | H75: DNIT/MG
A76: DER/SP | B76: 26.13.01.99 | C76: LANCAMENTO VIGA P<=50T-GUINDASTE AUTO PROPULSADO | D76: unid. | E76: =SUM(9672.17/1.4179) -> 6821.475421 | F76: 9481.2 | G76: 26.13.01.99 | H76: DER/SP
A77: SINAPI | B77: 83534 | C77: LASTRO DE CONCRETO, PREPARO MECÂNICO, INCLUSOS ADITIVO IMPERMEABILIZANTE, LANÇAMENTO E ADENSAMENTO | D77: m³ | E77: 434.59 | F77: 427.75 | G77: 83534 | H77: SINAPI | I77: USEI O 96.616 (MUDOU NOMENCLAT.)
A78: SINAPI | B78: 98525 | C78: LIMPEZA MECANIZADA DE CAMADA VEGETAL, VEGETAÇÃO E PEQUENAS ÁRVORES (DIÂMETRO DE TRONCO MENOR QUE 0,20 M), COM TRATOR DE ESTEIRAS | D78: m² | E78: 0.48 | F78: 0.27 | G78: 98525 | H78: SINAPI | I78: USEI O 98.525 (MUDOU NOMENCLAT.)
A79: DEER/MG | B79: RO-41237 OBR-VIA-245 | C79: LINHAS DE RESINA ACRILICA 0,6MM DE ESPESSURA E LARGURA = 0,10M (EXECUÇÃO, INCLUSIVE PRÉ-MARCAÇÃO, FORNECIMENTO E TRANSPORTE DE TODOS OS MATERIAIS) - LINHAS AMARELAS | D79: m² | E79: 1.73 | F79: 1.73 | G79: RO-41237 OBR-VIA-245 | H79: DEER/MG
A80: SINAPI | B80: 99064 | C80: LOCAÇÃO DE PAVIMENTAÇÃO. AF_10/2018 | D80: m | E80: 0.5 | F80: 0.55 | G80: 99064 | H80: SINAPI
A81: CPU | B81: C2 | C81: MOBILIZAÇÃO | D81: unid | E81: =CPU!$I$91 -> 13361.4 | F81: =CPU!I91 -> 13361.4 | G81: C2 | H81: CPU | I81: CONFERIR CPU
A82: CPU | B82: C3 | C82: MONTAGEM DAS ESTRUTURAS PRÉ-MOLDADAS (LAJES E LONGARINAS) | D82: m³ | E82: 127.24 | F82: =CPU!I143 -> 202.439128 | G82: C3 | H82: CPU | I82: FAZER A CPU
A83: (DNIT/MG) | B83: 5406023 | C83: MURO DE ESCAMA DE CONCRETO ARMADO EM SOLO REFORÇADO COM FITA METÁLICA COM ALTURA ATÉ 4 M - TIPO 1 - AREIA E BRITA COMERCIAIS | D83: m² | E83: 345.33 | F83: 340.3 | G83: 5406023 | H83: (DNIT/MG)
A84: (DNIT/MG) | B84: 5406025 | C84: MURO DE ESCAMA DE CONCRETO ARMADO EM SOLO REFORÇADO COM FITA METÁLICA COM ALTURA DE 4 A 6M - TIPO 1 - AREIA E BRITA COMERCIAIS | D84: m² | E84: 323.21 | F84: 310.44 | G84: 5406025 | H84: (DNIT/MG)
A85: (DNIT/MG) | B85: 5406027 | C85: MURO DE ESCAMA DE CONCRETO ARMADO EM SOLO REFORÇADO COM FITA METÁLICA COM ALTURA DE 6 A 8M - TIPO 1 - AREIA E BRITA COMERCIAIS | D85: m² | E85: 319 | F85: 304.75 | G85: 5406027 | H85: (DNIT/MG)
A86: (DNIT/MG) | B86: 5406029 | C86: MURO DE ESCAMA DE CONCRETO ARMADO EM SOLO REFORÇADO COM FITA METÁLICA COM ALTURA DE 8 A 10M - TIPO 1 - AREIA E BRITA COMERCIAIS | D86: m² | E86: 316.66 | F86: 301.59 | G86: 5406029 | H86: (DNIT/MG)
A87: DNIT/MG | B87: 4011520 | C87: PAVIMENTO RÍGIDO DE CONCRETO, FCK = 35MPA | D87: m² | E87: 214.21 | F87: 57.9 | G87: 4011520 | H87: DNIT/MG
A88: SINAPI | B88: 72942 | C88: PINTURA DE LIGACAO COM EMULSAO RR-1C | D88: m² | E88: 1.62 | F88: 1.6 | G88: 72942 | H88: SINAPI | I88: usei o 96402
A89: DEER/MG | B89: RO-41841 | C89: PLACA DE AÇO CARBONO COM PELÍCULA REFLETIVA GRAU TÉCNICO TIPO I DA ABNT - PLACA CIRCULAR (EXECUÇÃO, INCLUINDO FORNECIMENTO E TRANSPORTE DE TODOS OS MATERIAIS, INCLUSIVE POSTE DE SUSTENTAÇÃO) | D89: m² | E89: 337.22 | F89: 341.61 | G89: RO-41841 | H89: DEER/MG
A90: DEER/MG | B90: RO-41844 | C90: PLACA DE AÇO CARBONO COM PELÍCULA REFLETIVA GRAU TÉCNICO TIPO I DA ABNT - PLACA QUADRADA (EXECUÇÃO, INCLUINDO FORNECIMENTO E TRANSPORTE DE TODOS OS MATERIAIS, INCLUSIVE POSTE DE SUSTENTAÇÃO) | D90: m² | E90: 326.75 | F90: 331.13 | G90: RO-41844 | H90: DEER/MG
A91: SINAPI | B91: 74209/001 | C91: PLACA DE OBRA EM CHAPA DE ACO GALVANIZADO | D91: m² | E91: 301.52 | F91: 320.26 | G91: 74209/001 | H91: SINAPI | I91: Atualizado por Varzelândia 2
A92: CPU | B92: C4 | C92: PROTEÇÃO DE TALUDE REVESTIMENTO VEGETAL | D92: m² | E92: 26.54 | F92: =CPU!I175 -> 18.21718 | G92: C4 | H92: CPU | I92: ELABORAR CPU
A93: SINAPI | B93: 92757 | C93: PROTEÇÃO SUPERFICIAL DE CANAL EM GABIÃO TIPO COLCHÃO, ALTURA DE 30 CENTÍMETROS, ENCHIMENTO COM PEDRA DE MÃO TIPO RACHÃO - FORNECIMENTO E EXECUÇÃO. AF_12/2015 | D93: m² | E93: 182.36 | F93: 182.17 | G93: 92757 | H93: SINAPI
A94: SINAPI | B94: 93382 | C94: REATERRO MANUAL DE VALAS COM COMPACTAÇÃO MECANIZADA. AF_04/2016 | D94: m³ | E94: 21.06 | F94: 24.07 | G94: 93382 | H94: SINAPI
A95: DEER/MG | B95: RO-41291 | C95: REMOÇÃO DE CERCAS | D95: m | E95: 6.45 | F95: 6.64 | G95: RO-41291 | H95: DEER/MG
A96: DEER/MG | B96: RO-40613 | C96: SARJETA DE CONCRETO EM ATERRO,TIPO DR.SCA- X/Y. LARGURA=60CM TIPO 30/10 (EXECUÇÃO, INCLUINDO ESCAVAÇÃO, FORNECIMENTO, TRANSPORTE E PLANTIO DA GRAMA) | D96: m | E96: 28.47 | F96: 29.3 | G96: RO-40613 | H96: DEER/MG
A97: DEER/MG | B97: RO-40661 | C97: SARJETA DE CONCRETO EM CORTE TIPO DR.SCC-X/Y. LARGURA=90CM TIPO80/10 (EXECUÇÃO, INCLUINDOESCAVAÇÃO, FORNECIMENTO E TRANSPORTE DE TODOS OS MATERIAIS) | D97: m | E97: 43.8 | F97: 45.05 | G97: RO-40661 | H97: DEER/MG
A98: SINAPI | B98: 97051 | C98: SINALIZAÇÃO COM FITA FIXADA NA ESTRUTURA. AF_11/2017 | D98: m | E98: 0.46 | F98: 0.5 | G98: 97051 | H98: SINAPI
A99: SINAPI | B99: 96391 | C99: SOLO CIMENTO PARA ANCORAGEM, (6% DE CIMENTO NA MISTURA EM PESO, RESISTÊNCIA A COMPRESSÃO SIMPLES 20kgf/cm²) | D99: m³ | E99: 42.63 | F99: 64.14 | G99: 96391 | H99: SINAPI
A100: DEER/MG | B100: RO-43112 | C100: SUB-BASE, SEM MISTURA, COMPACTADA NA ENERGIA DO PROCTOR INTERMEDIÁRIO (EXECUÇÃO, INCLUINDO ESCAVAÇÃO, CARGA, DESCARGA, ESPALHAMENTO, UMIDECIMENTO E COMPACTAÇÃO DO MATERIAL; EXCLUI AQUISIÇÃO E TRANSPORTE DO MATERIAL) | D100: m³ | E100: 14.25 | F100: 14.05 | G100: RO-43112 | H100: DEER/MG
A101: SINAPI | B101: 97916 | C101: TRANSPORTE COM CAMINHÃO BASCULANTE DE 6 M3, EM VIA URBANA EM LEITO NATURAL TXKM (UNIDADE: TXKM). AF_01/2018 | D101: txkm | E101: 1.47 | F101: 1.35 | G101: 97916 | H101: SINAPI
A102: DNIT/MG | B102: 5914539 | C102: TRANSPORTE COM CAMINHÃO BETONEIRA - RODOVIA EM LEITO NATURAL (Entre Francisco Dumont/MG e Área A - 15,00km) | D102: txkm | E102: 0.54 | F102: 0.55 | G102: 5914539 | H102: DNIT/MG
A103: DNIT/MG | B103: 5914569 | C103: TRANSPORTE COM CAMINHÃO BETONEIRA - RODOVIA PAVIMENTADA (Entre Bocaiúva/MG e Francisco Dumont/MG - 69,00km) | D103: txkm | E103: 0.35 | F103: 0.36 | G103: 5914569 | H103: DNIT/MG
A104: SINAPI | B104: 72884 | C104: TRANSPORTE COMERCIAL COM CAMINHAO CARROCERIA 9 T | D104: m³*km | E104: 0.9 | F104: 0.73 | G104: 72884 | H104: SINAPI
A105: DER/SP | B105: 22.03.04.99 | C105: TRANSPORTE DE 1/2 CATEGORIA ATÉ 10KM (BASE E SUB BASE) | D105: m³xkm | E105: =SUM(2.09/1.4179) -> 1.474010861 | F105: 1.97 | G105: 22.03.04.99 | H105: DER/SP
A106: DEER/MG | B106: RO-41352 OBR-VIA-370 | C106: TRANSPORTE DE AGREGADOS PARA GABIÃO. DISTÂNCIA MÉDIA DE TRANSPORTE > 50,10 KM | D106: m³*km | E106: 0.73 | F106: 0.73 | G106: RO-41352 OBR-VIA-370 | H106: DEER/MG
A107: SINAPI | B107: 93177 | C107: TRANSPORTE DE MATERIAL ASFALTICO, COM CAMINHÃO COM CAPACIDADE DE 20000 L EM RODOVIA PAVIMENTADA. AF_02/2016 (P/ ITEM 2.1.12) (DE MONTES CLAROS/MG ATÉ JEQUITAÍ/MG - DIST. 111KM) | D107: txkm | E107: 1.69 | F107: 1.65 | G107: 93177 | H107: SINAPI
A108: SINAPI | B108: 93176 | C108: TRANSPORTE DE MATERIAL ASFALTICO, COM CAMINHÃO COM CAPACIDADE DE 30000 L EM RODOVIA PAVIMENTADA. AF_02/2016 (P/ ITEM 2.1.12) (ORIUNDO D MONTES CLAROS/MG DIST. 111KM) | D108: txkm | E108: 0.48 | F108: 0.47 | G108: 93176 | H108: SINAPI
A109: SINAPI | B109: 93178 | C109: TRANSPORTE DE MATERIAL ASFALTICO, COM CAMINHÃO COM CAPACIDADE DE 30000 TXKM L EM RODOVIA NÃO PAVIMENTADA PARA DISTÂNCIAS MÉDIAS DE TRANSPORTE SUPERIORES A 100 KM. AF_02/2016 (9KM EM TERRA) B) | D109: txkm | E109: 0.54 | F109: 0.53 | G109: 93178 | H109: SINAPI
A110: SINAPI | B110: 96622 | C110: LASTRO COM MATERIAL GRANULAR (AREIA) | D110: m³ | E110: 68.96 | F110: 111.85 | G110: 96621 | H110: SINAPI
A111: SINAPI | B111: 96624 | C111: LASTRO COM MATERIAL GRANULAR (PEDRA BRITADA) | D111: m³ | E111: 49.21 | F111: 107.21 | G111: 96621 | H111: SINAPI
A112: CPU | B112: C5a | C112: REMOÇÃO E RELOCAÇÃO DE CERCA DE ARAME FARPADO (4 FIOS), MOURÃO DE MADEIRA TRATADA | D112: M | E112: 13.7 | F112: =CPU!I206 -> 23.86119795 | G112: C5a | H112: CPU
A113: CPU | B113: C5b | C113: REMOÇÃO E CONSTRUÇÃO DE NOVA CERCA DE ARAME LISO (4 FIOS), MOURÃO DE MADEIRA TRATADA | D113: M | E113: 13.7 | F113: =CPU!I237 -> 26.9220336 | G113: C5b | H113: CPU
A114: CPU | B114: C6 | C114: TRANSIÇÃO COMPACTADA, INCLUSIVE CARGA, TRANSP. E FORNEC. DE MATERIAL (DMT = 1,00 km) | D114: M3 | E114: =55.7/6 -> 9.283333333 | F114: =CPU!I264 -> 4.956542675 | G114: C6 | H114: CPU
A115: CPU | B115: C7 | C115: BACIA DE DISSIPAÇÃO EM PEDRA ARGAMASSADA, E = 25CM | D115: M3 | E115: =ENGECORPS!H56 -> 217.4124872 | F115: =CPU!I292 -> 211.714 | G115: C7 | H115: CPU
A116: CPU | B116: C8 | C116: RECOMPOSIÇÃO DE ÁREA EXPLORADA DE JAZIDA / EMPRESTIMO | D116: m² | E116: =ENGECORPS!H64 -> 11.73440868 | F116: =CPU!I319 -> 2.4832
A117: CPU | B117: C9 | C117: DESMOBILIZAÇÃO | D117: VB | F117: =CPU!I424 -> 14578.664 | G117: C9 | H117: CPU
A118: CPU | B118: C10 | C118: MOBILIZAÇÃO/DESMOBILIZAÇÃO DE EQUIPAMENTOS ESPECIAIS (VIBROACABADORA, ESCAVADEIRA HIDRÁULICA, ROLO COMPACTADOR, MOTONIVELADORA, ETC.) | D118: EQUIP. | F118: =CPU!I117 -> 2762.23424 | G118: C10 | H118: CPU
A119: DNIT/MG | B119: 804029 | C119: CORPO BSTC ø 80, AREIA, BRITA E PEDRA DE MÃO COMERCIAIS | D119: M | E119: 391.5164318 | F119: 380.56 | G119: 804029 | H119: DNIT/MG
A120: DEER/MG | B120: ED-48572 | C120: CAIXA BSTC ø 80 (1,00 x 1,00 x 1,40) | D120: UNID | E120: 2094.261465 | F120: 1083.53 | G120: ED-48572 | H120: DEER/MG
A121: DNIT/MG | B121: 804037 | C121: CORPO BSTC ø 100, AREIA, BRITA E PEDRA DE MÃO COMERCIAIS | D121: M | E121: 550.3202601 | F121: 525.1 | G121: 804037 | H121: DNIT/MG
A122: DER/SP | B122: 25.03.04.01 | C122: ENSECADEIRA COM SACO DE AREIA | D122: m³ | E122: 124.64 | F122: 490.84 | G122: 25.03.04.01 | H122: DER/SP
A123: DEER/MG | B123: RO-41344 | C123: TRANSPORTE DE MATERIAL DE JAZIDA PARA CONSERVAÇÃO. DISTÂNCIA MÉDIA DE TRANSPORTE > 50,10 KM (ESCAVAÇÃO+BASE E SUB BASE) | D123: m³xkm | E123: 0.78 | F123: 0.78 | G123: RO-41344 | H123: DEER/MG
A124: DEER/MG | B124: RO-40514 | C124: VALETA DE PROTEÇÃO DE ATERRO TIPO DR.VPA (EXECUÇÃO,INCLUINDO ESCAVAÇÃO) | D124: m | E124: 24.48 | F124: 25.49 | G124: RO-40514 | H124: DEER/MG
B1100: DESMOBILIZAÇÃO | G1100: DESMOBILIZAÇÃO
A1101: CPU | B1101: - | C1101: DESMOBILIZAÇÃO | D1101: un. | E1101: =CPU!$I$424 -> 14578.664 | G1101: - | H1101: CPU

Sheet CPU
A1: CODEVASF | C1: COMPOSIÇÃO DE PREÇO UNITÁRIO | J1: A | K1: 6 | L1: MESES
A2: DESCRIÇÃO DO SERVIÇO | H2: DATA BASE: | I2: 2020-09-01 | J2: B | K2: 8 | L2: MESES
A3: ADMINISTRAÇÃO LOCAL E MANUTENÇÃO DO CANTEIRO DE OBRAS - PRAZO DE OBRA IGUAL A 18 MESES | H3: UNIDADE: | I3: GL | J3: C | K3: 10 | L3: MESES
A4: EQUIPAMENTO | J4: PRAZO | K4: 18 | L4: MESES
A5: DISCRIMINAÇÃO | C5: UNIDADE | D5: QUANT. | E5: PROD | F5: IMPROD | G5: P.UN. PROD | H5: P.UN. IMPR | I5: P.TOTAL | J5: Quant.Veículos: | K5: Horas/Dia | L5: Dias/Mês | M5: T/horas/mês | N5: Meses/Obra | O5: Total Horas
A6: VEICULO COMERCIAL LEVE (PICK-UP) COM CAPACIDADE DE CARGA DE 700 KG, MOTOR FLEX (LOCACAO) - 00001160 | C6: H | D6: =K4*K6*L6*J6 -> 7920 | E6: 4 | F6: 4 | G6: 9.43 | I6: =D6*E6*G6+D6*F6*H6 -> 298742.4 | J6: 5 | K6: 4 | L6: 22 | M6: =SUM(K6*L6) -> 88 | N6: 6 | O6: =SUM(M6*N6) -> 528
A7: INCLUIR VEÍCULO SUV PARA A FISCALIZAÇÃO! | C7: H | D7: =K4*K6*L6*J7 -> 1584 | E7: 4 | F7: 4 | G7: 9.43 | I7: =D7*E7*G7+D7*F7*H7 -> 59748.48 | J7: 1
A8: SUB-TOTAL | I8: =SUM(I6:I7) -> 358490.88
A9: MATERIAL
A10: DISCRIMINAÇÃO | C10: UNIDADE | D10: QUANT. | H10: P.UNIT. | I10: P.TOTAL
A11: TARIFA DE ENERGIA ELETRICA COMERCIAL, BAIXA TENSAO, RELATIVA AO CONSUMO DE ATE 100 KWH, INCLUINDO ICMS, PIS/PASEP E COFINS - SINAPI 00014250 | C11: KWH | D11: =400*K4 -> 7200 | H11: 0.95 | I11: =D11*H11 -> 6840
A12: TARIFA "A" ENTRE 0 E 20M3 FORNECIMENTO D'AGUA - 00014583 | C12: M3 | D12: =20*K4 -> 360 | H12: 17.97 | I12: 6469.2
A13: CONTAINER 2,30 X 6,00 M, ALT. 2,50 M, COM 1 SANITARIO, PARA ESCRITORIO, COMPLETO, SEM DIVISORIAS INTERNAS (LOCACAO) - SINAPI 00010775 | C13: MÊS | D13: =K1+K2+K3+10 -> 34 | H13: 522 | I13: 17748 | J13: PARA CANTEIROS AVANÇADOS (PONTES E GALERIAS)
A14: CONTAINER 2,30 X 4,30 M, ALT. 2,50 M, PARA SANITARIO, COM 3 BACIAS, 4 CHUVEIROS, 1 LAVATORIO E 1 MICTORIO (LOCACAO) - SINAPI 00010777 | C14: MÊS | D14: =K1+K2+K3+10 -> 34 | H14: 592.68 | I14: 20151.12
A15: CONTAINER REFEITÓRIO SEM BANHEIRO - 6,00 x 2,40m EQUIPADO COM AR CONDICIONADO E MESA PARA 12 PESSOAS - ORSE/04296 | C15: MÊS | D15: =K1+K2+K3+10 -> 34 | H15: 660.64 | I15: 22461.76 | M15: 1400
A16: ALUGUEL DE MESA DE REUNIÃO - ORSE/10530 | C16: MÊS | D16: =6*K4 -> 108 | H16: 5 | I16: 540
A17: ALUGUEL DE CADEIRA SEM BRAÇOS - ORSE/10531 | C17: MÊS | D17: =12*K4 -> 216 | H17: 2.91 | I17: 628.56
A18: ALUGUEL DE ARQUIVO EM AÇO - ORSE/10535 | C18: MÊS | D18: =3*$K$4 -> 54 | H18: 7.91 | I18: 427.14
A19: ALUGUEL DE BEBEDOURO ELÉTRICO - ORSE/10786 | C19: MÊS | D19: =6*$K$4 -> 108 | H19: 11.46 | I19: 1237.68
A20: ALUGUEL DE BANHEIRO QUÍMICO COM 3 LIMPEZAS SEMANAIS - ORSE/10389 | C20: MÊS | D20: =K1+K2+K3+10 -> 34 | H20: 428.72 | I20: 14576.48
A21: ALUGUEL DE COMPUTADOR - ORSE/10539 | C21: MÊS | D21: =5*K4 -> 90 | H21: 18.51 | I21: =D21*H21 -> 1665.9
A22: ALUGUEL DE COPIADORA / IMPRESSORA - ORSE/10553 | C22: MÊS | D22: =5*K4 -> 90 | H22: 5.96 | I22: 536.4
A23: ALUGUEL DE APARELHO DE AR CONDICIONADO 18.000 BTU'S - ORSE/10568 | C23: MÊS | D23: =3*$K$4 -> 54 | H23: 26.42 | I23: 1426.68
A24: EXTINTOR DE PÓ QUÍMICO SECO (ABC) 12KG - ORSE/13174 | C24: UNID. | D24: 6 | H24: 203.53 | I24: 1221.18
A25: EXTINTOR DE ÁGUA PRESSURIZADA CAPACIDADE 10 L - ORSE/10886 | C25: UNID | D25: 6 | H25: 128.62 | I25: 771.72
A26: ALUGUEL DE GRUPO GERADOR 6KVA, INCLUSO COMBUSTÍVEL - ORSE/03334 | C26: H | D26: =K4*K6*L6*3 -> 4752 | H26: 6.46 | I26: 30697.92
A27: TELEFONE - DISPÊNDIO MENSAL - ORSE/10557 | C27: MÊS | D27: =5*$K$4 -> 90 | H27: 65 | I27: =D27*H27 -> 5850 | J27: HISTOGRAMA:
A28: INTERNET - DISPÊNDIO MENSAL - ORSE/10558 | C28: MÊS | D28: =K4 -> 18 | H28: 89 | I28: =D28*H28 -> 1602
A29: PLOTAGEM EM FORMATO A1 - ORSE/05554 | C29: UNID | D29: 400 | H29: 2.7 | I29: 1080 | J29: ENG. | K29: 1
A30: SEDEX - ORSE/10560 | C30: MÊS | D30: =K4 -> 18 | H30: 17 | I30: 306 | J30: ENC+MESTRE | K30: 3
A31: MATERIAL DE LIMPEZA - ORSE/10563 | C31: MÊS | D31: =K4 -> 18 | H31: 69.54 | I31: 1251.72 | J31: ALMOX.+ADM. | K31: 2
A32: MEDICAMENTOS PRIMEIROS SOCORROS - ORSE/10564 | C32: MÊS | D32: =K4 -> 18 | H32: 30 | I32: 540 | J32: TEC.SEG | K32: 1
A33: PCMAT (NR-18) - ORSE/10571 | C33: UNIDADE | D33: 1 | H33: 800 | I33: 800 | J33: CARPINT. | K33: 4
A34: PPRA (NR-9)- ORSE/10572 | C34: UNIDADE | D34: 1 | H34: 800 | I34: 800 | J34: ARMADOR | K34: 4
A35: PCMSO (NR-7) - ORSE/10573 | C35: UNIDADE | D35: 1 | H35: 800 | I35: 800 | J35: PEDREIRO | K35: 4
A36: ART CREA | C36: UNIDADE | D36: 1 | H36: 100 | I36: 100 | J36: SERV.+AJUD | K36: 12
A37: CONSUMO DE MATERIAL DE ESCRITÓRIO - EMBASA/F020000329 | C37: MÊS | D37: 18 | H37: 120 | I37: 2160 | J37: MOTOR. | K37: 2
A38: GASOLINA COMUM - SINAPI 00004222 | C38: L | D38: =K4*4*200 -> 14400 | H38: 4.26 | I38: 61344 | J38: OPERADOR | K38: 4
A39: ÓLEO LUBRIFICANTE PARA VEÍCULO - SINAPI 00004227 | C39: L | D39: =K4*4/6*4.5 -> 54 | H39: 14.25 | I39: 769.5 | J39: OUTROS | K39: 3
A40: REFEIÇÕES PARA PESSOAL - ESTIMATIVA | C40: UNID. | D40: =K4*L6*K40 -> 15840 | H40: 10 | I40: 158400 | J40: QUANT.FUNC.: | K40: =SUM(K29:K39) -> 40 | L40: (MÉDIA)
A41: SUB-TOTAL | I41: =SUM(I11:I40) -> 363202.96
A42: SERVIÇOS - COMPOSIÇÕES AUXILIARES
A43: DISCRIMINAÇÃO | C43: UNIDADE | D43: QUANT. | H43: P.UNIT. | I43: P.TOTAL
I44: =D44*H44 -> 0
A45: SUB-TOTAL | I45: =SUM(I44:I44) -> 0
A46: MÃO DE OBRA
A47: DISCRIMINAÇÃO | C47: UNIDADE | D47: QUANT. | H47: P.UNIT. | I47: P.TOTAL
A48: ENGENHEIRO CIVIL PLENO COM ENCARGOS COMPLEMENTARES - SINAPI 90778 | C48: H | D48: =220*K4 -> 3960 | H48: 100.29 | I48: =D48*H48 -> 397148.4
A49: ENGENHEIRO AMBIENTAL PLENO COM ENCARGOS COMPLEMENTARES - SINAPI 90778 | C49: H | D49: =220*K4 -> 3960 | H49: 100.29 | I49: 397148.4
A50: TÉCNICO DE SEGURANÇA COM ENCARGOS COMPLEMENTARES - SINAPI 88321 | C50: H | D50: =220*K4 -> 3960 | H50: 27.76 | I50: 109929.6
A51: MESTRE DE OBRAS COM ENCARGOS COMPLEMENTARES - SINAPI 90780 | C51: H | D51: =220*K4 -> 3960 | H51: 60.83 | I51: 240886.8
A52: ENCARREGADO DE FORMA COM ENCARGOS COMPLEMENTARES - SINAPI 90776 | C52: H | D52: =220*K4 -> 3960 | H52: 40.58 | I52: =D52*H52 -> 160696.8
A53: ENCARREGADO DE ARMAÇÃO COM ENCARGOS COMPLEMENTARES - SINAPI 90776 | C53: H | D53: =220*K4 -> 3960 | H53: 40.58 | I53: =D53*H53 -> 160696.8
A54: VIGIA NOTURNO COM ENCARGOS COMPLEMENTARES - SINAPI 88326 | C54: H | D54: =220*K4*2 -> 7920 | H54: 19.42 | I54: 153806.4
A55: AUXILIAR DE ESCRITORIO COM ENCARGOS COMPLEMENTARES - SINAPI 90772 | C55: H | D55: =220*K4 -> 3960 | H55: 15.81 | I55: 62607.6
A56: ALMOXARIFE COM ENCARGOS COMPLEMENTARES - 90766 | C56: H | D56: =220*K4 -> 3960 | H56: 18.19 | I56: 72032.4
A57: SUB-TOTAL | I57: =SUM(I48:I56) -> 1754953.2
A58: PRODUÇÃO DA EQUIPE | C58: 1 | D58: CUSTO | I58: =I57+I45+I41+I8 -> 2476647.04
A59: TOTAL - R$ | I59: =I58/C58 -> 2476647.04
A60: BDI % | I60: 1
A61: TOTAL DO SERVIÇO - R$ | I61: =I59*I60 -> 2476647.04
A63: CODEVASF | C63: COMPOSIÇÃO DE PREÇO UNITÁRIO
A64: DESCRIÇÃO DO SERVIÇO | H64: DATA BASE: | I64: 2020-09-01
A65: MOBILIZAÇÃO DE PESSOAL E EQUIPAMENTOS | H65: UNIDADE: | I65: VB
A66: EQUIPAMENTO
A67: DISCRIMINAÇÃO | C67: UNIDADE | D67: QUANT. | E67: PROD | F67: IMPROD | G67: P.UN. PROD | H67: P.UN. IMPR | I67: P.TOTAL
A68: CAMINHÃO BASCULANTE 6 M3 TOCO, PESO BRUTO TOTAL 16.000 KG, CARGA ÚTIL MÁXIMA 11.130 KG, DISTÂNCIA ENTRE EIXOS 5,36 M, POTÊNCIA 185 CV, INCLUSIVE CAÇAMBA METÁLICA - MATERIAIS NA OPERAÇÃO. AF_06/2014 - SINAPI 67826 | C68: H | D68: =8*2*5 -> 80 | E68: 0.8 | F68: 0.2 | G68: 101.03 | H68: 34.49 | I68: =(D68*E68*G68)+(D68*F68)*H68 -> 7017.76
A69: GUINDAUTO HIDRÁULICO, CAPACIDADE MÁXIMA DE CARGA 6200 KG, MOMENTO MÁXIMO DE CARGA 11,7 TM, ALCANCE MÁXIMO HORIZONTAL 9,70 M, INCLUSIVE CAMINHÃO TOCO PBT 16.000 KG, POTÊNCIA DE 189 CV - CHP DIURNO. AF_06/2014 - CÓD SINAPI 5928 (1X) | C69: H | D69: =8*5 -> 40 | E69: 0.9 | F69: 0.1 | G69: 139.61 | H69: 34.22 | I69: =(D69*E69*G69)+(D69*F69)*H69 -> 5162.84
A70: MOTONIVELADORA POTÊNCIA BÁSICA LÍQUIDA (PRIMEIRA MARCHA) 125 HP, PESO CHP BRUTO 13032 KG, LARGURA DA LÂMINA DE 3,7 M - CHP DIURNO. AF_06/2014 - SINAPI 5932 (1X) | C70: CHP | D70: - | E70: 0.7 | F70: 0.3 | G70: 147.35 | I70: -
A71: RETROESCAVADEIRA SOBRE RODAS COM CARREGADEIRA, TRAÇÃO 4X4, POTÊNCIA LÍQ. 88 HP, CAÇAMBA CARREG. CAP. MÍN. 1 M3, CAÇAMBA RETRO CAP. 0,26 M3, PESO OPERACIONAL MÍN. 6.674 KG, PROFUNDIDADE ESCAVAÇÃO MÁX. 4,37 M - CHI DIURNO. AF_06/2014 - SINAPI 5679 (1X) | C71: CHI | D71: - | E71: 0.625 | F71: 0.375 | G71: 38.2 | I71: -
A72: ROLO COMPACTADOR PE DE CARNEIRO VIBRATORIO, POTENCIA 125 HP, PESO OPERACIONAL SEM/COM LASTRO 11,95 / 13,30 T, IMPACTO DINAMICO 38,5 / 22,5 T, LARGURA DE TRABALHO 2,15 M - CHP DIURNO. AF_06/2014 - SINAPI 7049 (1X) | C72: CHP | D72: - | E72: 0.7 | F72: 0.3 | G72: 132.85 | I72: -
A73: VIBROACABADORA DE ASFALTO SOBRE ESTEIRAS, LARGURA DE PAVIMENTAÇÃO 2,13 M A 4,55 M, POTÊNCIA 100 HP, CAPACIDADE 400 T/H - MATERIAIS NA OPERAÇÃO. AF_11/2014 - SINAPI 89256 (1X) | C73: H | D73: - | E73: 0.7 | F73: 0.3 | G73: 49.01 | I73: -
A74: ROLO COMPACTADOR VIBRATÓRIO DE UM CILINDRO AÇO LISO, POTÊNCIA 80 HP, PESO OPERACIONAL MÁXIMO 8,1 T, IMPACTO DINÂMICO 16,15 / 9,5 T, LARGURA DE TRABALHO 1,68 M - CHP DIURNO. AF_06/2014 - SINAPI 5684 (1X) | C74: CHP | D74: - | E74: 0.7 | F74: 0.3 | G74: 95.16 | I74: -
A75: SUB-TOTAL | I75: =SUM(I68:I74) -> 12180.6
A76: MATERIAL
A77: DISCRIMINAÇÃO | C77: UNIDADE | D77: QUANT. | H77: P.UNIT. | I77: P.TOTAL
I78: =D78*H78 -> 0
A79: SUB-TOTAL | I79: =SUM(I78:I78) -> 0
A80: SERVIÇOS - COMPOSIÇÕES AUXILIARES
A81: DISCRIMINAÇÃO | C81: UNIDADE | D81: QUANT. | H81: P.UNIT. | I81: P.TOTAL
I82: =D82*H82 -> 0
A83: SUB-TOTAL | I83: =SUM(I82:I82) -> 0
A84: MÃO DE OBRA
A85: DISCRIMINAÇÃO | C85: UNIDADE | D85: QUANT. | H85: P.UNIT. | I85: P.TOTAL
A86: SERVENTE COM ENCARGOS COMPLEMENTARES - 88316 | C86: H | D86: =2*5*8 -> 80 | H86: 14.76 | I86: =D86*H86 -> 1180.8
A87: SUB-TOTAL | I87: =SUM(I86:I86) -> 1180.8
A88: PRODUÇÃO DA EQUIPE | C88: 1 | D88: CUSTO | I88: =I75+I79+I83+I87 -> 13361.4
A89: TOTAL - R$ | I89: =I88/C88 -> 13361.4
A90: BDI % | I90: 1
A91: TOTAL DO SERVIÇO - R$ | I91: =I89*I90 -> 13361.4
A93: CODEVASF | C93: COMPOSIÇÃO DE PREÇO UNITÁRIO
A94: DESCRIÇÃO DO SERVIÇO | H94: DATA BASE: | I94: 2020-09-01
A95: MOBILIZAÇÃO / DESMOBILIZAÇÃO DE EQUIPAMENTOS ESPECIAIS (VIBROACABADORA, ESCAVADEIRA HIDRÁULICA, ROLO COMPACTADOR, MOTONIVELADORA, ETC.) | H95: UNIDADE: | I95: EQUIP.
A96: EQUIPAMENTO
A97: DISCRIMINAÇÃO | C97: UNIDADE | D97: QUANT. | E97: PROD | F97: IMPROD | G97: P.UN. PROD | H97: P.UN. IMPR | I97: P.TOTAL
A98: CAMINHÃO PLATAFORMA 8 X 2, PBT 29.000 KG E DISTÂNCIA ENTRE EIXOS 4,8 M - 188 KW - MOTORISTA DE CAMINHÃO (A9333) | C98: H | D98: 16 | E98: 0.9 | F98: 0.1 | G98: 183.979 | H98: 39.0104 | I98: =(D98*E98*G98)+(D98*F98)*H98 -> 2711.71424
A101: SUB-TOTAL | I101: =SUM(I98:I100) -> 2711.71424
A102: MATERIAL
A103: DISCRIMINAÇÃO | C103: UNIDADE | D103: QUANT. | H103: P.UNIT. | I103: P.TOTAL
I104: =D104*H104 -> 0
A105: SUB-TOTAL | I105: =SUM(I104:I104) -> 0
A106: SERVIÇOS - COMPOSIÇÕES AUXILIARES
A107: DISCRIMINAÇÃO | C107: UNIDADE | D107: QUANT. | H107: P.UNIT. | I107: P.TOTAL
I108: =D108*H108 -> 0
A109: SUB-TOTAL | I109: =SUM(I108:I108) -> 0
A110: MÃO DE OBRA
A111: DISCRIMINAÇÃO | C111: UNIDADE | D111: QUANT. | H111: P.UNIT. | I111: P.TOTAL
A112: OPERADOR DE MÁQUINAS COM ENCARGOS COMPLEMENTARES - 88294 | C112: H | D112: 2 | H112: 25.26 | I112: =D112*H112 -> 50.52
A113: SUB-TOTAL | I113: =SUM(I112:I112) -> 50.52
A114: PRODUÇÃO DA EQUIPE | C114: 1 | D114: CUSTO | I114: =I113+I109+I105+I101 -> 2762.23424
A115: TOTAL - R$ | I115: =I114/C114 -> 2762.23424
A116: BDI % | I116: 1
A117: TOTAL DO SERVIÇO - R$ | I117: =I115*I116 -> 2762.23424
A119: CODEVASF | C119: COMPOSIÇÃO DE PREÇO UNITÁRIO
A120: DESCRIÇÃO DO SERVIÇO | H120: DATA BASE: | I120: 2020-09-01
A121: MONTAGEM DAS ESTRUTURAS PRÉ-MOLDADAS (LAJES E LONGARINAS) | H121: UNIDADE: | I121: M3
A122: EQUIPAMENTO
A123: DISCRIMINAÇÃO | C123: UNIDADE | D123: QUANT. | E123: PROD | F123: IMPROD | G123: P.UN. PROD | H123: P.UN. IMPR | I123: P.TOTAL
A124: GUINDASTE HIDRÁULICO AUTOPROPELIDO, COM LANÇA TELESCÓPICA 40 M, CAPACIDADE MÁXIMA 60 T, POTÊNCIA 260 KW (93287) | C124: H | D124: 0.4116 | E124: 1 | F124: 0 | G124: 375.94 | H124: 85.94 | I124: =(D124*E124*G124)+(D124*F124)*H124 -> 154.736904
A125: CAMINHÃO PLATAFORMA 8 X 2, PBT 29.000 KG E DISTÂNCIA ENTRE EIXOS 4,8 M - 188 KW - MOTORISTA DE CAMINHÃO (A9333) | C125: H | D125: 0.052 | E125: 1 | F125: 0 | G125: 183.979 | H125: 39.0104 | I125: =(D125*E125*G125)+(D125*F125)*H125 -> 9.566908
A126: SUB-TOTAL | I126: =SUM(I124:I125) -> 164.303812
A127: MATERIAL
A128: DISCRIMINAÇÃO | C128: UNIDADE | D128: QUANT. | H128: P.UNIT. | I128: P.TOTAL
I129: =D129*H129 -> 0
A130: SUB-TOTAL | I130: =SUM(I129:I129) -> 0
A131: SERVIÇOS - COMPOSIÇÕES AUXILIARES
A132: DISCRIMINAÇÃO | C132: UNIDADE | D132: QUANT. | H132: P.UNIT. | I132: P.TOTAL
I133: =D133*H133 -> 0
A134: SUB-TOTAL | I134: =SUM(I133:I133) -> 0
A135: MÃO DE OBRA
A136: DISCRIMINAÇÃO | C136: UNIDADE | D136: QUANT. | H136: P.UNIT. | I136: P.TOTAL
A137: SERVENTE COM ENCARGOS COMPLEMENTARES - 88316 | C137: H | D137: 1.8748 | H137: 14.76 | I137: =D137*H137 -> 27.672048
A138: PEDREIRO COM ENCARGOS COMPLEMENTARES - 88309 | C138: H | D138: 0.5028 | H138: 20.81 | I138: =D138*H138 -> 10.463268
A139: SUB-TOTAL | I139: =SUM(I137:I138) -> 38.135316
A140: PRODUÇÃO DA EQUIPE | C140: 1 | D140: CUSTO | I140: =I139+I134+I130+I126 -> 202.439128
A141: TOTAL - R$ | I141: =I140/C140 -> 202.439128
A142: BDI % | I142: 1
A143: TOTAL DO SERVIÇO - R$ | I143: =I141*I142 -> 202.439128
A145: CODEVASF | C145: COMPOSIÇÃO DE PREÇO UNITÁRIO
A146: DESCRIÇÃO DO SERVIÇO | H146: DATA BASE: | I146: 2020-09-01
A147: PROTEÇÃO DO TALUDE COM REVESTIMENTO VEGETAL | H147: UNIDADE: | I147: M2
A148: EQUIPAMENTO
A149: DISCRIMINAÇÃO | C149: UNIDADE | D149: QUANT. | E149: PROD | F149: IMPROD | G149: P.UN. PROD | H149: P.UN. IMPR | I149: P.TOTAL
A150: CAMINHÃO PIPA 10.000 L TRUCADO, PESO BRUTO TOTAL 23.000 KG, CARGA ÚTIL MÁXIMA 15.935 KG, DISTÂNCIA ENTRE EIXOS 4,8 M, POTÊNCIA 230 CV, INCLUSIVE TANQUE DE AÇO PARA TRANSPORTE DE ÁGUA (5901) | C150: H | D150: 1 | E150: 0.07 | F150: 0.93 | G150: 166.06 | H150: 36.84 | I150: =(D150*E150*G150)+(D150*F150)*H150 -> 45.8854
I151: =(D151*E151*G151)+(D151*F151)*H151 -> 0
I152: =(D152*E152*G152)+(D152*F152)*H152 -> 0
A153: SUB-TOTAL | I153: =SUM(I150:I152) -> 45.8854
A154: MATERIAL
A155: DISCRIMINAÇÃO | C155: UNIDADE | D155: QUANT. | H155: P.UNIT. | I155: P.TOTAL
A156: Adubo NPK - 25951 | C156: kg | D156: 0.15 | H156: 1.72 | I156: =D156*H156 -> 0.258
A157: Grama tipo batatais - 3324 | B157: m² | C157: M² | D157: 1 | H157: 4.96 | I157: 4.96
A158: Pó calcário - 25963 | B158: kg | C158: kg | D158: 0.2 | H158: 0.1 | I158: 0.02
A159: Terra vegetal a granel - 7253 | B159: m³ | C159: M³ | D159: 0.05 | H159: 102.85 | I159: 5.1425
I160: 0
I161: =D161*H161 -> 0
A162: SUB-TOTAL | I162: =SUM(I156:I161) -> 10.3805
A163: SERVIÇOS - COMPOSIÇÕES AUXILIARES
A164: DISCRIMINAÇÃO | C164: UNIDADE | D164: QUANT. | H164: P.UNIT. | I164: P.TOTAL
I165: =D165*H165 -> 0
A166: SUB-TOTAL | I166: =SUM(I165:I165) -> 0
A167: MÃO DE OBRA
A168: DISCRIMINAÇÃO | C168: UNIDADE | D168: QUANT. | H168: P.UNIT. | I168: P.TOTAL
A169: SERVENTE COM ENCARGOS COMPLEMENTARES - 88316 | C169: H | D169: 1 | H169: 14.76 | I169: =D169*H169 -> 14.76
A170: JARDINEIRO COM ENCARGOS COMPLEMENTARES - 88441 | C170: H | D170: 1 | H170: 20.06 | I170: =D170*H170 -> 20.06
A171: SUB-TOTAL | I171: =SUM(I169:I170) -> 34.82
A172: PRODUÇÃO DA EQUIPE | C172: 5 | D172: CUSTO | I172: =I171+I166+I162+I153 -> 91.0859
A173: TOTAL - R$ | I173: =I172/C172 -> 18.21718
A174: BDI % | I174: 1
A175: TOTAL DO SERVIÇO - R$ | I175: =I173*I174 -> 18.21718
A177: CODEVASF | C177: COMPOSIÇÃO DE PREÇO UNITÁRIO
A178: DESCRIÇÃO DO SERVIÇO | H178: DATA BASE: | I178: 2020-09-01
A179: REMOÇÃO E RELOCAÇÃO DE CERCA DE ARAME FARPADO (4 FIOS), MOURÃO DE MADEIRA TRATADA | H179: UNIDADE: | I179: M
A180: EQUIPAMENTO
A181: DISCRIMINAÇÃO | C181: UNIDADE | D181: QUANT. | E181: PROD | F181: IMPROD | G181: P.UN. PROD | H181: P.UN. IMPR | I181: P.TOTAL
A182: CAMINHÃO TOCO, PBT 16.000 KG, CARGA ÚTIL MÁX. 10.685 KG, DIST. ENTRE EIXOS 4,8 M, POTÊNCIA 189 CV, INCLUSIVE CARROCERIA FIXA ABERTA DE MADEIRA P/ TRANSPORTE GERAL DE CARGA SECA, DIMEN. APROX. 2,5 X 7,00 X 0,50 M - 5824 | C182: H | D182: 0.004667 | E182: 1 | F182: 0 | G182: 109.27 | H182: 30.81 | I182: =(D182*E182*G182)+(D182*F182)*H182 -> 0.50996309
I183: =(D183*E183*G183)+(D183*F183)*H183 -> 0
I184: =(D184*E184*G184)+(D184*F184)*H184 -> 0
A185: SUB-TOTAL | I185: =SUM(I182:I184) -> 0.50996309
A186: MATERIAL
A187: DISCRIMINAÇÃO | C187: UNIDADE | D187: QUANT. | H187: P.UNIT. | I187: P.TOTAL
A188: ARAME FARPADO GALVANIZADO, 16 BWG (1,65 MM), CLASSE 250 - 340 | C188: M | D188: 0.88 | H188: 0.77 | I188: =D188*H188 -> 0.6776
A189: GRAMPO PARA FIXAÇÃO EM ACO POLIDO 1 " X 9 - 5076 | B189: Grampo para cerca galvanizado de 1 x 9" | C189: KG | D189: 0.002 | H189: 10.89 | I189: 0.02178
A190: MADEIRA ROLICA TRATADA, EUCALIPTO OU EQUIVALENTE DA REGIAO, H = 2,2 M, D = 8 A 11CM - 21138 | B190: Mourão de madeira - H = 2,10 m e D = 10 cm | C190: UNID. | D190: 0.04 | H190: 4.55 | I190: 0.182
A191: MADEIRA ROLICA TRATADA, EUCALIPTO OU EQUIVALENTE DA REGIAO, H = 3 M, D = 12 A 15CM - 4115 | B191: Mourão de madeira - H = 2,20 m e D = 15 cm | C191: UNID. | D191: 0.004 | H191: 8.8 | I191: 0.0352
I192: =D192*H192 -> 0
A193: SUB-TOTAL | I193: =SUM(I188:I192) -> 0.91658
A194: SERVIÇOS - COMPOSIÇÕES AUXILIARES
A195: DISCRIMINAÇÃO | C195: UNIDADE | D195: QUANT. | H195: P.UNIT. | I195: P.TOTAL
I196: =D196*H196 -> 0
A197: SUB-TOTAL | I197: =SUM(I196:I196) -> 0
A198: MÃO DE OBRA
A199: DISCRIMINAÇÃO | C199: UNIDADE | D199: QUANT. | H199: P.UNIT. | I199: P.TOTAL
A200: SERVENTE COM ENCARGOS COMPLEMENTARES - 88316 | C200: H | D200: 1.333333 | H200: 14.76 | I200: =D200*H200 -> 19.67999508
A201: CARPINTEIRO DE FORMAS - 88262 | C201: H | D201: 0.133333 | H201: 20.66 | I201: =D201*H201 -> 2.75465978
A202: SUB-TOTAL | I202: =SUM(I200:I201) -> 22.43465486
A203: PRODUÇÃO DA EQUIPE | C203: 1 | D203: CUSTO | I203: =I202+I197+I193+I185 -> 23.86119795
A204: TOTAL - R$ | I204: =I203/C203 -> 23.86119795
A205: BDI % | I205: 1
A206: TOTAL DO SERVIÇO - R$ | I206: =I204*I205 -> 23.86119795
A208: CODEVASF | C208: COMPOSIÇÃO DE PREÇO UNITÁRIO
... 208 more rows

Sheet ENGECORPS
I7: DATA BASE | K7: 2017-03-01
E8: BARRAGEM DE JEQUITAÍ OBRAS DO RESERVATÓRIO - PLANILHA DE QUANTITATIVOS E CUSTOS DAS OBRAS
B11: Ref. | C11: ITEM | D11: CÓDIGO | E11: DISCRIMINAÇÃO | F11: Unid.ID | G11: QUANT. | H11: Custo Unitário | I11: Custo Total | J11: Preço Unitário | K11: Preço Total | M11: % SOBRE O CUSTO DIRETO
C12: 1 | E12: SERVIÇOS PRELIMINARES | I12: =SUBTOTAL(9,I13:I16) -> 103500 | K12: =SUBTOTAL(9,K13:K16) -> 131321.5657 | M12: =K12/$M$209 -> 0.01484480017
C13: 1.1 | E13: MOBILIZAÇÃO E DESMOBILIZAÇÃO | I13: =SUBTOTAL(9,I14:I16) -> 103500 | K13: =SUBTOTAL(9,K14:K16) -> 131321.5657
C14: 1.1.1 | E14: PESSOAL E EQUIPAMENTOS | I14: =SUBTOTAL(9,I15:I16) -> 103500 | K14: =SUBTOTAL(9,K15:K16) -> 131321.5657
C15: 1.1.1.1 | D15: CI1005 | E15: MOBILIZAÇÃO DE PESSOAL E EQUIPAMENTOS | F15: Global | G15: 1 | H15: 51750 | I15: =H15*G15 -> 51750 | J15: 65660.78284 | K15: =J15*G15 -> 65660.78284
C16: 1.1.1.2 | D16: CI1006 | E16: DESMOBILIZAÇÃO DE PESSOAL E EQUIPAMENTOS | F16: Global | G16: 1 | H16: 51750 | I16: =H16*G16 -> 51750 | J16: 65660.78284 | K16: =J16*G16 -> 65660.78284
C17: 2 | E17: DESPESAS GERAIS | I17: =SUBTOTAL(9,I18:I19) -> 3364710.925 | K17: =SUBTOTAL(9,K18:K19) -> 4269170.113 | M17: =K17/$M$209 -> 0.482593829
C18: 2.1 | E18: ADMINISTRAÇÃO DA OBRA | I18: =SUBTOTAL(9,I19) -> 3364710.925 | K18: =SUBTOTAL(9,K19) -> 4269170.113
C19: 2.1.1 | D19: CI1008 | E19: ADMINISTRAÇÃO LOCAL | F19: Global | G19: 1 | H19: 3364710.925 | I19: =H19*G19 -> 3364710.925 | J19: 4269170.113 | K19: =J19*G19 -> 4269170.113
C20: 3 | E20: CANTEIRO DE OBRAS | I20: =SUBTOTAL(9,I21:I23) -> 1417520.87 | K20: =SUBTOTAL(9,K21:K23) -> 1798560.966 | M20: =K20/$M$209 -> 0.2033122129 | N20: =SUM(M12:M20) -> 0.7007508421
C21: 3.1 | E21: CONSTRUÇÃO E INSTALAÇÃO DO CANTEIRO DE OBRAS | I21: =SUBTOTAL(9,I22:I23) -> 1417520.87 | K21: =SUBTOTAL(9,K22:K23) -> 1798560.966
C22: 3.2 | D22: CI1007 | E22: CONSTRUÇÃO E INSTALAÇÃO DO CANTEIRO DE OBRAS | F22: Global | G22: 1 | H22: 415000 | I22: =H22*G22 -> 415000 | J22: 526555.0701 | K22: =J22*G22 -> 526555.0701
C23: 3.3 | D23: CI1009 | E23: MANUTENÇÃO E OPERAÇÃO DO CANTEIRO DE OBRAS | F23: Global | G23: 1 | H23: 1002520.87 | I23: =H23*G23 -> 1002520.87 | J23: 1272005.896 | K23: =J23*G23 -> 1272005.896
C24: 4 | E24: OBRAS NO RESERVATÓRIO | I24: =SUBTOTAL(9,I25:I207) -> 6972138.314 | K24: =SUBTOTAL(9,K25:K207) -> 8846300.671 | M24: =K209 -> 15045353.32 | N24: =M24-K20-K17 -> 8977622.237
C25: 4.4 | E25: GALERIA LOCAL D ( EM FASE DE CONCLUSÃO) | I25: =SUBTOTAL(9,I26:I36) -> 158617.868 | K25: =SUBTOTAL(9,K26:K36) -> 201255.5243
C26: 4.4.1 | E26: TERRAPLENAGEM | I26: =SUBTOTAL(9,I27:I32) -> 129930.6186 | K26: =SUBTOTAL(9,K27:K32) -> 164856.9301
B27: DNIT | C27: 4.4.1.1 | D27: 5914346 | E27: MOMENTO DE TRANSPORTE DE MATERIAL DE 3ª CATEGORIA | F27: m³xkm | G27: 45664.8 | H27: 2.05016091 | I27: =H27*G27 -> 93620.18794 | J27: 2.60125933 | K27: =J27*G27 -> 118785.987
B28: DNIT | C28: 4.4.1.2 | D28: 4915764 | E28: CORTE DE ARVORE COM MOTOSERRA, CARGA, TRANSPORTE E EMPILHAMENTO | F28: há | G28: 0.56 | H28: 12527.2702 | I28: 7015.271315 | J28: 15894.69311 | K28: 8901.028142
B29: DNIT | C29: 4.4.1.3 | D29: CPU 020 | E29: AREIA PARA ASSENTAMENTO (AREIA COMERCIAL) | F29: m³ | G29: 7 | H29: 102.425 | I29: 716.975 | J29: 129.9575977 | K29: 909.703184
B30: DNIT | C30: 4.4.1.4 | D30: 4915671 | E30: SOLO COMPACTADO MANUALMENTE | F30: m³ | G30: 175.8 | H30: 12.04209077 | I30: 2116.999557 | J30: 15.27909385 | K30: 2686.0647
B31: DNIT | C31: 4.4.1.5 | D31: 1600966a | E31: REMOÇÃO E CONSTRUÇÃO DE NOVA CERCA DE ARAME LISO (4 FIOS), MOURÃO DE MADEIRA TRATADA | F31: m | G31: 180 | H31: 13.6977906 | I31: 2465.602308 | J31: 17.37985805 | K31: 3128.374449
B32: DNIT | C32: 4.4.1.6 | D32: 4011275 | E32: TRANSIÇÃO COMPACTADA, INCLUSIVE CARGA, TRANSP. E FORNEC. DE MATERIAL (DMT = 1,00 km) | F32: m | G32: 430.8 | H32: 55.70005218 | I32: 23995.58248 | J32: 70.67263826 | K32: 30445.77256
C33: 4.4.2 | E33: ESTRUTURAS | I33: =SUBTOTAL(9,I34:I36) -> 28687.24939 | K33: =SUBTOTAL(9,K34:K36) -> 36398.59425
B34: DNIT | C34: 4.4.2.1 | D34: 3108012 | E34: FORMAS PLANAS, CHAPA DE COMPENSADO PLASTIFICADA e=12mm | F34: m² | G34: 38.52 | H34: 80.28443579 | I34: =H34*G34 -> 3092.556467 | J34: 101.8654861 | K34: =J34*G34 -> 3923.858523
B35: DNIT | C35: 4.4.2.2 | D35: CPU 014a | E35: LASTRO DE CONCRETO CONSUMO MINIMO DE CIMENTO 200kg/m³ (BRITA E AREIA COMERCIAL) | F35: m³ | G35: 3.85 | H35: 263.3678724 | I35: 1013.966309 | J35: 334.1631048 | K35: 1286.527953
B36: DNIT | C36: 4.4.2.3 | D36: CPU 002a | E36: CONCRETO CONVENCIONAL CLASSE D, fck 25MPa (BRITA E AREIA COMERCIAL) | F36: m³ | G36: 75.18 | H36: 326.9583215 | I36: 24580.72661 | J36: 414.8471371 | K36: 31188.20777
C37: 4.5 | E37: GALERIA LOCAL E | I37: =SUBTOTAL(9,I38:I56) -> 325652.0025 | K37: =SUBTOTAL(9,K38:K56) -> 413189.6699
C38: 4.5.1 | E38: TERRAPLENAGEM | I38: =SUBTOTAL(9,I39:I50) -> 150952.4112 | K38: =SUBTOTAL(9,K39:K50) -> 191529.536
B39: DNIT | C39: 4.5.1.1 | D39: 5501700 | E39: DESMATAMENTO, DESTOCAMENTO E LIMPEZA DO TERRENO | F39: m² | G39: 3640 | H39: 0.3736327777 | I39: =H39*G39 -> 1360.023311 | J39: 0.4740680325 | K39: =J39*G39 -> 1725.607638
B40: DNIT | C40: 4.5.1.2 | D40: 5502986 | E40: EXPURGO DE MATERIAL, INCLUSIVE CARGA E TRANSP. (DMT = 1,00 km) | F40: m³ | G40: 728 | H40: 1.781567323 | I40: 1296.981011 | J40: 2.260465799 | K40: 1645.619102
B41: DNIT | C41: 4.5.1.3 | D41: 5502113 | E41: ESCAVAÇÃO MECANIZADA EM MATERIAL DE 1ª CATEGORIA, INCLUSIVE CARGA E TRANSP. (DMT=1,00 km) | F41: m³ | G41: 6230.94 | H41: 5.464210629 | I41: 34047.16857 | J41: 6.933030869 | K41: 43199.29936
B42: DNIT | C42: 4.5.1.4 | D42: 5502978 | E42: SOLO COMPACTADO | F42: m³ | G42: 4980.56 | H42: 2.627496749 | I42: 13086.40521 | J42: 3.333787313 | K42: 16604.12774
B43: DNIT | C43: 4.5.1.5 | D43: 5502983 | E43: ENROCAMENTO DE PROTEÇÃO INCLUSIVE FORNEC. DE MATERIAL E TRANSP.(DMT = 1,00km) | F43: m³ | G43: 431.7 | H43: 54.94693574 | I43: 23720.59216 | J43: 69.71707855 | K43: 30096.86281
B44: DNIT | C44: 4.5.1.6 | D44: 5502746 | E44: ESCAVAÇÃO MECANIZADA EM MATERIAL DE 3ª CATEGORIA, INCLUSIVE CARGA E TRANSP. (DMT = 1,00 km) | F44: m³ | G44: 332.41 | H44: 41.32946586 | I44: 13738.32775 | J44: 52.43913203 | K44: 17431.29188
B45: DNIT | C45: 4.5.1.7 | D45: 5915319 | E45: MOMENTO DE TRANSPORTE DE MATERIAL DE 1ª E 2ª CATEGORIA | F45: m³xkm | G45: 4361.66 | H45: 1.052883075 | I45: 4592.317994 | J45: 1.335905835 | K45: 5826.767043
B46: DNIT | C46: 4.5.1.8 | D46: 5914346 | E46: MOMENTO DE TRANSPORTE DE MATERIAL DE 3ª CATEGORIA | F46: m³xkm | G46: 431.7 | H46: 2.05016091 | I46: 885.054465 | J46: 2.60125933 | K46: 1122.963653
B47: DNIT | C47: 4.5.1.9 | D47: CPU 017 | E47: ENSECADEIRA COM SACOS DE AREIA | F47: m³ | G47: 14.57 | H47: 124.6420415 | I47: 1816.034545 | J47: 158.1467443 | K47: 2304.198065
B48: DNIT | C48: 4.5.1.10 | D48: 4816012a | E48: BRITA PARA BASE | F48: m³ | G48: 10.23 | H48: 49.20806733 | I48: 503.3985288 | J48: 62.43555986 | K48: 638.7157774
B49: DNIT | C49: 4.5.1.11 | D49: 4816019 | E49: AREIA PARA ASSENTAMENTO | F49: m³ | G49: 10.23 | H49: 68.95932713 | I49: 705.4539166 | J49: 87.49610441 | K49: 895.0851481
B50: DNIT | C50: 4.5.1.12 | D50: 4813200 | E50: PROTEÇÃO DE TALUDE REVESTIMENTO VEGETAL | F50: m² | G50: 2080 | H50: 26.53877582 | I50: 55200.65372 | J50: 33.6725951 | K50: 70038.9978
C51: 4.5.2 | E51: ESTRUTURAS | I51: =SUBTOTAL(9,I52:I56) -> 174699.5914 | K51: =SUBTOTAL(9,K52:K56) -> 221660.1339
B52: DNIT | C52: 4.5.2.1 | D52: 1107871a | E52: CONCRETO MAGRO CLASSE A, fck 10MPa | F52: m³ | G52: 9.31 | H52: 236.0883114 | I52: =H52*G52 -> 2197.982179 | J52: 299.550596 | K52: =J52*G52 -> 2788.816049
B53: DNIT | C53: 4.5.2.2 | D53: CPU 002a | E53: CONCRETO CONVENCIONAL CLASSE D, fck 25MPa | F53: m³ | G53: 110.28 | H53: 326.9583215 | I53: 36056.9637 | J53: 414.8471371 | K53: 45749.34228
B54: DNIT | C54: 4.5.2.3 | D54: .0407819 | E54: ARMADURA, (FORNECIMENTO, CORTE. DOBRA E MONTAGEM), AÇO CA-50 - D de 1/4" a 1/2" | F54: t | G54: 12.13 | H54: 7030.978029 | I54: 85285.76349 | J54: 8920.956937 | K54: 108211.2076
B55: DNIT | C55: 4.5.2.4 | D55: 3108012 | E55: FORMAS PLANAS, CHAPA DE COMPENSADO PLASTIFICADA e=12mm | F55: m² | G55: 604.02 | H55: 80.28443579 | I55: 48493.40491 | J55: 101.8654861 | K55: 61528.79089
B56: DNIT | C56: 4.5.2.5 | D56: 1506056 | E56: BACIA DE DISSIPAÇÃO (PEDRA ARGAMASSADA e=25cm) | F56: m³ | G56: 12.26 | H56: 217.4124872 | I56: 2665.477093 | J56: 275.8545721 | K56: 3381.977054
C57: 4.6 | E57: GALERIA LOCAL F ( EM FASE DE CONCLUSÃO) | I57: =SUBTOTAL(9,I58:I69) -> 146748.8233 | K57: =SUBTOTAL(9,K58:K69) -> 186195.9926
C58: 4.6.1 | E58: TERRAPLENAGEM | I58: =SUBTOTAL(9,I59:I65) -> 125534.6391 | K58: =SUBTOTAL(9,K59:K65) -> 159279.2788
B59: DNIT | C59: 4.6.1.1 | D59: 5914346 | E59: MOMENTO DE TRANSPORTE DE MATERIAL DE 3ª CATEGORIA | F59: m³xkm | G59: 13016.88 | H59: 2.05016091 | I59: =H59*G59 -> 26686.69855 | J59: 2.60125933 | K59: =J59*G59 -> 33860.28054
B60: DNIT | C60: 4.6.1.2 | D60: 4915764 | E60: CORTE DE ARVORE COM MOTOSERRA, CARGA, TRANSPORTE E EMPILHAMENTO | F60: há | G60: 0.36 | H60: 12527.2702 | I60: 4509.817274 | J60: 15894.69311 | K60: 5722.08952
B61: DNIT | C61: 4.6.1.3 | D61: CPU 020 | E61: AREIA PARA ASSENTAMENTO (AREIA COMERCIAL) | F61: m³ | G61: 7.25 | H61: 102.425 | I61: 742.58125 | J61: 129.9575977 | K61: 942.1925835
B62: DNIT | C62: 4.6.1.4 | D62: 4915671 | E62: SOLO COMPACTADO MANUALMENTE | F62: m³ | G62: 144.24 | H62: 12.04209077 | I62: 1736.951173 | J62: 15.27909385 | K62: 2203.856498
B63: DNIT | C63: 4.6.1.5 | D63: 1600966a | E63: REMOÇÃO E CONSTRUÇÃO DE NOVA CERCA DE ARAME LISO (4 FIOS), MOURÃO DE MADEIRA TRATADA | F63: m | G63: 520 | H63: 13.6977906 | I63: 7122.851113 | J63: 17.37985805 | K63: 9037.526186
B64: DNIT | C64: 4.6.1.6 | D64: 4413016 | E64: RECOMPOSIÇÃO DE ÁREA EXPLORADA DE JAZIDA / EMPRESTIMO | F64: m² | G64: 6530.77 | H64: 11.73440868 | I64: 76634.7242 | J64: 14.88870455 | K64: 97234.70499
B65: DNIT | C65: 4.6.1.7 | D65: 4011275 | E65: TRANSIÇÃO COMPACTADA, INCLUSIVE CARGA, TRANSP. E FORNEC. DE MATERIAL (DMT = 1,00 km) | F65: m³ | G65: 145.44 | H65: 55.70005218 | I65: 8101.015589 | J65: 70.67263826 | K65: 10278.62851
C66: 4.6.2 | E66: ESTRUTURAS | I66: =SUBTOTAL(9,I67:I69) -> 21214.18412 | K66: =SUBTOTAL(9,K67:K69) -> 26916.71374
B67: DNIT | C67: 4.6.2.1 | D67: 3108012 | E67: FORMAS PLANAS, CHAPA DE COMPENSADO PLASTIFICADA e=12mm | F67: m² | G67: 30.4 | H67: 80.28443579 | I67: =H67*G67 -> 2440.646848 | J67: 101.8654861 | K67: =J67*G67 -> 3096.710776
B68: DNIT | C68: 4.6.2.2 | D68: CPU 014a | E68: LASTRO DE CONCRETO CONSUMO MINIMO DE CIMENTO 200kg/m³ (BRITA E AREIA COMERCIAL) | F68: m³ | G68: 3.04 | H68: 263.3678724 | I68: 800.6383319 | J68: 334.1631048 | K68: 1015.855839
B69: DNIT | C69: 4.6.2.3 | D69: CPU 002a | E69: CONCRETO CONVENCIONAL CLASSE D, fck 25MPa (BRITA E AREIA COMERCIAL) | F69: m³ | G69: 54.97 | H69: 326.9583215 | I69: 17972.89894 | J69: 414.8471371 | K69: 22804.14713
C70: 4.7 | E70: GALERIA LOCAL G1 ( EM FASE DE CONCLUSÃO) | I70: =SUBTOTAL(9,I71:I82) -> 114323.7665 | K70: =SUBTOTAL(9,K71:K82) -> 145054.8407
C71: 4.7.1 | E71: TERRAPLENAGEM | I71: =SUBTOTAL(9,I72:I78) -> 83454.09816 | K71: =SUBTOTAL(9,K72:K78) -> 105887.1771
B72: DNIT | C72: 4.7.1.1 | D72: 5914346 | E72: MOMENTO DE TRANSPORTE DE MATERIAL DE 3ª CATEGORIA | F72: m³xkm | G72: 3000.22 | H72: 2.05016091 | I72: =H72*G72 -> 6150.933766 | J72: 2.60125933 | K72: =J72*G72 -> 7804.350266
B73: DNIT | C73: 4.7.1.2 | D73: 4915764 | E73: CORTE DE ARVORE COM MOTOSERRA, CARGA, TRANSPORTE E EMPILHAMENTO | F73: há | G73: 0.39 | H73: 12527.2702 | I73: 4885.63538 | J73: 15894.69311 | K73: 6198.930313
B74: DNIT | C74: 4.7.1.3 | D74: CPU 020 | E74: AREIA PARA ASSENTAMENTO (AREIA COMERCIAL) | F74: m³ | G74: 7.72 | H74: 102.425 | I74: 790.721 | J74: 129.9575977 | K74: 1003.272654
B75: DNIT | C75: 4.7.1.4 | D75: 4915671 | E75: SOLO COMPACTADO MANUALMENTE | F75: m³ | G75: 125.36 | H75: 12.04209077 | I75: 1509.596499 | J75: 15.27909385 | K75: 1915.387206
B76: DNIT | C76: 4.7.1.5 | D76: 1600966a | E76: REMOÇÃO E RELOCAÇÃO DE CERCA DE ARAME FARPADO (4 FIOS), MOURÃO DE MADEIRA TRATADA | F76: m | G76: 560 | H76: 13.6977906 | I76: 7670.762737 | J76: 17.37985805 | K76: 9732.720508
B77: DNIT | C77: 4.7.1.6 | D77: 4413016 | E77: RECOMPOSIÇÃO DE ÁREA EXPLORADA DE JAZIDA / EMPRESTIMO | F77: m² | G77: 5147.97 | H77: 11.73440868 | I77: 60408.38387 | J77: 14.88870455 | K77: 76646.60435
B78: DNIT | C78: 4.7.1.7 | D78: 4011275 | E78: TRANSIÇÃO COMPACTADA, INCLUSIVE CARGA, TRANSP. E FORNEC. DE MATERIAL (DMT = 1,00 km) | F78: m³ | G78: 36.59 | H78: 55.70005218 | I78: 2038.064909 | J78: 70.67263826 | K78: 2585.911834
C79: 4.7.2 | E79: ESTRUTURAS | I79: =SUBTOTAL(9,I80:I82) -> 30869.66832 | K79: =SUBTOTAL(9,K80:K82) -> 39167.66353
B80: DNIT | C80: 4.7.2.1 | D80: 3108012 | E80: FORMAS PLANAS, CHAPA DE COMPENSADO PLASTIFICADA e=12mm | F80: m² | G80: 53.37 | H80: 80.28443579 | I80: =H80*G80 -> 4284.780338 | J80: 101.8654861 | K80: =J80*G80 -> 5436.560991
B81: DNIT | C81: 4.7.2.2 | D81: CPU 014a | E81: LASTRO DE CONCRETO CONSUMO MINIMO DE CIMENTO 200kg/m³ (BRITA E AREIA COMERCIAL) | F81: m³ | G81: 6.12 | H81: 263.3678724 | I81: 1611.811379 | J81: 334.1631048 | K81: 2045.078201
B82: DNIT | C82: 4.7.2.3 | D82: CPU 002a | E82: CONCRETO CONVENCIONAL CLASSE D, fck 25MPa (BRITA E AREIA COMERCIAL) | F82: m³ | G82: 76.38 | H82: 326.9583215 | I82: 24973.0766 | J82: 414.8471371 | K82: 31686.02434
C83: 4.8 | E83: GALERIA LOCAL G2 ( EM FASE DE CONCLUSÃO) | I83: =SUBTOTAL(9,I84:I93) -> 28620.68116 | K83: =SUBTOTAL(9,K84:K93) -> 36314.13198
C84: 4.8.1 | E84: TERRAPLENAGEM | I84: =SUBTOTAL(9,I85:I89) -> 9033.191678 | K84: =SUBTOTAL(9,K85:K89) -> 11461.38043
B85: DNIT | C85: 4.8.1.1 | D85: 5914346 | E85: MOMENTO DE TRANSPORTE DE MATERIAL DE 3ª CATEGORIA | F85: m³xkm | G85: 961.21 | H85: 2.05016091 | I85: =H85*G85 -> 1970.635169 | J85: 2.60125933 | K85: =J85*G85 -> 2500.35648
B86: DNIT | C86: 4.8.1.2 | D86: 4915764 | E86: CORTE DE ARVORE COM MOTOSERRA, CARGA, TRANSPORTE E EMPILHAMENTO | F86: há | G86: 0.34 | H86: 12527.2702 | I86: 4259.27187 | J86: 15894.69311 | K86: 5404.195657
B87: DNIT | C87: 4.8.1.3 | D87: CPU 020 | E87: AREIA PARA ASSENTAMENTO (AREIA COMERCIAL) | F87: m³ | G87: 5.74 | H87: 102.425 | I87: 587.9195 | J87: 129.9575977 | K87: 745.9566109
B88: DNIT | C88: 4.8.1.4 | D88: 4915671 | E88: SOLO COMPACTADO MANUALMENTE | F88: m³ | G88: 122.08 | H88: 12.04209077 | I88: 1470.098441 | J88: 15.27909385 | K88: 1865.271778
B89: DNIT | C89: 4.8.1.5 | D89: 4011275 | E89: TRANSIÇÃO COMPACTADA, INCLUSIVE CARGA, TRANSP. E FORNEC. DE MATERIAL (DMT = 1,00 km) | F89: m³ | G89: 13.38 | H89: 55.70005218 | I89: 745.2666981 | J89: 70.67263826 | K89: 945.5998999
C90: 4.8.2 | E90: ESTRUTURAS | I90: =SUBTOTAL(9,I91:I93) -> 19587.48948 | K90: =SUBTOTAL(9,K91:K93) -> 24852.75156
B91: DNIT | C91: 1.8.2.1 | D91: 3108012 | E91: FORMAS PLANAS, CHAPA DE COMPENSADO PLASTIFICADA e=12mm | F91: m² | G91: 50.24 | H91: 80.28443579 | I91: =H91*G91 -> 4033.490054 | J91: 101.8654861 | K91: =J91*G91 -> 5117.72202
B92: DNIT | C92: 1.8.2.2 | D92: CPU 014a | E92: LASTRO DE CONCRETO CONSUMO MINIMO DE CIMENTO 200kg/m³ (BRITA E AREIA COMERCIAL) | F92: m³ | G92: 2.87 | H92: 263.3678724 | I92: 755.8657936 | J92: 334.1631048 | K92: 959.0481107
B93: DNIT | C93: 1.8.2.3 | D93: CPU 002a | E93: CONCRETO CONVENCIONAL CLASSE D, fck 25MPa (BRITA E AREIA COMERCIAL) | F93: m³ | G93: 45.26 | H93: 326.9583215 | I93: 14798.13363 | J93: 414.8471371 | K93: 18775.98143
C94: 4.9 | E94: GALERIA LOCAL H ( EM FASE DE CONCLUSÃO) | I94: =SUBTOTAL(9,I95:I105) -> 293376.0271 | K94: =SUBTOTAL(9,K95:K105) -> 372237.6736
C95: 4.9.1 | E95: TERRAPLENAGEM | I95: =SUBTOTAL(9,I96:I101) -> 225737.5469 | K95: =SUBTOTAL(9,K96:K101) -> 286417.4695
B96: DNIT | C96: 4.9.1.1 | D96: 5914346 | E96: MOMENTO DE TRANSPORTE DE MATERIAL DE 3ª CATEGORIA | F96: m³xkm | G96: 30080.68 | H96: 2.05016091 | I96: =H96*G96 -> 61670.23429 | J96: 2.60125933 | K96: =J96*G96 -> 78247.64949
B97: DNIT | C97: 4.9.1.2 | D97: 4915764 | E97: CORTE DE ARVORE COM MOTOSERRA, CARGA, TRANSPORTE E EMPILHAMENTO | F97: há | G97: 0.53 | H97: 12527.2702 | I97: 6639.453209 | J97: 15894.69311 | K97: 8424.187348
B98: DNIT | C98: 4.9.1.3 | D98: CPU 020 | E98: AREIA PARA ASSENTAMENTO (AREIA COMERCIAL) | F98: m³ | G98: 12.46 | H98: 102.425 | I98: 1276.2155 | J98: 129.9575977 | K98: 1619.271668
B99: DNIT | C99: 4.9.1.4 | D99: 4915671 | E99: SOLO COMPACTADO MANUALMENTE | F99: m³ | G99: 244.74 | H99: 12.04209077 | I99: 2947.181295 | J99: 15.27909385 | K99: 3739.40543
B100: DNIT | C100: 4.9.1.5 | D100: 1600966a | E100: REMOÇÃO E RELOCAÇÃO DE CERCA DE ARAME FARPADO (4 FIOS), MOURÃO DE MADEIRA TRATADA | F100: m³ | G100: 760 | H100: 13.6977906 | I100: 10410.32086 | J100: 17.37985805 | K100: 13208.69212
B101: DNIT | C101: 4.9.1.6 | D101: 4413016 | E101: RECOMPOSIÇÃO DE ÁREA EXPLORADA DE JAZIDA / EMPRESTIMO | F101: m² | G101: 12168.84 | H101: 11.73440868 | I101: 142794.1418 | J101: 14.88870455 | K101: 181178.2634
C102: 4.9.2 | E102: ESTRUTURAS | I102: =SUBTOTAL(9,I103:I105) -> 67638.48023 | K102: =SUBTOTAL(9,K103:K105) -> 85820.20409
B103: DNIT | C103: 4.9.2.1 | D103: 3108012 | E103: FORMAS PLANAS, CHAPA DE COMPENSADO PLASTIFICADA e=12mm | F103: m² | G103: 53.14 | H103: 80.28443579 | I103: =H103*G103 -> 4266.314918 | J103: 101.8654861 | K103: =J103*G103 -> 5413.131929
B104: DNIT | C104: 4.9.2.2 | D104: CPU 014a | E104: LASTRO DE CONCRETO CONSUMO MINIMO DE CIMENTO 200kg/m³ (BRITA E AREIA COMERCIAL) | F104: m³ | G104: 9.253 | H104: 263.3678724 | I104: 2436.942923 | J104: 334.1631048 | K104: 3092.011209
B105: DNIT | C105: 4.9.2.3 | D105: CPU 002a | E105: CONCRETO CONVENCIONAL CLASSE D, fck 25MPa (BRITA E AREIA COMERCIAL) | F105: m³ | G105: 186.37 | H105: 326.9583215 | I105: 60935.22239 | J105: 414.8471371 | K105: 77315.06095
C106: 4.10 | E106: GALERIA LOCAL M | I106: =SUBTOTAL(9,I107:I125) -> 1664709.647 | K106: =SUBTOTAL(9,K107:K125) -> 2112195.915
C107: 4.10.1 | E107: TERRAPLENAGEM | I107: =SUBTOTAL(9,I108:I119) -> 1374975.527 | K107: =SUBTOTAL(9,K108:K119) -> 1744579.121
B108: DNIT | C108: 4.10.1.1 | D108: 5501700 | E108: DESMATAMENTO, DESTOCAMENTO E LIMPEZA DO TERRENO | F108: m² | G108: 28000 | H108: 0.3736327777 | I108: =H108*G108 -> 10461.71778 | J108: 0.4740680325 | K108: =J108*G108 -> 13273.90491
B109: DNIT | C109: 4.10.1.2 | D109: 5502986 | E109: EXPURGO DE MATERIAL, INCLUSIVE CARGA E TRANSP. (DMT = 1,00 km) | F109: m³ | G109: 5600 | H109: 1.781567323 | I109: 9976.777009 | J109: 2.260465799 | K109: 12658.60848
B110: DNIT | C110: 4.10.1.3 | D110: 5502978 | E110: SOLO COMPACTADO | F110: m³ | G110: 60167.53 | H110: 2.627496749 | I110: 158089.9895 | J110: 3.333787313 | K110: 200585.7482
B111: DNIT | C111: 4.10.1.4 | D111: 5502113 | E111: ESCAVAÇÃO MECANIZADA EM MATERIAL DE 1ª CATEGORIA, INCLUSIVE CARGA E TRANSP. (DMT=1,00 km) | F111: m³ | G111: 75209.41 | H111: 5.464210629 | I111: 410960.0575 | J111: 6.933030869 | K111: 521429.1612
B112: DNIT | C112: 4.10.1.5 | D112: 5502983 | E112: ENROCAMENTO DE PROTEÇÃO INCLUSIVE FORNEC. DE MATERIAL E TRANSP.(DMT = 1,00km) | F112: m³ | G112: 4812.36 | H112: 54.94693574 | I112: 264424.4357 | J112: 69.71707855 | K112: 335503.6801
B113: DNIT | C113: 4.10.1.6 | D113: 5502746 | E113: ESCAVAÇÃO MECANIZADA EM MATERIAL DE 3ª CATEGORIA, INCLUSIVE CARGA E TRANSP. (DMT = 1,00 km) | F113: m³ | G113: 3705.52 | H113: 41.32946586 | I113: 153147.1623 | J113: 52.43913203 | K113: 194314.2525
B114: DNIT | C114: 4.10.1.7 | D114: 5915319 | E114: MOMENTO DE TRANSPORTE DE MATERIAL DE 1ª E 2ª CATEGORIA | F114: m³xkm | G114: 52646.59 | H114: 1.052883075 | I114: 55430.70358 | J114: 1.335905835 | K114: 70330.88676
B115: DNIT | C115: 4.10.1.8 | D115: 5914346 | E115: MOMENTO DE TRANSPORTE DE MATERIAL DE 3ª CATEGORIA | F115: m³xkm | G115: 4812.36 | H115: 2.05016091 | I115: 9866.112358 | J115: 2.60125933 | K115: 12518.19635
B116: DNIT | C116: 4.10.1.9 | D116: CPU 017 | E116: ENSECADEIRA COM SACOS DE AREIA | F116: m³ | G116: 25.64 | H116: 124.6420415 | I116: 3195.821944 | J116: 158.1467443 | K116: 4054.882525
B117: DNIT | C117: 4.10.1.10 | D117: 4816012a | E117: BRITA PARA BASE | F117: m³ | G117: 18.52 | H117: 49.20806733 | I117: 911.3334069 | J117: 62.43555986 | K117: 1156.306569
B118: DNIT | C118: 4.10.1.11 | D118: 4816019 | E118: AREIA PARA ASSENTAMENTO | F118: m³ | G118: 18.52 | H118: 68.95932713 | I118: 1277.126738 | J118: 87.49610441 | K118: 1620.427854
B119: DNIT | C119: 4.10.1.12 | D119: 4813200 | E119: PROTEÇÃO DE TALUDE REVESTIMENTO VEGETAL | F119: m² | G119: 11200 | H119: 26.53877582 | I119: 297234.2892 | J119: 33.6725951 | K119: 377133.0651
C120: 4.10.2 | E120: ESTRUTURAS | I120: =SUBTOTAL(9,I121:I125) -> 289734.1201 | K120: =SUBTOTAL(9,K121:K125) -> 367616.795
B121: DNIT | C121: 4.10.2.1 | D121: 1107871a | E121: CONCRETO MAGRO CLASSE A, fck 10MPa | F121: m³ | G121: 16.14 | H121: 236.0883114 | I121: =H121*G121 -> 3810.465346 | J121: 299.550596 | K121: =J121*G121 -> 4834.74662
B122: DNIT | C122: 4.10.2.2 | D122: CPU 002a | E122: CONCRETO CONVENCIONAL CLASSE D, fck 25MPa | F122: m³ | G122: 170.74 | H122: 326.9583215 | I122: 55824.86382 | J122: 414.8471371 | K122: 70831.0002
B123: DNIT | C123: 4.10.2.3 | D123: .0407819 | E123: ARMADURA, (FORNECIMENTO, CORTE. DOBRA E MONTAGEM), AÇO CA-50 - D de 1/4" a 1/2" | F123: t | G123: 18.78 | H123: 7030.978029 | I123: 132041.7674 | J123: 8920.956937 | K123: 167535.5713
B124: DNIT | C124: 4.10.2.4 | D124: 3108012 | E124: FORMAS PLANAS, CHAPA DE COMPENSADO PLASTIFICADA e=12mm | F124: m² | G124: 1190.58 | H124: 80.28443579 | I124: 95585.04356 | J124: 101.8654861 | K124: 121279.0104
B125: DNIT | C125: 4.10.2.5 | D125: 1506056 | E125: BACIA DE DISSIPAÇÃO (PEDRA ARGAMASSADA e=25cm) | F125: m³ | G125: 11.37 | H125: 217.4124872 | I125: 2471.979979 | J125: 275.8545721 | K125: 3136.466485
C126: 4.11 | E126: PONTE LOCAL N | I126: =SUBTOTAL(9,I127:I158) -> 2075707.331 | K126: =SUBTOTAL(9,K127:K158) -> 2633672.818
C127: 4.11.1 | E127: TERRAPLENAGEM | I127: =SUBTOTAL(9,I128:I140) -> 1103285.442 | K127: =SUBTOTAL(9,K128:K140) -> 1399856.731
B128: DNIT | C128: 4.11.1.1 | D128: 5501700 | E128: DESMATAMENTO, DESTOCAMENTO E LIMPEZA DO TERRENO | F128: m² | G128: =480*14 -> 6720 | H128: 0.3736327777 | I128: =H128*G128 -> 2510.812266 | J128: 0.4740680325 | K128: =J128*G128 -> 3185.737178 | L128: OK | M128: ITEM 3.1.1
B129: DNIT | C129: 4.11.1.2 | D129: 5502986 | E129: EXPURGO DE MATERIAL, INCLUSIVE CARGA E TRANSP. (DMT = 1,00 km) | F129: m³ | G129: =G128*0.2 -> 1344 | H129: 1.781567323 | I129: 2394.426482 | J129: 2.260465799 | K129: 3038.066034 | L129: OK | M129: ITEM 3.1.2 E 3.1.4
B130: DNIT | C130: 4.11.1.3 | D130: 5502978 | E130: SOLO COMPACTADO | F130: m³ | G130: 43934.45 | H130: 2.627496749 | I130: 115437.6246 | J130: 3.333787313 | K130: 146468.112 | L130: OK | M130: LINHA 479 | N130: ENCABEÇAMENTO???
B131: DNIT | C131: 4.11.1.4 | D131: 5502113 | E131: ESCAVAÇÃO MECANIZADA EM MATERIAL DE 1ª CATEGORIA, INCLUSIVE CARGA E TRANSP. (DMT=1,00 km) | F131: m³ | G131: 54918.06 | H131: 5.464210629 | I131: 300083.8472 | J131: 6.933030869 | K131: 380748.6052 | L131: OK | M131: LINHA 477 | N131: ENCABEÇAMENTO???
B132: DNIT | C132: 4.11.1.5 | D132: 5502983 | E132: ENROCAMENTO DE PROTEÇÃO INCLUSIVE FORNEC. DE MATERIAL E TRANSP.(DMT = 1,00km) | F132: m³ | G132: 3169.8 | H132: 54.94693574 | I132: 174170.7969 | J132: 69.71707855 | K132: 220989.1956 | L132: OK | M132: LINHA 496
B133: DNIT | C133: 4.11.1.6 | D133: 5502746 | E133: ESCAVAÇÃO MECANIZADA EM MATERIAL DE 3ª CATEGORIA, INCLUSIVE CARGA E TRANSP. (DMT = 1,00 km) | F133: m³ | G133: 2440.75 | H133: 41.32946586 | I133: 100874.8938 | J133: 52.43913203 | K133: 127990.8115 | L133: OK | M133: LINHA 497 | N133: PARA FAZER ENROCAMENTO (30% EMPOL.)
B134: DNIT | C134: 4.11.1.7 | D134: 5915319 | E134: MOMENTO DE TRANSPORTE DE MATERIAL DE 1ª E 2ª CATEGORIA | F134: m³xkm | G134: 38442.64 | H134: 1.052883075 | I134: 40475.60502 | J134: 1.335905835 | K134: 51355.74708 | L134: OK | M134: LINHA 498
B135: DNIT | C135: 4.11.1.8 | D135: 5914346 | E135: MOMENTO DE TRANSPORTE DE MATERIAL DE 3ª CATEGORIA | F135: m³xkm | G135: 3169.8 | H135: 2.05016091 | I135: 6498.600053 | J135: 2.60125933 | K135: 8245.471823 | L135: OK | M135: LINHA 499 | N135: PARA FAZER ENROCAMENTO (30% EMPOL.)
B136: DNIT | C136: 4.11.1.9 | D136: 3205872 | E136: FORNECIMENTO E INSTALAÇÃO DE PROTEÇÃO DE TALUDE COM GABIÃO MANTA e=17cm | F136: m² | G136: =66*24 -> 1584 | H136: 117.3228374 | I136: 185839.3744 | J136: 148.860084 | K136: 235794.373 | L136: OK | M136: LINHA 500
B137: DNIT | C137: 4.11.1.10 | D137: 3205865 | E137: FORNECIMENTO E INSTALAÇÃO DE PROTEÇÃO DE TALUDE COM GABIÃO CAIXA (1,00X1,00) | F137: m³ | G137: =6*24*1 -> 144 | H137: 296.1729147 | I137: 42648.89972 | J137: 375.7863852 | K137: 54113.23947 | L137: OK | M137: LINHA 501
B138: DNIT | C138: 4.11.1.11 | D138: 4413014 | E138: FORNECIMENTO E INSTALAÇÃO DE PROTEÇÃO DE TALUDE COM MANTA GEOTÊXTIL (200g/m²) | F138: m² | G138: =84*24 -> 2016 | H138: 20.70836684 | I138: 41748.06755 | J138: 26.27492904 | K138: 52970.25695 | L138: OK | M138: LINHA 502
B139: DNIT | C139: 4.11.1.12 | D139: 4011313 | E139: SOLO CIMENTO PARA ANCORAGEM, (6% DE CIMENTO NA MISTURA EM PESO, RESISTÊNCIA A COMPRESSÃO SIMPLES 20kgf/cm²) | F139: m³ | G139: =0.7*48 -> 33.6 | H139: 42.62521604 | I139: 1432.207259 | J139: 54.08318944 | K139: 1817.195165 | L139: OK | M139: LINHA 503
B140: DNIT | C140: 4.11.1.13 | D140: 4813200 | E140: PROTEÇÃO DE TALUDE REVESTIMENTO VEGETAL | F140: m² | G140: =420*8 -> 3360 | H140: 26.53877582 | I140: 89170.28677 | J140: 33.6725951 | K140: 113139.9195 | L140: OK | M140: LINHA 504
C141: 4.11.2 | E141: ESTRUTURAS | I141: =SUBTOTAL(9,I142:I155) -> 950231.8191 | K141: =SUBTOTAL(9,K142:K155) -> 1205661.162
B142: DNIT | C142: 4.11.2.1 | D142: 4805757 | E142: ESCAVAÇÃO MECANIZADA PARA SAPATAS | F142: m³ | G142: =28.4+22.8 -> 51.2 | H142: 4.979128635 | I142: =H142*G142 -> 254.9313861 | J142: 6.317555246 | K142: =J142*G142 -> 323.4588286 | L142: OK | M142: LINHA423
B143: DNIT | C143: 4.11.2.2 | D143: 4915671 | E143: REATERRO COM COMPACTAÇÃO (PROCTOR NORMAL = 98%) | F143: m³ | G143: 17.6 | H143: 12.04209077 | I143: 211.9407976 | J143: 15.27909385 | K143: 268.9120518 | L143: OK | M143: LINHA424
B144: DNIT | C144: 4.11.2.3 | D144: 2003864 | E144: ESGOTAMENTO COM BOMBA DE IMERSÃO POTÊNCIA 2,7 kW ATÉ 8m DE PROFUNDIDADE | F144: m³ | G144: 447.07 | H144: 0.1813424259 | I144: 81.07275833 | J144: 0.2300886115 | K144: 102.8657155 | L144: OK | M144: LINHA 430
B145: DNIT | C145: 4.11.2.4 | D145: CPU 014a | E145: LASTRO DE CONCRETO CONSUMO MINIMO DE CIMENTO 200kg/m³ | F145: m³ | G145: 1.12 | H145: 263.3678724 | I145: 294.972017 | J145: 334.1631048 | K145: 374.2626774 | L145: OK | M145: LINHA 425
B146: DNIT | C146: 4.11.2.5 | D146: 2306066 | E146: ESTACA RAIZ Ø 41 cm EM SOLO | F146: m | G146: =58.24+57.04 -> 115.28 | H146: 310.4055125 | I146: 35783.54748 | J146: 393.8448105 | K146: 45402.42976 | L146: OK | M146: LINHA 431
B147: DNIT | C147: 4.11.2.6 | D147: CPU 002a | E147: CONCRETO CONVENCIONAL CLASSE D, fck 25MPa | F147: m³ | G147: 442.03 | H147: 326.9583215 | I147: 144525.3869 | J147: 414.8471371 | K147: 183374.88 | L147: OK | M147: LINHAS 428 E 440
B148: DNIT | C148: 4.11.2.7 | D148: 3108012 | E148: FORMAS PLANAS, CHAPA DE COMPENSADO PLASTIFICADA e=12mm | F148: m² | G148: 1656.75 | H148: 80.28443579 | I148: 133011.239 | J148: 101.8654861 | K148: 168765.644 | L148: OK | M148: LINHAS 429 E 435
B149: DNIT | C149: 4.11.2.8 | D149: .0407819 | E149: ARMADURA, (FORNECIMENTO, CORTE. DOBRA E MONTAGEM), AÇO CA-50 - D de 1/4" a 1/2" | F149: t | G149: 82.19 | H149: 7030.978029 | I149: 577876.0842 | J149: 8920.956937 | K149: 733213.4506 | L149: OK | M149: LINHAS 444 A 450
B150: DNIT | C150: 4.11.2.9 | D150: 407818 | E150: ARMADURA (FORNECIMENTO, CORTE DOBRA E MONTAGEM), AÇO CA-25 - D de 1/4" a 5/16" | F150: t | G150: 0.7 | H150: 6887.486859 | I150: 4821.240801 | J150: 8738.894279 | K150: 6117.225995 | L150: OK | M150: LINHAS 444 A 450
B151: DNIT | C151: 4.11.2.10 | D151: 0307731c | E151: APARELHO DE APOIO - 250mm x 300mm x 70mm | F151: Unid | G151: 24 | H151: 370.3796349 | I151: 8889.111237 | J151: 469.9404207 | K151: 11278.5701 | L151: OK | M151: LINHA 454
B152: DNIT | C152: 4.11.2.11 | D152: CPU 015 | E152: JUNTA TIPO JEENE JJ3550 OU SIMILAR C/ INSTALAÇÃO | F152: m | G152: 30.8 | H152: 380.1715014 | I152: 11709.28224 | J152: 482.3644135 | K152: 14856.82393 | L152: OK | M152: LINHA 452
B153: DNIT | C153: 4.11.2.12 | D153: 5213481 | E153: FORNECIMENTO E IMPLANTAÇÃO PLACA SINALIZAÇÃO SEMI-REFLETIVA | F153: m² | G153: 5.2 | H153: 380.1164245 | I153: 1976.605408 | J153: 482.2945315 | K153: 2507.931564 | L153: OK | M153: LINHAS 511 E 512
B154: DNIT | C154: 4.11.2.13 | D154: CPU 016 | E154: MONTAGEM DAS ESTRUTURAS PRÉ MOLDADAS | F154: m³ | G154: 138.68 | H154: 127.2407151 | I154: 17645.74237 | J154: 161.4439606 | K154: 22389.04845 | L154: OK | M154: LINHA 460
B155: DNIT | C155: 4.11.2.14 | D155: 4011507 | E155: PAVIMENTO RIGIDO EM CONCRETO 25MPa | F155: m³ | G155: =0.5848*65 -> 38.012 | H155: 345.9608174 | I155: 13150.66259 | J155: 438.9576445 | K155: 16685.65798 | L155: OK | M155: LINHA 441
C156: 4.11.3 | E156: DEMOLIÇÃO | I156: =SUBTOTAL(9,I157:I158) -> 22190.07018 | K156: =SUBTOTAL(9,K157:K158) -> 28154.92521
B157: DNIT | C157: 4.11.3.1 | D157: 1600990 | E157: DEMOLIÇÃO DE ESTRUTURAS DE CONCRETO ARMADO | F157: m³ | G157: 82.31 | H157: 266.2602159 | I157: =H157*G157 -> 21915.87837 | J157: 337.8329317 | K157: =J157*G157 -> 27807.02861
B158: DNIT | C158: 4.4.3.2 | D158: 5915319 | E158: MOMENTO DE TRANSPORTE DE MATERIAL DE ENTULHO | F158: m³xkm | G158: 260.42 | H158: 1.052883075 | I158: 274.1918104 | J158: 1.335905835 | K158: 347.8965975
C159: 4.12 | E159: GALERIA LOCAL O | I159: =SUBTOTAL(9,I160:I184) -> 1251508.913 | K159: =SUBTOTAL(9,K160:K184) -> 1587923.767
C160: 4.12.1 | E160: TERRAPLENAGEM | I160: =SUBTOTAL(9,I161:I172) -> 1101515.182 | K160: =SUBTOTAL(9,K161:K172) -> 1397610.611
B161: DNIT | C161: 4.12.1.1 | D161: 5501700 | E161: DESMATAMENTO, DESTOCAMENTO E LIMPEZA DO TERRENO | F161: m² | G161: 37800 | H161: 0.3736327777 | I161: =H161*G161 -> 14123.319 | J161: 0.4740680325 | K161: =J161*G161 -> 17919.77163
B162: DNIT | C162: 4.12.1.2 | D162: 5502986 | E162: EXPURGO DE MATERIAL, INCLUSIVE CARGA E TRANSP. (DMT = 1,00 km) | F162: m³ | G162: 7560 | H162: 1.781567323 | I162: 13468.64896 | J162: 2.260465799 | K162: 17089.12144
B163: DNIT | C163: 4.12.1.3 | D163: 5502113 | E163: ESCAVAÇÃO MECANIZADA EM MATERIAL DE 1ª CATEGORIA, INCLUSIVE CARGA E TRANSP. (DMT=1,00 km) | F163: m³ | G163: 44483.52 | H163: 5.464210629 | I163: 243067.3228 | J163: 6.933030869 | K163: 308405.6173
B164: DNIT | C164: 4.12.1.4 | D164: 5502978 | E164: SOLO COMPACTADO | F164: m³ | G164: 28426.67 | H164: 2.627496749 | I164: 74690.98302 | J164: 3.333787313 | K164: 94768.4718
B165: DNIT | C165: 4.12.1.5 | D165: 5502983 | E165: ENROCAMENTO DE PROTEÇÃO INCLUSIVE FORNEC. DE MATERIAL E TRANSP.(DMT = 1,00km) | F165: m³ | G165: 1659.66 | H165: 54.94693574 | I165: 91193.23137 | J165: 69.71707855 | K165: 115706.6466
B166: DNIT | C166: 4.12.1.6 | D166: 5502746 | E166: ESCAVAÇÃO MECANIZADA EM MATERIAL DE 3ª CATEGORIA, INCLUSIVE CARGA E TRANSP. (DMT = 1,00 km) | F166: m³ | G166: 1277.89 | H166: 41.32946586 | I166: 52814.51113 | J166: 52.43913203 | K166: 67011.44243 | L166: adotei brita comercial na cpu
B167: DNIT | C167: 4.12.1.7 | D167: 5915319 | E167: MOMENTO DE TRANSPORTE DE MATERIAL DE 1ª E 2ª CATEGORIA | F167: m³xkm | G167: 31138.46 | H167: 1.052883075 | I167: 32785.15752 | J167: 1.335905835 | K167: 41598.0504
B168: DNIT | C168: 4.12.1.8 | D168: 5914346 | E168: MOMENTO DE TRANSPORTE DE MATERIAL DE 3ª CATEGORIA | F168: m³xkm | G168: 1659.66 | H168: 2.05016091 | I168: 3402.570056 | J168: 2.60125933 | K168: 4317.206059
B169: DNIT | C169: 4.12.1.9 | D169: CPU 017 | E169: ENSECADEIRA COM SACOS DE AREIA | F169: m³ | G169: 16.22 | H169: 124.6420415 | I169: 2021.693913 | J169: 158.1467443 | K169: 2565.140193
B170: DNIT | C170: 4.12.1.10 | D170: 4816012a | E170: BRITA PARA BASE | F170: m³ | G170: 6.01 | H170: 49.20806733 | I170: 295.7404846 | J170: 62.43555986 | K170: 375.2377147
B171: DNIT | C171: 4.12.1.11 | D171: 4816019 | E171: AREIA PARA ASSENTAMENTO | F171: m³ | G171: 6.01 | H171: 68.95932713 | I171: 414.4455561 | J171: 87.49610441 | K171: 525.8515875
B172: DNIT | C172: 4.12.1.12 | D172: 4813200 | E172: PROTEÇÃO DE TALUDE REVESTIMENTO VEGETAL | F172: m² | G172: 21600 | H172: 26.53877582 | I172: 573237.5578 | J172: 33.6725951 | K172: 727328.0541
C173: 4.12.2 | E173: ESTRUTURAS | I173: =SUBTOTAL(9,I174:I184) -> 149993.7316 | K173: =SUBTOTAL(9,K174:K184) -> 190313.1562
B174: DNIT | C174: 4.12.2.1 | D174: CPU 014a | E174: CONCRETO MAGRO CLASSE A, fck 10MPa | F174: m³ | G174: 4.36 | H174: 263.3678724 | I174: =H174*G174 -> 1148.283923 | J174: 334.1631048 | K174: =J174*G174 -> 1456.951137
B175: DNIT | C175: 4.12.2.2 | D175: CPU 002a | E175: CONCRETO CONVENCIONAL CLASSE D, fck 25MPa | F175: m³ | G175: 83.03 | H175: 326.9583215 | I175: 27147.34944 | J175: 414.8471371 | K175: 34444.7578
B176: DNIT | C176: 4.12.2.3 | D176: .0407819 | E176: ARMADURA, (FORNECIMENTO, CORTE. DOBRA E MONTAGEM), AÇO CA-50 - D de 1/4" a 1/2" | F176: t | G176: 5.84 | H176: 7030.978029 | I176: 41060.91169 | J176: 8920.956937 | K176: 52098.38851
B177: DNIT | C177: 4.12.2.4 | D177: 3108012 | E177: FORMAS PLANAS, CHAPA DE COMPENSADO PLASTIFICADA e=12mm | F177: m² | G177: 419.8 | H177: 80.28443579 | I177: 33703.40615 | J177: 101.8654861 | K177: 42763.13105
B178: DNIT | C178: 4.12.2.5 | D178: 4805757 | E178: ESCAVAÇÃO DE VALA, INCLUSIVE CARGA E TRANSP. (DMT = 1,00 km) | F178: m³ | G178: 334.8 | H178: 4.979128635 | I178: 1667.012267 | J178: 6.317555246 | K178: 2115.117496
B179: DNIT | C179: 4.12.2.6 | D179: CPU 014 | E179: LASTRO DE CONCRETO CONSUMO MINIMO DE CIMENTO 200kg/m³ | F179: m³ | G179: 5.77 | H179: 200.7460395 | I179: 1158.304648 | J179: 254.70806 | K179: 1469.665506
B180: DNIT | C180: 4.12.2.7 | D180: 4915671 | E180: REATERRO E COMPACTAÇÃO DE VALA | F180: m³ | G180: 24.02 | H180: 12.04209077 | I180: 289.2510203 | J180: 15.27909385 | K180: 367.0038344
B181: DNIT | C181: 4.12.2.8 | D181: .0804028 | E181: CORPO BSTC ø 80 | F181: m | G181: 11 | H181: 391.5164318 | I181: 4306.68075 | J181: 496.758945 | K181: 5464.348395
B182: DNIT | C182: 4.12.2.9 | D182: 2003733 | E182: CAIXA BSTC ø 80 (1,00 x 1,00 x 1,40) | F182: Unid | G182: 1 | H182: 2094.261465 | I182: 2094.261465 | J182: 2657.214439 | K182: 2657.214439
B183: DNIT | C183: 4.12.2.10 | D183: .0804036 | E183: CORPO BSTC ø 100 | F183: m | G183: 63 | H183: 550.3202601 | I183: 34670.17639 | J183: 698.2504172 | K183: 43989.77628
B184: DNIT | C184: 4.12.2.11 | D184: 1506056 | E184: BACIA DE DISSIPAÇÃO (PEDRA ARGAMASSADA e=25cm) | F184: m³ | G184: 12.64 | H184: 217.4124872 | I184: 2748.093838 | J184: 275.8545721 | K184: 3486.801791
C185: 4.13 | E185: PONTE LOCAL R | I185: =SUBTOTAL(9,I186:I207) -> 912873.254 | K185: =SUBTOTAL(9,K186:K207) -> 1158260.338
C186: 4.13.1 | E186: TERRAPLENAGEM | I186: =SUBTOTAL(9,I187:I196) -> 415622.4768 | K186: =SUBTOTAL(9,K187:K196) -> 527344.8732
B187: DNIT | C187: 4.13.1.1 | D187: 5501700 | E187: DESMATAMENTO, DESTOCAMENTO E LIMPEZA DO TERRENO | F187: m² | G187: =340*14 -> 4760 | H187: 0.3736327777 | I187: =H187*G187 -> 1778.492022 | J187: 0.4740680325 | K187: =J187*G187 -> 2256.563835 | L187: OK | M187: ITEM 3.1.1 | N187: DESMATAMENTO, DESTOCAMENTO E LIMPEZA DO TERRENO
B188: DNIT | C188: 4.13.1.2 | D188: 5502986 | E188: EXPURGO DE MATERIAL, INCLUSIVE CARGA E TRANSP. (DMT = 1,00 km) | F188: m³ | G188: =G187*0.2 -> 952 | H188: 1.781567323 | I188: 1696.052092 | J188: 2.260465799 | K188: 2151.963441 | L188: OK | M188: ITEM 3.1.2 E 3.1.4 | N188: EXPURGO DE MATERIAL, INCLUSIVE CARGA E TRANSP. (DMT = 1,00 km)
B189: DNIT | C189: 4.13.1.3 | D189: 5502978 | E189: SOLO COMPACTADO | F189: m³ | G189: 16715.49 | H189: 2.627496749 | I189: 43919.89564 | J189: 3.333787313 | K189: 55725.8885 | L189: OK | M189: LINHA 613 | N189: SOLO COMPACTADO
B190: DNIT | C190: 4.13.1.4 | D190: 5502113 | E190: ESCAVAÇÃO MECANIZADA EM MATERIAL DE 1ª CATEGORIA, INCLUSIVE CARGA E TRANSP. (DMT=1,00 km) | F190: m³ | G190: 20894.36 | H190: 5.464210629 | I190: 114171.184 | J190: 6.933030869 | K190: 144861.2429 | L190: OK | M190: LINHA 612 | N190: ESCAVAÇÃO MECANIZADA EM MATERIAL DE 1ª CATEGORIA, INCLUSIVE CARGA E TRANSP. (DMT=1,00 km)
B191: DNIT | C191: 4.13.1.5 | D191: 3205872 | E191: FORNECIMENTO E INSTALAÇÃO DE PROTEÇÃO DE TALUDE COM GABIÃO MANTA e=17cm | F191: m² | G191: =42*24 -> 1008 | H191: 117.3228374 | I191: 118261.4201 | J191: 148.860084 | K191: 150050.9646 | L191: OK | M191: LINHA 635 | N191: FORNECIMENTO E INSTALAÇÃO DE PROTEÇÃO DE TALUDE COM GABIÃO MANTA e=17cm
B192: DNIT | C192: 4.13.1.6 | D192: 3205865 | E192: FORNECIMENTO E INSTALAÇÃO DE PROTEÇÃO DE TALUDE COM GABIÃO CAIXA (1,00X1,00) | F192: m³ | G192: =24*4*1 -> 96 | H192: 296.1729147 | I192: 28432.59981 | J192: 375.7863852 | K192: 36075.49298 | L192: OK | M192: LINHA 636 | N192: FORNECIMENTO E INSTALAÇÃO DE PROTEÇÃO DE TALUDE COM GABIÃO CAIXA (1,00X1,00)
B193: DNIT | C193: 4.13.1.7 | D193: 4413014 | E193: FORNECIMENTO E INSTALAÇÃO DE PROTEÇÃO DE TALUDE COM MANTA GEOTÊXTIL (200g/m²) | F193: m² | G193: =54*24 -> 1296 | H193: 20.70836684 | I193: 26838.04342 | J193: 26.27492904 | K193: 34052.30804 | L193: OK | M193: LINHA 637 | N193: FORNECIMENTO E INSTALAÇÃO DE PROTEÇÃO DE TALUDE COM MANTA GEOTÊXTIL (200g/m²)
B194: DNIT | C194: 4.13.1.8 | D194: 4813200 | E194: PROTEÇÃO DE TALUDE REVESTIMENTO VEGETAL | F194: m² | G194: =300*8 -> 2400 | H194: 26.53877582 | I194: 63693.06198 | J194: 33.6725951 | K194: 80814.22823 | L194: OK | M194: LINHA 639 | N194: PROTEÇÃO DE TALUDE REVESTIMENTO VEGETAL
B195: DNIT | C195: 4.13.1.9 | D195: 5915319 | E195: MOMENTO DE TRANSPORTE DE MATERIAL DE 1ª E 2ª CATEGORIA | F195: m³xkm | G195: 14626.05 | H195: 1.052883075 | I195: 15399.5205 | J195: 1.335905835 | K195: 19539.02553 | L195: OK | M195: LINHA 626 | N195: MOMENTO DE TRANSPORTE DE MATERIAL DE 1ª E 2ª CATEGORIA
B196: DNIT | C196: 4.13.1.10 | D196: 4011313 | E196: SOLO CIMENTO PARA ANCORAGEM, (6% DE CIMENTO NA MISTURA EM PESO, RESISTÊNCIA A COMPRESSÃO SIMPLES 20kgf/cm²) | F196: m³ | G196: =0.7*48 -> 33.6 | H196: 42.62521604 | I196: 1432.207259 | J196: 54.08318944 | K196: 1817.195165 | L196: OK | M196: LINHA 638 | N196: SOLO CIMENTO PARA ANCORAGEM, (6% DE CIMENTO NA MISTURA EM PESO, RESISTÊNCIA A COMPRESSÃO SIMPLES 20kgf/cm²)
C197: 4.13.2 | E197: ESTRUTURAS | I197: =SUBTOTAL(9,I198:I207) -> 497250.7772 | K197: =SUBTOTAL(9,K198:K207) -> 630915.4647 | N197: ESTRUTURAS
B198: DNIT | C198: 4.13.2.1 | D198: CPU 002a | E198: CONCRETO CONVENCIONAL CLASSE D, fck 25MPa | F198: m³ | G198: 229.16 | H198: 326.9583215 | I198: =H198*G198 -> 74925.76896 | J198: 414.8471371 | K198: =J198*G198 -> 95066.36995 | L198: OK | M198: LINHA 563 E 574 | N198: CONCRETO CONVENCIONAL CLASSE D, fck 25MPa
B199: DNIT | C199: 4.13.2.2 | D199: 3108012 | E199: FORMAS PLANAS, CHAPA DE COMPENSADO PLASTIFICADA e=12mm | F199: m² | G199: 1068.94 | H199: 80.28443579 | I199: 85819.24479 | J199: 101.8654861 | K199: 108888.0927 | L199: OK | M199: LINHA 564 E 570 | N199: FORMAS PLANAS, CHAPA DE COMPENSADO PLASTIFICADA e=12mm
B200: DNIT | C200: 4.13.2.3 | D200: .0407819 | E200: ARMADURA, (FORNECIMENTO, CORTE. DOBRA E MONTAGEM), AÇO CA-50 - D de 1/4" a 1/2" | F200: t | G200: 42.96 | H200: 7030.978029 | I200: 302050.8161 | J200: 8920.956937 | K200: 383244.31 | N200: ARMADURA, (FORNECIMENTO, CORTE. DOBRA E MONTAGEM), AÇO CA-50 - D de 1/4" a 1/2"
B201: DNIT | C201: 4.13.2.4 | D201: 407818 | E201: ARMADURA (FORNECIMENTO, CORTE DOBRA E MONTAGEM), AÇO CA-25 - D de 1/4" a 5/16" | F201: t | G201: 0.52 | H201: 6887.486859 | I201: 3581.493167 | J201: 8738.894279 | K201: 4544.225025 | N201: ARMADURA (FORNECIMENTO, CORTE DOBRA E MONTAGEM), AÇO CA-25 - D de 1/4" a 5/16"
B202: DNIT | C202: 4.13.2.5 | D202: 0307731a | E202: APARELHO DE APOIO - 200mm x 250mm x 70mm | F202: Unid | G202: 16 | H202: 262.6463099 | I202: 4202.340958 | J202: 333.247581 | K202: 5331.961296 | L202: OK | M202: LINHA 589 | N202: APARELHO DE APOIO - 250mm x 300mm x 70mm
B203: DNIT | C203: 4.13.2.6 | D203: 0307731b | E203: APARELHO DE APOIO - 250mm x 300mm x 70mm | F203: Unid | G203: 8 | H203: 316.5129724 | I203: 2532.103779 | J203: 401.5940009 | K203: 3212.752007 | L203: OK | M203: LINHA 589 | N203: APARELHO DE APOIO - 250mm x 300mm x 70mm
B204: DNIT | C204: 4.13.2.7 | D204: CPU 015 | E204: JUNTA TIPO JEENE JJ3550 OU SIMILAR C/ INSTALAÇÃO | F204: m | G204: 22.8 | H204: 380.1715014 | I204: 8667.910233 | J204: 482.3644135 | K204: 10997.90863 | L204: OK | M204: LINHA 587 | N204: JUNTA TIPO JEENE JJ3550 OU SIMILAR C/ INSTALAÇÃO
B205: DNIT | C205: 4.13.2.8 | D205: 5213481 | E205: FORNECIMENTO E IMPLANTAÇÃO PLACA SINALIZAÇÃO SEMI-REFLETIVA | F205: m² | G205: 5.2 | H205: 380.1164245 | I205: 1976.605408 | J205: 482.2945315 | K205: 2507.931564 | N205: FORNECIMENTO E IMPLANTAÇÃO PLACA SINALIZAÇÃO SEMI-REFLETIVA
B206: DNIT | C206: 4.13.2.9 | D206: CPU 016 | E206: MONTAGEM DAS ESTRUTURAS PRÉ MOLDADAS | F206: m³ | G206: 66.07 | H206: 127.2407151 | I206: 8406.794045 | J206: 161.4439606 | K206: 10666.60248 | L206: OK | M206: LINHA 595 | N206: MONTAGEM DAS ESTRUTURAS PRÉ MOLDADAS
B207: DNIT | C207: 4.13.2.10 | D207: 4011507 | E207: PAVIMENTO RIGIDO EM CONCRETO 25MPa | F207: m³ | G207: =0.3268*45 -> 14.706 | H207: 345.9608174 | I207: 5087.699781 | J207: 438.9576445 | K207: 6455.31112 | N207: PAVIMENTO RIGIDO EM CONCRETO 25MPa
I209: =SUBTOTAL(9,I12:I207) -> 11857870.11 | K209: =SUBTOTAL(9,K12:K207) -> 15045353.32 | M209: =SUBTOTAL(9,K24:K207) -> 8846300.671

Sheet PL-ORÇ-DEF.A
A1: PLANILHA DE QUANTIDADES E CUSTOS – PONTES E GALERIAS - PROJETO JEQUITAÍ - OAE E PAVIMENTAÇÃO
A2: CONTRATANTE: | C2: CODEVASF - COMPANHIA DE DESENVOLVIMENTO DOS VALES DO SÃO FRANCISCO E PARNAÍBA | I2: REV.: | J2: A7
A3: OBRA: | C3: OAE E PAVIMENTAÇÃO - ÁREA A | I3: DATA: | J3: NOV2019
A4: LOCAL: | C4: MG208 - ENTRE JEQUITAÍ/MG E FRANCISCO DUMONT/MG | H4: VALOR TOTAL C/BDI (R$): | J4: =SUM(J186) -> 5143371.46
A5: DATA BASE TABELAS: | C5: SINAPI-SET2019 / DEER-MG-AGO2019 / DNIT-MG ABR/2019 / SIURB JAN2019 / DER-SP - MAR2019 | H5: BDI (%): | J5: =BDI!$C$23 -> 0.2467
A6: PRAZO EXECUÇÃO: | C6: 6 (SEIS) MESES
A8: Item | B8: Código | C8: Fonte | D8: Especificação | E8: Unidade | F8: Quantidade | G8: Preço Unitário (R$) | I8: Preço Total
G9: Sem BDI | H9: Com BDI | I9: Sem BDI | J9: Com BDI
A11: 1 - SERVIÇOS PRELIMINARES
A12: 1.1 | B12: SERVIÇOS PRELIMINARES | I12: =SUM(I13:I19) -> 45282.474 | J12: =SUM(J13:J19) -> 56436.2
A13: 1.1.1 | B13: RO-41291 | C13: DEER/MG | D13: REMOÇÃO DE CERCAS | E13: m | F13: 486 | G13: 6.45 | H13: =G13*(1+$J$5) -> 8.041215 | I13: =SUM(F13*G13,2) -> 3136.7 | J13: =ROUND(F13*H13,2) -> 3908.03
A14: 1.1.2 | B14: 73822/002 | C14: SINAPI | D14: LIMPEZA MECANIZADA DE TERRENO COM REMOCAO DE CAMADA VEGETAL, UTILIZANDO MOTONIVELADORA (JAZIDA) | E14: m² | F14: 1000 | G14: 0.48 | H14: =G14*(1+$J$5) -> 0.598416 | I14: =SUM(F14*G14,2) -> 482 | J14: =ROUND(F14*H14,2) -> 598.42
A15: 1.1.3 | B15: 73822/002 | C15: SINAPI | D15: LIMPEZA MECANIZADA DE TERRENO COM REMOCAO DE CAMADA VEGETAL, UTILIZANDO MOTONIVELADORA (ESTRADA NOVA) | E15: m² | F15: 7308 | G15: 0.48 | H15: 0.598416 | I15: 3509.84 | J15: =ROUND(F15*H15,2) -> 4373.22
A16: 1.1.4 | B16: 72898 | C16: SINAPI | D16: CARGA E DESCARGA MECANIZADAS DE ENTULHO EM CAMINHAO BASCULANTE 6 M3 | E16: m³ | F16: =SUM(F14+F15)*0.2 -> 1661.6 | G16: 3.86 | H16: =G16*(1+$J$5) -> 4.812262 | I16: =SUM(F16*G16,2) -> 6415.776 | J16: =ROUND(F16*H16,2) -> 7996.05
A17: 1.1.5 | B17: 97916 | C17: SINAPI | D17: TRANSPORTE COM CAMINHÃO BASCULANTE DE 6 M3, EM VIA URBANA EM LEITO NATURAL TXKM (UNIDADE: TXKM). AF_01/2018 | E17: txkm | F17: 21281 | G17: 1.47 | H17: 1.832649 | I17: 31285.07 | J17: 39000.6
A18: 1.1.6 | B18: RO-42263 | C18: DEER/MG | D18: ESPALHAMENTO DE MATERIAL EM BOTA-FORA | E18: m³ | F18: 1661.6 | G18: 0.18 | H18: =G18*(1+$J$5) -> 0.224406 | I18: =SUM(F18*G18,2) -> 301.088 | J18: =ROUND(F18*H18,2) -> 372.87
A19: 1.1.7 | B19: 99064 | C19: SINAPI | D19: LOCAÇÃO DE PAVIMENTAÇÃO. AF_10/2018 | E19: m | F19: 300 | G19: 0.5 | H19: 0.62335 | I19: 152 | J19: =ROUND(F19*H19,2) -> 187.01
H20: TOTAL SERVIÇOS PRELIMINARES | I20: =SUM(I12) -> 45282.474 | J20: =SUM(J12) -> 56436.2
A22: 2 - CANTEIRO DE OBRAS
A23: 2.1 | B23: CANTEIRO DE OBRAS | I23: =SUM(I24:I26) -> 2493632.68 | J23: =SUM(J24:J26) -> 3108804.38
A24: 2.1.1 | B24: C1 | C24: CPU | D24: ADMINISTRAÇÃO LOCAL E MANUTENÇÃO DO CANTEIRO DE OBRAS EM CONTAINER - PRAZO DE OBRA IGUAL A 08 MESES | E24: gl | F24: 1 | G24: =CPU!$I$61 -> 2476647.04 | H24: =G24*(1+$J$5) -> 3087635.865 | I24: =SUM(F24*G24,2) -> 2476649.04 | J24: =ROUND(F24*H24,2) -> 3087635.86
A25: 2.1.2 | B25: C2 | C25: CPU | D25: MOBILIZAÇÃO | E25: unid | F25: 1 | G25: =CPU!$I$91 -> 13361.4 | H25: 16657.65738 | I25: 13363.4 | J25: =ROUND(F25*H25,2) -> 16657.66
A26: 2.1.3 | B26: 74209/001 | C26: SINAPI | D26: PLACA DE OBRA EM CHAPA DE ACO GALVANIZADO | E26: m² | F26: 12 | G26: 301.52 | H26: 375.904984 | I26: 3620.24 | J26: =ROUND(F26*H26,2) -> 4510.86
H27: TOTAL CANTEIRO DE OBRAS | I27: =SUM(I23) -> 2493632.68 | J27: =SUM(J23) -> 3108804.38
A29: 3 - EQUIPAMENTOS
A30: 3.1 | B30: TRANSPORTES DE EQUIPAMENTOS | I30: =SUM(I31) -> 34768.688 | J30: =SUM(J31) -> 43343.63
A31: 3.3.1 | B31: A9316 | C31: DNIT/MG | D31: CAMINHÃO PLATAFORMA 8 X 2, PBT 29.000 KG E DISTÂNCIA ENTRE EIXOS 4,8 M - 188 KW - MOTORISTA DE CAMINHÃO | E31: H | F31: =TRANSPORTES!$E$41 -> 240 | G31: 144.8612 | H31: =G31*(1+$J$5) -> 180.598458 | I31: =SUM(F31*G31,2) -> 34768.688 | J31: =ROUND(F31*H31,2) -> 43343.63
H32: TOTAL EQUIPAMENTOS | I32: =SUM(I30) -> 34768.688 | J32: =SUM(J30) -> 43343.63
A34: 4 - DESVIO DE TRÁFEGO
A35: 4.1 | B35: DESVIO DE TRÁFEGO | I35: =SUM(I36:I42) -> 36539.89241 | J35: =SUM(J36:J42) -> 45536.83
A36: 4.1.1 | B36: 73822/002 | C36: SINAPI | D36: LIMPEZA MECANIZADA DE TERRENO COM REMOCAO DE CAMADA VEGETAL, UTILIZANDO MOTONIVELADORA | E36: m² | F36: 4455 | G36: 0.48 | H36: =G36*(1+$J$5) -> 0.598416 | I36: =SUM(F36*G36,2) -> 2140.4 | J36: =ROUND(F36*H36,2) -> 2665.94
A37: 4.1.2 | B37: 72898 | C37: SINAPI | D37: CARGA E DESCARGA MECANIZADAS DE ENTULHO EM CAMINHAO BASCULANTE 6 M3 | E37: m³ | F37: =SUM(F36*0.2) -> 891 | G37: 3.86 | H37: 4.812262 | I37: 3441.26 | J37: =ROUND(F37*H37,2) -> 4287.73
A38: 4.1.3 | B38: 97916 | C38: SINAPI | D38: TRANSPORTE COM CAMINHÃO BASCULANTE DE 6 M3, EM VIA URBANA EM LEITO NATURAL TXKM (UNIDADE: TXKM). AF_01/2018 | E38: txkm | F38: 11547.36 | G38: 1.47 | H38: 1.832649 | I38: 16976.6192 | J38: 21162.26
A39: 4.1.4 | B39: 83344 | C39: SINAPI | D39: ESPALHAMENTO DE MATERIAL EM BOTA FORA, COM UTILIZACAO DE TRATOR DE ESTEIRAS DE 165 HP | E39: m³ | F39: =F37 -> 891 | G39: 0.85 | H39: =G39*(1+$J$5) -> 1.059695 | I39: =SUM(F39*G39,2) -> 759.35 | J39: =ROUND(F39*H39,2) -> 944.19
A40: 4.1.5 | B40: RO-43112 | C40: DEER/MG | D40: SUB-BASE, SEMMISTURA, COMPACTADA NA ENERGIA DO PROCTOR INTERMEDIÁRIO (EXECUÇÃO, INCLUINDO ESCAVAÇÃO, CARGA, DESCARGA, ESPALHAMENTO, UMIDECIMENTO E COMPACTAÇÃO DO MATERIAL; EXCLUI AQUISIÇÃO E TRANSPORTE DO MATERIAL) | E40: m³ | F40: 252.32 | G40: 14.25 | H40: 17.765475 | I40: 3597.56 | J40: =ROUND(F40*H40,2) -> 4482.58
A41: 4.1.6 | B41: RO-43113 | C41: DEER/MG | D41: BASE DE SOLO SEM MISTURA, COMPACTADA NA ENERGIA DO PROCTOR INTERMEDIÁRIO (EXECUÇÃO, INCLUINDO ESCAVAÇÃO, CARGA, DESCARGA, ESPALHAMENTO, UMIDECIMENTO E COMPACTAÇÃO DO MATERIAL; EXCLUI AQUISIÇÃO E TRANSPORTE DO MATERIAL) | E41: m³ | F41: 252.32 | G41: 14.25 | H41: 17.765475 | I41: 3597.56 | J41: =ROUND(F41*H41,2) -> 4482.58
A42: 4.1.7 | B42: 22.03.04.99 | C42: DER/SP | D42: TRANSPORTE DE 1/2 CATEGORIA ATÉ 10KM (BASE E SUB BASE) | E42: m³xkm | F42: =SUM(F40+F41)*8.1 -> 4087.584 | G42: =SUM(2.09/1.4179) -> 1.474010861 | H42: 1.837649341 | I42: 6027.143212 | J42: =ROUND(F42*H42,2) -> 7511.55
H43: TOTAL DESVIO DE TRÁFEGO | I43: =SUM(I35) -> 36539.89241 | J43: =SUM(J35) -> 45536.83
A45: 5 - OBRAS DE ARTE CORRENTE E DRENAGEM
A46: 5.1 | B46: VALETA DE PROTEÇÃO DE ATERRO | I46: =SUM(I47) -> 1935.92 | J46: =SUM(J47) -> 2411.02
A47: 5.1.1 | B47: RO-40514 | C47: DEER/MG | D47: VALETA DE PROTEÇÃO DE ATERRO TIPO DR.VPA (EXECUÇÃO,INCLUINDO ESCAVAÇÃO) | E47: m | F47: 79 | G47: 24.48 | H47: =G47*(1+$J$5) -> 30.519216 | I47: =SUM(F47*G47,2) -> 1935.92 | J47: =ROUND(F47*H47,2) -> 2411.02
A48: 5.2 | B48: DISSIPADOR DE ENERGIA | I48: =SUM(I49) -> 756.68 | J48: =SUM(J49) -> 940.86
A49: 5.2.1 | B49: 2003441 | C49: DNIT/MG | D49: DISSIPADOR DE ENERGIA DE 501 - AREIA E PEDRA DE MÃO COMERCIAIS | E49: und | F49: 6 | G49: 125.78 | H49: =G49*(1+$J$5) -> 156.809926 | I49: =SUM(F49*G49,2) -> 756.68 | J49: =ROUND(F49*H49,2) -> 940.86
A50: 5.3 | B50: CAIXA COLETORA EM ALVENARIA | I50: =SUM(I51:I55) -> 1348.25768 | J50: =SUM(J51:J55) -> 1668.41
A51: 5.3.1 | B51: RO-40160 | C51: DEER/MG | D51: ESCAVAÇÃO, CARGA, DESCARGA, ESPALHAMENTO E TRANSPORTE DE MATERIAL DE 1ª CATEGORIA, COMCAMINHÃO. DISTÂNCIA MÉDIA DE TRANSPORTE DE 3.001 A 4.000 M | E51: m³ | F51: 8.98 | G51: 7.46 | H51: =G51*(1+$J$5) -> 9.300382 | I51: =SUM(F51*G51,2) -> 68.9908 | J51: =ROUND(F51*H51,2) -> 83.52
A52: 5.3.2 | B52: ED-48193 | C52: DEER/MG | D52: ALVENARIA DE VEDAÇÃO COM BLOCO DE CONCRETO, ESP.19 CM, PARA REVESTIMENTO, INCLUSIVE ARGAMASSA PARA ASSENTAMENTO | E52: m² | F52: 3.83 | G52: 49.27 | H52: 61.424909 | I52: 190.7041 | J52: =ROUND(F52*H52,2) -> 235.26
A53: 5.3.3 | B53: ED-50732 | C53: DEER/MG | D53: EMBOÇO COM MARGAMASSA, TRAÇO 1:6 (CIMENTO E AREIA), ESP. 20MM, APLICAÇÃO MANUAL, PREPARO MECÂNICO | E53: m² | F53: 3.03 | G53: 23 | H53: 28.6741 | I53: 71.69 | J53: =ROUND(F53*H53,2) -> 86.88
A54: 5.3.4 | B54: RO-41624 | C54: DEER/MG | D54: CONCRETO DE CIMENTO PORTLAND, FCK>=15,0MPA (EXECUÇÃO, INCLUINDO OFORNECIMENTO E TRANSPORTE DOS AGREGADOS) | E54: m³ | F54: 0.402 | G54: 358.39 | H54: 446.804813 | I54: 146.07278 | J54: =ROUND(F54*H54,2) -> 179.62
A55: 5.3.5 | B55: ED-48676 | C55: DEER/MG | D55: FORNECIMENTO, ASSENTAMENTO E REJUNTAMENTO DE TUBO DE CONCRETO SIMPLES PS1 D = 400 MM | E55: m | F55: 10 | G55: 86.88 | H55: 108.313296 | I55: 870.8 | J55: =ROUND(F55*H55,2) -> 1083.13
A56: 5.4 | B56: SARJETA DE CONCRETO ATERRO | I56: =SUM(I57) -> 8799.23 | J56: =SUM(J57) -> 10967.51
A57: 5.4.1 | B57: RO-40613 | C57: DEER/MG | D57: SARJETA DE CONCRETO EM ATERRO,TIPO DR.SCA- X/Y. LARGURA=60CM TIPO 30/10 (EXECUÇÃO, INCLUINDO ESCAVAÇÃO, FORNECIMENTO, TRANSPORTE E PLANTIO DA GRAMA) | E57: m | F57: 309 | G57: 28.47 | H57: =G57*(1+$J$5) -> 35.493549 | I57: =SUM(F57*G57,2) -> 8799.23 | J57: =ROUND(F57*H57,2) -> 10967.51
A58: 5.5 | B58: SARJETA DE CONCRETO CORTE | I58: =SUM(I59) -> 7404.2 | J58: =SUM(J59) -> 9228.32
A59: 5.5.1 | B59: RO-40661 | C59: DEER/MG | D59: SARJETA DE CONCRETO EM CORTE TIPO DR.SCC-X/Y. LARGURA=90CM TIPO80/10 (EXECUÇÃO, INCLUINDOESCAVAÇÃO, FORNECIMENTO E TRANSPORTE DE TODOS OS MATERIAIS) | E59: m | F59: 169 | G59: 43.8 | H59: =G59*(1+$J$5) -> 54.60546 | I59: =SUM(F59*G59,2) -> 7404.2 | J59: =ROUND(F59*H59,2) -> 9228.32
A60: 5.6 | B60: CANALETA | I60: =SUM(I61) -> 2838.68 | J60: =SUM(J61) -> 3536.49
A61: 5.6.1 | B61: ED-14723 | C61: DEER/MG | D61: CANALETA PARA DRENAGEM, EM CONCRETO COM FCK 15MPA, MOLDADA IN LOCO, SEÇÃO 60X60CM, FORMA EM CONTRA BARRANCO, EXCLUSIVE TAMPA, INCLUSIVE ESCAVAÇÃO, REATERRO COM TRANSPORTE E RETIRADA DO MATERIAL ESCAVADO (EM CAÇAMBA) | E61: m | F61: 12 | G61: 236.39 | H61: =G61*(1+$J$5) -> 294.707413 | I61: =SUM(F61*G61,2) -> 2838.68 | J61: =ROUND(F61*H61,2) -> 3536.49
A62: 5.7 | B62: DESCIDA D'ÁGUA | I62: =SUM(I63) -> 8432.01 | J62: =SUM(J63) -> 10509.69
A63: 5.7.1 | B63: ED-48598 | C63: DEER/MG | D63: DESCIDA D´ÁGUA TIPO CALHA DN 500, EXCLUSIVE BOTA FORA | E63: m | F63: 29 | G63: 290.69 | H63: =G63*(1+$J$5) -> 362.403223 | I63: =SUM(F63*G63,2) -> 8432.01 | J63: =ROUND(F63*H63,2) -> 10509.69
A64: 5.8 | B64: GABIÃO | I64: =SUM(I65:I66) -> 269309.1736 | J64: =SUM(J65:J66) -> 335742.76
A65: 5.8.1 | B65: 92757 | C65: SINAPI | D65: PROTEÇÃO SUPERFICIAL DE CANAL EM GABIÃO TIPO COLCHÃO, ALTURA DE 30 CENTÍMETROS, ENCHIMENTO COM PEDRA DE MÃO TIPO RACHÃO - FORNECIMENTO E EXECUÇÃO. AF_12/2015 | E65: m² | F65: 1281.35 | G65: 182.36 | H65: =G65*(1+$J$5) -> 227.348212 | I65: =SUM(F65*G65,2) -> 233668.986 | J65: =ROUND(F65*H65,2) -> 291312.63
A66: 5.8.2 | B66: RO-41352 OBR-VIA-370 | C66: DEER/MG | D66: TRANSPORTE DE AGREGADOS PARA GABIÃO. DISTÂNCIA MÉDIA DE TRANSPORTE > 50,10 KM | E66: m³*km | F66: =F65*0.3*127 -> 48819.435 | G66: 0.73 | H66: 0.910091 | I66: 35640.18755 | J66: =ROUND(F66*H66,2) -> 44430.13
H67: TOTAL OBRAS DE ARTE CORRENTE E DRENAGEM | I67: =SUM(I46+I48+I50+I56+I58+I60+I62+I64) -> 300824.1512 | J67: =SUM(J46+J48+J50+J56+J58+J60+J62+J64) -> 375005.06
A69: 6 - CONTROLE TECNOLÓGICO
A70: 6.1 | B70: ENSAIO DE SOLO | I70: =SUM(I71:I73) -> 1972.57 | J70: =SUM(J71:J73) -> 2451.72
A71: 6.1.1 | B71: ED-49564 | C71: DEER/MG | D71: ENSAIO DE TEOR DE UMIDADE - PROCESSO SPEEDY - SOLOS E AGREGADOS MIUDOS | E71: unid. | F71: 19 | G71: 30.02 | H71: =G71*(1+$J$5) -> 37.425934 | I71: =SUM(F71*G71,2) -> 572.38 | J71: =ROUND(F71*H71,2) -> 711.09
A72: 6.1.2 | B72: ED-49555 | C72: DEER/MG | D72: ENSAIO DE COMPACTAÇÃO - AMOSTRAS NÃO TRABALHADAS - ENERGIA NORMAL - SOLOS | E72: unid. | F72: 4 | G72: 95.08 | H72: 118.536236 | I72: 382.32 | J72: =ROUND(F72*H72,2) -> 474.14
A73: 6.1.3 | B73: ED-49559 | C73: DEER/MG | D73: ENSAIO DE MASSA ESPECIFICA - IN SITU - METODO FRASCO DE AREIA - SOLOS | E73: unid. | F73: 29 | G73: 35.03 | H73: 43.671901 | I73: 1017.87 | J73: =ROUND(F73*H73,2) -> 1266.49
A74: 6.2 | B74: ENSAIO DE PAVIMENTO | I74: =SUM(I75:I78) -> 16436.96 | J74: =SUM(J75:J78) -> 20481.99
A75: 6.2.1 | B75: 02-06-15 | C75: SIURB | D75: ENSAIOS DE LABORATÓRIO - VISCOSIDADE | E75: unid. | F75: 27 | G75: 157.48 | H75: =G75*(1+$J$5) -> 196.330316 | I75: =SUM(F75*G75,2) -> 4253.96 | J75: =ROUND(F75*H75,2) -> 5300.92
A76: 6.2.2 | B76: 02-06-17 | C76: SIURB | D76: ENSAIOS DE LABORATÓRIO - PONTO DE FULGOR | E76: unid. | F76: 27 | G76: 135.99 | H76: 169.538733 | I76: 3673.73 | J76: =ROUND(F76*H76,2) -> 4577.55
A77: 6.2.3 | B77: 02-06-18 | C77: SIURB | D77: ENSAIOS DE LABORATÓRIO - PENETRAÇÃO | E77: unid. | F77: 27 | G77: 196.42 | H77: 244.876814 | I77: 5305.34 | J77: =ROUND(F77*H77,2) -> 6611.67
A78: 6.2.4 | B78: 02-06-19 | C78: SIURB | D78: ENSAIOS DE LABORATÓRIO - PONTO DE AMOLECIMENTO | E78: unid. | F78: 27 | G78: 118.59 | H78: 147.846153 | I78: 3203.93 | J78: =ROUND(F78*H78,2) -> 3991.85
A79: 6.3 | B79: ENSAIO DE AGREGADOS | I79: =SUM(I80:I82) -> 7315.9 | J79: =SUM(J80:J82) -> 9113.25
A80: 6.3.1 | B80: 02-06-11 | C80: SIURB | D80: ENSAIOS DE LABORATÓRIO - LOS ANGELES | E80: unid. | F80: 1 | G80: 435.4 | H80: =G80*(1+$J$5) -> 542.81318 | I80: =SUM(F80*G80,2) -> 437.4 | J80: =ROUND(F80*H80,2) -> 542.81
A81: 6.3.2 | B81: 02-06-13 | C81: SIURB | D81: ENSAIOS DE LABORATÓRIO - DURABILIDADE | E81: unid. | F81: 1 | G81: 470.64 | H81: 586.746888 | I81: 472.64 | J81: =ROUND(F81*H81,2) -> 586.75
A82: 6.3.3 | B82: 02-06-14 | C82: SIURB | D82: ENSAIOS DE LABORATÓRIO - ADESIVIDADE | E82: unid. | F82: 27 | G82: 237.18 | H82: 295.692306 | I82: 6405.86 | J82: =ROUND(F82*H82,2) -> 7983.69
A83: 6.4 | B83: ENSAIO DE CONCRETO | I83: =SUM(I84) -> 632.49 | J83: =SUM(J84) -> 786.03
A84: 6.4.1 | B84: ED-49546 | C84: DEER/MG | D84: ENSAIO DE RESISTENCIA A COMPRESSÃO SIMPLES - CONCRETO | E84: unid. | F84: 7 | G84: 90.07 | H84: =G84*(1+$J$5) -> 112.290269 | I84: =SUM(F84*G84,2) -> 632.49 | J84: =ROUND(F84*H84,2) -> 786.03
H85: TOTAL CONTROLE TECNOLÓGICO | I85: =SUM(I70+I74+I79+I83) -> 26357.92 | J85: =SUM(J70+J74+J79+J83) -> 32832.99
A87: 7- OAE
A88: 7.1 | B88: INFRA ESTRUTURA | I88: =SUM(I89:I95) -> 28208.5905 | J88: =SUM(J89:J95) -> 35150.2
A89: 7.1.1 | B89: 72917 | C89: SINAPI | D89: ESCAVACAO MECANICA DE VALA EM MATERIAL 2A. CATEGORIA DE 2,01 ATE 4,00M DE PROFUNDIDADE COM UTILIZACAO DE ESCAVADEIRA HIDRAULICA | E89: m³ | F89: 726.54 | G89: 11.04 | H89: =G89*(1+$J$5) -> 13.763568 | I89: =SUM(F89*G89,2) -> 8023.0016 | J89: =ROUND(F89*H89,2) -> 9999.78
A90: 7.1.2 | B90: 93382 | C90: SINAPI | D90: REATERRO MANUAL DE VALAS COM COMPACTAÇÃO MECANIZADA. AF_04/2016 | E90: m³ | F90: 699.08 | G90: 21.06 | H90: 26.255502 | I90: 14724.6248 | J90: 18354.7
A91: 7.1.3 | B91: 83534 | C91: SINAPI | D91: LASTRO DE CONCRETO, PREPARO MECÂNICO, INCLUSOS ADITIVO IMPERMEABILIZANTE, LANÇAMENTO E ADENSAMENTO | E91: m³ | F91: 1.94 | G91: 434.59 | H91: 541.803353 | I91: 845.1046 | J91: 1051.1
A92: 7.1.4 | B92: 5914569 | C92: DNIT/MG | D92: TRANSPORTE COM CAMINHÃO BETONEIRA - RODOVIA PAVIMENTADA (Entre Bocaiúva/MG e Francisco Dumont/MG - 69,00km) | E92: txkm | F92: =SUM(F94*2.4)*69 -> 2227.32 | G92: 0.35 | H92: 0.436345 | I92: 781.562 | J92: 971.88
A93: 7.1.5 | B93: 5914539 | C93: DNIT/MG | D93: TRANSPORTE COM CAMINHÃO BETONEIRA - RODOVIA EM LEITO NATURAL (Entre Francisco Dumont/MG e Área A - 15,00km) | E93: txkm | F93: =SUM(F94*2.4)*15 -> 484.2 | G93: 0.54 | H93: 0.673218 | I93: 263.468 | J93: 325.97
A94: 7.1.6 | B94: 1106280 | C94: DNIT/MG | D94: CONCRETO PARA BOMBEAMENTO FCK = 30 MPA - CONFECÇÃO EM CENTRAL DOSADORA DE 30 M³/H - AREIA E BRITA COMERCIAIS | E94: m³ | F94: 13.45 | G94: 224.51 | H94: 279.896617 | I94: 3021.6595 | J94: 3764.61
A95: 7.1.7 | B95: 92270 | C95: SINAPI | D95: FABRICAÇÃO DE FÔRMA PARA VIGAS, COM MADEIRA SERRADA, E = 25 MM. AF_12/2015 | E95: m² | F95: 7.32 | G95: 74.75 | H95: 93.190825 | I95: 549.17 | J95: 682.16
A96: 7.2 | B96: MESO E SUPER ESTRUTURA | I96: =SUM(I97:I122) -> 707940.5576 | J96: =SUM(J97:J122) -> 882524.64
A97: 7.2.1 | B97: 92263 | C97: SINAPI | D97: FABRICAÇÃO DE FÔRMA PARA PILARES E ESTRUTURAS SIMILARES, EM CHAPA DE MADEIRA COMPENSADA RESINADA, E = 17 MM. AF_12/2015 | E97: m² | F97: =1732.13821977567+87.32 -> 1819.45822 | G97: 84.2 | H97: =G97*(1+$J$5) -> 104.97214 | I97: =SUM(F97*G97,2) -> 153200.3821 | J97: =ROUND(F97*H97,2) -> 190992.42
A98: 7.2.2 | B98: 83534 | C98: SINAPI | D98: LASTRO DE CONCRETO, PREPARO MECÂNICO, INCLUSOS ADITIVO IMPERMEABILIZANTE, LANÇAMENTO E ADENSAMENTO | E98: m³ | F98: 5.342075 | G98: 434.599 | H98: 541.8145733 | I98: 2323.660453 | J98: 2894.41
A99: 7.2.3 | B99: 5914569 | C99: DNIT/MG | D99: TRANSPORTE COM CAMINHÃO BETONEIRA - RODOVIA PAVIMENTADA (Entre Bocaiúva/MG e Francisco Dumont/MG - 69,00km) | E99: txkm | F99: =SUM(($F$101+$F$102+$F$103)*2.4)*69 -> 47110.39888 | G99: 0.35 | H99: 0.436345 | I99: 16490.63961 | J99: 20556.39
A100: 7.2.4 | B100: 5914539 | C100: DNIT/MG | D100: TRANSPORTE COM CAMINHÃO BETONEIRA - RODOVIA EM LEITO NATURAL (Entre Francisco Dumont/MG e Área A - 15,00km) | E100: txkm | F100: =SUM(($F$101+$F$102+$F$103)*2.4)*15 -> 10241.39106 | G100: 0.54 | H100: 0.673218 | I100: 5532.351172 | J100: 6894.69
A101: 7.2.5 | B101: 1116263 | C101: DNIT/MG | D101: CONCRETO PARA BOMBEAMENTO FCK = 25 MPA - CONFECÇÃO EM CENTRAL DOSADORA DE 30 M³/H - AREIA E BRITA COMERCIAIS | E101: m³ | F101: 12.71998 | G101: 214.21 | H101: 267.055607 | I101: 2726.746916 | J101: 3396.94
A102: 7.2.6 | B102: 1106280 | C102: DNIT/MG | D102: CONCRETO PARA BOMBEAMENTO FCK = 30 MPA - CONFECÇÃO EM CENTRAL DOSADORA DE 30 M³/H - AREIA E BRITA COMERCIAIS | E102: m³ | F102: 98.265905 | G102: 224.51 | H102: 279.896617 | I102: 22063.67833 | J102: 27504.29
A103: 7.2.7 | B103: 1106281 | C103: DNIT/MG | D103: CONCRETO PARA BOMBEAMENTO FCK = 35 MPA - CONFECÇÃO EM CENTRAL DOSADORA DE 30 M³/H - AREIA E BRITA COMERCIAIS | E103: m³ | F103: 173.4972 | G103: 236.01 | H103: 294.233667 | I103: 40949.07417 | J103: 51048.72
A104: 7.2.8 | B104: 1107860 | C104: DNIT/MG | D104: LANÇAMENTO MECÂNICO DE CONCRETO COM BOMBA LANÇA SOBRE CHASSI COM CAPACIDADE DE 45 M³/H - CONFECÇÃO EM CENTRAL DOSADORA DE 40 M³/H | E104: m³ | F104: =SUM(F101+F102+F103) -> 284.483085 | G104: 31.52 | H104: 39.295984 | I104: 8968.906839 | J104: 11179.04
A105: 7.2.9 | B105: ED-50430 | C105: DEER/MG | D105: FORNECIMENTO E APLICAÇÃO DE GROUT PARA ANCORAGENS | E105: m³ | F105: 0.288 | G105: 272.56 | H105: 339.800552 | I105: 80.49728 | J105: 97.86
A106: 7.2.10 | B106: 92792 | C106: SINAPI | D106: CORTE E DOBRA DE AÇO CA-50, DIÂMETRO DE 6,3 MM, UTILIZADO EM ESTRUTURA S DIVERSAS | E106: kg | F106: 1778 | G106: 5.92 | H106: 7.380464 | I106: 10527.76 | J106: 13122.46 | K106: =F106/$L$106 -> 0.04568345324 | L106: =SUM(F106:F113) -> 38920
A107: 7.2.11 | B107: 92793 | C107: SINAPI | D107: CORTE E DOBRA DE AÇO CA-50, DIÂMETRO DE 8,0 MM, UTILIZADO EM ESTRUTURA S DIVERSAS | E107: kg | F107: 2412 | G107: 6.35 | H107: 7.916545 | I107: 15318.2 | J107: 19094.71 | K107: =F107/$L$106 -> 0.06197327852
A108: 7.2.12 | B108: 92794 | C108: SINAPI | D108: CORTE E DOBRA DE AÇO CA-50, DIÂMETRO DE 10,0 MM, UTILIZADO EM ESTRUTURAS DIVERSAS | E108: kg | F108: 10991 | G108: 5.27 | H108: 6.570109 | I108: 57924.57 | J108: 72212.07 | K108: 0.2823997945
A109: 7.2.13 | B109: 92795 | C109: SINAPI | D109: CORTE E DOBRA DE AÇO CA-50, DIÂMETRO DE 12,5 MM, UTILIZADO EM ESTRUTURAS DIVERSAS | E109: kg | F109: 6416 | G109: 4.91 | H109: 6.121297 | I109: 31504.56 | J109: 39274.24 | K109: 0.1648509764
A110: 7.2.14 | B110: 92796 | C110: SINAPI | D110: CORTE E DOBRA DE AÇO CA-50, DIÂMETRO DE 16,0 MM, UTILIZADO EM ESTRUTURAS DIVERSAS | E110: kg | F110: 10454 | G110: 4.84 | H110: 6.034028 | I110: 50599.36 | J110: 63079.73 | K110: 0.268602261
A111: 7.2.15 | B111: 92797 | C111: SINAPI | D111: CORTE E DOBRA DE AÇO CA-50, DIÂMETRO DE 20,0 MM, UTILIZADO EM ESTRUTURAS DIVERSAS | E111: kg | F111: 6163 | G111: 4.62 | H111: 5.759754 | I111: 28475.06 | J111: 35497.36 | K111: 0.1583504625
A112: 7.2.16 | B112: 92798 | C112: SINAPI | D112: CORTE E DOBRA DE AÇO CA-50, DIÂMETRO DE 25,0 MM, UTILIZADO EM ESTRUTURAS DIVERSAS | E112: kg | F112: 334 | G112: 5.33 | H112: 6.644911 | I112: 1782.22 | J112: 2219.4 | K112: 0.008581706064
A113: 7.2.17 | B113: 92880 | C113: SINAPI | D113: CORTE E DOBRA DE AÇO CA-25, DIÂMETRO DE 20,0 MM. AF_12/2015 | E113: kg | F113: 372 | G113: 4.78 | H113: 5.959226 | I113: 1780.16 | J113: 2216.83 | K113: 0.009558067831
A114: 7.2.18 | B114: 307736 | C114: DNIT/MG | D114: JUNTA DE DILATAÇÃO EM PERFIL EXTRUDADO DE BORRACHA VULCANIZADA DE 40 X 70 MM - FORNECIMENTO E INSTALAÇÃO | E114: m | F114: 20.6 | G114: 1017.84 | H114: 1268.941128 | I114: 20969.504 | J114: 26140.19
A115: 7.2.19 | B115: 91790 | C115: SINAPI | D115: (COMPOSIÇÃO REPRESENTATIVA) DO SERVIÇO DE INSTALAÇÃO DE TUBOS DE PVC, SÉRIE R, ÁGUA PLUVIAL, DN 100 MM (INSTALADO EM RAMAL DE ENCAMINHAMENTO , OU CONDUTORES VERTICAIS), INCLUSIVE CONEXÕES, CORTES E FIXAÇÕES, PARA PRÉDIOS. AF_10/2015 | E115: m | F115: 172.46 | G115: 40.95 | H115: 51.052365 | I115: 7064.237 | J115: 8804.49
A116: 7.2.20 | B116: 84154 | C116: SINAPI | D116: APARELHO APOIO NEOPRENE FRETADO | E116: dm³ | F116: 45.12 | G116: 109.06 | H116: 135.965102 | I116: 4922.7872 | J116: 6134.75
A117: 7.2.21 | B117: 73770/001 | C117: SINAPI | D117: BARREIRA PRE-MOLDADA EXTERNA CONCRETO ARMADO 0,25X0,40X1,14M FCK=25MPA ACO CA-50 INCL VIGOTA HORIZONTAL MONTANTE A CADA 1,00M FERROS DE LIGACAO E MATERIAIS. | E117: m | F117: 86.232 | G117: 450.09 | H117: 561.127203 | I117: 38814.16088 | J117: 48387.12
A118: 7.2.22 | B118: ED-50429 | C118: DEER/MG | D118: LANÇAMENTO DE TABULEIRO PRÉ-MOLDADO | E118: unid. | F118: 360 | G118: 63.38 | H118: 79.015846 | I118: 22818.8 | J118: 28445.7
A119: 7.2.23 | B119: 4507956 | C119: DNIT/MG | D119: CORDOALHA CP 190 RB D = 12,7 MM - FORNECIMENTO, PREPARO E COLOCAÇÃO | E119: Kg | F119: 5425.2 | G119: 9.37 | H119: 11.681579 | I119: 50836.124 | J119: 63374.9
A120: 7.2.24 | B120: 4508176 | C120: DNIT/MG | D120: BAINHA METÁLICA DIÂMETRO 95 MM PARA 19 CORDOALHAS D = 15,2 MM, SEMI-RÍGIDA, REDONDA, COM MONTAGEM E INJEÇÃO DE NATA DE CIMENTO | E120: m | F120: 554.4 | G120: 69.34 | H120: 86.446178 | I120: 38444.096 | J120: 47925.76
A121: 7.2.25 | B121: 4507755 | C121: DNIT/MG | D121: ANCORAGEM ATIVA PARA 12 CORDOALHAS D = 12,7 MM COM PLACA DE ANCORAGEM, BLOCO, CUNHAS TRIPARTIDAS, TROMBETA E PROTENSÃO | E121: unid. | F121: 32 | G121: 1454.16 | H121: 1812.901272 | I121: 46535.12 | J121: 58012.84
A122: 7.2.26 | B122: 26.13.01.99 | C122: DER/SP | D122: LANCAMENTO VIGA P<=50T-GUINDASTE AUTO PROPULSADO | E122: unid. | F122: 4 | G122: =SUM(9672.17/1.4179) -> 6821.475421 | H122: =G122*(1+$J$5) -> 8504.333408 | I122: =SUM(F122*G122,2) -> 27287.90169 | J122: =ROUND(F122*H122,2) -> 34017.33
H123: TOTAL OAE | I123: =SUM(I88+I96) -> 736149.1481 | J123: =SUM(J88+J96) -> 917674.84
A125: 8 - MATERIAIS E TRANSPORTE PARA PAVIMENTAÇÃO ASFÁLTICA (PARA USINA EM MONTES CLAROS)
A126: 8.1 | B126: CAP - CIMENTO ASFÁLTICO | I126: =SUM(I127:I128) -> 4677.708 | J126: =SUM(J127:J128) -> 5826.71
A127: 8.1.1 | B127: 72849 | C127: SINAPI | D127: CARGA, MANOBRAS E DESCARGA DE MISTURAS DE SOLOS E AGREGADOS (BASES ESTABILIZADAS EM USINA) COM CAMINHAO BASCULANTE 6 M3 | E127: t | F127: 22.1 | G127: 2.68 | H127: =G127*(1+$J$5) -> 3.341156 | I127: =SUM(F127*G127,2) -> 61.228 | J127: =ROUND(F127*H127,2) -> 73.84
A128: 8.1.2 | B128: 93176 | C128: SINAPI | D128: TRANSPORTE DE MATERIAL ASFALTICO, COM CAMINHÃO COM CAPACIDADE DE 30000 L EM RODOVIA PAVIMENTADA. AF_02/2016 (P/ ITEM 6.1.9) (ORIUNDO DE BETIM/MG DISTANTE 435KM DE MONTES CLAROS/MG) | E128: txkm | F128: =F127*435 -> 9613.5 | G128: 0.48 | H128: 0.598416 | I128: 4616.48 | J128: =ROUND(F128*H128,2) -> 5752.87
A129: 8.2 | B129: AREIA | I129: =SUM(I130:I131) -> 12973.495 | J129: =SUM(J130:J131) -> 16169.07
A130: 8.2.1 | B130: 72888 | C130: SINAPI | D130: CARGA, MANOBRAS E DESCARGA DE AREIA, BRITA, PEDRA DE MAO E SOLOS COM CAMINHAO BASCULANTE 6 M3 (DESCARGA LIVRE) | E130: m³ | F130: 98.5 | G130: 1.17 | H130: =G130*(1+$J$5) -> 1.458639 | I130: =SUM(F130*G130,2) -> 117.245 | J130: =ROUND(F130*H130,2) -> 143.68
A131: 8.2.2 | B131: 72884 | C131: SINAPI | D131: TRANSPORTE COMERCIAL COM CAMINHAO CARROCERIA 9 T (DA CIDADE DE BARRA DO GUAICUÍ/MG ATÉ MONTES CLAROS/MG = 145KM) | E131: m³*km | F131: =F130*145 -> 14282.5 | G131: 0.9 | H131: 1.12203 | I131: 12856.25 | J131: =ROUND(F131*H131,2) -> 16025.39
A132: 8.3 | B132: BRITA | I132: =SUM(I133:I134) -> 1353.559 | J132: =SUM(J133:J134) -> 1682.49
A133: 8.3.1 | B133: 72888 | C133: SINAPI | D133: CARGA, MANOBRAS E DESCARGA DE AREIA, BRITA, PEDRA DE MAO E SOLOS COM CAMINHAO BASCULANTE 6 M3 (DESCARGA LIVRE) | E133: m³ | F133: 132.7 | G133: 1.17 | H133: =G133*(1+$J$5) -> 1.458639 | I133: =SUM(F133*G133,2) -> 157.259 | J133: =ROUND(F133*H133,2) -> 193.56
A134: 8.3.2 | B134: 72884 | C134: SINAPI | D134: TRANSPORTE COMERCIAL COM CAMINHAO CARROCERIA 9 T (DE JAZIDA DISTANTE 10KM DE MONTES CLAROS/MG) | E134: m³*km | F134: =F133*10 -> 1327 | G134: 0.9 | H134: 1.12203 | I134: 1196.3 | J134: =ROUND(F134*H134,2) -> 1488.93
H135: TOTAL DE MATERIAIS DO CONCRETO | I135: =SUM(I126+I129+I132) -> 19004.762 | J135: =SUM(J126+J129+J132) -> 23678.27
A137: 9 - PAVIMENTAÇÃO ASFÁLTICA
A138: 9.1 | B138: PAVIMENTO FLEXIVEL - NOVO E RECUPERAÇÃO | I138: =SUM(I139:I154) -> 309474.1052 | J138: =SUM(J139:J154) -> 385781.46
A139: 9.1.1 | B139: 83338 | C139: SINAPI | D139: ESCAVACAO MECANICA, A CEU ABERTO, EM MATERIAL DE 1A CATEGORIA, COM ESCAVADEIRA HIDRAULICA, CAPACIDADE DE 0,78 M3 - CORTE | E139: m³ | F139: 464.7 | G139: 2.23 | H139: =G139*(1+$J$5) -> 2.780141 | I139: =SUM(F139*G139,2) -> 1038.281 | J139: =ROUND(F139*H139,2) -> 1291.93
A140: 9.1.2 | B140: 83338 | C140: SINAPI | D140: ESCAVACAO MECANICA, A CEU ABERTO, EM MATERIAL DE 1A CATEGORIA, COM ESCAVADEIRA HIDRAULICA, CAPACIDADE DE 0,78 M3 - CORTE JAZIDA | E140: m³ | F140: 7006.31 | G140: 2.23 | H140: 2.780141 | I140: 15626.0713 | J140: 19478.53 | K140: 7006.31 | L140: 8757.89
A141: 9.1.3 | B141: RO-40251 | C141: DEER/MG | D141: COMPACTAÇÃO DE ATERRO A 100% PROCTOR NORMAL | E141: m³ | F141: 7006.31 | G141: 3.15 | H141: 3.927105 | I141: 22071.8765 | J141: 27514.52 | K141: 7006.31 | L141: 8757.89
A142: 9.1.4 | B142: RO-43112 | C142: DEER/MG | D142: SUB-BASE, SEMMISTURA, COMPACTADA NA ENERGIA DO PROCTOR INTERMEDIÁRIO (EXECUÇÃO, INCLUINDO ESCAVAÇÃO, CARGA, DESCARGA, ESPALHAMENTO, UMIDECIMENTO E COMPACTAÇÃO DO MATERIAL; EXCLUI AQUISIÇÃO E TRANSPORTE DO MATERIAL) | E142: m³ | F142: 395.85 | G142: 14.25 | H142: 17.765475 | I142: 5642.8625 | J142: 7032.46
A143: 9.1.5 | B143: RO-43113 | C143: DEER/MG | D143: BASE DE SOLO SEM MISTURA, COMPACTADA NA ENERGIA DO PROCTOR INTERMEDIÁRIO (EXECUÇÃO, INCLUINDO ESCAVAÇÃO, CARGA, DESCARGA, ESPALHAMENTO, UMIDECIMENTO E COMPACTAÇÃO DO MATERIAL; EXCLUI AQUISIÇÃO E TRANSPORTEDO MATERIAL) | E143: m³ | F143: 395.85 | G143: 14.25 | H143: 17.765475 | I143: 5642.8625 | J143: 7032.46
A144: 9.1.6 | B144: 96401 | C144: SINAPI | D144: EXECUÇÃO DE IMPRIMAÇÃO COM ASFALTO DILUÍDO CM-30. AF_09/2017 | E144: m² | F144: 2919.04 | G144: 6.24 | H144: 7.779408 | I144: 18216.8096 | J144: 22708.4
A145: 9.1.7 | B145: 93176 | C145: SINAPI | D145: TRANSPORTE DE MATERIAL ASFALTICO, COM CAMINHÃO COM CAPACIDADE DE 30000 L EM RODOVIA PAVIMENTADA. AF_02/2016 (P/ ITEM 6.1.9) (ORIUNDO DE BETIM/MG DISTANTE 377KM DIRETO FCO DUMONT) | E145: txkm | F145: =SUM(F144*0.0012)*377 -> 1320.573696 | G145: 0.48 | H145: 0.598416 | I145: 635.8753741 | J145: 790.25
A146: 9.1.8 | B146: 93178 | C146: SINAPI | D146: TRANSPORTE DE MATERIAL ASFALTICO, COM CAMINHÃO COM CAPACIDADE DE 30000 TXKM L EM RODOVIA NÃO PAVIMENTADA PARA DISTÂNCIAS MÉDIAS DE TRANSPORTE SUPERIORES A 100 KM. AF_02/2016 (ORIUNDO DE FCO DUMONT DISTANTE 15KM DIRETO PARA OBRA A) | E146: txkm | F146: =SUM(F144*0.0012)*15 -> 52.54272 | G146: 0.54 | H146: 0.673218 | I146: 30.3730688 | J146: 35.37
A147: 9.1.9 | B147: 72942 | C147: SINAPI | D147: PINTURA DE LIGACAO COM EMULSAO RR-1C | E147: m² | F147: 2919.04 | G147: 1.62 | H147: 2.019654 | I147: 4730.8448 | J147: 5895.45
A148: 9.1.10 | B148: 93176 | C148: SINAPI | D148: TRANSPORTE DE MATERIAL ASFALTICO, COM CAMINHÃO COM CAPACIDADE DE 30000 L EM RODOVIA PAVIMENTADA. AF_02/2016 (P/ ITEM 6.1.9) (ORIUNDO DE BETIM/MG DISTANTE 377KM DIRETO FCO DUMONT) | E148: txkm | F148: =SUM(F147*0.0004)*377 -> 440.191232 | G148: 0.48 | H148: 0.598416 | I148: 213.2917914 | J148: 263.42
A149: 9.1.11 | B149: 93178 | C149: SINAPI | D149: TRANSPORTE DE MATERIAL ASFALTICO, COM CAMINHÃO COM CAPACIDADE DE 30000 TXKM L EM RODOVIA NÃO PAVIMENTADA PARA DISTÂNCIAS MÉDIAS DE TRANSPORTE SUPERIORES A 100 KM. AF_02/2016 (ORIUNDO DE FCO DUMONT DISTANTE 15KM DIRETO PARA OBRA A) | E149: txkm | F149: =SUM(F147*0.0004)*15 -> 17.51424 | G149: 0.54 | H149: 0.673218 | I149: 11.4576896 | J149: 11.79
A150: 9.1.12 | B150: 95995 | C150: SINAPI | D150: CONSTRUÇÃO DE PAVIMENTO COM APLICAÇÃO DE CONCRETO BETUMINOSO USINADO A QUENTE (CBUQ), CAMADA DE ROLAMENTO, COM ESPESSURA DE 5,0 CM - EXCLUSIVE TRANSPORTE. AF_03/2017 (PAVIMENTAÇÃO ESTRADA) | E150: m³ | F150: 131.95 | G150: 1017.65 | H150: 1268.704255 | I150: 134280.9175 | J150: 167405.53
A151: 9.1.13 | B151: 95995 | C151: SINAPI | D151: CONSTRUÇÃO DE PAVIMENTO COM APLICAÇÃO DE CONCRETO BETUMINOSO USINADO A QUENTE (CBUQ), CAMADA DE ROLAMENTO, COM ESPESSURA DE 5,0 CM - EXCLUSIVE TRANSPORTE. AF_03/2017 (PAVIMENTAÇÃO OAE) | E151: m³ | F151: 28 | G151: 1017.65 | H151: 1268.704255 | I151: 28496.2 | J151: 35523.72
A152: 9.1.14 | B152: 93176 | C152: SINAPI | D152: TRANSPORTE DE MATERIAL ASFALTICO, COM CAMINHÃO COM CAPACIDADE DE 30000 L EM RODOVIA PAVIMENTADA. AF_02/2016 (P/ ITEM 2.1.12) (ORIUNDO D MONTES CLAROS/MG DIST. 111KM) | E152: txkm | F152: =SUM((F150+F151)*2.4)*111 -> 42610.68 | G152: 0.48 | H152: 0.598416 | I152: 20455.1264 | J152: 25498.91
A153: 9.1.15 | B153: 93178 | C153: SINAPI | D153: TRANSPORTE DE MATERIAL ASFALTICO, COM CAMINHÃO COM CAPACIDADE DE 30000 TXKM L EM RODOVIA NÃO PAVIMENTADA PARA DISTÂNCIAS MÉDIAS DE TRANSPORTE SUPERIORES A 100 KM. AF_02/2016 (JEQUITAÍ P/ ÁREA A - 15KM) | E153: txkm | F153: =SUM((F150+F151)*2.4)*15 -> 5758.2 | G153: 0.54 | H153: 0.673218 | I153: 3111.428 | J153: 3876.52
A154: 9.1.16 | B154: RO-41344 | C154: DEER/MG | D154: TRANSPORTE DE MATERIAL DE JAZIDA PARA CONSERVAÇÃO. DISTÂNCIA MÉDIA DE TRANSPORTE > 50,10 KM (ESCAVAÇÃO+BASE E SUB BASE) - 8,10KM | E154: m³xkm | F154: =SUM(F140+F142+F143)*8.1 -> 63163.881 | G154: 0.78 | H154: 0.972426 | I154: 49269.82718 | J154: 61422.2
H155: TOTAL PAVIMENTAÇÃO ASFÁLTICA | I155: =SUM(I138) -> 309474.1052 | J155: =SUM(J138) -> 385781.46
A157: 10 - COMPLEMENTARES
A158: 10.1 | B158: RECOMPOSIÇÃO DE DIVISAS | I158: =SUM(I159) -> 11982.5 | J158: =SUM(J159) -> 14936.09
A159: 10.1.1 | B159: 74039/001 | C159: SINAPI | D159: CERCA COM MOUROES DE MADEIRA ROLICA, DIAMETRO 11CM, ESPACAMENTO DE 2M, ALTURA LIVRE DE 1M, CRAVADOS 0,5M, COM 5 FIOS DE ARAME FARPADO Nº 14 CLASSE 250 | E159: m | F159: 490 | G159: 24.45 | H159: =G159*(1+$J$5) -> 30.481815 | I159: =SUM(F159*G159,2) -> 11982.5 | J159: =ROUND(F159*H159,2) -> 14936.09
H160: TOTAL COMPLEMENTARES | I160: =SUM(I158) -> 11982.5 | J160: =SUM(J158) -> 14936.09
A162: 11 - SINALIZAÇÃO DE OBRA E DEFINITIVA
A163: 11.1 | B163: SINALIZAÇÃO DE OBRA | I163: =SUM(I164:I168) -> 22899.5233 | J163: =SUM(J164:J168) -> 28536.38
A164: 11.1.1 | B164: 97051 | C164: SINAPI | D164: SINALIZAÇÃO COM FITA FIXADA NA ESTRUTURA. AF_11/2017 | E164: m | F164: 3000 | G164: 0.46 | H164: =G164*(1+$J$5) -> 0.573482 | I164: =SUM(F164*G164,2) -> 1382 | J164: =ROUND(F164*H164,2) -> 1720.45
A165: 11.1.2 | B165: RO-41841 | C165: DEER/MG | D165: PLACA DE AÇO CARBONO COM PELÍCULA REFLETIVA GRAU TÉCNICO TIPO I DA ABNT - PLACA CIRCULAR (EXECUÇÃO, INCLUINDO FORNECIMENTO E TRANSPORTE DE TODOS OS MATERIAIS, INCLUSIVE POSTE DE SUSTENTAÇÃO) | E165: m² | F165: 0.78 | G165: 337.22 | H165: 420.412174 | I165: 265.0316 | J165: =ROUND(F165*H165,2) -> 327.92
A166: 11.1.3 | B166: RO-41844 | C166: DEER/MG | D166: PLACA DE AÇO CARBONO COM PELÍCULA REFLETIVA GRAU TÉCNICO TIPO I DA ABNT - PLACA QUADRADA (EXECUÇÃO, INCLUINDO FORNECIMENTO E TRANSPORTE DE TODOS OS MATERIAIS, INCLUSIVE POSTE DE SUSTENTAÇÃO) | E166: m² | F166: 15.89 | G166: 326.75 | H166: 407.359225 | I166: 5194.0575 | J166: =ROUND(F166*H166,2) -> 6472.94
A167: 11.1.4 | B167: RO-43226 | C167: DEER/MG | D167: COLOCAÇÃO DE PLACAS | E167: m² | F167: 16.67 | G167: 64.06 | H167: 79.863602 | I167: 1069.8802 | J167: =ROUND(F167*H167,2) -> 1331.33
A168: 11.1.5 | B168: 85424 | C168: SINAPI | D168: ISOLAMENTO DE OBRA COM TELA PLASTICA COM MALHA DE 5MM E ESTRUTURA DE MADEIRA PONTALETEADA | E168: m | F168: 794.2 | G168: 18.87 | H168: 23.525229 | I168: 14988.554 | J168: =ROUND(F168*H168,2) -> 18683.74
A169: 11.2 | B169: SINALIZAÇÃO DEFINITIVA HORIZONTAL | I169: =SUM(I170:I171) -> 315.3827 | J169: =SUM(J170:J171) -> 388.2
A170: 11.2.1 | B170: RO-41237 OBR-VIA-245 | C170: DEER/MG | D170: LINHAS DE RESINA ACRILICA 0,6MM DE ESPESSURA E LARGURA = 0,10M (EXECUÇÃO, INCLUSIVE PRÉ-MARCAÇÃO, FORNECIMENTO E TRANSPORTE DE TODOS OS MATERIAIS) - LINHAS BRANCAS | E170: m² | F170: 59.99 | G170: 1.73 | H170: =G170*(1+$J$5) -> 2.156791 | I170: =SUM(F170*G170,2) -> 105.7827 | J170: =ROUND(F170*H170,2) -> 129.39
A171: 11.2.2 | B171: RO-41237 OBR-VIA-245 | C171: DEER/MG | D171: LINHAS DE RESINA ACRILICA 0,6MM DE ESPESSURA E LARGURA = 0,10M (EXECUÇÃO, INCLUSIVE PRÉ-MARCAÇÃO, FORNECIMENTO E TRANSPORTE DE TODOS OS MATERIAIS) - LINHAS AMARELAS | E171: m² | F171: 120 | G171: 1.73 | H171: 2.156791 | I171: 209.6 | J171: =ROUND(F171*H171,2) -> 258.81
A172: 11.3 | B172: SINALIZAÇÃO DEFINITIVA VERTICAL | I172: =SUM(I173:I175) -> 553.2992 | J172: =SUM(J173:J175) -> 682.32
A173: 11.3.1 | B173: RO-41841 | C173: DEER/MG | D173: PLACA DE AÇO CARBONO COM PELÍCULA REFLETIVA GRAU TÉCNICO TIPO I DA ABNT - PLACA CIRCULAR (EXECUÇÃO, INCLUINDO FORNECIMENTO E TRANSPORTE DE TODOS OS MATERIAIS, INCLUSIVE POSTE DE SUSTENTAÇÃO) | E173: m² | F173: 0.39 | G173: 337.22 | H173: =G173*(1+$J$5) -> 420.412174 | I173: =SUM(F173*G173,2) -> 133.5158 | J173: =ROUND(F173*H173,2) -> 163.96
A174: 11.3.2 | B174: RO-41844 | C174: DEER/MG | D174: PLACA DE AÇO CARBONO COM PELÍCULA REFLETIVA GRAU TÉCNICO TIPO I DA ABNT - PLACA QUADRADA (EXECUÇÃO, INCLUINDO FORNECIMENTO E TRANSPORTE DE TODOS OS MATERIAIS, INCLUSIVE POSTE DE SUSTENTAÇÃO) | E174: m² | F174: 1 | G174: 326.74 | H174: 407.346758 | I174: 328.74 | J174: =ROUND(F174*H174,2) -> 407.35
A175: 11.3.3 | B175: RO-43226 | C175: DEER/MG | D175: COLOCAÇÃO DE PLACAS | E175: m² | F175: 1.39 | G175: 64.06 | H175: 79.863602 | I175: 91.0434 | J175: =ROUND(F175*H175,2) -> 111.01
A176: 11.4 | B176: DISPOSITIVOS DE SEGURANÇA | I176: =SUM(I177:I178) -> 73445.55748 | J176: =SUM(J177:J178) -> 91559.59
A177: 11.4.1 | B177: RO-41763 | C177: DEER/MG | D177: DEFENSA SINGELA SEMI-MALEÁVEL SV-DSM-02 (EXECUÇÃO, INCLUINDO FORNECIMENTO, COLOCAÇÃO E TRANSPORTE DE TODOS OS MATERIAIS) | E177: m | F177: 275 | G177: 264.46 | H177: =G177*(1+$J$5) -> 329.702282 | I177: =SUM(F177*G177,2) -> 72728.5 | J177: =ROUND(F177*H177,2) -> 90668.13
A178: 11.4.2 | B178: 28.10.01.99 | C178: DER/SP | D178: FORN./INSTAL. BALIZ.(CATADIOPTRICO) P/DEF. MET. C/PELICULA GT+GT, CONF.OP-06-05 | E178: un. | F178: 34 | G178: =SUM(29.82/1.4179) -> 21.03110233 | H178: 26.21947528 | I178: 717.0574794 | J178: =ROUND(F178*H178,2) -> 891.46
H179: TOTAL SINALIZAÇÃO DE OBRA E DEFINITIVA | I179: =SUM(I163+I169+I172+I176) -> 97213.76268 | J179: =SUM(J163+J169+J172+J176) -> 121166.49
A181: 12 - DESMOBILIZAÇÃO
A182: 12.1 | B182: DESMOBILIZAÇÃO | I182: =SUM(I183) -> 14580.664 | J182: =SUM(J183) -> 18175.22
A183: 12.1.1 | B183: - | C183: CPU | D183: DESMOBILIZAÇÃO | E183: un. | F183: 1 | G183: =CPU!$I$424 -> 14578.664 | H183: =G183*(1+$J$5) -> 18175.22041 | I183: =SUM(F183*G183,2) -> 14580.664 | J183: =ROUND(F183*H183,2) -> 18175.22
H184: TOTAL DESMOBILIZAÇÃO | I184: =SUM(I182) -> 14580.664 | J184: =SUM(J182) -> 18175.22
H186: TOTAL GERAL | I186: =SUM(I20+I27+I32+I43+I67+I85+I123+I135+I155+I160+I179+I184) -> 4125810.748 | J186: =SUM(J20+J27+J32+J43+J67+J85+J123+J135+J155+J160+J179+J184) -> 5143371.46

Sheet PL-ORÇ-DEF.B
A1: CDV-249-001-000-002-PL-PE-A07-001 - PLANILHA DE QUANTIDADES E CUSTOS – OAE E PAVIMENTAÇÃO
A2: CONTRATANTE: | C2: CODEVASF - COMPANHIA DE DESENVOLVIMENTO DOS VALES DO SÃO FRANCISCO E PARNAÍBA | I2: REV.: | J2: A7
A3: OBRA: | C3: OAE E PAVIMENTAÇÃO - ÁREA B | I3: DATA: | J3: NOV2019
A4: LOCAL: | C4: MG208 - ENTRE JEQUITAÍ/ MG E FRANCISCO DUMONT/MG | H4: VALOR TOTAL C/BDI (R$): | J4: =SUM(J181) -> 1458970.17
A5: DATA BASE TABELAS: | C5: SINAPI-SET2019 / DEER-MG-AGO2019 / DNIT-MG ABR/2019 / SIURB JAN2019 / DER-SP - MAR2019 | H5: BDI (%): | J5: 0.2423
A6: PRAZO EXECUÇÃO: | C6: 6 (SEIS) MESES
A8: Item | B8: Código | C8: Fonte | D8: Especificação | E8: Unidade | F8: Quantidade | G8: Preço Unitário (R$) | I8: Preço Total
G9: Sem BDI | H9: Com BDI | I9: Sem BDI | J9: Com BDI
A11: 1 - SERVIÇOS PRELIMINARES
A12: 1.1 | B12: SERVIÇOS PRELIMINARES | I12: =SUM(I13:I19) -> 25873.0945 | J12: =SUM(J13:J19) -> 32124.74
A13: 1.1.1 | B13: RO-41291 | C13: DEER/MG | D13: REMOÇÃO DE CERCAS | E13: m | F13: 255.81 | G13: 6.45 | H13: =G13*(1+$J$5) -> 8.012835 | I13: =SUM(F13*G13,2) -> 1651.9745 | J13: =ROUND(F13*H13,2) -> 2049.76
A14: 1.1.2 | B14: 73822/002 | C14: SINAPI | D14: LIMPEZA MECANIZADA DE TERRENO COM REMOCAO DE CAMADA VEGETAL, UTILIZANDO MOTONIVELADORA (JAZIDA) | E14: m² | F14: 1000 | G14: 0.48 | H14: =G14*(1+$J$5) -> 0.596304 | I14: =SUM(F14*G14,2) -> 482 | J14: =ROUND(F14*H14,2) -> 596.3
A15: 1.1.3 | B15: 73822/002 | C15: SINAPI | D15: LIMPEZA MECANIZADA DE TERRENO COM REMOCAO DE CAMADA VEGETAL, UTILIZANDO MOTONIVELADORA (ESTRADA NOVA) | E15: m² | F15: 3000 | G15: 0.48 | H15: 0.596304 | I15: 1442 | J15: =ROUND(F15*H15,2) -> 1788.91
A16: 1.1.4 | B16: 72898 | C16: SINAPI | D16: CARGA E DESCARGA MECANIZADAS DE ENTULHO EM CAMINHAO BASCULANTE 6 M3 | E16: m³ | F16: =SUM(F14+F15)*0.2 -> 800 | G16: 3.86 | H16: 4.795278 | I16: 3090 | J16: =ROUND(F16*H16,2) -> 3836.22
A17: 1.1.5 | B17: 97916 | C17: SINAPI | D17: TRANSPORTE COM CAMINHÃO BASCULANTE DE 6 M3, EM VIA URBANA EM LEITO NATURAL TXKM (UNIDADE: TXKM). AF_01/2018 | E17: txkm | F17: 12896 | G17: 1.47 | H17: 1.826181 | I17: 18959.12 | J17: 23550.43
A18: 1.1.6 | B18: RO-42263 | C18: DEER/MG | D18: ESPALHAMENTO DE MATERIAL EM BOTA-FORA | E18: m³ | F18: 800 | G18: 0.18 | H18: 0.223614 | I18: 146 | J18: =ROUND(F18*H18,2) -> 178.89
A19: 1.1.7 | B19: 99064 | C19: SINAPI | D19: LOCAÇÃO DE PAVIMENTAÇÃO. AF_10/2018 | E19: m | F19: 200 | G19: 0.5 | H19: 0.62115 | I19: 102 | J19: =ROUND(F19*H19,2) -> 124.23
H20: TOTAL SERVIÇOS PRELIMINARES | I20: =SUM(I12) -> 25873.0945 | J20: =SUM(J12) -> 32124.74
A22: 2 - CANTEIRO DE OBRAS
A23: 2.1 | B23: CANTEIRO DE OBRAS | I23: =SUM(I24:I26) -> 117282.576 | J23: =SUM(J24:J26) -> 145692.69
A24: 2.1.1 | B24: C1 | C24: CPU | D24: ADMINISTRAÇÃO LOCAL E MANUTENÇÃO DO CANTEIRO DE OBRAS EM CONTAINER - PRAZO DE OBRA IGUAL A 08 MESES | E24: GL | F24: 1 | G24: =[1]CPU!$J$56 -> 101175.24 | H24: =G24*(1+$J$5) -> 125690.0007 | I24: =SUM(F24*G24,2) -> 101177.24 | J24: =ROUND(F24*H24,2) -> 125690
A25: 2.1.2 | B25: C2 | C25: CPU | D25: MOBILIZAÇÃO | E25: UNID | F25: 1 | G25: =[1]CPU!$J$86 -> 12483.096 | H25: 15507.75016 | I25: 12485.096 | J25: =ROUND(F25*H25,2) -> 15507.75
A26: 2.1.3 | B26: 74209/001 | C26: SINAPI | D26: PLACA DE OBRA EM CHAPA DE ACO GALVANIZADO | E26: M2 | F26: 12 | G26: 301.52 | H26: 374.578296 | I26: 3620.24 | J26: =ROUND(F26*H26,2) -> 4494.94
H27: TOTAL CANTEIRO DE OBRAS | I27: =SUM(I23) -> 117282.576 | J27: =SUM(J23) -> 145692.69
A29: 3 - EQUIPAMENTOS
A30: 3.1 | B30: TRANSPORTES DE EQUIPAMENTOS | I30: =SUM(I31) -> 34768.688 | J30: =SUM(J31) -> 43190.66
A31: 3.3.1 | B31: A9316 | C31: DINIT/MG | D31: CAMINHÃO PLATAFORMA 8X2, PBT 29.000 KG E DISTÂNCIA ENTRE EIXOS 4,8M - 188 KW - MOTORISTA E CAMINHÃO | E31: H | F31: =[1]TRANSPORTES!$E$43 -> 240 | G31: 144.8612 | H31: =G31*(1+$J$5) -> 179.9610688 | I31: =SUM(F31*G31,2) -> 34768.688 | J31: =ROUND(F31*H31,2) -> 43190.66
H32: TOTAL EQUIPAMENTOS | I32: =SUM(I30) -> 34768.688 | J32: =SUM(J30) -> 43190.66
A34: 4 - DESVIO DE TRÁFEGO
A35: 4.1 | B35: DESVIO DE TRÁFEGO | I35: =SUM(I36:I42) -> 39949.1403 | J35: =SUM(J36:J42) -> 49611.43
A36: 4.1.1 | B36: 73822/002 | C36: SINAPI | D36: LIMPEZA MECANIZADA DE TERRENO COM REMOCAO DE CAMADA VEGETAL, UTILIZANDO MOTONIVELADORA | E36: m² | F36: 3716.83 | G36: 0.48 | H36: =G36*(1+$J$5) -> 0.596304 | I36: =SUM(F36*G36,2) -> 1786.0784 | J36: =ROUND(F36*H36,2) -> 2216.36
A37: 4.1.2 | B37: 72898 | C37: SINAPI | D37: CARGA E DESCARGA MECANIZADAS DE ENTULHO EM CAMINHAO BASCULANTE 6 M3 | E37: m³ | F37: 743.36 | G37: 3.86 | H37: 4.795278 | I37: 2871.3696 | J37: =ROUND(F37*H37,2) -> 3564.62
A38: 4.1.3 | B38: 97916 | C38: SINAPI | D38: TRANSPORTE COM CAMINHÃO BASCULANTE DE 6 M3, EM VIA URBANA EM LEITO NATURAL TXKM (UNIDADE: TXKM). AF_01/2018 - 13,10KM | E38: txkm | F38: 15580.95 | G38: 1.47 | H38: 1.826181 | I38: 22905.9965 | J38: 28453.63
A39: 4.1.4 | B39: 83344 | C39: SINAPI | D39: ESPALHAMENTO DE MATERIAL EM BOTA FORA, COM UTILIZACAO DE TRATOR DE ESTEIRAS DE 165 HP | E39: m³ | F39: 743.36 | G39: 0.85 | H39: 1.055955 | I39: 633.856 | J39: =ROUND(F39*H39,2) -> 784.95
A40: 4.1.5 | B40: RO-43112 | C40: DEER/MG | D40: SUB-BASE, SEMMISTURA, COMPACTADA NA ENERGIA DO PROCTOR INTERMEDIÁRIO (EXECUÇÃO, INCLUINDO ESCAVAÇÃO, CARGA, DESCARGA, ESPALHAMENTO, UMIDECIMENTO E COMPACTAÇÃO DO MATERIAL; EXCLUI AQUISIÇÃO E TRANSPORTE DO MATERIAL) | E40: m³ | F40: 175 | G40: 14.25 | H40: 17.702775 | I40: 2495.75 | J40: =ROUND(F40*H40,2) -> 3097.99
A41: 4.1.6 | B41: RO-43113 | C41: DEER/MG | D41: BASE DE SOLO SEM MISTURA, COMPACTADA NA ENERGIA DO PROCTOR INTERMEDIÁRIO (EXECUÇÃO, INCLUINDO ESCAVAÇÃO, CARGA, DESCARGA, ESPALHAMENTO, UMIDECIMENTO E COMPACTAÇÃO DO MATERIAL; EXCLUI AQUISIÇÃO E TRANSPORTE DO MATERIAL) | E41: m³ | F41: 175 | G41: 14.25 | H41: 17.702775 | I41: 2495.75 | J41: =ROUND(F41*H41,2) -> 3097.99
A42: 4.1.7 | B42: 22.03.04.99 | C42: DER/SP | D42: TRANSPORTE DE 1/2 CATEGORIA ATÉ 15KM (BASE E SUB BASE) | E42: m³xkm | F42: =SUM(F40+F41)*13.1 -> 4585 | G42: =SUM(2.09/1.4179) -> 1.474010861 | H42: 1.831163693 | I42: 6760.339798 | J42: =ROUND(F42*H42,2) -> 8395.89
H43: TOTAL DESVIO DE TRÁFEGO | I43: =SUM(I35) -> 39949.1403 | J43: =SUM(J35) -> 49611.43
A45: 5 - OBRAS DE ARTE CORRENTE E DRENAGEM
A46: 5.1 | B46: VALETA DE PROTEÇÃO DE ATERRO | I46: =SUM(I47) -> 1813.52 | J46: =SUM(J47) -> 2250.45
A47: 5.1.1 | B47: RO-40514 | C47: DEER/MG | D47: VALETA DE PROTEÇÃO DE ATERRO TIPO DR.VPA (EXECUÇÃO,INCLUINDO ESCAVAÇÃO) | E47: m | F47: 74 | G47: 24.48 | H47: =G47*(1+$J$5) -> 30.411504 | I47: =SUM(F47*G47,2) -> 1813.52 | J47: =ROUND(F47*H47,2) -> 2250.45
A48: 5.2 | B48: CAIXA COLETORA EM ALVENARIA | I48: =SUM(I49:I53) -> 1815.2964 | J48: =SUM(J49:J53) -> 2242.72
A49: 5.2.1 | B49: RO-40160 | C49: DEER/MG | D49: ESCAVAÇÃO, CARGA, DESCARGA, ESPALHAMENTO E TRANSPORTE DE MATERIAL DE 1ª CATEGORIA, COMCAMINHÃO. DISTÂNCIA MÉDIA DE TRANSPORTE DE 3.001 A 4.000 M | E49: m³ | F49: 17.96 | G49: 7.46 | H49: =G49*(1+$J$5) -> 9.267558 | I49: =SUM(F49*G49,2) -> 135.9816 | J49: =ROUND(F49*H49,2) -> 166.45
A50: 5.2.2 | B50: ED-48193 | C50: DEER/MG | D50: ALVENARIA DE VEDAÇÃO COM BLOCO DE CONCRETO, ESP.19 CM, PARA REVESTIMENTO, INCLUSIVE ARGAMASSA PARA ASSENTAMENTO | E50: m² | F50: 7.64 | G50: 49.27 | H50: 61.208121 | I50: 378.4228 | J50: =ROUND(F50*H50,2) -> 467.63
A51: 5.2.3 | B51: ED-50732 | C51: DEER/MG | D51: EMBOÇO COM MARGAMASSA, TRAÇO 1:6 (CIMENTO E AREIA), ESP. 20MM, APLICAÇÃO MANUAL, PREPARO MECÂNICO | E51: m² | F51: 6.06 | G51: 23 | H51: 28.5729 | I51: 141.38 | J51: =ROUND(F51*H51,2) -> 173.15
A52: 5.2.4 | B52: RO-41624 | C52: DEER/MG | D52: CONCRETO DE CIMENTO PORTLAND, FCK>=15,0MPA (EXECUÇÃO, INCLUINDO OFORNECIMENTO E TRANSPORTE DOS AGREGADOS) | E52: m³ | F52: 0.8 | G52: 358.39 | H52: 445.227897 | I52: 288.712 | J52: =ROUND(F52*H52,2) -> 356.18
A53: 5.2.5 | B53: ED-48676 | C53: DEER/MG | D53: FORNECIMENTO, ASSENTAMENTO E REJUNTAMENTO DE TUBO DE CONCRETO SIMPLES PS1 D = 400 MM | E53: m | F53: 10 | G53: 86.88 | H53: 107.931024 | I53: 870.8 | J53: =ROUND(F53*H53,2) -> 1079.31
A54: 5.3 | B54: SARJETA DE CONCRETO ATERRO | I54: =SUM(I55) -> 1824.08 | J54: =SUM(J55) -> 2263.57
A55: 5.3.1 | B55: RO-40613 | C55: DEER/MG | D55: SARJETA DE CONCRETO EM ATERRO,TIPO DR.SCA- X/Y. LARGURA=60CM TIPO 30/10 (EXECUÇÃO, INCLUINDO ESCAVAÇÃO, FORNECIMENTO, TRANSPORTE E PLANTIO DA GRAMA) | E55: m | F55: 64 | G55: 28.47 | H55: =G55*(1+$J$5) -> 35.368281 | I55: =SUM(F55*G55,2) -> 1824.08 | J55: =ROUND(F55*H55,2) -> 2263.57
A56: 5.4 | B56: SARJETA DE CONCRETO CORTE | I56: =SUM(I57) -> 9988.4 | J56: =SUM(J57) -> 12406.1
A57: 5.4.1 | B57: RO-40661 | C57: DEER/MG | D57: SARJETA DE CONCRETO EM CORTE TIPO DR.SCC-X/Y. LARGURA=90CM TIPO80/10 (EXECUÇÃO, INCLUINDOESCAVAÇÃO, FORNECIMENTO E TRANSPORTE DE TODOS OS MATERIAIS) | E57: m | F57: 228 | G57: 43.8 | H57: =G57*(1+$J$5) -> 54.41274 | I57: =SUM(F57*G57,2) -> 9988.4 | J57: =ROUND(F57*H57,2) -> 12406.1
A58: 5.5 | B58: CANALETA | I58: =SUM(I59) -> 236.92 | J58: =SUM(J59) -> 291.84
A59: 5.5.1 | B59: ED-48566 | C59: DEER/MG | D59: CANALETA PARA ÁGUAS PLUVIAIS EM CONCRETO MOLDADA IN-LOCO, LARGURA 60 CM | E59: m | F59: 2 | G59: 117.46 | H59: =G59*(1+$J$5) -> 145.920558 | I59: =SUM(F59*G59,2) -> 236.92 | J59: =ROUND(F59*H59,2) -> 291.84
A60: 5.6 | B60: DESCIDA D'ÁGUA | I60: =SUM(I61) -> 2908.9 | J60: =SUM(J61) -> 3611.24
A61: 5.6.1 | B61: ED-48598 | C61: DEER/MG | D61: DESCIDA D´ÁGUA TIPO CALHA DN 500, EXCLUSIVE BOTA FORA | E61: m | F61: 10 | G61: 290.69 | H61: =G61*(1+$J$5) -> 361.124187 | I61: =SUM(F61*G61,2) -> 2908.9 | J61: =ROUND(F61*H61,2) -> 3611.24
H62: TOTAL OBRAS DE ARTE CORRENTE E DRENAGEM | I62: =SUM(I46+I48+I54+I56+I58+I60) -> 18587.1164 | J62: =SUM(J46+J48+J54+J56+J58+J60) -> 23065.92
A64: 6 - CONTROLE TECNOLÓGICO
A65: 6.1 | B65: ENSAIO DE SOLO | I65: =SUM(I66:I68) -> 1106.87 | J65: =SUM(J66:J68) -> 1367.61
A66: 6.1.1 | B66: ED-49564 | C66: DEER/MG | D66: ENSAIO DE TEOR DE UMIDADE - PROCESSO SPEEDY - SOLOS E AGREGADOS MIUDOS | E66: unid. | F66: 12 | G66: 30.02 | H66: =G66*(1+$J$5) -> 37.293846 | I66: =SUM(F66*G66,2) -> 362.24 | J66: =ROUND(F66*H66,2) -> 447.53
A67: 6.1.2 | B67: ED-49555 | C67: DEER/MG | D67: ENSAIO DE COMPACTAÇÃO - AMOSTRAS NÃO TRABALHADAS - ENERGIA NORMAL - SOLOS | E67: unid. | F67: 3 | G67: 95.08 | H67: 118.117884 | I67: 287.24 | J67: =ROUND(F67*H67,2) -> 354.35
A68: 6.1.3 | B68: ED-49559 | C68: DEER/MG | D68: ENSAIO DE MASSA ESPECIFICA - IN SITU - METODO FRASCO DE AREIA - SOLOS | E68: unid. | F68: 13 | G68: 35.03 | H68: 43.517769 | I68: 457.39 | J68: =ROUND(F68*H68,2) -> 565.73
A69: 6.2 | B69: ENSAIO DE PAVIMENTO | I69: =SUM(I70:I73) -> 10960.64 | J69: =SUM(J70:J73) -> 13606.47
A70: 6.2.1 | B70: 02-06-15 | C70: SIURB | D70: ENSAIOS DE LABORATÓRIO - VISCOSIDADE | E70: unid. | F70: 18 | G70: 157.48 | H70: =G70*(1+$J$5) -> 195.637404 | I70: =SUM(F70*G70,2) -> 2836.64 | J70: =ROUND(F70*H70,2) -> 3521.47
A71: 6.2.2 | B71: 02-06-17 | C71: SIURB | D71: ENSAIOS DE LABORATÓRIO - PONTO DE FULGOR | E71: unid. | F71: 18 | G71: 135.99 | H71: 168.940377 | I71: 2449.82 | J71: =ROUND(F71*H71,2) -> 3040.93
A72: 6.2.3 | B72: 02-06-18 | C72: SIURB | D72: ENSAIOS DE LABORATÓRIO - PENETRAÇÃO | E72: unid. | F72: 18 | G72: 196.42 | H72: 244.012566 | I72: 3537.56 | J72: =ROUND(F72*H72,2) -> 4392.23
A73: 6.2.4 | B73: 02-06-19 | C73: SIURB | D73: ENSAIOS DE LABORATÓRIO - PONTO DE AMOLECIMENTO | E73: unid. | F73: 18 | G73: 118.59 | H73: 147.324357 | I73: 2136.62 | J73: =ROUND(F73*H73,2) -> 2651.84
A74: 6.3 | B74: ENSAIO DE AGREGADOS | I74: =SUM(I75:I77) -> 5181.28 | J74: =SUM(J75:J77) -> 6429.26
A75: 6.3.1 | B75: 02-06-11 | C75: SIURB | D75: ENSAIOS DE LABORATÓRIO - LOS ANGELES | E75: unid. | F75: 1 | G75: 435.4 | H75: =G75*(1+$J$5) -> 540.89742 | I75: =SUM(F75*G75,2) -> 437.4 | J75: =ROUND(F75*H75,2) -> 540.9
A76: 6.3.2 | B76: 02-06-13 | C76: SIURB | D76: ENSAIOS DE LABORATÓRIO - DURABILIDADE | E76: unid. | F76: 1 | G76: 470.64 | H76: 584.676072 | I76: 472.64 | J76: =ROUND(F76*H76,2) -> 584.68
A77: 6.3.3 | B77: 02-06-14 | C77: SIURB | D77: ENSAIOS DE LABORATÓRIO - ADESIVIDADE | E77: unid. | F77: 18 | G77: 237.18 | H77: 294.648714 | I77: 4271.24 | J77: =ROUND(F77*H77,2) -> 5303.68
A78: 6.4 | B78: ENSAIO DE CONCRETO | I78: =SUM(I79) -> 542.42 | J78: =SUM(J79) -> 671.36
A79: 6.4.1 | B79: ED-49546 | C79: DEER/MG | D79: ENSAIO DE RESISTENCIA A COMPRESSÃO SIMPLES - CONCRETO | E79: unid. | F79: 6 | G79: 90.07 | H79: =G79*(1+$J$5) -> 111.893961 | I79: =SUM(F79*G79,2) -> 542.42 | J79: =ROUND(F79*H79,2) -> 671.36
H80: TOTAL CONTROLE TECNOLÓGICO | I80: =SUM(I65+I69+I74+I78) -> 17791.21 | J80: =SUM(J65+J69+J74+J78) -> 22074.7
A82: 7- OAE
A83: 7.1 | B83: INFRA ESTRUTURA | I83: =SUM(I84:I90) -> 38010.7029 | J83: =SUM(J84:J90) -> 47203.3
A84: 7.1.1 | B84: 72917 | C84: SINAPI | D84: ESCAVACAO MECANICA DE VALA EM MATERIAL 2A. CATEGORIA DE 2,01 ATE 4,00M DE PROFUNDIDADE COM UTILIZACAO DE ESCAVADEIRA HIDRAULICA | E84: m³ | F84: 853.73 | G84: 11.04 | H84: =G84*(1+$J$5) -> 13.714992 | I84: =SUM(F84*G84,2) -> 9427.1792 | J84: =ROUND(F84*H84,2) -> 11708.9
A85: 7.1.2 | B85: 93382 | C85: SINAPI | D85: REATERRO MANUAL DE VALAS COM COMPACTAÇÃO MECANIZADA. AF_04/2016 | E85: m³ | F85: 810.16 | G85: 21.06 | H85: 26.162838 | I85: 17063.9696 | J85: 21196.08
A86: 7.1.3 | B86: 83534 | C86: SINAPI | D86: LASTRO DE CONCRETO, PREPARO MECÂNICO, INCLUSOS ADITIVO IMPERMEABILIZANTE, LANÇAMENTO E ADENSAMENTO | E86: m³ | F86: 3.31 | G86: 434.59 | H86: 539.891157 | I86: 1440.4929 | J86: 1787.04
A87: 7.1.4 | B87: 5914569 | C87: DNIT/MG | D87: TRANSPORTE COM CAMINHÃO BETONEIRA - RODOVIA PAVIMENTADA (Entre Bocaiúva/MG e Francisco Dumont/MG - 69,00km) | E87: txkm | F87: =SUM(F89*2.4)*69 -> 5266.08 | G87: 0.35 | H87: 0.434805 | I87: 1845.128 | J87: 2289.72
A88: 7.1.5 | B88: 5914539 | C88: DNIT/MG | D88: TRANSPORTE COM CAMINHÃO BETONEIRA - RODOVIA EM LEITO NATURAL (Entre Francisco Dumont/MG e Área B - 9,00km) | E88: txkm | F88: =SUM(F89*2.4)*9 -> 686.88 | G88: 0.54 | H88: 0.670842 | I88: 372.9152 | J88: 460.79
A89: 7.1.6 | B89: 1106280 | C89: DNIT/MG | D89: CONCRETO PARA BOMBEAMENTO FCK = 30 MPA - CONFECÇÃO EM CENTRAL DOSADORA DE 30 M³/H - AREIA E BRITA COMERCIAIS | E89: m³ | F89: 31.8 | G89: 224.51 | H89: 278.908773 | I89: 7141.418 | J89: 8869.3
A90: 7.1.7 | B90: 92270 | C90: SINAPI | D90: FABRICAÇÃO DE FÔRMA PARA VIGAS, COM MADEIRA SERRADA, E = 25 MM. AF_12/2015 | E90: m² | F90: 9.6 | G90: 74.75 | H90: 92.861925 | I90: 719.6 | J90: 891.47
A91: 7.2 | B91: MESO E SUPER ESTRUTURA | I91: =SUM(I92:I117) -> 621738.4826 | J91: =SUM(J92:J117) -> 772321.11
A92: 7.2.1 | B92: 92263 | C92: SINAPI | D92: FABRICAÇÃO DE FÔRMA PARA PILARES E ESTRUTURAS SIMILARES, EM CHAPA DE MADEIRA COMPENSADA RESINADA, E = 17 MM. AF_12/2015 | E92: m² | F92: =1484.97+87.324 -> 1572.294 | G92: 84.2 | H92: =G92*(1+$J$5) -> 104.60166 | I92: =SUM(F92*G92,2) -> 132389.1548 | J92: =ROUND(F92*H92,2) -> 164464.56
A93: 7.2.2 | B93: 83534 | C93: SINAPI | D93: LASTRO DE CONCRETO, PREPARO MECÂNICO, INCLUSOS ADITIVO IMPERMEABILIZANTE, LANÇAMENTO E ADENSAMENTO | E93: m³ | F93: 5.35 | G93: 434.59 | H93: 539.891157 | I93: 2327.0565 | J93: 2888.42
A94: 7.2.3 | B94: 5914569 | C94: DNIT/MG | D94: TRANSPORTE COM CAMINHÃO BETONEIRA - RODOVIA PAVIMENTADA (Entre Bocaiúva/MG e Francisco Dumont/MG - 69,00km) | E94: txkm | F94: =SUM(($F$96+$F$97+$F$98)*2.4)*69 -> 42029.28 | G94: 0.35 | H94: 0.434805 | I94: 14712.248 | J94: 18274.54
A95: 7.2.4 | B95: 5914539 | C95: DNIT/MG | D95: TRANSPORTE COM CAMINHÃO BETONEIRA - RODOVIA EM LEITO NATURAL (Entre Francisco Dumont/MG e Área B - 9,00km) | E95: txkm | F95: =SUM(($F$96+$F$97+$F$98)*2.4)*9 -> 5482.08 | G95: 0.54 | H95: 0.670842 | I95: 2962.3232 | J95: 3677.61
A96: 7.2.5 | B96: 1116263 | C96: DNIT/MG | D96: CONCRETO PARA BOMBEAMENTO FCK = 25 MPA - CONFECÇÃO EM CENTRAL DOSADORA DE 30 M³/H - AREIA E BRITA COMERCIAIS | E96: m³ | F96: 11 | G96: 214.21 | H96: 266.113083 | I96: 2358.31 | J96: 2927.24
A97: 7.2.6 | B97: 1106280 | C97: DNIT/MG | D97: CONCRETO PARA BOMBEAMENTO FCK = 30 MPA - CONFECÇÃO EM CENTRAL DOSADORA DE 30 M³/H - AREIA E BRITA COMERCIAIS | E97: m³ | F97: 97.15 | G97: 224.51 | H97: 278.908773 | I97: 21813.1465 | J97: 27095.99
A98: 7.2.7 | B98: 1106281 | C98: DNIT/MG | D98: CONCRETO PARA BOMBEAMENTO FCK = 35 MPA - CONFECÇÃO EM CENTRAL DOSADORA DE 30 M³/H - AREIA E BRITA COMERCIAIS | E98: m³ | F98: 145.65 | G98: 236.01 | H98: 293.195223 | I98: 34376.8565 | J98: 42703.88
A99: 7.2.8 | B99: 1107860 | C99: DNIT/MG | D99: LANÇAMENTO MECÂNICO DE CONCRETO COM BOMBA LANÇA SOBRE CHASSI COM CAPACIDADE DE 45 M³/H - CONFECÇÃO EM CENTRAL DOSADORA DE 40 M³/H | E99: m³ | F99: =SUM(F96+F97+F98) -> 253.8 | G99: 31.52 | H99: 39.157296 | I99: 8001.776 | J99: 9938.12
A100: 7.2.9 | B100: ED-50430 | C100: DEER/MG | D100: FORNECIMENTO E APLICAÇÃO DE GROUT PARA ANCORAGENS | E100: m³ | F100: 0.288 | G100: 272.56 | H100: 338.601288 | I100: 80.49728 | J100: 97.52
A101: 7.2.10 | B101: 92792 | C101: SINAPI | D101: CORTE E DOBRA DE AÇO CA-50, DIÂMETRO DE 6,3 MM, UTILIZADO EM ESTRUTURA S DIVERSAS | E101: kg | F101: 1562 | G101: 5.92 | H101: 7.354416 | I101: 9249.04 | J101: 11487.6
A102: 7.2.11 | B102: 92793 | C102: SINAPI | D102: CORTE E DOBRA DE AÇO CA-50, DIÂMETRO DE 8,0 MM, UTILIZADO EM ESTRUTURA S DIVERSAS | E102: kg | F102: 2991 | G102: 6.35 | H102: 7.888605 | I102: 18994.85 | J102: 23594.82
A103: 7.2.12 | B103: 92794 | C103: SINAPI | D103: CORTE E DOBRA DE AÇO CA-50, DIÂMETRO DE 10,0 MM, UTILIZADO EM ESTRUTURAS DIVERSAS | E103: kg | F103: 9471 | G103: 5.27 | H103: 6.546921 | I103: 49914.17 | J103: 62005.89
A104: 7.2.13 | B104: 92795 | C104: SINAPI | D104: CORTE E DOBRA DE AÇO CA-50, DIÂMETRO DE 12,5 MM, UTILIZADO EM ESTRUTURAS DIVERSAS | E104: kg | F104: 7154 | G104: 4.91 | H104: 6.099693 | I104: 35128.14 | J104: 43637.2
A105: 7.2.14 | B105: 92796 | C105: SINAPI | D105: CORTE E DOBRA DE AÇO CA-50, DIÂMETRO DE 16,0 MM, UTILIZADO EM ESTRUTURAS DIVERSAS | E105: kg | F105: 7751 | G105: 4.84 | H105: 6.012732 | I105: 37516.84 | J105: 46604.69
A106: 7.2.15 | B106: 92797 | C106: SINAPI | D106: CORTE E DOBRA DE AÇO CA-50, DIÂMETRO DE 20,0 MM, UTILIZADO EM ESTRUTURAS DIVERSAS | E106: kg | F106: 4017 | G106: 4.62 | H106: 5.739426 | I106: 18560.54 | J106: 23055.27
A107: 7.2.16 | B107: 92798 | C107: SINAPI | D107: CORTE E DOBRA DE AÇO CA-50, DIÂMETRO DE 25,0 MM, UTILIZADO EM ESTRUTURAS DIVERSAS | E107: kg | F107: 334 | G107: 5.33 | H107: 6.621459 | I107: 1782.22 | J107: 2211.57
A108: 7.2.17 | B108: 92880 | C108: SINAPI | D108: CORTE E DOBRA DE AÇO CA-25, DIÂMETRO DE 20,0 MM. AF_12/2015 | E108: kg | F108: 448 | G108: 4.78 | H108: 5.938194 | I108: 2143.44 | J108: 2660.31
A109: 7.2.18 | B109: 307736 | C109: DNIT/MG | D109: JUNTA DE DILATAÇÃO EM PERFIL EXTRUDADO DE BORRACHA VULCANIZADA DE 40 X 70 MM - FORNECIMENTO E INSTALAÇÃO | E109: m | F109: 20.6 | G109: 1017.84 | H109: 1264.462632 | I109: 20969.504 | J109: 26047.93
A110: 7.2.19 | B110: 91790 | C110: SINAPI | D110: (COMPOSIÇÃO REPRESENTATIVA) DO SERVIÇO DE INSTALAÇÃO DE TUBOS DE PVC, SÉRIE R, ÁGUA PLUVIAL, DN 100 MM (INSTALADO EM RAMAL DE ENCAMINHAMENTO , OU CONDUTORES VERTICAIS), INCLUSIVE CONEXÕES, CORTES E FIXAÇÕES, PARA PRÉDIOS. AF_10/2015 | E110: m | F110: 152.46 | G110: 40.95 | H110: 50.872185 | I110: 6245.237 | J110: 7755.97
A111: 7.2.20 | B111: 84154 | C111: SINAPI | D111: APARELHO APOIO NEOPRENE FRETADO | E111: dm³ | F111: 45.12 | G111: 109.06 | H111: 135.485238 | I111: 4922.7872 | J111: 6113.09
A112: 7.2.21 | B112: 73770/001 | C112: SINAPI | D112: BARREIRA PRE-MOLDADA EXTERNA CONCRETO ARMADO 0,25X0,40X1,14M FCK=25MPA ACO CA-50 INCL VIGOTA HORIZONTAL MONTANTE A CADA 1,00M FERROS DE LIGACAO E MATERIAIS. | E112: m | F112: 76.23 | G112: 450.09 | H112: 559.146807 | I112: 34312.3607 | J112: 42623.76
A113: 7.2.22 | B113: ED-50429 | C113: DEER/MG | D113: LANÇAMENTO DE TABULEIRO PRÉ-MOLDADO | E113: unid. | F113: 310 | G113: 63.38 | H113: 78.736974 | I113: 19649.8 | J113: 24408.46
A114: 7.2.23 | B114: 4507956 | C114: DNIT/MG | D114: CORDOALHA CP 190 RB D = 12,7 MM - FORNECIMENTO, PREPARO E COLOCAÇÃO | E114: Kg | F114: 3903.2 | G114: 9.37 | H114: 11.640351 | I114: 36574.984 | J114: 45434.62
A115: 7.2.24 | B115: 4508176 | C115: DNIT/MG | D115: BAINHA METÁLICA DIÂMETRO 95 MM PARA 19 CORDOALHAS D = 15,2 MM, SEMI-RÍGIDA, REDONDA, COM MONTAGEM E INJEÇÃO DE NATA DE CIMENTO | E115: m | F115: 474.88 | G115: 69.34 | H115: 86.141082 | I115: 32930.1792 | J115: 40906.68
A116: 7.2.25 | B116: 4507755 | C116: DNIT/MG | D116: ANCORAGEM ATIVA PARA 12 CORDOALHAS D = 12,7 MM COM PLACA DE ANCORAGEM, BLOCO, CUNHAS TRIPARTIDAS, TROMBETA E PROTENSÃO | E116: unid. | F116: 32 | G116: 1454.16 | H116: 1806.502968 | I116: 46535.12 | J116: 57808.09
A117: 7.2.26 | B117: 26.13.01.99 | C117: DER/SP | D117: LANCAMENTO VIGA P<=50T-GUINDASTE AUTO PROPULSADO | E117: unid. | F117: 4 | G117: =SUM(9672.17/1.4179) -> 6821.475421 | H117: 8474.318916 | I117: 27287.90169 | J117: 33897.28
H118: TOTAL OAE | I118: =SUM(I83+I91) -> 659749.1855 | J118: =SUM(J83+J91) -> 819524.41
A120: 8 - MATERIAIS E TRANSPORTE PARA PAVIMENTAÇÃO ASFÁLTICA (PARA USINA EM MONTES CLAROS)
A121: 8.1 | B121: CAP - CIMENTO ASFÁLTICO | I121: =SUM(I122:I123) -> 5916.7 | J121: =SUM(J122:J123) -> 7345.35
A122: 8.1.2 | B122: 72849 | C122: SINAPI | D122: CARGA, MANOBRAS E DESCARGA DE MISTURAS DE SOLOS E AGREGADOS (BASES ESTABILIZADAS EM USINA) COM CAMINHAO BASCULANTE 6 M3 | E122: t | F122: 15 | G122: 2.68 | H122: =G122*(1+$J$5) -> 3.329364 | I122: =SUM(F122*G122,2) -> 42.2 | J122: =ROUND(F122*H122,2) -> 49.94
A123: 8.1.3 | B123: 72884 | C123: SINAPI | D123: TRANSPORTE COMERCIAL COM CAMINHAO CARROCERIA 9 T (435KM) | E123: m³*km | F123: =F122*435 -> 6525 | G123: 0.9 | H123: 1.11807 | I123: 5874.5 | J123: =ROUND(F123*H123,2) -> 7295.41
A124: 8.2 | B124: AREIA | I124: =SUM(I125:I126) -> 8825.89 | J124: =SUM(J125:J126) -> 10959.43
A125: 8.2.2 | B125: 72888 | C125: SINAPI | D125: CARGA, MANOBRAS E DESCARGA DE AREIA, BRITA, PEDRA DE MAO E SOLOS COM CAMINHAO BASCULANTE 6 M3 (DESCARGA LIVRE) | E125: m³ | F125: 67 | G125: 1.17 | H125: =G125*(1+$J$5) -> 1.453491 | I125: =SUM(F125*G125,2) -> 80.39 | J125: =ROUND(F125*H125,2) -> 97.38
A126: 8.2.3 | B126: 72884 | C126: SINAPI | D126: TRANSPORTE COMERCIAL COM CAMINHAO CARROCERIA 9 T (145KM) | E126: m³*km | F126: =F125*145 -> 9715 | G126: 0.9 | H126: 1.11807 | I126: 8745.5 | J126: =ROUND(F126*H126,2) -> 10862.05
A127: 8.3 | B127: BRITA | I127: =SUM(I128:I129) -> 921.8425 | J127: =SUM(J128:J129) -> 1140.24
A128: 8.3.3 | B128: 72888 | C128: SINAPI | D128: CARGA, MANOBRAS E DESCARGA DE AREIA, BRITA, PEDRA DE MAO E SOLOS COM CAMINHAO BASCULANTE 6 M3 (DESCARGA LIVRE) | E128: m³ | F128: 90.25 | G128: 1.17 | H128: =G128*(1+$J$5) -> 1.453491 | I128: =SUM(F128*G128,2) -> 107.5925 | J128: =ROUND(F128*H128,2) -> 131.18
A129: 8.3.4 | B129: 72884 | C129: SINAPI | D129: TRANSPORTE COMERCIAL COM CAMINHAO CARROCERIA 9 T (10KM) | E129: m³*km | F129: =F128*10 -> 902.5 | G129: 0.9 | H129: 1.11807 | I129: 814.25 | J129: =ROUND(F129*H129,2) -> 1009.06
H130: TOTAL DE MATERIAIS DO CONCRETO | I130: =SUM(I121+I124+I127) -> 15664.4325 | J130: =SUM(J121+J124+J127) -> 19445.02
A132: 9 - PAVIMENTAÇÃO ASFÁLTICA
A133: 9.1 | B133: PAVIMENTO FLEXIVEL - NOVO E RECUPERAÇÃO | I133: =SUM(I134:I149) -> 203065.8693 | J133: =SUM(J134:J149) -> 252228.95
A134: 9.1.1 | B134: 83338 | C134: SINAPI | D134: ESCAVACAO MECANICA, A CEU ABERTO, EM MATERIAL DE 1A CATEGORIA, COM ESCAVADEIRA HIDRAULICA, CAPACIDADE DE 0,78 M3 - CORTE | E134: m³ | F134: 202.8 | G134: 2.23 | H134: =G134*(1+$J$5) -> 2.770329 | I134: =SUM(F134*G134,2) -> 454.244 | J134: =ROUND(F134*H134,2) -> 561.82
A135: 9.1.2 | B135: 83338 | C135: SINAPI | D135: ESCAVACAO MECANICA, A CEU ABERTO, EM MATERIAL DE 1A CATEGORIA, COM ESCAVADEIRA HIDRAULICA, CAPACIDADE DE 0,78 M3 - CORTE JAZIDA | E135: m³ | F135: 807.09 | G135: 2.23 | H135: 2.770329 | I135: 1801.8107 | J135: 2235.9
A136: 9.1.3 | B136: RO-40251 | C136: DEER/MG | D136: COMPACTAÇÃO DE ATERRO A 100% PROCTOR NORMAL | E136: m³ | F136: 807.09 | G136: 3.15 | H136: 3.913245 | I136: 2544.3335 | J136: 3158.34
A137: 9.1.4 | B137: RO-43112 | C137: DEER/MG | D137: SUB-BASE, SEMMISTURA, COMPACTADA NA ENERGIA DO PROCTOR INTERMEDIÁRIO (EXECUÇÃO, INCLUINDO ESCAVAÇÃO, CARGA, DESCARGA, ESPALHAMENTO, UMIDECIMENTO E COMPACTAÇÃO DO MATERIAL; EXCLUI AQUISIÇÃO E TRANSPORTE DO MATERIAL) | E137: m³ | F137: 252.67 | G137: 14.25 | H137: 17.702775 | I137: 3602.5475 | J137: 4472.96
A138: 9.1.5 | B138: RO-43113 | C138: DEER/MG | D138: BASE DE SOLO SEM MISTURA, COMPACTADA NA ENERGIA DO PROCTOR INTERMEDIÁRIO (EXECUÇÃO, INCLUINDO ESCAVAÇÃO, CARGA, DESCARGA, ESPALHAMENTO, UMIDECIMENTO E COMPACTAÇÃO DO MATERIAL; EXCLUI AQUISIÇÃO E TRANSPORTEDO MATERIAL) | E138: m³ | F138: 252.67 | G138: 14.25 | H138: 17.702775 | I138: 3602.5475 | J138: 4472.96
A139: 9.1.6 | B139: 96401 | C139: SINAPI | D139: EXECUÇÃO DE IMPRIMAÇÃO COM ASFALTO DILUÍDO CM-30. AF_09/2017 | E139: m² | F139: 1924.22 | G139: 6.24 | H139: 7.751952 | I139: 12009.1328 | J139: 14916.46
A140: 9.1.7 | B140: 93176 | C140: SINAPI | D140: TRANSPORTE DE MATERIAL ASFALTICO, COM CAMINHÃO COM CAPACIDADE DE 30000 L EM RODOVIA PAVIMENTADA. AF_02/2016 (P/ ITEM 6.1.6) (ORIUNDO DE BETIM/MG DISTANTE 377KM DIRETO PARA OBRA B) | E140: txkm | F140: 870.52 | G140: 0.48 | H140: 0.596304 | I140: 419.8496 | J140: 519.09
A141: 9.1.8 | B141: 93178 | C141: SINAPI | D141: TRANSPORTE DE MATERIAL ASFALTICO, COM CAMINHÃO COM CAPACIDADE DE 30000 TXKM L EM RODOVIA NÃO PAVIMENTADA PARA DISTÂNCIAS MÉDIAS DE TRANSPORTE SUPERIORES A 100 KM. AF_02/2016 (9KM EM TERRA) B) | E141: txkm | F141: 20.78 | G141: 0.54 | H141: 0.670842 | I141: 13.2212 | J141: 13.94
A142: 9.1.9 | B142: 72942 | C142: SINAPI | D142: PINTURA DE LIGACAO COM EMULSAO RR-1C | E142: m² | F142: 1924.22 | G142: 1.62 | H142: 2.012526 | I142: 3119.2364 | J142: 3872.54
A143: 9.1.10 | B143: 93176 | C143: SINAPI | D143: TRANSPORTE DE MATERIAL ASFALTICO, COM CAMINHÃO COM CAPACIDADE DE 30000 L EM RODOVIA PAVIMENTADA. AF_02/2016 (P/ ITEM 6.1.9) (ORIUNDO DE BETIM/MG DISTANTE 377KM DIRETO PARA OBRA B) | E143: txkm | F143: 290.29 | G143: 0.48 | H143: 0.596304 | I143: 141.3392 | J143: 173.1
A144: 9.1.11 | B144: 93178 | C144: SINAPI | D144: TRANSPORTE DE MATERIAL ASFALTICO, COM CAMINHÃO COM CAPACIDADE DE 30000 TXKM L EM RODOVIA NÃO PAVIMENTADA PARA DISTÂNCIAS MÉDIAS DE TRANSPORTE SUPERIORES A 100 KM. AF_02/2016 (9KM EM TERRA) B) | E144: txkm | F144: 6.93 | G144: 0.54 | H144: 0.670842 | I144: 5.7422 | J144: 4.65
A145: 9.1.12 | B145: 95995 | C145: SINAPI | D145: CONSTRUÇÃO DE PAVIMENTO COM APLICAÇÃO DE CONCRETO BETUMINOSO USINADO A QUENTE (CBUQ), CAMADA DE ROLAMENTO, COM ESPESSURA DE 5,0 CM - EXCLUSIVE TRANSPORTE. AF_03/2017 (PAVIMENTAÇÃO ESTRADA) | E145: m³ | F145: 84.22 | G145: 1017.65 | H145: 1264.226595 | I145: 85708.483 | J145: 106473.16
A146: 9.1.13 | B146: 95995 | C146: SINAPI | D146: CONSTRUÇÃO DE PAVIMENTO COM APLICAÇÃO DE CONCRETO BETUMINOSO USINADO A QUENTE (CBUQ), CAMADA DE ROLAMENTO, COM ESPESSURA DE 5,0 CM - EXCLUSIVE TRANSPORTE. AF_03/2017 (PAVIMENTAÇÃO OAE) | E146: m³ | F146: 24 | G146: 1017.65 | H146: 1264.226595 | I146: 24425.6 | J146: 30341.44
A147: 9.1.14 | B147: 93177 | C147: SINAPI | D147: TRANSPORTE DE MATERIAL ASFALTICO, COM CAMINHÃO COM CAPACIDADE DE 20000 L EM RODOVIA PAVIMENTADA. AF_02/2016 (P/ ITEM 2.1.12) (DE MONTES CLAROS/MG ATÉ JEQUITAÍ/MG - DIST. 111KM) | E147: txkm | F147: 28904.4 | G147: 1.69 | H147: 2.099487 | I147: 48850.436 | J147: 60684.41
A148: 9.1.15 | B148: 93178 | C148: SINAPI | D148: TRANSPORTE DE MATERIAL ASFALTICO, COM CAMINHÃO COM CAPACIDADE DE 30000 TXKM L EM RODOVIA NÃO PAVIMENTADA PARA DISTÂNCIAS MÉDIAS DE TRANSPORTE SUPERIORES A 100 KM. AF_02/2016 (DE JEQUITAÍ ATÉ ÁREA B) | E148: txkm | F148: 5468.4 | G148: 0.54 | H148: 0.670842 | I148: 2954.936 | J148: 3668.43
A149: 9.1.16 | B149: RO-41344 | C149: DEER/MG | D149: TRANSPORTE DE MATERIAL DE JAZIDA PARA CONSERVAÇÃO. DISTÂNCIA MÉDIA DE TRANSPORTE > 50,10 KM (ESCAVAÇÃO+BASE E SUB BASE) - 13,10KM. | E149: m³xkm | F149: =SUM(F135+F137+F138)*13.1 -> 17192.833 | G149: 0.78 | H149: 0.968994 | I149: 13412.40974 | J149: 16659.75
H150: TOTAL PAVIMENTAÇÃO ASFÁLTICA | I150: =SUM(I133) -> 203065.8693 | J150: =SUM(J133) -> 252228.95
A152: 10 - COMPLEMENTARES
A153: 10.1 | B153: RECOMPOSIÇÃO DE DIVISAS | I153: =SUM(I154) -> 4641.3875 | J153: =SUM(J154) -> 5763.51
A154: 10.1.1 | B154: 74039/001 | C154: SINAPI | D154: CERCA COM MOUROES DE MADEIRA ROLICA, DIAMETRO 11CM, ESPACAMENTO DE 2M, ALTURA LIVRE DE 1M, CRAVADOS 0,5M, COM 5 FIOS DE ARAME FARPADO Nº 14 CLASSE 250 | E154: m | F154: 189.75 | G154: 24.45 | H154: =G154*(1+$J$5) -> 30.374235 | I154: =SUM(F154*G154,2) -> 4641.3875 | J154: =ROUND(F154*H154,2) -> 5763.51
H155: TOTAL COMPLEMENTARES | I155: =SUM(I153) -> 4641.3875 | J155: =SUM(J153) -> 5763.51
A157: 11 - SINALIZAÇÃO DE OBRA E DEFINITIVA
A158: 11.1 | B158: SINALIZAÇÃO DE OBRA | I158: =SUM(I159:I163) -> 18933.0493 | J158: =SUM(J159:J163) -> 23508.1
A159: 11.1.1 | B159: 97051 | C159: SINAPI | D159: SINALIZAÇÃO COM FITA FIXADA NA ESTRUTURA. AF_11/2017 | E159: m | F159: 3000 | G159: 0.46 | H159: =G159*(1+$J$5) -> 0.571458 | I159: =SUM(F159*G159,2) -> 1382 | J159: =ROUND(F159*H159,2) -> 1714.37
A160: 11.1.2 | B160: RO-41841 | C160: DEER/MG | D160: PLACA DE AÇO CARBONO COM PELÍCULA REFLETIVA GRAU TÉCNICO TIPO I DA ABNT - PLACA CIRCULAR (EXECUÇÃO, INCLUINDO FORNECIMENTO E TRANSPORTE DE TODOS OS MATERIAIS, INCLUSIVE POSTE DE SUSTENTAÇÃO) | E160: m² | F160: 0.78 | G160: 337.22 | H160: 418.928406 | I160: 265.0316 | J160: =ROUND(F160*H160,2) -> 326.76
A161: 11.1.3 | B161: RO-41844 | C161: DEER/MG | D161: PLACA DE AÇO CARBONO COM PELÍCULA REFLETIVA GRAU TÉCNICO TIPO I DA ABNT - PLACA QUADRADA (EXECUÇÃO, INCLUINDO FORNECIMENTO E TRANSPORTE DE TODOS OS MATERIAIS, INCLUSIVE POSTE DE SUSTENTAÇÃO) | E161: m² | F161: 15.89 | G161: 326.75 | H161: 405.921525 | I161: 5194.0575 | J161: =ROUND(F161*H161,2) -> 6450.09
A162: 11.1.4 | B162: RO-43226 | C162: DEER/MG | D162: COLOCAÇÃO DE PLACAS | E162: m² | F162: 16.67 | G162: 64.06 | H162: 79.581738 | I162: 1069.8802 | J162: =ROUND(F162*H162,2) -> 1326.63
A163: 11.1.5 | B163: 85424 | C163: SINAPI | D163: ISOLAMENTO DE OBRA COM TELA PLASTICA COM MALHA DE 5MM E ESTRUTURA DE MADEIRA PONTALETEADA | E163: m | F163: 584 | G163: 18.87 | H163: 23.442201 | I163: 11022.08 | J163: =ROUND(F163*H163,2) -> 13690.25
A164: 11.2 | B164: SINALIZAÇÃO DEFINITIVA HORIZONTAL | I164: =SUM(I165:I166) -> 211.6 | J164: =SUM(J165:J166) -> 257.9
A165: 11.2.1 | B165: RO-41237 OBR-VIA-245 | C165: DEER/MG | D165: LINHAS DE RESINA ACRILICA 0,6MM DE ESPESSURA E LARGURA = 0,10M (EXECUÇÃO, INCLUSIVE PRÉ-MARCAÇÃO, FORNECIMENTO E TRANSPORTE DE TODOS OS MATERIAIS) - LINHAS BRANCAS | E165: m² | F165: 40 | G165: 1.73 | H165: =G165*(1+$J$5) -> 2.149179 | I165: =SUM(F165*G165,2) -> 71.2 | J165: =ROUND(F165*H165,2) -> 85.97
A166: 11.2.2 | B166: RO-41237 OBR-VIA-245 | C166: DEER/MG | D166: LINHAS DE RESINA ACRILICA 0,6MM DE ESPESSURA E LARGURA = 0,10M (EXECUÇÃO, INCLUSIVE PRÉ-MARCAÇÃO, FORNECIMENTO E TRANSPORTE DE TODOS OS MATERIAIS) - LINHAS AMARELAS | E166: m² | F166: 80 | G166: 1.73 | H166: 2.149179 | I166: 140.4 | J166: =ROUND(F166*H166,2) -> 171.93
A167: 11.3 | B167: SINALIZAÇÃO DEFINITIVA VERTICAL | I167: =SUM(I168:I170) -> 553.2992 | J167: =SUM(J168:J170) -> 679.91
A168: 11.3.1 | B168: RO-41841 | C168: DEER/MG | D168: PLACA DE AÇO CARBONO COM PELÍCULA REFLETIVA GRAU TÉCNICO TIPO I DA ABNT - PLACA CIRCULAR (EXECUÇÃO, INCLUINDO FORNECIMENTO E TRANSPORTE DE TODOS OS MATERIAIS, INCLUSIVE POSTE DE SUSTENTAÇÃO) | E168: m² | F168: 0.39 | G168: 337.22 | H168: =G168*(1+$J$5) -> 418.928406 | I168: =SUM(F168*G168,2) -> 133.5158 | J168: =ROUND(F168*H168,2) -> 163.38
A169: 11.3.2 | B169: RO-41844 | C169: DEER/MG | D169: PLACA DE AÇO CARBONO COM PELÍCULA REFLETIVA GRAU TÉCNICO TIPO I DA ABNT - PLACA QUADRADA (EXECUÇÃO, INCLUINDO FORNECIMENTO E TRANSPORTE DE TODOS OS MATERIAIS, INCLUSIVE POSTE DE SUSTENTAÇÃO) | E169: m² | F169: 1 | G169: 326.74 | H169: 405.909102 | I169: 328.74 | J169: =ROUND(F169*H169,2) -> 405.91
A170: 11.3.3 | B170: RO-43226 | C170: DEER/MG | D170: COLOCAÇÃO DE PLACAS | E170: m² | F170: 1.39 | G170: 64.06 | H170: 79.581738 | I170: 91.0434 | J170: =ROUND(F170*H170,2) -> 110.62
A171: 11.4 | B171: DISPOSITIVOS DE SEGURANÇA | I171: =SUM(I172:I173) -> 5070.802205 | J171: =SUM(J172:J173) -> 6294.48
A172: 11.4.1 | B172: RO-41763 | C172: DEER/MG | D172: DEFENSA SINGELA SEMI-MALEÁVEL SV-DSM-02 (EXECUÇÃO, INCLUINDO FORNECIMENTO, COLOCAÇÃO E TRANSPORTE DE TODOS OS MATERIAIS) | E172: m | F172: 19 | G172: 264.46 | H172: =G172*(1+$J$5) -> 328.538658 | I172: =SUM(F172*G172,2) -> 5026.74 | J172: =ROUND(F172*H172,2) -> 6242.23
A173: 11.4.2 | B173: 28.10.01.99 | C173: DER/SP | D173: FORN./INSTAL. BALIZ.(CATADIOPTRICO) P/DEF. MET. C/PELICULA GT+GT, CONF.OP-06-05 | E173: un. | F173: 2 | G173: =SUM(29.82/1.4179) -> 21.03110233 | H173: 26.12693843 | I173: 44.06220467 | J173: =ROUND(F173*H173,2) -> 52.25
H174: TOTAL SINALIZAÇÃO DE OBRA E DEFINITIVA | I174: =SUM(I158+I164+I167+I171) -> 24768.7507 | J174: =SUM(J158+J164+J167+J171) -> 30740.39
A176: 12 - DESMOBILIZAÇÃO
A177: 12.1 | B177: DESMOBILIZAÇÃO | I177: =SUM(I178) -> 12485.096 | J177: =SUM(J178) -> 15507.75
A178: 12.1.1 | B178: C4 | C178: CPU | D178: DESMOBILIZAÇÃO | E178: un. | F178: 1 | G178: =[1]CPU!$J$116 -> 12483.096 | H178: =G178*(1+$J$5) -> 15507.75016 | I178: =SUM(F178*G178,2) -> 12485.096 | J178: =ROUND(F178*H178,2) -> 15507.75
H179: TOTAL DESMOBILIZAÇÃO | I179: =SUM(I177) -> 12485.096 | J179: =SUM(J177) -> 15507.75
H181: TOTAL GERAL | I181: =SUM(I20+I27+I32+I43+I62+I80+I118+I130+I150+I155+I174+I179) -> 1174626.547 | J181: =SUM(J20+J27+J32+J43+J62+J80+J118+J130+J150+J155+J174+J179) -> 1458970.17

Sheet PL-ORÇ-DEF.C
A1: CDV-249-001-000-003-PL-PE-A07-001 - PLANILHA DE QUANTIDADES E CUSTOS – OAE E PAVIMENTAÇÃO
A2: CONTRATANTE: | C2: CODEVASF - COMPANHIA DE DESENVOLVIMENTO DOS VALES DO SÃO FRANCISCO E PARNAÍBA | I2: REV.: | J2: A7
A3: OBRA: | C3: OAE E PAVIMENTAÇÃO - ÁREA C | I3: DATA: | J3: NOV2019
A4: LOCAL: | C4: MG208 - ENTRE JEQUITAÍ/ MG E FRANCISCO DUMONT/MG | H4: VALOR TOTAL C/BDI (R$): | J4: =SUM(J181) -> 15922824.63
A5: DATA BASE TABELAS: | C5: SINAPI-SET2019 / DEER-MG-AGO2019 / DNIT-MG ABR/2019 / SIURB JAN2019 / DER-SP - MAR2019 | H5: BDI (%): | J5: 0.2423
A6: PRAZO EXECUÇÃO: | C6: 10 (DEZ) MESES
A8: Item | B8: Código | C8: Fonte | D8: Especificação | E8: Unidade | F8: Quantidade | G8: Preço Unitário (R$) | I8: Preço Total
G9: Sem BDI | H9: Com BDI | I9: Sem BDI | J9: Com BDI
A11: 1 - SERVIÇOS PRELIMINARES
A12: 1.1 | B12: SERVIÇOS PRELIMINARES | I12: =SUM(I13:I19) -> 472983.0287 | J12: =SUM(J13:J19) -> 587569.42
A13: 1.1.1 | B13: RO-41291 | C13: DEER/MG | D13: REMOÇÃO DE CERCAS | E13: m | F13: 3659.03 | G13: 6.45 | H13: =G13*(1+$J$5) -> 8.012835 | I13: =SUM(F13*G13,2) -> 23602.7435 | J13: =ROUND(F13*H13,2) -> 29319.2
A14: 1.1.2 | B14: 73822/002 | C14: SINAPI | D14: LIMPEZA MECANIZADA DE TERRENO COM REMOCAO DE CAMADA VEGETAL, UTILIZANDO MOTONIVELADORA (JAZIDA) | E14: m² | F14: 1000 | G14: 0.48 | H14: =G14*(1+$J$5) -> 0.596304 | I14: =SUM(F14*G14,2) -> 482 | J14: =ROUND(F14*H14,2) -> 596.3
A15: 1.1.3 | B15: 73822/002 | C15: SINAPI | D15: LIMPEZA MECANIZADA DE TERRENO COM REMOCAO DE CAMADA VEGETAL, UTILIZANDO MOTONIVELADORA (ESTRADA NOVA) | E15: m² | F15: 47873.72 | G15: 0.48 | H15: 0.596304 | I15: 22981.3856 | J15: =ROUND(F15*H15,2) -> 28547.29
A16: 1.1.4 | B16: 72898 | C16: SINAPI | D16: CARGA E DESCARGA MECANIZADAS DE ENTULHO EM CAMINHAO BASCULANTE 6 M3 | E16: m³ | F16: 9774.74 | G16: 3.86 | H16: 4.795278 | I16: 37732.4964 | J16: =ROUND(F16*H16,2) -> 46872.6
A17: 1.1.5 | B17: 97916 | C17: SINAPI | D17: TRANSPORTE COM CAMINHÃO BASCULANTE DE 6 M3, EM VIA URBANA EM LEITO NATURAL TXKM (UNIDADE: TXKM). AF_01/2018 | E17: txkm | F17: 262285 | G17: 1.47 | H17: 1.826181 | I17: 385560.95 | J17: 478979.88
A18: 1.1.6 | B18: RO-42263 | C18: DEER/MG | D18: ESPALHAMENTO DE MATERIAL EM BOTA-FORA | E18: m³ | F18: 9774.74 | G18: 0.18 | H18: 0.223614 | I18: 1761.4532 | J18: =ROUND(F18*H18,2) -> 2185.77
A19: 1.1.7 | B19: 99064 | C19: SINAPI | D19: LOCAÇÃO DE PAVIMENTAÇÃO. AF_10/2018 | E19: m | F19: 1720 | G19: 0.5 | H19: 0.62115 | I19: 862 | J19: =ROUND(F19*H19,2) -> 1068.38
H20: TOTAL SERVIÇOS PRELIMINARES | I20: =SUM(I12) -> 472983.0287 | J20: =SUM(J12) -> 587569.42
A22: 2 - CANTEIRO DE OBRAS
A23: 2.1 | B23: CANTEIRO DE OBRAS | I23: =SUM(I24:I26) -> 443069.38 | J23: =SUM(J24:J26) -> 550417.63
A24: 2.1.1 | B24: C1 | C24: CPU | D24: ADMINISTRAÇÃO LOCAL E MANUTENÇÃO DO CANTEIRO DE OBRAS EM CONTAINER - PRAZO DE OBRA IGUAL A 12 MESES | E24: GL | F24: 1 | G24: =[2]CPU!$J$55 -> 382709.26 | H24: =G24*(1+$J$5) -> 475439.7137 | I24: =SUM(F24*G24,2) -> 382711.26 | J24: =ROUND(F24*H24,2) -> 475439.71
A25: 2.1.2 | B25: C2 | C25: CPU | D25: MOBILIZAÇÃO | E25: UNID | F25: 1 | G25: =[2]CPU!$J$85 -> 56735.88 | H25: 70482.98372 | I25: 56737.88 | J25: =ROUND(F25*H25,2) -> 70482.98
A26: 2.1.3 | B26: 74209/001 | C26: SINAPI | D26: PLACA DE OBRA EM CHAPA DE ACO GALVANIZADO | E26: M2 | F26: 12 | G26: 301.52 | H26: 374.578296 | I26: 3620.24 | J26: =ROUND(F26*H26,2) -> 4494.94
H27: TOTAL CANTEIRO DE OBRAS | I27: =SUM(I23) -> 443069.38 | J27: =SUM(J23) -> 550417.63
A29: 3 - EQUIPAMENTOS
A30: 3.1 | B30: TRANSPORTES DE EQUIPAMENTOS | I30: =SUM(I31) -> 41722.0256 | J30: =SUM(J31) -> 51828.79
A31: 3.3.1 | B31: A9316 | C31: DINIT/MG | D31: CAMINHÃO PLATAFORMA 8X2, PBT 29.000 KG E DISTÂNCIA ENTRE EIXOS 4,8M - 188 KW - MOTORISTA E CAMINHÃO | E31: H | F31: =[2]TRANSPORTES!$E$41 -> 288 | G31: 144.8612 | H31: =G31*(1+$J$5) -> 179.9610688 | I31: =SUM(F31*G31,2) -> 41722.0256 | J31: =ROUND(F31*H31,2) -> 51828.79
H32: TOTAL EQUIPAMENTOS | I32: =SUM(I30) -> 41722.0256 | J32: =SUM(J30) -> 51828.79
A34: 4 - DESVIO DE TRÁFEGO
A35: 4.1 | B35: DESVIO DE TRÁFEGO | I35: =SUM(I36:I42) -> 191001.6714 | J35: =SUM(J36:J42) -> 237263.99
A36: 4.1.1 | B36: 73822/002 | C36: SINAPI | D36: LIMPEZA MECANIZADA DE TERRENO COM REMOCAO DE CAMADA VEGETAL, UTILIZANDO MOTONIVELADORA | E36: m² | F36: 13088.19 | G36: 0.48 | H36: =G36*(1+$J$5) -> 0.596304 | I36: =SUM(F36*G36,2) -> 6284.3312 | J36: =ROUND(F36*H36,2) -> 7804.54
A37: 4.1.2 | B37: 72898 | C37: SINAPI | D37: CARGA E DESCARGA MECANIZADAS DE ENTULHO EM CAMINHAO BASCULANTE 6 M3 | E37: m³ | F37: =SUM(F36*0.2) -> 2617.638 | G37: 3.86 | H37: 4.795278 | I37: 10106.08268 | J37: =ROUND(F37*H37,2) -> 12552.3
A38: 4.1.3 | B38: 97916 | C38: SINAPI | D38: TRANSPORTE COM CAMINHÃO BASCULANTE DE 6 M3, EM VIA URBANA EM LEITO NATURAL TXKM (UNIDADE: TXKM). AF_01/2018 - 17,10KM | E38: txkm | F38: 71618.57 | G38: 1.47 | H38: 1.826181 | I38: 105281.2979 | J38: 130788.47
A39: 4.1.4 | B39: RO-42263 | C39: DEER/MG | D39: ESPALHAMENTO DE MATERIAL EM BOTA-FORA | E39: m³ | F39: 2617.63 | G39: 0.18 | H39: 0.223614 | I39: 473.1734 | J39: =ROUND(F39*H39,2) -> 585.34
A40: 4.1.5 | B40: RO-43112 | C40: DEER/MG | D40: SUB-BASE, SEMMISTURA, COMPACTADA NA ENERGIA DO PROCTOR INTERMEDIÁRIO (EXECUÇÃO, INCLUINDO ESCAVAÇÃO, CARGA, DESCARGA, ESPALHAMENTO, UMIDECIMENTO E COMPACTAÇÃO DO MATERIAL; EXCLUI AQUISIÇÃO E TRANSPORTE DO MATERIAL) | E40: m³ | F40: 872.51 | G40: 14.25 | H40: 17.702775 | I40: 12435.2675 | J40: =ROUND(F40*H40,2) -> 15445.85
A41: 4.1.6 | B41: RO-43113 | C41: DEER/MG | D41: BASE DE SOLO SEM MISTURA, COMPACTADA NA ENERGIA DO PROCTOR INTERMEDIÁRIO (EXECUÇÃO, INCLUINDO ESCAVAÇÃO, CARGA, DESCARGA, ESPALHAMENTO, UMIDECIMENTO E COMPACTAÇÃO DO MATERIAL; EXCLUI AQUISIÇÃO E TRANSPORTE DO MATERIAL) | E41: m³ | F41: 872.51 | G41: 14.25 | H41: 17.702775 | I41: 12435.2675 | J41: =ROUND(F41*H41,2) -> 15445.85
A42: 4.1.7 | B42: 22.03.05.99 | C42: DER/SP | D42: TRANSPORTE DE 1/2 CATEGORIA ATÉ 15KM (BASE E SUB BASE) | E42: m³xkm | F42: =SUM(F40+F41)*17.1 -> 29839.842 | G42: =SUM(2.09/1.4179) -> 1.474010861 | H42: 1.831163693 | I42: 43986.2512 | J42: =ROUND(F42*H42,2) -> 54641.64
H43: TOTAL DESVIO DE TRÁFEGO | I43: =SUM(I35) -> 191001.6714 | J43: =SUM(J35) -> 237263.99
A45: 5 - OBRAS DE ARTE CORRENTE E DRENAGEM
A46: 5.1 | B46: VALETA DE PROTEÇÃO DE ATERRO | I46: =SUM(I47) -> 39855.44 | J46: =SUM(J47) -> 49509.93
A47: 5.1.1 | B47: RO-40514 | C47: DEER/MG | D47: VALETA DE PROTEÇÃO DE ATERRO TIPO DR.VPA (EXECUÇÃO,INCLUINDO ESCAVAÇÃO) | E47: m | F47: 1628 | G47: 24.48 | H47: =G47*(1+$J$5) -> 30.411504 | I47: =SUM(F47*G47,2) -> 39855.44 | J47: =ROUND(F47*H47,2) -> 49509.93
A48: 5.2 | B48: DISSIPADOR DE ENERGIA | I48: =SUM(I49) -> 1008.24 | J48: =SUM(J49) -> 1250.05
A49: 5.2.1 | B49: 2003441 | C49: DNIT/MG | D49: DISSIPADOR DE ENERGIA DE 501 - AREIA E PEDRA DE MÃO COMERCIAIS | E49: und | F49: 8 | G49: 125.78 | H49: =G49*(1+$J$5) -> 156.256494 | I49: =SUM(F49*G49,2) -> 1008.24 | J49: =ROUND(F49*H49,2) -> 1250.05
A50: 5.3 | B50: SARJETA DE CONCRETO ATERRO | I50: =SUM(I51) -> 77582.75 | J50: =SUM(J51) -> 96378.57
A51: 5.3.1 | B51: RO-40613 | C51: DEER/MG | D51: SARJETA DE CONCRETO EM ATERRO,TIPO DR.SCA- X/Y. LARGURA=60CM TIPO 30/10 (EXECUÇÃO, INCLUINDO ESCAVAÇÃO, FORNECIMENTO, TRANSPORTE E PLANTIO DA GRAMA) | E51: m | F51: 2725 | G51: 28.47 | H51: =G51*(1+$J$5) -> 35.368281 | I51: =SUM(F51*G51,2) -> 77582.75 | J51: =ROUND(F51*H51,2) -> 96378.57
A52: 5.4 | B52: SARJETA DE CONCRETO CORTE | I52: =SUM(I53) -> 17346.8 | J52: =SUM(J53) -> 21547.45
A53: 5.4.1 | B53: RO-40661 | C53: DEER/MG | D53: SARJETA DE CONCRETO EM CORTE TIPO DR.SCC-X/Y. LARGURA=90CM TIPO80/10 (EXECUÇÃO, INCLUINDOESCAVAÇÃO, FORNECIMENTO E TRANSPORTE DE TODOS OS MATERIAIS) | E53: m | F53: 396 | G53: 43.8 | H53: =G53*(1+$J$5) -> 54.41274 | I53: =SUM(F53*G53,2) -> 17346.8 | J53: =ROUND(F53*H53,2) -> 21547.45
A54: 5.5 | B54: CANALETA | I54: =SUM(I55) -> 947.56 | J54: =SUM(J55) -> 1174.67
A55: 5.5.1 | B55: ED-14723 | C55: DEER/MG | D55: CANALETA PARA DRENAGEM, EM CONCRETO COM FCK 15MPA, MOLDADA IN LOCO, SEÇÃO 60X60CM, FORMA EM CONTRA BARRANCO, EXCLUSIVE TAMPA, INCLUSIVE ESCAVAÇÃO, REATERRO COM TRANSPORTE E RETIRADA DO MATERIAL ESCAVADO (EM CAÇAMBA) | E55: m | F55: 4 | G55: 236.39 | H55: =G55*(1+$J$5) -> 293.667297 | I55: =SUM(F55*G55,2) -> 947.56 | J55: =ROUND(F55*H55,2) -> 1174.67
A56: 5.6 | B56: DESCIDA D'ÁGUA | I56: =SUM(I57) -> 22385.13 | J56: =SUM(J57) -> 27806.56
A57: 5.6.1 | B57: ED-48598 | C57: DEER/MG | D57: DESCIDA D´ÁGUA TIPO CALHA DN 500, EXCLUSIVE BOTA FORA | E57: m | F57: 77 | G57: 290.69 | H57: =G57*(1+$J$5) -> 361.124187 | I57: =SUM(F57*G57,2) -> 22385.13 | J57: =ROUND(F57*H57,2) -> 27806.56
H58: TOTAL OBRAS DE ARTE CORRENTE E DRENAGEM | I58: =SUM(I46+I48+I50+I52+I54+I56) -> 159125.92 | J58: =SUM(J46+J48+J50+J52+J54+J56) -> 197667.23
A60: 6 - CONTROLE TECNOLÓGICO
A61: 6.1 | B61: ENSAIO DE SOLO | I61: =SUM(I62:I64) -> 14201.55 | J61: =SUM(J62:J64) -> 17635.14
A62: 6.1.1 | B62: ED-49564 | C62: DEER/MG | D62: ENSAIO DE TEOR DE UMIDADE - PROCESSO SPEEDY - SOLOS E AGREGADOS MIUDOS | E62: unid. | F62: 268 | G62: 30.02 | H62: =G62*(1+$J$5) -> 37.293846 | I62: =SUM(F62*G62,2) -> 8047.36 | J62: =ROUND(F62*H62,2) -> 9994.75
A63: 6.1.2 | B63: ED-49555 | C63: DEER/MG | D63: ENSAIO DE COMPACTAÇÃO - AMOSTRAS NÃO TRABALHADAS - ENERGIA NORMAL - SOLOS | E63: unid. | F63: 54 | G63: 95.08 | H63: 118.117884 | I63: 5136.32 | J63: =ROUND(F63*H63,2) -> 6378.37
A64: 6.1.3 | B64: ED-49559 | C64: DEER/MG | D64: ENSAIO DE MASSA ESPECIFICA - IN SITU - METODO FRASCO DE AREIA - SOLOS | E64: unid. | F64: 29 | G64: 35.03 | H64: 43.517769 | I64: 1017.87 | J64: =ROUND(F64*H64,2) -> 1262.02
A65: 6.2 | B65: ENSAIO DE PAVIMENTO | I65: =SUM(I66:I69) -> 91280 | J65: =SUM(J66:J69) -> 113387.2
A66: 6.2.1 | B66: 02-06-15 | C66: SIURB | D66: ENSAIOS DE LABORATÓRIO - VISCOSIDADE | E66: unid. | F66: 150 | G66: 157.48 | H66: =G66*(1+$J$5) -> 195.637404 | I66: =SUM(F66*G66,2) -> 23624 | J66: =ROUND(F66*H66,2) -> 29345.61
A67: 6.2.3 | B67: 02-06-17 | C67: SIURB | D67: ENSAIOS DE LABORATÓRIO - PONTO DE FULGOR | E67: unid. | F67: 150 | G67: 135.99 | H67: 168.940377 | I67: 20400.5 | J67: =ROUND(F67*H67,2) -> 25341.06
A68: 6.2.1 | B68: 02-06-18 | C68: SIURB | D68: ENSAIOS DE LABORATÓRIO - PENETRAÇÃO | E68: unid. | F68: 150 | G68: 196.42 | H68: 244.012566 | I68: 29465 | J68: =ROUND(F68*H68,2) -> 36601.88
A69: 6.2.4 | B69: 02-06-19 | C69: SIURB | D69: ENSAIOS DE LABORATÓRIO - PONTO DE AMOLECIMENTO | E69: unid. | F69: 150 | G69: 118.59 | H69: 147.324357 | I69: 17790.5 | J69: =ROUND(F69*H69,2) -> 22098.65
A70: 6.3 | B70: ENSAIO DE AGREGADOS | I70: =SUM(I71:I73) -> 36489.04 | J70: =SUM(J71:J73) -> 45322.89
A71: 6.3.1 | B71: 02-06-11 | C71: SIURB | D71: ENSAIOS DE LABORATÓRIO - LOS ANGELES | E71: unid. | F71: 1 | G71: 435.4 | H71: =G71*(1+$J$5) -> 540.89742 | I71: =SUM(F71*G71,2) -> 437.4 | J71: =ROUND(F71*H71,2) -> 540.9
A72: 6.3.2 | B72: 02-06-13 | C72: SIURB | D72: ENSAIOS DE LABORATÓRIO - DURABILIDADE | E72: unid. | F72: 1 | G72: 470.64 | H72: 584.676072 | I72: 472.64 | J72: =ROUND(F72*H72,2) -> 584.68
A73: 6.3.3 | B73: 02-06-14 | C73: SIURB | D73: ENSAIOS DE LABORATÓRIO - ADESIVIDADE | E73: unid. | F73: 150 | G73: 237.18 | H73: 294.648714 | I73: 35579 | J73: =ROUND(F73*H73,2) -> 44197.31
A74: 6.4 | B74: ENSAIO DE CONCRETO | I74: =SUM(I75) -> 2523.96 | J74: =SUM(J75) -> 3133.03
A75: 6.4.1 | B75: ED-49546 | C75: DEER/MG | D75: ENSAIO DE RESISTENCIA A COMPRESSÃO SIMPLES - CONCRETO | E75: unid. | F75: 28 | G75: 90.07 | H75: =G75*(1+$J$5) -> 111.893961 | I75: =SUM(F75*G75,2) -> 2523.96 | J75: =ROUND(F75*H75,2) -> 3133.03
H76: TOTAL CONTROLE TECNOLÓGICO | I76: =SUM(I61+I65+I70+I74) -> 144494.55 | J76: =SUM(J61+J65+J70+J74) -> 179478.26
A78: 7- OAE
A79: 7.1 | B79: INFRA ESTRUTURA | I79: =SUM(I80:I90) -> 2121878.371 | J79: =SUM(J80:J90) -> 2635982.15
A80: 7.1.1 | B80: 72917 | C80: SINAPI | D80: ESCAVACAO MECANICA DE VALA EM MATERIAL 2A. CATEGORIA DE 2,01 ATE 4,00M DE PROFUNDIDADE COM UTILIZACAO DE ESCAVADEIRA HIDRAULICA | E80: m³ | F80: 1127.51 | G80: 11.04 | H80: =G80*(1+$J$5) -> 13.714992 | I80: =SUM(F80*G80,2) -> 12449.7104 | J80: =ROUND(F80*H80,2) -> 15463.79
A81: 7.1.2 | B81: 93382 | C81: SINAPI | D81: REATERRO MANUAL DE VALAS COM COMPACTAÇÃO MECANIZADA. AF_04/2016 | E81: m³ | F81: 1084.03 | G81: 21.06 | H81: 26.162838 | I81: 22831.6718 | J81: 28361.3
A82: 7.1.3 | B82: 83534 | C82: SINAPI | D82: LASTRO DE CONCRETO, PREPARO MECÂNICO, INCLUSOS ADITIVO IMPERMEABILIZANTE, LANÇAMENTO E ADENSAMENTO | E82: m³ | F82: 5.22 | G82: 434.59 | H82: 539.891157 | I82: 2270.5598 | J82: 2818.23
A83: 7.1.4 | B83: 5914569 | C83: DNIT/MG | D83: TRANSPORTE COM CAMINHÃO BETONEIRA - RODOVIA PAVIMENTADA (Entre Bocaiúva/MG e Francisco Dumont/MG - 69,00km) | E83: txkm | F83: =SUM(F85*2.4)*69 -> 5945.04 | G83: 0.35 | H83: 0.434805 | I83: 2082.764 | J83: 2584.93
A84: 7.1.5 | B84: 5914539 | C84: DNIT/MG | D84: TRANSPORTE COM CAMINHÃO BETONEIRA - RODOVIA EM LEITO NATURAL (Entre Francisco Dumont/MG e Área C - 6,00km) | E84: txkm | F84: =SUM(F85*2.4)*6 -> 516.96 | G84: 0.54 | H84: 0.670842 | I84: 281.1584 | J84: 346.8
A85: 7.1.6 | B85: ED-49799 | C85: DEER/MG | D85: FORNECIMENTO DE CONCRETO ESTRUTURAL, USINADO, COM FCK 30MPA | E85: m³ | F85: 35.9 | G85: 346.7 | H85: =G85*(1+$J$5) -> 430.70541 | I85: 12448.53 | J85: 15462.32
A86: 7.1.7 | B86: 92270 | C86: SINAPI | D86: FABRICAÇÃO DE FÔRMA PARA VIGAS, COM MADEIRA SERRADA, E = 25 MM. AF_12/2015 | E86: m² | F86: 18.9 | G86: 74.75 | H86: 92.861925 | I86: 1414.775 | J86: 1755.09
A87: 7.1.8 | B87: 5406023 | C87: (DNIT/MG) | D87: MURO DE ESCAMA DE CONCRETO ARMADO EM SOLO REFORÇADO COM FITA METÁLICA COM ALTURA ATÉ 4 M - TIPO 1 - AREIA E BRITA COMERCIAIS | E87: m² | F87: 3915.7 | G87: 345.33 | H87: 429.003459 | I87: 1352210.681 | J87: 1679848.84
A88: 7.1.9 | B88: 5406025 | C88: (DNIT/MG) | D88: MURO DE ESCAMA DE CONCRETO ARMADO EM SOLO REFORÇADO COM FITA METÁLICA COM ALTURA DE 4 A 6M - TIPO 1 - AREIA E BRITA COMERCIAIS | E88: m² | F88: 1313.24 | G88: 323.21 | H88: 401.523783 | I88: 424454.3004 | J88: 527297.09
A89: 7.1.10 | B89: 5406027 | C89: (DNIT/MG) | D89: MURO DE ESCAMA DE CONCRETO ARMADO EM SOLO REFORÇADO COM FITA METÁLICA COM ALTURA DE 6 A 8M - TIPO 1 - AREIA E BRITA COMERCIAIS | E89: m² | F89: 716.59 | G89: 319 | H89: 396.2937 | I89: 228594.21 | J89: 283980.1
A90: 7.1.11 | B90: 5406029 | C90: (DNIT/MG) | D90: MURO DE ESCAMA DE CONCRETO ARMADO EM SOLO REFORÇADO COM FITA METÁLICA COM ALTURA DE 8 A 10M - TIPO 1 - AREIA E BRITA COMERCIAIS | E90: m² | F90: 198.44 | G90: 316.66 | H90: 393.386718 | I90: 62840.0104 | J90: 78063.66
A91: 7.2 | B91: MESO E SUPER ESTRUTURA | I91: =SUM(I92:I117) -> 2200063.713 | J91: =SUM(J92:J117) -> 2733074.58
A92: 7.2.1 | B92: 92263 | C92: SINAPI | D92: FABRICAÇÃO DE FÔRMA PARA PILARES E ESTRUTURAS SIMILARES, EM CHAPA DE MADEIRA COMPENSADA RESINADA, E = 17 MM. AF_12/2015 | E92: m² | F92: 5975.81 | G92: 84.2 | H92: =G92*(1+$J$5) -> 104.60166 | I92: =SUM(F92*G92,2) -> 503165.202 | J92: =ROUND(F92*H92,2) -> 625079.65
A93: 7.2.2 | B93: 83534 | C93: SINAPI | D93: LASTRO DE CONCRETO, PREPARO MECÂNICO, INCLUSOS ADITIVO IMPERMEABILIZANTE, LANÇAMENTO E ADENSAMENTO | E93: m³ | F93: 5.342075 | G93: 434.59 | H93: 539.891157 | I93: 2323.612374 | J93: 2884.14
A94: 7.2.3 | B94: 5914569 | C94: DNIT/MG | D94: TRANSPORTE COM CAMINHÃO BETONEIRA - RODOVIA PAVIMENTADA (Entre Bocaiúva/MG e Francisco Dumont/MG - 69,00km) | E94: txkm | F94: =SUM(($F$96+$F$97+$F$98)*2.4)*69 -> 149609.664 | G94: 0.35 | H94: 0.434805 | I94: 52365.3824 | J94: 65051.03
A95: 7.2.4 | B95: 5914539 | C95: DNIT/MG | D95: TRANSPORTE COM CAMINHÃO BETONEIRA - RODOVIA EM LEITO NATURAL (Entre Francisco Dumont/MG e Área C - 6,00km) | E95: txkm | F95: =SUM(($F$96+$F$97+$F$98)*2.4)*6 -> 13009.536 | G95: 0.54 | H95: 0.670842 | I95: 7027.14944 | J95: 8727.34
A96: 7.2.5 | B96: 1116263 | C96: DNIT/MG | D96: CONCRETO PARA BOMBEAMENTO FCK = 25 MPA - CONFECÇÃO EM CENTRAL DOSADORA DE 30 M³/H - AREIA E BRITA COMERCIAIS | E96: m³ | F96: 41.52 | G96: 214.21 | H96: 266.113083 | I96: 8895.9992 | J96: 11049.02
A97: 7.2.6 | B97: 1106280 | C97: DNIT/MG | D97: CONCRETO PARA BOMBEAMENTO FCK = 30 MPA - CONFECÇÃO EM CENTRAL DOSADORA DE 30 M³/H - AREIA E BRITA COMERCIAIS | E97: m³ | F97: 254.24 | G97: 224.51 | H97: 278.908773 | I97: 57081.4224 | J97: 70909.77
A98: 7.2.7 | B98: 1106281 | C98: DNIT/MG | D98: CONCRETO PARA BOMBEAMENTO FCK = 35 MPA - CONFECÇÃO EM CENTRAL DOSADORA DE 30 M³/H - AREIA E BRITA COMERCIAIS | E98: m³ | F98: 607.68 | G98: 236.01 | H98: 293.195223 | I98: 143420.5568 | J98: 178168.87
A99: 7.2.8 | B99: 1107860 | C99: DNIT/MG | D99: LANÇAMENTO MECÂNICO DE CONCRETO COM BOMBA LANÇA SOBRE CHASSI COM CAPACIDADE DE 45 M³/H - CONFECÇÃO EM CENTRAL DOSADORA DE 40 M³/H | E99: m³ | F99: =SUM(F96+F97+F98) -> 903.44 | G99: 31.52 | H99: 39.157296 | I99: 28478.4288 | J99: 35376.27
A100: 7.2.9 | B100: ED-50430 | C100: DEER/MG | D100: FORNECIMENTO E APLICAÇÃO DE GROUT PARA ANCORAGENS | E100: m³ | F100: 0.288 | G100: 272.56 | H100: 338.601288 | I100: 80.49728 | J100: 97.52
A101: 7.2.10 | B101: 92792 | C101: SINAPI | D101: CORTE E DOBRA DE AÇO CA-50, DIÂMETRO DE 6,3 MM, UTILIZADO EM ESTRUTURA S DIVERSAS | E101: kg | F101: 5728 | G101: 5.92 | H101: 7.354416 | I101: 33911.76 | J101: 42126.09
A102: 7.2.11 | B102: 92793 | C102: SINAPI | D102: CORTE E DOBRA DE AÇO CA-50, DIÂMETRO DE 8,0 MM, UTILIZADO EM ESTRUTURA S DIVERSAS | E102: kg | F102: 7062 | G102: 6.35 | H102: 7.888605 | I102: 44845.7 | J102: 55709.33
A103: 7.2.12 | B103: 92794 | C103: SINAPI | D103: CORTE E DOBRA DE AÇO CA-50, DIÂMETRO DE 10,0 MM, UTILIZADO EM ESTRUTURAS DIVERSAS | E103: kg | F103: 21632 | G103: 5.27 | H103: 6.546921 | I103: 114002.64 | J103: 141623
A104: 7.2.13 | B104: 92795 | C104: SINAPI | D104: CORTE E DOBRA DE AÇO CA-50, DIÂMETRO DE 12,5 MM, UTILIZADO EM ESTRUTURAS DIVERSAS | E104: kg | F104: 17666 | G104: 4.91 | H104: 6.099693 | I104: 86742.06 | J104: 107757.18
A105: 7.2.14 | B105: 92796 | C105: SINAPI | D105: CORTE E DOBRA DE AÇO CA-50, DIÂMETRO DE 16,0 MM, UTILIZADO EM ESTRUTURAS DIVERSAS | E105: kg | F105: 43652 | G105: 4.84 | H105: 6.012732 | I105: 211277.68 | J105: 262467.78
A106: 7.2.15 | B106: 92797 | C106: SINAPI | D106: CORTE E DOBRA DE AÇO CA-50, DIÂMETRO DE 20,0 MM, UTILIZADO EM ESTRUTURAS DIVERSAS | E106: kg | F106: 2791 | G106: 4.62 | H106: 5.739426 | I106: 12896.42 | J106: 16018.74
A107: 7.2.16 | B107: 92798 | C107: SINAPI | D107: CORTE E DOBRA DE AÇO CA-50, DIÂMETRO DE 25,0 MM, UTILIZADO EM ESTRUTURAS DIVERSAS | E107: kg | F107: 334 | G107: 5.33 | H107: 6.621459 | I107: 1782.22 | J107: 2211.57
A108: 7.2.17 | B108: 92880 | C108: SINAPI | D108: CORTE E DOBRA DE AÇO CA-25, DIÂMETRO DE 20,0 MM. AF_12/2015 | E108: kg | F108: 1105 | G108: 4.78 | H108: 5.938194 | I108: 5283.9 | J108: 6561.7
A109: 7.2.18 | B109: 307736 | C109: DNIT/MG | D109: JUNTA DE DILATAÇÃO EM PERFIL EXTRUDADO DE BORRACHA VULCANIZADA DE 40 X 70 MM - FORNECIMENTO E INSTALAÇÃO | E109: m | F109: 20.6 | G109: 1017.84 | H109: 1264.462632 | I109: 20969.504 | J109: 26047.93
A110: 7.2.19 | B110: 91790 | C110: SINAPI | D110: (COMPOSIÇÃO REPRESENTATIVA) DO SERVIÇO DE INSTALAÇÃO DE TUBOS DE PVC, SÉRIE R, ÁGUA PLUVIAL, DN 100 MM (INSTALADO EM RAMAL DE ENCAMINHAMENTO , OU CONDUTORES VERTICAIS), INCLUSIVE CONEXÕES, CORTES E FIXAÇÕES, PARA PRÉDIOS. AF_10/2015 | E110: m | F110: 512.46 | G110: 40.95 | H110: 50.872185 | I110: 20987.237 | J110: 26069.96
A111: 7.2.20 | B111: 84154 | C111: SINAPI | D111: APARELHO APOIO NEOPRENE FRETADO | E111: dm³ | F111: 135.56 | G111: 109.06 | H111: 135.485238 | I111: 14786.1736 | J111: 18366.38
A112: 7.2.21 | B112: 73770/001 | C112: SINAPI | D112: BARREIRA PRE-MOLDADA EXTERNA CONCRETO ARMADO 0,25X0,40X1,14M FCK=25MPA ACO CA-50 INCL VIGOTA HORIZONTAL MONTANTE A CADA 1,00M FERROS DE LIGACAO E MATERIAIS. | E112: m | F112: 256.23 | G112: 450.09 | H112: 559.146807 | I112: 115328.5607 | J112: 143270.19
A113: 7.2.22 | B113: ED-50429 | C113: DEER/MG | D113: LANÇAMENTO DE TABULEIRO PRÉ-MOLDADO | E113: unid. | F113: 1198 | G113: 63.38 | H113: 78.736974 | I113: 75931.24 | J113: 94326.89
A114: 7.2.23 | B114: 4507956 | C114: DNIT/MG | D114: CORDOALHA CP 190 RB D = 12,7 MM - FORNECIMENTO, PREPARO E COLOCAÇÃO | E114: Kg | F114: 23155.2 | G114: 9.37 | H114: 11.640351 | I114: 216966.224 | J114: 269534.66
A115: 7.2.24 | B115: 4508176 | C115: DNIT/MG | D115: BAINHA METÁLICA DIÂMETRO 95 MM PARA 19 CORDOALHAS D = 15,2 MM, SEMI-RÍGIDA, REDONDA, COM MONTAGEM E INJEÇÃO DE NATA DE CIMENTO | E115: m | F115: 2381.76 | G115: 69.34 | H115: 86.141082 | I115: 165153.2384 | J115: 205167.38
A116: 7.2.25 | B116: 4507755 | C116: DNIT/MG | D116: ANCORAGEM ATIVA PARA 12 CORDOALHAS D = 12,7 MM COM PLACA DE ANCORAGEM, BLOCO, CUNHAS TRIPARTIDAS, TROMBETA E PROTENSÃO | E116: unid. | F116: 120 | G116: 1454.16 | H116: 1806.502968 | I116: 174501.2 | J116: 216780.36
A117: 7.2.26 | B117: 26.13.01.99 | C117: DER/SP | D117: LANCAMENTO VIGA P<=50T-GUINDASTE AUTO PROPULSADO | E117: unid. | F117: 12 | G117: =SUM(9672.17/1.4179) -> 6821.475421 | H117: 8474.318916 | I117: 81859.70506 | J117: 101691.83
H118: TOTAL OAE | I118: =SUM(I79+I91) -> 4321942.085 | J118: =SUM(J79+J91) -> 5369056.73
A120: 8 - MATERIAIS E TRANSPORTE PARA PAVIMENTAÇÃO ASFÁLTICA (PARA USINA EM MONTES CLAROS)
A121: 8.1 | B121: CAP - CIMENTO ASFÁLTICO | I121: =SUM(I122:I123) -> 48697.0554 | J121: =SUM(J122:J123) -> 60491.39
A122: 8.1.1 | B122: 72849 | C122: SINAPI | D122: CARGA, MANOBRAS E DESCARGA DE MISTURAS DE SOLOS E AGREGADOS (BASES ESTABILIZADAS EM USINA) COM CAMINHAO BASCULANTE 6 M3 | E122: t | F122: 123.53 | G122: 2.68 | H122: =G122*(1+$J$5) -> 3.329364 | I122: =SUM(F122*G122,2) -> 333.0604 | J122: =ROUND(F122*H122,2) -> 411.28
A123: 8.1.2 | B123: 72884 | C123: SINAPI | D123: TRANSPORTE COMERCIAL COM CAMINHAO CARROCERIA 9 T (435KM) | E123: m³*km | F123: =F122*435 -> 53735.55 | G123: 0.9 | H123: 1.11807 | I123: 48363.995 | J123: =ROUND(F123*H123,2) -> 60080.11
A124: 8.2 | B124: AREIA | I124: =SUM(I125:I126) -> 72567.337 | J124: =SUM(J125:J126) -> 90145.43
A125: 8.2.1 | B125: 72888 | C125: SINAPI | D125: CARGA, MANOBRAS E DESCARGA DE AREIA, BRITA, PEDRA DE MAO E SOLOS COM CAMINHAO BASCULANTE 6 M3 (DESCARGA LIVRE) | E125: m³ | F125: 551.1 | G125: 1.17 | H125: =G125*(1+$J$5) -> 1.453491 | I125: =SUM(F125*G125,2) -> 646.787 | J125: =ROUND(F125*H125,2) -> 801.02
A126: 8.2.2 | B126: 72884 | C126: SINAPI | D126: TRANSPORTE COMERCIAL COM CAMINHAO CARROCERIA 9 T (145KM) | E126: m³*km | F126: =F125*145 -> 79909.5 | G126: 0.9 | H126: 1.11807 | I126: 71920.55 | J126: =ROUND(F126*H126,2) -> 89344.41
A127: 8.3 | B127: BRITA | I127: =SUM(I128:I129) -> 7557.5641 | J127: =SUM(J128:J129) -> 9383.79
A128: 8.3.1 | B128: 72888 | C128: SINAPI | D128: CARGA, MANOBRAS E DESCARGA DE AREIA, BRITA, PEDRA DE MAO E SOLOS COM CAMINHAO BASCULANTE 6 M3 (DESCARGA LIVRE) | E128: m³ | F128: 742.73 | G128: 1.17 | H128: =G128*(1+$J$5) -> 1.453491 | I128: =SUM(F128*G128,2) -> 870.9941 | J128: =ROUND(F128*H128,2) -> 1079.55
A129: 8.3.2 | B129: 72884 | C129: SINAPI | D129: TRANSPORTE COMERCIAL COM CAMINHAO CARROCERIA 9 T (10KM) | E129: m³*km | F129: =F128*10 -> 7427.3 | G129: 0.9 | H129: 1.11807 | I129: 6686.57 | J129: =ROUND(F129*H129,2) -> 8304.24
H130: TOTAL DE MATERIAIS DO CONCRETO | I130: =SUM(I121+I124+I127) -> 128821.9565 | J130: =SUM(J121+J124+J127) -> 160020.61
A132: 9 - PAVIMENTAÇÃO ASFÁLTICA
A133: 9.1 | B133: PAVIMENTO FLEXIVEL - NOVO E RECUPERAÇÃO | I133: =SUM(I134:I149) -> 6039385.575 | J133: =SUM(J134:J149) -> 7502688.95
A134: 9.1.1 | B134: 83338 | C134: SINAPI | D134: ESCAVACAO MECANICA, A CEU ABERTO, EM MATERIAL DE 1A CATEGORIA, COM ESCAVADEIRA HIDRAULICA, CAPACIDADE DE 0,78 M3 - CORTE | E134: m³ | F134: 365.65 | G134: 2.23 | H134: =G134*(1+$J$5) -> 2.770329 | I134: =SUM(F134*G134,2) -> 817.3995 | J134: =ROUND(F134*H134,2) -> 1012.97
A135: 9.1.2 | B135: 83338 | C135: SINAPI | D135: ESCAVACAO MECANICA, A CEU ABERTO, EM MATERIAL DE 1A CATEGORIA, COM ESCAVADEIRA HIDRAULICA, CAPACIDADE DE 0,78 M3 - CORTE JAZIDA | E135: m³ | F135: 251888.76 | G135: 2.23 | H135: 2.770329 | I135: 561713.9348 | J135: 697814.74 | K135: 314860.94
A136: 9.1.3 | B136: RO-40251 | C136: DEER/MG | D136: COMPACTAÇÃO DE ATERRO A 100% PROCTOR NORMAL | E136: m³ | F136: 251888.76 | G136: 3.15 | H136: 3.913245 | I136: 793451.594 | J136: 985702.43
A137: 9.1.4 | B137: RO-43112 | C137: DEER/MG | D137: SUB-BASE, SEMMISTURA, COMPACTADA NA ENERGIA DO PROCTOR INTERMEDIÁRIO (EXECUÇÃO, INCLUINDO ESCAVAÇÃO, CARGA, DESCARGA, ESPALHAMENTO, UMIDECIMENTO E COMPACTAÇÃO DO MATERIAL; EXCLUI AQUISIÇÃO E TRANSPORTE DO MATERIAL) | E137: m³ | F137: 2397.07 | G137: 14.25 | H137: 17.702775 | I137: 34160.2475 | J137: 42434.79
A138: 9.1.5 | B138: RO-43113 | C138: DEER/MG | D138: BASE DE SOLO SEM MISTURA, COMPACTADA NA ENERGIA DO PROCTOR INTERMEDIÁRIO (EXECUÇÃO, INCLUINDO ESCAVAÇÃO, CARGA, DESCARGA, ESPALHAMENTO, UMIDECIMENTO E COMPACTAÇÃO DO MATERIAL; EXCLUI AQUISIÇÃO E TRANSPORTEDO MATERIAL) | E138: m³ | F138: 2397.07 | G138: 14.25 | H138: 17.702775 | I138: 34160.2475 | J138: 42434.79
A139: 9.1.6 | B139: 96401 | C139: SINAPI | D139: EXECUÇÃO DE IMPRIMAÇÃO COM ASFALTO DILUÍDO CM-30. AF_09/2017 | E139: m² | F139: 16941.74 | G139: 6.24 | H139: 7.751952 | I139: 105718.4576 | J139: 131331.56
A140: 9.1.7 | B140: 93176 | C140: SINAPI | D140: TRANSPORTE DE MATERIAL ASFALTICO, COM CAMINHÃO COM CAPACIDADE DE 30000 L EM RODOVIA PAVIMENTADA. AF_02/2016 (P/ ITEM 6.1.6) (ORIUNDO DE BETIM/MG DISTANTE 377KM DIRETO PARA OBRA C) | E140: txkm | F140: 7664.44 | G140: 0.48 | H140: 0.596304 | I140: 3680.9312 | J140: 4570.34
A141: 9.1.8 | B141: 93178 | C141: SINAPI | D141: TRANSPORTE DE MATERIAL ASFALTICO, COM CAMINHÃO COM CAPACIDADE DE 30000 TXKM L EM RODOVIA NÃO PAVIMENTADA PARA DISTÂNCIAS MÉDIAS DE TRANSPORTE SUPERIORES A 100 KM. AF_02/2016 (ORIUNDO DE FRANCISCO DUMONT/MG DISTANTE 6KM DIRETO PARA OBRA C) | E141: txkm | F141: 122 | G141: 0.54 | H141: 0.670842 | I141: 67.88 | J141: 81.84
A142: 9.1.9 | B142: 72942 | C142: SINAPI | D142: PINTURA DE LIGACAO COM EMULSAO RR-1C | E142: m² | F142: 16941.74 | G142: 1.62 | H142: 2.012526 | I142: 27447.6188 | J142: 34095.69
A143: 9.1.10 | B143: 93176 | C143: SINAPI | D143: TRANSPORTE DE MATERIAL ASFALTICO, COM CAMINHÃO COM CAPACIDADE DE 30000 L EM RODOVIA PAVIMENTADA. AF_02/2016 (P/ ITEM 6.1.6) (ORIUNDO DE BETIM/MG DISTANTE 377KM DIRETO PARA OBRA C) | E143: txkm | F143: 2554.81 | G143: 0.48 | H143: 0.596304 | I143: 1228.3088 | J143: 1523.44
A144: 9.1.11 | B144: 93178 | C144: SINAPI | D144: TRANSPORTE DE MATERIAL ASFALTICO, COM CAMINHÃO COM CAPACIDADE DE 30000 TXKM L EM RODOVIA NÃO PAVIMENTADA PARA DISTÂNCIAS MÉDIAS DE TRANSPORTE SUPERIORES A 100 KM. AF_02/2016 (ORIUNDO DE FRANCISCO DUMONT/MG DISTANTE 6KM DIRETO PARA OBRA C) | E144: txkm | F144: 40.66 | G144: 0.54 | H144: 0.670842 | I144: 23.9564 | J144: 27.28
A145: 9.1.12 | B145: 95995 | C145: SINAPI | D145: CONSTRUÇÃO DE PAVIMENTO COM APLICAÇÃO DE CONCRETO BETUMINOSO USINADO A QUENTE (CBUQ), CAMADA DE ROLAMENTO, COM ESPESSURA DE 5,0 CM - EXCLUSIVE TRANSPORTE. AF_03/2017 (PAVIMENTAÇÃO ESTRADA) | E145: m³ | F145: 799.03 | G145: 1017.65 | H145: 1264.226595 | I145: 813134.8795 | J145: 1010154.98
A146: 9.1.13 | B146: 95995 | C146: SINAPI | D146: CONSTRUÇÃO DE PAVIMENTO COM APLICAÇÃO DE CONCRETO BETUMINOSO USINADO A QUENTE (CBUQ), CAMADA DE ROLAMENTO, COM ESPESSURA DE 5,0 CM - EXCLUSIVE TRANSPORTE. AF_03/2017 (PAVIMENTAÇÃO OAE) | E146: m³ | F146: 96.13 | G146: 1017.65 | H146: 1264.226595 | I146: 97828.6945 | J146: 121530.1
A147: 9.1.14 | B147: 93176 | C147: SINAPI | D147: TRANSPORTE DE MATERIAL ASFALTICO, COM CAMINHÃO COM CAPACIDADE DE 30000 L EM RODOVIA PAVIMENTADA. AF_02/2016 (P/ ITEM 2.1.12) (ORIUNDO D MONTES CLAROS/MG DIST. 111KM) | E147: txkm | F147: =SUM((F145+F146)*2.4)*111 -> 238470.624 | G147: 0.48 | H147: 0.596304 | I147: 114467.8995 | J147: 142200.99
A148: 9.1.15 | B148: 93177 | C148: SINAPI | D148: TRANSPORTE DE MATERIAL ASFALTICO, COM CAMINHÃO COM CAPACIDADE DE 30000 TXKM L EM RODOVIA NÃO PAVIMENTADA PARA DISTÂNCIAS MÉDIAS DE TRANSPORTE SUPERIORES A 100 KM. AF_02/2016 (JEQUITAÍ P/ ÁREA C - 24KM) | E148: txkm | F148: 51561.12 | G148: 0.54 | H148: 0.670842 | I148: 27845.0048 | J148: 34589.36
A149: 9.1.16 | B149: RO-41344 | C149: DEER/MG | D149: TRANSPORTE DE MATERIAL DE JAZIDA PARA CONSERVAÇÃO. DISTÂNCIA MÉDIA DE TRANSPORTE > 50,10 KM (ESCAVAÇÃO+BASE E SUB BASE) - 17,10KM | E149: m³xkm | F149: =SUM(F135+F137+F138)*17.1 -> 4389277.59 | G149: 0.78 | H149: 0.968994 | I149: 3423638.52 | J149: 4253183.65
H150: TOTAL PAVIMENTAÇÃO ASFÁLTICA | I150: =SUM(I133) -> 6039385.575 | J150: =SUM(J133) -> 7502688.95
A152: 10 - COMPLEMENTARES
A153: 10.1 | B153: RECOMPOSIÇÃO DE DIVISAS | I153: =SUM(I154) -> 89054.5235 | J153: =SUM(J154) -> 110629.95
A154: 10.1.1 | B154: 74039/001 | C154: SINAPI | D154: CERCA COM MOUROES DE MADEIRA ROLICA, DIAMETRO 11CM, ESPACAMENTO DE 2M, ALTURA LIVRE DE 1M, CRAVADOS 0,5M, COM 5 FIOS DE ARAME FARPADO Nº 14 CLASSE 250 | E154: m | F154: 3642.23 | G154: 24.45 | H154: =G154*(1+$J$5) -> 30.374235 | I154: =SUM(F154*G154,2) -> 89054.5235 | J154: =ROUND(F154*H154,2) -> 110629.95
H155: TOTAL COMPLEMENTARES | I155: =SUM(I153) -> 89054.5235 | J155: =SUM(J153) -> 110629.95
A157: 11 - SINALIZAÇÃO DE OBRA E DEFINITIVA
A158: 11.1 | B158: SINALIZAÇÃO DE OBRA | I158: =SUM(I159:I163) -> 68791.0192 | J158: =SUM(J159:J163) -> 85446.66
A159: 11.1.1 | B159: 97051 | C159: SINAPI | D159: SINALIZAÇÃO COM FITA FIXADA NA ESTRUTURA. AF_11/2017 | E159: m | F159: 6000 | G159: 0.46 | H159: =G159*(1+$J$5) -> 0.571458 | I159: =SUM(F159*G159,2) -> 2762 | J159: =ROUND(F159*H159,2) -> 3428.75
A160: 11.1.2 | B160: RO-41841 | C160: DEER/MG | D160: PLACA DE AÇO CARBONO COM PELÍCULA REFLETIVA GRAU TÉCNICO TIPO I DA ABNT - PLACA CIRCULAR (EXECUÇÃO, INCLUINDO FORNECIMENTO E TRANSPORTE DE TODOS OS MATERIAIS, INCLUSIVE POSTE DE SUSTENTAÇÃO) | E160: m² | F160: 1.57 | G160: 337.22 | H160: 418.928406 | I160: 531.4354 | J160: =ROUND(F160*H160,2) -> 657.72
A161: 11.1.3 | B161: RO-41844 | C161: DEER/MG | D161: PLACA DE AÇO CARBONO COM PELÍCULA REFLETIVA GRAU TÉCNICO TIPO I DA ABNT - PLACA QUADRADA (EXECUÇÃO, INCLUINDO FORNECIMENTO E TRANSPORTE DE TODOS OS MATERIAIS, INCLUSIVE POSTE DE SUSTENTAÇÃO) | E161: m² | F161: 26.88 | G161: 326.75 | H161: 405.921525 | I161: 8785.04 | J161: =ROUND(F161*H161,2) -> 10911.17
A162: 11.1.4 | B162: RO-43226 | C162: DEER/MG | D162: COLOCAÇÃO DE PLACAS | E162: m² | F162: 28.45 | G162: 64.06 | H162: 79.581738 | I162: 1824.507 | J162: =ROUND(F162*H162,2) -> 2264.1
A163: 11.1.5 | B163: 85424 | C163: SINAPI | D163: ISOLAMENTO DE OBRA COM TELA PLASTICA COM MALHA DE 5MM E ESTRUTURA DE MADEIRA PONTALETEADA | E163: m | F163: 2908.64 | G163: 18.87 | H163: 23.442201 | I163: 54888.0368 | J163: =ROUND(F163*H163,2) -> 68184.92
A164: 11.2 | B164: SINALIZAÇÃO DEFINITIVA HORIZONTAL | I164: =SUM(I165:I166) -> 840.455 | J164: =SUM(J165:J166) -> 1039.13
A165: 11.2.1 | B165: RO-41237 OBR-VIA-245 | C165: DEER/MG | D165: LINHAS DE RESINA ACRILICA 0,6MM DE ESPESSURA E LARGURA = 0,10M (EXECUÇÃO, INCLUSIVE PRÉ-MARCAÇÃO, FORNECIMENTO E TRANSPORTE DE TODOS OS MATERIAIS) - LINHAS BRANCAS | E165: m² | F165: 344 | G165: 1.73 | H165: =G165*(1+$J$5) -> 2.149179 | I165: =SUM(F165*G165,2) -> 597.12 | J165: =ROUND(F165*H165,2) -> 739.32
A166: 11.2.2 | B166: RO-41237 OBR-VIA-245 | C166: DEER/MG | D166: LINHAS DE RESINA ACRILICA 0,6MM DE ESPESSURA E LARGURA = 0,10M (EXECUÇÃO, INCLUSIVE PRÉ-MARCAÇÃO, FORNECIMENTO E TRANSPORTE DE TODOS OS MATERIAIS) - LINHAS AMARELAS | E166: m² | F166: 139.5 | G166: 1.73 | H166: 2.149179 | I166: 243.335 | J166: =ROUND(F166*H166,2) -> 299.81
A167: 11.3 | B167: SINALIZAÇÃO DEFINITIVA VERTICAL | I167: =SUM(I168:I170) -> 819.703 | J167: =SUM(J168:J170) -> 1010.87
A168: 11.3.1 | B168: RO-41841 | C168: DEER/MG | D168: PLACA DE AÇO CARBONO COM PELÍCULA REFLETIVA GRAU TÉCNICO TIPO I DA ABNT - PLACA CIRCULAR (EXECUÇÃO, INCLUINDO FORNECIMENTO E TRANSPORTE DE TODOS OS MATERIAIS, INCLUSIVE POSTE DE SUSTENTAÇÃO) | E168: m² | F168: 1.18 | G168: 337.22 | H168: =G168*(1+$J$5) -> 418.928406 | I168: =SUM(F168*G168,2) -> 399.9196 | J168: =ROUND(F168*H168,2) -> 494.34
A169: 11.3.2 | B169: RO-41844 | C169: DEER/MG | D169: PLACA DE AÇO CARBONO COM PELÍCULA REFLETIVA GRAU TÉCNICO TIPO I DA ABNT - PLACA QUADRADA (EXECUÇÃO, INCLUINDO FORNECIMENTO E TRANSPORTE DE TODOS OS MATERIAIS, INCLUSIVE POSTE DE SUSTENTAÇÃO) | E169: m² | F169: 1 | G169: 326.74 | H169: 405.909102 | I169: 328.74 | J169: =ROUND(F169*H169,2) -> 405.91
A170: 11.3.3 | B170: RO-43226 | C170: DEER/MG | D170: COLOCAÇÃO DE PLACAS | E170: m² | F170: 1.39 | G170: 64.06 | H170: 79.581738 | I170: 91.0434 | J170: =ROUND(F170*H170,2) -> 110.62
A171: 11.4 | B171: DISPOSITIVOS DE SEGURANÇA | I171: =SUM(I172:I173) -> 658639.9395 | J171: =SUM(J172:J173) -> 818223.43
A172: 11.4.1 | B172: RO-41763 | C172: DEER/MG | D172: DEFENSA SINGELA SEMI-MALEÁVEL SV-DSM-02 (EXECUÇÃO, INCLUINDO FORNECIMENTO, COLOCAÇÃO E TRANSPORTE DE TODOS OS MATERIAIS) | E172: m | F172: 2466 | G172: 264.46 | H172: =G172*(1+$J$5) -> 328.538658 | I172: =SUM(F172*G172,2) -> 652160.36 | J172: =ROUND(F172*H172,2) -> 810176.33
A173: 11.4.2 | B173: 28.10.01.99 | C173: DER/SP | D173: FORN./INSTAL. BALIZ.(CATADIOPTRICO) P/DEF. MET. C/PELICULA GT+GT, CONF.OP-06-05 | E173: un. | F173: 308 | G173: =SUM(29.82/1.4179) -> 21.03110233 | H173: 26.12693843 | I173: 6479.579519 | J173: =ROUND(F173*H173,2) -> 8047.1
H174: TOTAL SINALIZAÇÃO DE OBRA E DEFINITIVA | I174: =SUM(I158+I164+I167+I171) -> 729091.1167 | J174: =SUM(J158+J164+J167+J171) -> 905720.09
A176: 12 - DESMOBILIZAÇÃO
A177: 12.1 | B177: DESMOBILIZAÇÃO | I177: =SUM(I178) -> 56737.88 | J177: =SUM(J178) -> 70482.98
A178: 12.1.1 | B178: C4 | C178: CPU | D178: DESMOBILIZAÇÃO | E178: un. | F178: 1 | G178: =[2]CPU!$J$115 -> 56735.88 | H178: =G178*(1+$J$5) -> 70482.98372 | I178: =SUM(F178*G178,2) -> 56737.88 | J178: =ROUND(F178*H178,2) -> 70482.98
H179: TOTAL DESMOBILIZAÇÃO | I179: =SUM(I177) -> 56737.88 | J179: =SUM(J177) -> 70482.98
H181: TOTAL GERAL | I181: =SUM(I20+I27+I32+I43+I58+I76+I118+I130+I150+I155+I174+I179) -> 12817429.71 | J181: =SUM(J20+J27+J32+J43+J58+J76+J118+J130+J150+J155+J174+J179) -> 15922824.63

Sheet COMPARATIVO CUSTO
B3: CUSTOS INICIAIS | D3: CUSTO ATUALIZADO
B5: SEM BDI | C5: COM BDI | D5: SEM BDI | E5: COM BDI
A6: SERV.PRELIMINARES | D6: ='PLANILHA UNIFICADA'!I35+'PLANILHA UNIFICADA'!I53+'PLANILHA UNIFICADA'!I64+'PLANILHA UNIFICADA'!I776 -> 5300439.635 | E6: ='PLANILHA UNIFICADA'!J35+'PLANILHA UNIFICADA'!J53+'PLANILHA UNIFICADA'!J64+'PLANILHA UNIFICADA'!J776 -> 6608053.12
A7: PONTE A | B7: ='PL-ORÇ-DEF.A'!I186 -> 4125810.748 | C7: ='PL-ORÇ-DEF.A'!J186 -> 5143371.46 | D7: ='PLANILHA UNIFICADA'!I186 -> 1503081.25 | E7: ='PLANILHA UNIFICADA'!J186 -> 1873891.37 | F7: CUSTO ATUALIZADO SEM ADMINISTRAÇÃO
A8: PONTE B | B8: ='PL-ORÇ-DEF.B'!I181 -> 1174626.547 | C8: ='PL-ORÇ-DEF.B'!J181 -> 1458970.17 | D8: ='PLANILHA UNIFICADA'!I303 -> 928125.21 | E8: ='PLANILHA UNIFICADA'!J303 -> 1157093.75
A9: PONTE C | B9: ='PL-ORÇ-DEF.C'!I181 -> 12817429.71 | C9: ='PL-ORÇ-DEF.C'!J181 -> 15922824.63 | D9: ='PLANILHA UNIFICADA'!I420 -> 9076759.38 | E9: ='PLANILHA UNIFICADA'!J420 -> 11315995.91
A10: ENGECORPS- ADM | B10: =ENGECORPS!I12+ENGECORPS!I17+ENGECORPS!I20 -> 4885731.795 | C10: =ENGECORPS!K12+ENGECORPS!K17+ENGECORPS!K20 -> 6199052.645
A11: GALERIA D | B11: =ENGECORPS!I25 -> 158617.868 | C11: =ENGECORPS!K25 -> 201255.5243 | D11: ='PLANILHA UNIFICADA'!I628 -> 21190.22 | E11: ='PLANILHA UNIFICADA'!J628 -> 26417.84 | F11: =E11-C11 -> -174837.6843 | G11: =F11/C11 -> -0.868734833 | H11: Custo transporte = 60mil e Transição = 15mil
A12: GALERIA E | B12: =ENGECORPS!I37 -> 325652.0025 | C12: =ENGECORPS!K37 -> 413189.6699 | D12: ='PLANILHA UNIFICADA'!I659 -> 327469.37 | E12: ='PLANILHA UNIFICADA'!J659 -> 408256.08 | F12: =E12-C12 -> -4933.589934 | G12: -0.01194025479 | H12: Enrocamento mais caro
A13: GALERIA F | B13: =ENGECORPS!I57 -> 146748.8233 | C13: =ENGECORPS!K57 -> 186195.9926 | D13: ='PLANILHA UNIFICADA'!I671 -> 46842.63 | E13: ='PLANILHA UNIFICADA'!J671 -> 58398.69 | F13: -127797.3026 | G13: -0.6863590392 | H13: Recomp.Jazida = 77mil, Transp.Rocha = 22mil, Transição = 5mil
A14: GALERIA G1 | B14: =ENGECORPS!I70 -> 114323.7665 | C14: =ENGECORPS!K70 -> 145054.8407 | D14: ='PLANILHA UNIFICADA'!I683 -> 32223.04 | E14: ='PLANILHA UNIFICADA'!J683 -> 40172.47 | F14: -104882.3707 | G14: -0.7230532272 | H14: Recomp.Jazida = 61mil, Transp.Rocha = 5mil, Transição = 2mil
A15: GALERIA G2 | B15: =ENGECORPS!I83 -> 28620.68116 | C15: =ENGECORPS!K83 -> 36314.13198 | D15: ='PLANILHA UNIFICADA'!I693 -> 3519.05 | E15: ='PLANILHA UNIFICADA'!J693 -> 4387.22 | F15: -31926.91198 | G15: -0.8791869787 | H15: Limpeza = 4mil, Transp+Transição = 3500
A16: GALERIA H | B16: =ENGECORPS!I94 -> 293376.0271 | C16: =ENGECORPS!K94 -> 372237.6736 | D16: ='PLANILHA UNIFICADA'!I703 -> 56724.18 | E16: ='PLANILHA UNIFICADA'!J703 -> 70718.04 | F16: -301519.6336 | G16: =F16/C16 -> -0.8100191221 | H16: Recomp.Jazida = 144mil, Transp.Rocha = 51mil, Limpeza = 7mil
A17: GALERIA M | B17: =ENGECORPS!I106 -> 1664709.647 | C17: =ENGECORPS!K106 -> 2112195.915 | D17: ='PLANILHA UNIFICADA'!I734 -> 2141500.61 | E17: ='PLANILHA UNIFICADA'!J734 -> 2669808.75 | F17: 557612.8345 | G17: 0.2639967393 | H17: Enrocamento mais caro
A18: PONTE N | B18: =ENGECORPS!I126 -> 2075707.331 | C18: =ENGECORPS!K126 -> 2633672.818 | D18: ='PLANILHA UNIFICADA'!I521 -> 2517712.07 | E18: ='PLANILHA UNIFICADA'!J521 -> 3138831.63 | F18: 505158.8125 | G18: =F18/C18 -> 0.1918077329 | H18: Prot.Aterro, Sinalização e Enrocamento
A19: GALERIA 0 | B19: =ENGECORPS!I159 -> 1251508.913 | C19: =ENGECORPS!K159 -> 1587923.767 | D19: ='PLANILHA UNIFICADA'!I768 -> 1310103.73 | E19: ='PLANILHA UNIFICADA'!J768 -> 1633306.35 | F19: 45382.58255 | G19: =F19/C19 -> 0.02857982447 | H19: Enrocamento mais caro, custos transporte (outros compensam)
A20: PONTE R | B20: =ENGECORPS!I185 -> 912873.254 | C20: =ENGECORPS!K185 -> 1158260.338 | D20: ='PLANILHA UNIFICADA'!I617 -> 1151053.06 | E20: ='PLANILHA UNIFICADA'!J617 -> 1435017.89 | F20: 276757.552 | G20: 0.2389424406 | H20: Proteção de Talude = 1,1mi
A21: TOTAL: | B21: =SUM(B7:B20) -> 29975737.11 | C21: =SUM(C7:C20) -> 37570519.58 | D21: =SUM(D6:D20) -> 24416743.43 | E21: =SUM(E6:E20) -> 30440349.11 | F21: OBS: CUSTO ADMINISTRATIVO NA PLANILHA DA ENGECORPS BASTANTE ELEVADO (R$6,2MI = 33,7%) - ESSA PODE SER A DIFERENÇA
F25: =SUM(F11:F20) -> 639014.2885

Sheet ANÁLISE
F2: REV.: | G2: A7
F3: DATA: | G3: JULHO.2020
E4: VALOR TOTAL C/BDI (R$): | G4: =SUM(#REF!) -> 
E5: BDI (%): | G5: =BDI!$C$23 -> 0.2467
A8: Especificação | B8: Unidade | C8: Quantidade | D8: Preço Unitário (R$) | F8: Preço Total
D9: Sem BDI | E9: Com BDI | F9: Sem BDI | G9: Com BDI
A10: (COMPOSIÇÃO REPRESENTATIVA) DO SERVIÇO DE INSTALAÇÃO DE TUBOS DE PVC, SÉRIE R, ÁGUA PLUVIAL, DN 100 MM (INSTALADO EM RAMAL DE ENCAMINHAMENTO , OU CONDUTORES VERTICAIS), INCLUSIVE CONEXÕES, CORTES E FIXAÇÕES, PARA PRÉDIOS. AF_10/2015 | B10: m | C10: 172.46 | D10: 42.45 | E10: =D10*(1+$G$5) -> 52.922415 | F10: =ROUND(C10*D10,2) -> 7320.93 | G10: =ROUND(C10*E10,2) -> 9127 | H10: 91790 | I10: SINAPI
A11: (COMPOSIÇÃO REPRESENTATIVA) DO SERVIÇO DE INSTALAÇÃO DE TUBOS DE PVC, SÉRIE R, ÁGUA PLUVIAL, DN 100 MM (INSTALADO EM RAMAL DE ENCAMINHAMENTO , OU CONDUTORES VERTICAIS), INCLUSIVE CONEXÕES, CORTES E FIXAÇÕES, PARA PRÉDIOS. AF_10/2015 | B11: m | C11: 152.46 | D11: 42.45 | E11: 52.922415 | F11: 6471.93 | G11: 8068.55 | H11: 91790 | I11: SINAPI
A12: (COMPOSIÇÃO REPRESENTATIVA) DO SERVIÇO DE INSTALAÇÃO DE TUBOS DE PVC, SÉRIE R, ÁGUA PLUVIAL, DN 100 MM (INSTALADO EM RAMAL DE ENCAMINHAMENTO , OU CONDUTORES VERTICAIS), INCLUSIVE CONEXÕES, CORTES E FIXAÇÕES, PARA PRÉDIOS. AF_10/2015 | B12: m | C12: 512.46 | D12: 42.45 | E12: 52.922415 | F12: 21753.93 | G12: 27120.62 | H12: 91790 | I12: SINAPI
A13: (COMPOSIÇÃO REPRESENTATIVA) DO SERVIÇO DE INSTALAÇÃO DE TUBOS DE PVC, SÉRIE R, ÁGUA PLUVIAL, DN 100 MM (INSTALADO EM RAMAL DE ENCAMINHAMENTO , OU CONDUTORES VERTICAIS), INCLUSIVE CONEXÕES, CORTES E FIXAÇÕES, PARA PRÉDIOS. AF_10/2015 | B13: m | D13: 42.45 | E13: 52.922415 | F13: 0 | G13: 0 | H13: 91790 | I13: SINAPI
A14: (COMPOSIÇÃO REPRESENTATIVA) DO SERVIÇO DE INSTALAÇÃO DE TUBOS DE PVC, SÉRIE R, ÁGUA PLUVIAL, DN 100 MM (INSTALADO EM RAMAL DE ENCAMINHAMENTO , OU CONDUTORES VERTICAIS), INCLUSIVE CONEXÕES, CORTES E FIXAÇÕES, PARA PRÉDIOS. AF_10/2015 | B14: m | D14: 42.45 | E14: 52.922415 | F14: 0 | G14: 0 | H14: 91790 | I14: SINAPI
A15: ADMINISTRAÇÃO LOCAL E MANUTENÇÃO DO CANTEIRO DE OBRAS - PRAZO DE OBRA IGUAL A 18 MESES | B15: gl | C15: 1 | D15: 2028860.74 | E15: 2529380.685 | F15: 2028860.74 | G15: 2529380.68 | H15: C1 | I15: CPU
A16: ALVENARIA DE VEDAÇÃO COM BLOCO DE CONCRETO, ESP.19 CM, PARA REVESTIMENTO, INCLUSIVE ARGAMASSA PARA ASSENTAMENTO | B16: m² | C16: 38.4 | D16: 49.12 | E16: 61.237904 | F16: 1886.21 | G16: 2351.54 | H16: ED-48193 | I16: DEER/MG
A17: ALVENARIA DE VEDAÇÃO COM BLOCO DE CONCRETO, ESP.19 CM, PARA REVESTIMENTO, INCLUSIVE ARGAMASSA PARA ASSENTAMENTO | B17: m² | C17: 38.4 | D17: 49.12 | E17: 61.237904 | F17: 1886.21 | G17: 2351.54 | H17: ED-48193 | I17: DEER/MG
A18: ALVENARIA DE VEDAÇÃO COM BLOCO DE CONCRETO, ESP.19 CM, PARA REVESTIMENTO, INCLUSIVE ARGAMASSA PARA ASSENTAMENTO | B18: m² | C18: 3.83 | D18: 49.12 | E18: 61.237904 | F18: 188.13 | G18: 234.54 | H18: ED-48193 | I18: DEER/MG
A19: ALVENARIA DE VEDAÇÃO COM BLOCO DE CONCRETO, ESP.19 CM, PARA REVESTIMENTO, INCLUSIVE ARGAMASSA PARA ASSENTAMENTO | B19: m² | C19: 7.64 | D19: 49.12 | E19: 61.237904 | F19: 375.28 | G19: 467.86 | H19: ED-48193 | I19: DEER/MG
A20: ANCORAGEM ATIVA PARA 12 CORDOALHAS D = 12,7 MM COM PLACA DE ANCORAGEM, BLOCO, CUNHAS TRIPARTIDAS, TROMBETA E PROTENSÃO | B20: unid. | C20: 32 | D20: 1458 | E20: 1817.6886 | F20: 46656 | G20: 58166.04 | H20: 4507755 | I20: DNIT/MG
A21: ANCORAGEM ATIVA PARA 12 CORDOALHAS D = 12,7 MM COM PLACA DE ANCORAGEM, BLOCO, CUNHAS TRIPARTIDAS, TROMBETA E PROTENSÃO | B21: unid. | C21: 32 | D21: 1458 | E21: 1817.6886 | F21: 46656 | G21: 58166.04 | H21: 4507755 | I21: DNIT/MG
A22: ANCORAGEM ATIVA PARA 12 CORDOALHAS D = 12,7 MM COM PLACA DE ANCORAGEM, BLOCO, CUNHAS TRIPARTIDAS, TROMBETA E PROTENSÃO | B22: unid. | C22: 120 | D22: 1458 | E22: 1817.6886 | F22: 174960 | G22: 218122.63 | H22: 4507755 | I22: DNIT/MG
A23: ANCORAGEM ATIVA PARA 12 CORDOALHAS D = 12,7 MM COM PLACA DE ANCORAGEM, BLOCO, CUNHAS TRIPARTIDAS, TROMBETA E PROTENSÃO | B23: unid. | D23: 1458 | E23: 1817.6886 | F23: 0 | G23: 0 | H23: 4507755 | I23: DNIT/MG
A24: ANCORAGEM ATIVA PARA 12 CORDOALHAS D = 12,7 MM COM PLACA DE ANCORAGEM, BLOCO, CUNHAS TRIPARTIDAS, TROMBETA E PROTENSÃO | B24: unid. | D24: 1458 | E24: 1817.6886 | F24: 0 | G24: 0 | H24: 4507755 | I24: DNIT/MG
A25: APARELHO APOIO NEOPRENE FRETADO | B25: dm³ | C25: 45.12 | D25: 109.31 | E25: 136.276777 | F25: 4932.07 | G25: 6148.81 | H25: 84154 | I25: SINAPI
A26: APARELHO APOIO NEOPRENE FRETADO | B26: dm³ | C26: 45.12 | D26: 109.31 | E26: 136.276777 | F26: 4932.07 | G26: 6148.81 | H26: 84154 | I26: SINAPI
A27: APARELHO APOIO NEOPRENE FRETADO | B27: dm³ | C27: 135.56 | D27: 109.31 | E27: 136.276777 | F27: 14818.06 | G27: 18473.68 | H27: 84154 | I27: SINAPI
A28: APARELHO APOIO NEOPRENE FRETADO | B28: dm³ | C28: 126 | D28: 109.31 | E28: 136.276777 | F28: 13773.06 | G28: 17170.87 | H28: 84154 | I28: SINAPI
A29: APARELHO APOIO NEOPRENE FRETADO | B29: dm³ | C29: 98 | D29: 109.31 | E29: 136.276777 | F29: 10712.38 | G29: 13355.12 | H29: 84154 | I29: SINAPI
A30: BACIA DE DISSIPAÇÃO (PEDRA ARGAMASSADA e=25cm) | B30: m³ | C30: 12.26 | D30: 208.474 | E30: 259.9045358 | F30: 2555.89 | G30: 3186.43 | H30: C7 | I30: CPU
A31: BACIA DE DISSIPAÇÃO (PEDRA ARGAMASSADA e=25cm) | B31: m³ | C31: 11.37 | D31: 208.474 | E31: 259.9045358 | F31: 2370.35 | G31: 2955.11 | H31: C7 | I31: CPU
A32: BACIA DE DISSIPAÇÃO (PEDRA ARGAMASSADA e=25cm) | B32: m³ | C32: 12.64 | D32: 208.474 | E32: 259.9045358 | F32: 2635.11 | G32: 3285.19 | H32: C7 | I32: CPU
A33: BAINHA METÁLICA DIÂMETRO 95 MM PARA 19 CORDOALHAS D = 15,2 MM, SEMI-RÍGIDA, REDONDA, COM MONTAGEM E INJEÇÃO DE NATA DE CIMENTO | B33: m | C33: 554.4 | D33: 68.38 | E33: 85.249346 | F33: 37909.87 | G33: 47262.24 | H33: 4508176 | I33: DNIT/MG
A34: BAINHA METÁLICA DIÂMETRO 95 MM PARA 19 CORDOALHAS D = 15,2 MM, SEMI-RÍGIDA, REDONDA, COM MONTAGEM E INJEÇÃO DE NATA DE CIMENTO | B34: m | C34: 474.88 | D34: 68.38 | E34: 85.249346 | F34: 32472.29 | G34: 40483.21 | H34: 4508176 | I34: DNIT/MG
A35: BAINHA METÁLICA DIÂMETRO 95 MM PARA 19 CORDOALHAS D = 15,2 MM, SEMI-RÍGIDA, REDONDA, COM MONTAGEM E INJEÇÃO DE NATA DE CIMENTO | B35: m | C35: 2381.76 | D35: 68.38 | E35: 85.249346 | F35: 162864.75 | G35: 203043.48 | H35: 4508176 | I35: DNIT/MG
A36: BAINHA METÁLICA DIÂMETRO 95 MM PARA 19 CORDOALHAS D = 15,2 MM, SEMI-RÍGIDA, REDONDA, COM MONTAGEM E INJEÇÃO DE NATA DE CIMENTO | B36: m | D36: 68.38 | E36: 85.249346 | F36: 0 | G36: 0 | H36: 4508176 | I36: DNIT/MG
A37: BAINHA METÁLICA DIÂMETRO 95 MM PARA 19 CORDOALHAS D = 15,2 MM, SEMI-RÍGIDA, REDONDA, COM MONTAGEM E INJEÇÃO DE NATA DE CIMENTO | B37: m | D37: 68.38 | E37: 85.249346 | F37: 0 | G37: 0 | H37: 4508176 | I37: DNIT/MG
A38: BARREIRA PRE-MOLDADA EXTERNA CONCRETO ARMADO 0,25X0,40X1,14M FCK=25MPA ACO CA-50 INCL VIGOTA HORIZONTAL MONTANTE A CADA 1,00M FERROS DE LIGACAO E MATERIAIS. | B38: m | C38: 86.232 | D38: 468.97 | E38: 584.664899 | F38: 40440.22 | G38: 50416.82 | H38: 73770/001 | I38: SINAPI
A39: BARREIRA PRE-MOLDADA EXTERNA CONCRETO ARMADO 0,25X0,40X1,14M FCK=25MPA ACO CA-50 INCL VIGOTA HORIZONTAL MONTANTE A CADA 1,00M FERROS DE LIGACAO E MATERIAIS. | B39: m | C39: 76.23 | D39: 468.97 | E39: 584.664899 | F39: 35749.58 | G39: 44569.01 | H39: 73770/001 | I39: SINAPI
A40: BARREIRA PRE-MOLDADA EXTERNA CONCRETO ARMADO 0,25X0,40X1,14M FCK=25MPA ACO CA-50 INCL VIGOTA HORIZONTAL MONTANTE A CADA 1,00M FERROS DE LIGACAO E MATERIAIS. | B40: m | C40: 256.23 | D40: 468.97 | E40: 584.664899 | F40: 120164.18 | G40: 149808.69 | H40: 73770/001 | I40: SINAPI
A41: BARREIRA PRE-MOLDADA EXTERNA CONCRETO ARMADO 0,25X0,40X1,14M FCK=25MPA ACO CA-50 INCL VIGOTA HORIZONTAL MONTANTE A CADA 1,00M FERROS DE LIGACAO E MATERIAIS. | B41: m | D41: 468.97 | E41: 584.664899 | F41: 0 | G41: 0 | H41: 73770/001 | I41: SINAPI
A42: BARREIRA PRE-MOLDADA EXTERNA CONCRETO ARMADO 0,25X0,40X1,14M FCK=25MPA ACO CA-50 INCL VIGOTA HORIZONTAL MONTANTE A CADA 1,00M FERROS DE LIGACAO E MATERIAIS. | B42: m | D42: 468.97 | E42: 584.664899 | F42: =ROUND(C42*D42,2) -> 0 | G42: 0 | H42: 73770/001 | I42: SINAPI
A43: BASE DE SOLO SEM MISTURA, COMPACTADA NA ENERGIA DO PROCTOR INTERMEDIÁRIO (EXECUÇÃO, INCLUINDO ESCAVAÇÃO, CARGA, DESCARGA, ESPALHAMENTO, UMIDECIMENTO E COMPACTAÇÃO DO MATERIAL; EXCLUI AQUISIÇÃO E TRANSPORTE DO MATERIAL) | B43: m³ | C43: 1299.83 | D43: 14.05 | E43: 17.516135 | F43: 18262.61 | G43: 22768 | H43: RO-43113 | I43: DEER/MG
A44: BASE DE SOLO SEM MISTURA, COMPACTADA NA ENERGIA DO PROCTOR INTERMEDIÁRIO (EXECUÇÃO, INCLUINDO ESCAVAÇÃO, CARGA, DESCARGA, ESPALHAMENTO, UMIDECIMENTO E COMPACTAÇÃO DO MATERIAL; EXCLUI AQUISIÇÃO E TRANSPORTEDO MATERIAL) | B44: m³ | C44: 395.85 | D44: 14.05 | E44: 17.516135 | F44: 5561.69 | G44: 6933.76 | H44: RO-43113 | I44: DEER/MG
A45: BASE DE SOLO SEM MISTURA, COMPACTADA NA ENERGIA DO PROCTOR INTERMEDIÁRIO (EXECUÇÃO, INCLUINDO ESCAVAÇÃO, CARGA, DESCARGA, ESPALHAMENTO, UMIDECIMENTO E COMPACTAÇÃO DO MATERIAL; EXCLUI AQUISIÇÃO E TRANSPORTEDO MATERIAL) | B45: m³ | C45: 252.67 | D45: 14.05 | E45: 17.516135 | F45: 3550.01 | G45: 4425.8 | H45: RO-43113 | I45: DEER/MG
A46: BASE DE SOLO SEM MISTURA, COMPACTADA NA ENERGIA DO PROCTOR INTERMEDIÁRIO (EXECUÇÃO, INCLUINDO ESCAVAÇÃO, CARGA, DESCARGA, ESPALHAMENTO, UMIDECIMENTO E COMPACTAÇÃO DO MATERIAL; EXCLUI AQUISIÇÃO E TRANSPORTEDO MATERIAL) | B46: m³ | C46: 2397.07 | D46: 14.05 | E46: 17.516135 | F46: 33678.83 | G46: 41987.4 | H46: RO-43113 | I46: DEER/MG
A47: BASE DE SOLO SEM MISTURA, COMPACTADA NA ENERGIA DO PROCTOR INTERMEDIÁRIO (EXECUÇÃO, INCLUINDO ESCAVAÇÃO, CARGA, DESCARGA, ESPALHAMENTO, UMIDECIMENTO E COMPACTAÇÃO DO MATERIAL; EXCLUI AQUISIÇÃO E TRANSPORTEDO MATERIAL) | B47: m³ | D47: 14.05 | E47: 17.516135 | F47: 0 | G47: 0 | H47: RO-43113 | I47: DEER/MG
A48: BASE DE SOLO SEM MISTURA, COMPACTADA NA ENERGIA DO PROCTOR INTERMEDIÁRIO (EXECUÇÃO, INCLUINDO ESCAVAÇÃO, CARGA, DESCARGA, ESPALHAMENTO, UMIDECIMENTO E COMPACTAÇÃO DO MATERIAL; EXCLUI AQUISIÇÃO E TRANSPORTEDO MATERIAL) | B48: m³ | D48: 14.05 | E48: 17.516135 | F48: 0 | G48: 0 | H48: RO-43113 | I48: DEER/MG
A49: CAIXA BSTC ø 80 (1,00 x 1,00 x 1,40) | B49: Unid | C49: 1 | D49: 1083.53 | E49: 1350.836851 | F49: 1083.53 | G49: 1350.84 | H49: ED-48572 | I49: DEER/MG
A50: CANALETA PARA DRENAGEM, EM CONCRETO COM FCK 15MPA, MOLDADA IN LOCO, SEÇÃO 60X60CM, FORMA EM CONTRA BARRANCO, EXCLUSIVE TAMPA, INCLUSIVE ESCAVAÇÃO, REATERRO COM TRANSPORTE E RETIRADA DO MATERIAL ESCAVADO (EM CAÇAMBA) | B50: m | C50: 440 | D50: 236.98 | E50: 295.442966 | F50: 104271.2 | G50: 129994.91 | H50: ED-14723 | I50: DEER/MG
A51: CANALETA PARA DRENAGEM, EM CONCRETO COM FCK 15MPA, MOLDADA IN LOCO, SEÇÃO 60X60CM, FORMA EM CONTRA BARRANCO, EXCLUSIVE TAMPA, INCLUSIVE ESCAVAÇÃO, REATERRO COM TRANSPORTE E RETIRADA DO MATERIAL ESCAVADO (EM CAÇAMBA) | B51: m | C51: 0 | D51: 236.98 | E51: 295.442966 | F51: 0 | G51: 0 | H51: ED-14723 | I51: DEER/MG
A52: CANALETA PARA DRENAGEM, EM CONCRETO COM FCK 15MPA, MOLDADA IN LOCO, SEÇÃO 60X60CM, FORMA EM CONTRA BARRANCO, EXCLUSIVE TAMPA, INCLUSIVE ESCAVAÇÃO, REATERRO COM TRANSPORTE E RETIRADA DO MATERIAL ESCAVADO (EM CAÇAMBA) | B52: m | C52: 12 | D52: 236.98 | E52: 295.442966 | F52: 2843.76 | G52: 3545.32 | H52: ED-14723 | I52: DEER/MG
A53: CANALETA PARA DRENAGEM, EM CONCRETO COM FCK 15MPA, MOLDADA IN LOCO, SEÇÃO 60X60CM, FORMA EM CONTRA BARRANCO, EXCLUSIVE TAMPA, INCLUSIVE ESCAVAÇÃO, REATERRO COM TRANSPORTE E RETIRADA DO MATERIAL ESCAVADO (EM CAÇAMBA) | B53: m | C53: 4 | D53: 236.98 | E53: 295.442966 | F53: 947.92 | G53: 1181.77 | H53: ED-14723 | I53: DEER/MG
A54: CANALETA PARA DRENAGEM, PRÉ-MOLDADA, TIPO MEIA CANA, DIÂMETRO 60CM, EXCLUSIVE TAMPA, INCLUSIVE ASSENTAMENTO EM ARGAMASSA, TRAÇO 1:3 (CIMENTO E AREIA), ESCAVAÇÃO, TRANSPORTE E RETIRADA DO MATERIAL ESCAVADO (EM CAÇAMBA) | B54: m | C54: 2 | D54: 116.74 | E54: 145.539758 | F54: 233.48 | G54: 291.08 | H54: ED-48555 | I54: DEER/MG
A55: CARGA E DESCARGA MECANIZADAS DE ENTULHO EM CAMINHAO BASCULANTE 6 M3 | B55: m³ | C55: 55195.998 | D55: 3.2 | E55: 3.98944 | F55: 176627.19 | G55: 220201.12 | H55: 72898 | I55: SINAPI
A56: CARGA E DESCARGA MECANIZADAS DE ENTULHO EM CAMINHAO BASCULANTE 6 M3 | B56: m³ | C56: 12236.34 | D56: 3.2 | E56: 3.98944 | F56: 39156.29 | G56: 48816.14 | H56: 72898 | I56: SINAPI
A57: CARGA E DESCARGA MECANIZADAS DE ENTULHO EM CAMINHAO BASCULANTE 6 M3 | B57: m³ | C57: 728 | D57: 3.2 | E57: 3.98944 | F57: 2329.6 | G57: 2904.31 | H57: 72898 | I57: SINAPI
A58: CARGA E DESCARGA MECANIZADAS DE ENTULHO EM CAMINHAO BASCULANTE 6 M3 | B58: m³ | C58: 5600 | D58: 3.2 | E58: 3.98944 | F58: 17920 | G58: 22340.86 | H58: 72898 | I58: SINAPI
A59: CARGA E DESCARGA MECANIZADAS DE ENTULHO EM CAMINHAO BASCULANTE 6 M3 | B59: m³ | C59: 7560 | D59: 3.2 | E59: 3.98944 | F59: 24192 | G59: 30160.17 | H59: 72898 | I59: SINAPI
A60: CARGA, MANOBRAS E DESCARGA DE AREIA, BRITA, PEDRA DE MAO E SOLOS COM CAMINHAO BASCULANTE 6 M3 (DESCARGA LIVRE) | B60: m³ | C60: 98.5 | D60: 0.78 | E60: 0.972426 | F60: 76.83 | G60: 95.78 | H60: 72888 | I60: SINAPI
A61: CARGA, MANOBRAS E DESCARGA DE AREIA, BRITA, PEDRA DE MAO E SOLOS COM CAMINHAO BASCULANTE 6 M3 (DESCARGA LIVRE) | B61: m³ | C61: 132.7 | D61: 0.78 | E61: 0.972426 | F61: 103.51 | G61: 129.04 | H61: 72888 | I61: SINAPI
A62: CARGA, MANOBRAS E DESCARGA DE AREIA, BRITA, PEDRA DE MAO E SOLOS COM CAMINHAO BASCULANTE 6 M3 (DESCARGA LIVRE) | B62: m³ | C62: 67 | D62: 0.78 | E62: 0.972426 | F62: 52.26 | G62: 65.15 | H62: 72888 | I62: SINAPI
A63: CARGA, MANOBRAS E DESCARGA DE AREIA, BRITA, PEDRA DE MAO E SOLOS COM CAMINHAO BASCULANTE 6 M3 (DESCARGA LIVRE) | B63: m³ | C63: 90.25 | D63: 0.78 | E63: 0.972426 | F63: 70.4 | G63: 87.76 | H63: 72888 | I63: SINAPI
A64: CARGA, MANOBRAS E DESCARGA DE AREIA, BRITA, PEDRA DE MAO E SOLOS COM CAMINHAO BASCULANTE 6 M3 (DESCARGA LIVRE) | B64: m³ | C64: 551.1 | D64: 0.78 | E64: 0.972426 | F64: 429.86 | G64: 535.9 | H64: 72888 | I64: SINAPI
A65: CARGA, MANOBRAS E DESCARGA DE AREIA, BRITA, PEDRA DE MAO E SOLOS COM CAMINHAO BASCULANTE 6 M3 (DESCARGA LIVRE) | B65: m³ | C65: 742.73 | D65: 0.78 | E65: 0.972426 | F65: 579.33 | G65: 722.25 | H65: 72888 | I65: SINAPI
A66: CARGA, MANOBRAS E DESCARGA DE AREIA, BRITA, PEDRA DE MAO E SOLOS COM CAMINHAO BASCULANTE 6 M3 (DESCARGA LIVRE) | B66: m³ | D66: 0.78 | E66: 0.972426 | F66: 0 | G66: 0 | H66: 72888 | I66: SINAPI
A67: CARGA, MANOBRAS E DESCARGA DE AREIA, BRITA, PEDRA DE MAO E SOLOS COM CAMINHAO BASCULANTE 6 M3 (DESCARGA LIVRE) | B67: m³ | D67: 0.78 | E67: 0.972426 | F67: 0 | G67: 0 | H67: 72888 | I67: SINAPI
A68: CARGA, MANOBRAS E DESCARGA DE AREIA, BRITA, PEDRA DE MAO E SOLOS COM CAMINHAO BASCULANTE 6 M3 (DESCARGA LIVRE) | B68: m³ | D68: 0.78 | E68: 0.972426 | F68: 0 | G68: 0 | H68: 72888 | I68: SINAPI
A69: CARGA, MANOBRAS E DESCARGA DE AREIA, BRITA, PEDRA DE MAO E SOLOS COM CAMINHAO BASCULANTE 6 M3 (DESCARGA LIVRE) | B69: m³ | D69: 0.78 | E69: 0.972426 | F69: 0 | G69: 0 | H69: 72888 | I69: SINAPI
A70: CARGA, MANOBRAS E DESCARGA DE MISTURAS DE SOLOS E AGREGADOS (BASES ESTABILIZADAS EM USINA) COM CAMINHAO BASCULANTE 6 M3 | B70: t | C70: 22.1 | D70: 1.79 | E70: 2.231593 | F70: 39.56 | G70: 49.32 | H70: 72849 | I70: SINAPI | J70: SERVIÇOS SEMELHANTES AO 72888
A71: CARGA, MANOBRAS E DESCARGA DE MISTURAS DE SOLOS E AGREGADOS (BASES ESTABILIZADAS EM USINA) COM CAMINHAO BASCULANTE 6 M3 | B71: t | C71: 15 | D71: 1.79 | E71: 2.231593 | F71: 26.85 | G71: 33.47 | H71: 72849 | I71: SINAPI
A72: CARGA, MANOBRAS E DESCARGA DE MISTURAS DE SOLOS E AGREGADOS (BASES ESTABILIZADAS EM USINA) COM CAMINHAO BASCULANTE 6 M3 | B72: t | C72: 123.53 | D72: 1.79 | E72: 2.231593 | F72: 221.12 | G72: 275.67 | H72: 72849 | I72: SINAPI
A73: CARGA, MANOBRAS E DESCARGA DE MISTURAS DE SOLOS E AGREGADOS (BASES ESTABILIZADAS EM USINA) COM CAMINHAO BASCULANTE 6 M3 | B73: t | D73: 1.79 | E73: 2.231593 | F73: 0 | G73: 0 | H73: 72849 | I73: SINAPI
A74: CARGA, MANOBRAS E DESCARGA DE MISTURAS DE SOLOS E AGREGADOS (BASES ESTABILIZADAS EM USINA) COM CAMINHAO BASCULANTE 6 M3 | B74: t | D74: 1.79 | E74: =D74*(1+$G$5) -> 2.231593 | F74: =ROUND(C74*D74,2) -> 0 | G74: =ROUND(C74*E74,2) -> 0 | H74: 72849 | I74: SINAPI
A75: CERCA COM MOUROES DE MADEIRA ROLICA, DIAMETRO 11CM, ESPACAMENTO DE 2M, ALTURA LIVRE DE 1M, CRAVADOS 0,5M, COM 5 FIOS DE ARAME FARPADO Nº 14 CLASSE 250 | B75: m | C75: 490 | D75: 26.27 | E75: 32.750809 | F75: 12872.3 | G75: 16047.9 | H75: 74039/001 | I75: SINAPI
A76: CERCA COM MOUROES DE MADEIRA ROLICA, DIAMETRO 11CM, ESPACAMENTO DE 2M, ALTURA LIVRE DE 1M, CRAVADOS 0,5M, COM 5 FIOS DE ARAME FARPADO Nº 14 CLASSE 250 | B76: m | C76: 189.75 | D76: 26.27 | E76: 32.750809 | F76: 4984.73 | G76: 6214.47 | H76: 74039/001 | I76: SINAPI
A77: CERCA COM MOUROES DE MADEIRA ROLICA, DIAMETRO 11CM, ESPACAMENTO DE 2M, ALTURA LIVRE DE 1M, CRAVADOS 0,5M, COM 5 FIOS DE ARAME FARPADO Nº 14 CLASSE 250 | B77: m | C77: 3642.23 | D77: 26.27 | E77: 32.750809 | F77: 95681.38 | G77: 119285.98 | H77: 74039/001 | I77: SINAPI
A78: COLOCAÇÃO DE PLACAS | B78: m² | C78: 16.67 | D78: 65.77 | E78: 81.995459 | F78: 1096.39 | G78: 1366.86 | H78: RO-43226 | I78: DEER/MG
A79: COLOCAÇÃO DE PLACAS | B79: m² | C79: 1.39 | D79: 65.77 | E79: 81.995459 | F79: 91.42 | G79: 113.97 | H79: RO-43226 | I79: DEER/MG
A80: COLOCAÇÃO DE PLACAS | B80: m² | C80: 16.67 | D80: 65.77 | E80: 81.995459 | F80: 1096.39 | G80: 1366.86 | H80: RO-43226 | I80: DEER/MG
A81: COLOCAÇÃO DE PLACAS | B81: m² | C81: 1.39 | D81: 65.77 | E81: 81.995459 | F81: 91.42 | G81: 113.97 | H81: RO-43226 | I81: DEER/MG
A82: COLOCAÇÃO DE PLACAS | B82: m² | C82: 28.45 | D82: 65.77 | E82: 81.995459 | F82: 1871.16 | G82: 2332.77 | H82: RO-43226 | I82: DEER/MG
A83: COLOCAÇÃO DE PLACAS | B83: m² | C83: 1.39 | D83: 65.77 | E83: 81.995459 | F83: 91.42 | G83: 113.97 | H83: RO-43226 | I83: DEER/MG
A84: COLOCAÇÃO DE PLACAS | B84: m² | C84: 16.67 | D84: 65.77 | E84: 81.995459 | F84: 1096.39 | G84: 1366.86 | H84: RO-43226 | I84: DEER/MG
A85: COLOCAÇÃO DE PLACAS | B85: m² | C85: 5.2 | D85: 65.77 | E85: 81.995459 | F85: 342 | G85: 426.38 | H85: RO-43226 | I85: DEER/MG
A86: COLOCAÇÃO DE PLACAS | B86: m² | C86: 16.67 | D86: 65.77 | E86: 81.995459 | F86: 1096.39 | G86: 1366.86 | H86: RO-43226 | I86: DEER/MG
A87: COLOCAÇÃO DE PLACAS | B87: m² | C87: 5.2 | D87: 65.77 | E87: 81.995459 | F87: 342 | G87: 426.38 | H87: RO-43226 | I87: DEER/MG
A88: COMPACTAÇÃO DE ATERRO A 100% PROCTOR NORMAL | B88: m³ | C88: 7006.31 | D88: 3.14 | E88: 3.914638 | F88: 21999.81 | G88: 27427.17 | H88: RO-40251 | I88: DEER/MG
A89: COMPACTAÇÃO DE ATERRO A 100% PROCTOR NORMAL | B89: m³ | C89: 807.09 | D89: 3.14 | E89: 3.914638 | F89: 2534.26 | G89: 3159.47 | H89: RO-40251 | I89: DEER/MG
A90: COMPACTAÇÃO DE ATERRO A 100% PROCTOR NORMAL | B90: m³ | C90: 251888.76 | D90: 3.14 | E90: 3.914638 | F90: 790930.71 | G90: 986053.31 | H90: RO-40251 | I90: DEER/MG
A91: COMPACTAÇÃO DE ATERRO A 100% PROCTOR NORMAL | B91: m³ | C91: 43934.45 | D91: 3.14 | E91: 3.914638 | F91: 137954.17 | G91: 171987.47 | H91: RO-40251 | I91: DEER/MG
A92: COMPACTAÇÃO DE ATERRO A 100% PROCTOR NORMAL | B92: m³ | C92: 16715.49 | D92: 3.14 | E92: 3.914638 | F92: 52486.64 | G92: 65435.09 | H92: RO-40251 | I92: DEER/MG
A93: COMPACTAÇÃO DE ATERRO A 100% PROCTOR NORMAL | B93: m³ | C93: 175.8 | D93: 3.14 | E93: 3.914638 | F93: 552.01 | G93: 688.19 | H93: RO-40251 | I93: DEER/MG
A94: COMPACTAÇÃO DE ATERRO A 100% PROCTOR NORMAL | B94: m³ | C94: 4980.56 | D94: 3.14 | E94: 3.914638 | F94: 15638.96 | G94: 19497.09 | H94: RO-40251 | I94: DEER/MG
A95: COMPACTAÇÃO DE ATERRO A 100% PROCTOR NORMAL | B95: m³ | C95: 144.24 | D95: 3.14 | E95: 3.914638 | F95: 452.91 | G95: 564.65 | H95: RO-40251 | I95: DEER/MG
A96: COMPACTAÇÃO DE ATERRO A 100% PROCTOR NORMAL | B96: m³ | C96: 125.36 | D96: 3.14 | E96: 3.914638 | F96: 393.63 | G96: 490.74 | H96: RO-40251 | I96: DEER/MG
A97: COMPACTAÇÃO DE ATERRO A 100% PROCTOR NORMAL | B97: m³ | C97: 122.08 | D97: 3.14 | E97: 3.914638 | F97: 383.33 | G97: 477.9 | H97: RO-40251 | I97: DEER/MG
A98: COMPACTAÇÃO DE ATERRO A 100% PROCTOR NORMAL | B98: m³ | C98: 244.74 | D98: 3.14 | E98: 3.914638 | F98: 768.48 | G98: 958.07 | H98: RO-40251 | I98: DEER/MG
A99: COMPACTAÇÃO DE ATERRO A 100% PROCTOR NORMAL | B99: m³ | C99: 60167.53 | D99: 3.14 | E99: 3.914638 | F99: 188926.04 | G99: 235534.1 | H99: RO-40251 | I99: DEER/MG
A100: COMPACTAÇÃO DE ATERRO A 100% PROCTOR NORMAL | B100: m³ | C100: 28426.67 | D100: 3.14 | E100: 3.914638 | F100: 89259.74 | G100: 111280.12 | H100: RO-40251 | I100: DEER/MG
A101: CONCRETO DE CIMENTO PORTLAND, FCK>=15,0MPA (EXECUÇÃO, INCLUINDO O FORNECIMENTO E TRANSPORTE DOS AGREGADOS) | B101: m³ | C101: 1.152 | D101: 365.06 | E101: 455.120302 | F101: 420.55 | G101: 524.3 | H101: RO-41624 | I101: DEER/MG
A102: CONCRETO DE CIMENTO PORTLAND, FCK>=15,0MPA (EXECUÇÃO, INCLUINDO O FORNECIMENTO E TRANSPORTE DOS AGREGADOS) | B102: m³ | C102: 0.402 | D102: 365.06 | E102: 455.120302 | F102: 146.75 | G102: 182.96 | H102: RO-41624 | I102: DEER/MG
A103: CONCRETO DE CIMENTO PORTLAND, FCK>=15,0MPA (EXECUÇÃO, INCLUINDO OFORNECIMENTO E TRANSPORTE DOS AGREGADOS) | B103: m³ | C103: 1.152 | D103: 365.06 | E103: 455.120302 | F103: 420.55 | G103: 524.3 | H103: RO-41624 | I103: DEER/MG
A104: CONCRETO DE CIMENTO PORTLAND, FCK>=15,0MPA (EXECUÇÃO, INCLUINDO OFORNECIMENTO E TRANSPORTE DOS AGREGADOS) | B104: m³ | C104: 0.8 | D104: 365.06 | E104: 455.120302 | F104: 292.05 | G104: 364.1 | H104: RO-41624 | I104: DEER/MG
A105: CONCRETO PARA BOMBEAMENTO FCK = 25 MPA - CONFECÇÃO EM CENTRAL DOSADORA DE 30 M³/H - AREIA E BRITA COMERCIAIS | B105: m³ | C105: 12.71998 | D105: 225.95 | E105: 281.691865 | F105: 2874.08 | G105: 3583.11 | H105: 1116263 | I105: DNIT/MG
A106: CONCRETO PARA BOMBEAMENTO FCK = 25 MPA - CONFECÇÃO EM CENTRAL DOSADORA DE 30 M³/H - AREIA E BRITA COMERCIAIS | B106: m³ | C106: 11 | D106: 225.95 | E106: 281.691865 | F106: =ROUND(C106*D106,2) -> 2485.45 | G106: 3098.61 | H106: 1116263 | I106: DNIT/MG
A107: CONCRETO PARA BOMBEAMENTO FCK = 25 MPA - CONFECÇÃO EM CENTRAL DOSADORA DE 30 M³/H - AREIA E BRITA COMERCIAIS | B107: m³ | C107: 41.52 | D107: 225.95 | E107: 281.691865 | F107: 9381.44 | G107: 11695.85 | H107: 1116263 | I107: DNIT/MG
A108: CONCRETO PARA BOMBEAMENTO FCK = 25 MPA - CONFECÇÃO EM CENTRAL DOSADORA DE 30 M³/H - AREIA E BRITA COMERCIAIS | B108: m³ | C108: 35 | D108: 225.95 | E108: 281.691865 | F108: 7908.25 | G108: 9859.22 | H108: 1116263 | I108: DNIT/MG
A109: CONCRETO PARA BOMBEAMENTO FCK = 25 MPA - CONFECÇÃO EM CENTRAL DOSADORA DE 30 M³/H - AREIA E BRITA COMERCIAIS | B109: m³ | C109: 347.1 | D109: 225.95 | E109: 281.691865 | F109: 78427.25 | G109: 97775.25 | H109: 1116263 | I109: DNIT/MG
A110: CONCRETO PARA BOMBEAMENTO FCK = 25 MPA - CONFECÇÃO EM CENTRAL DOSADORA DE 30 M³/H - AREIA E BRITA COMERCIAIS | B110: m³ | C110: 27.08 | D110: 225.95 | E110: 281.691865 | F110: 6118.73 | G110: 7628.22 | H110: 1116263 | I110: DNIT/MG
A111: CONCRETO PARA BOMBEAMENTO FCK = 25 MPA - CONFECÇÃO EM CENTRAL DOSADORA DE 30 M³/H - AREIA E BRITA COMERCIAIS | B111: m³ | C111: 77.8 | D111: 225.95 | E111: 281.691865 | F111: 17578.91 | G111: 21915.63 | H111: 1116263 | I111: DNIT/MG
A112: CONCRETO PARA BOMBEAMENTO FCK = 25 MPA - CONFECÇÃO EM CENTRAL DOSADORA DE 30 M³/H - AREIA E BRITA COMERCIAIS | B112: m³ | C112: 75.18 | D112: 225.95 | E112: 281.691865 | F112: 16986.92 | G112: 21177.59 | H112: 1116263 | I112: DNIT/MG
A113: CONCRETO PARA BOMBEAMENTO FCK = 25 MPA - CONFECÇÃO EM CENTRAL DOSADORA DE 30 M³/H - AREIA E BRITA COMERCIAIS | B113: m³ | C113: 110.28 | D113: 225.95 | E113: 281.691865 | F113: 24917.77 | G113: 31064.98 | H113: 1116263 | I113: DNIT/MG
A114: CONCRETO PARA BOMBEAMENTO FCK = 25 MPA - CONFECÇÃO EM CENTRAL DOSADORA DE 30 M³/H - AREIA E BRITA COMERCIAIS | B114: m³ | C114: 54.97 | D114: 225.95 | E114: 281.691865 | F114: 12420.47 | G114: 15484.6 | H114: 1116263 | I114: DNIT/MG
A115: CONCRETO PARA BOMBEAMENTO FCK = 25 MPA - CONFECÇÃO EM CENTRAL DOSADORA DE 30 M³/H - AREIA E BRITA COMERCIAIS | B115: m³ | C115: 76.38 | D115: 225.95 | E115: 281.691865 | F115: 17258.06 | G115: 21515.62 | H115: 1116263 | I115: DNIT/MG
A116: CONCRETO PARA BOMBEAMENTO FCK = 25 MPA - CONFECÇÃO EM CENTRAL DOSADORA DE 30 M³/H - AREIA E BRITA COMERCIAIS | B116: m³ | C116: 45.26 | D116: 225.95 | E116: 281.691865 | F116: 10226.5 | G116: 12749.37 | H116: 1116263 | I116: DNIT/MG
A117: CONCRETO PARA BOMBEAMENTO FCK = 25 MPA - CONFECÇÃO EM CENTRAL DOSADORA DE 30 M³/H - AREIA E BRITA COMERCIAIS | B117: m³ | C117: 186.37 | D117: 225.95 | E117: 281.691865 | F117: 42110.3 | G117: 52498.91 | H117: 1116263 | I117: DNIT/MG
A118: CONCRETO PARA BOMBEAMENTO FCK = 25 MPA - CONFECÇÃO EM CENTRAL DOSADORA DE 30 M³/H - AREIA E BRITA COMERCIAIS | B118: m³ | C118: 170.74 | D118: 225.95 | E118: 281.691865 | F118: 38578.7 | G118: 48096.07 | H118: 1116263 | I118: DNIT/MG
A119: CONCRETO PARA BOMBEAMENTO FCK = 25 MPA - CONFECÇÃO EM CENTRAL DOSADORA DE 30 M³/H - AREIA E BRITA COMERCIAIS | B119: m³ | C119: 83.03 | D119: 225.95 | E119: 281.691865 | F119: 18760.63 | G119: 23388.88 | H119: 1116263 | I119: DNIT/MG
A120: CONCRETO PARA BOMBEAMENTO FCK = 30 MPA - CONFECÇÃO EM CENTRAL DOSADORA DE 30 M³/H - AREIA E BRITA COMERCIAIS | B120: m³ | C120: 13.45 | D120: 264.93 | E120: 330.288231 | F120: 3563.31 | G120: 4442.38 | H120: 1106280 | I120: DNIT/MG
A121: CONCRETO PARA BOMBEAMENTO FCK = 30 MPA - CONFECÇÃO EM CENTRAL DOSADORA DE 30 M³/H - AREIA E BRITA COMERCIAIS | B121: m³ | C121: 98.265905 | D121: 264.93 | E121: 330.288231 | F121: 26033.59 | G121: 32456.07 | H121: 1106280 | I121: DNIT/MG
A122: CONCRETO PARA BOMBEAMENTO FCK = 30 MPA - CONFECÇÃO EM CENTRAL DOSADORA DE 30 M³/H - AREIA E BRITA COMERCIAIS | B122: m³ | C122: 31.8 | D122: 264.93 | E122: 330.288231 | F122: 8424.77 | G122: 10503.17 | H122: 1106280 | I122: DNIT/MG
A123: CONCRETO PARA BOMBEAMENTO FCK = 30 MPA - CONFECÇÃO EM CENTRAL DOSADORA DE 30 M³/H - AREIA E BRITA COMERCIAIS | B123: m³ | C123: 97.15 | D123: 264.93 | E123: 330.288231 | F123: 25737.95 | G123: 32087.5 | H123: 1106280 | I123: DNIT/MG
A124: CONCRETO PARA BOMBEAMENTO FCK = 30 MPA - CONFECÇÃO EM CENTRAL DOSADORA DE 30 M³/H - AREIA E BRITA COMERCIAIS | B124: m³ | C124: 254.24 | D124: 264.93 | E124: 330.288231 | F124: 67355.8 | G124: 83972.48 | H124: 1106280 | I124: DNIT/MG
A125: CONCRETO PARA BOMBEAMENTO FCK = 30 MPA - CONFECÇÃO EM CENTRAL DOSADORA DE 30 M³/H - AREIA E BRITA COMERCIAIS | B125: m³ | D125: 264.93 | E125: 330.288231 | F125: 0 | G125: 0 | H125: 1106280 | I125: DNIT/MG
A126: CONCRETO PARA BOMBEAMENTO FCK = 30 MPA - CONFECÇÃO EM CENTRAL DOSADORA DE 30 M³/H - AREIA E BRITA COMERCIAIS | B126: m³ | C126: 0 | D126: 264.93 | E126: 330.288231 | F126: 0 | G126: 0 | H126: 1106280 | I126: DNIT/MG
A127: CONCRETO PARA BOMBEAMENTO FCK = 35 MPA - CONFECÇÃO EM CENTRAL DOSADORA DE 30 M³/H - AREIA E BRITA COMERCIAIS | B127: m³ | C127: 173.4972 | D127: 280.05 | E127: 349.138335 | F127: 48587.89 | G127: 60574.52 | H127: 1106281 | I127: DNIT/MG
A128: CONCRETO PARA BOMBEAMENTO FCK = 35 MPA - CONFECÇÃO EM CENTRAL DOSADORA DE 30 M³/H - AREIA E BRITA COMERCIAIS | B128: m³ | C128: 145.65 | D128: 280.05 | E128: 349.138335 | F128: 40789.28 | G128: 50852 | H128: 1106281 | I128: DNIT/MG
A129: CONCRETO PARA BOMBEAMENTO FCK = 35 MPA - CONFECÇÃO EM CENTRAL DOSADORA DE 30 M³/H - AREIA E BRITA COMERCIAIS | B129: m³ | C129: 607.68 | D129: 280.05 | E129: 349.138335 | F129: 170180.78 | G129: 212164.38 | H129: 1106281 | I129: DNIT/MG
A130: CONCRETO PARA BOMBEAMENTO FCK = 35 MPA - CONFECÇÃO EM CENTRAL DOSADORA DE 30 M³/H - AREIA E BRITA COMERCIAIS | B130: m³ | D130: 280.05 | E130: 349.138335 | F130: 0 | G130: 0 | H130: 1106281 | I130: DNIT/MG
A131: CONCRETO PARA BOMBEAMENTO FCK = 35 MPA - CONFECÇÃO EM CENTRAL DOSADORA DE 30 M³/H - AREIA E BRITA COMERCIAIS | B131: m³ | C131: 0 | D131: 280.05 | E131: 349.138335 | F131: 0 | G131: 0 | H131: 1106281 | I131: DNIT/MG
A132: CONSTRUÇÃO DE PAVIMENTO COM APLICAÇÃO DE CONCRETO BETUMINOSO USINADO A QUENTE (CBUQ), CAMADA DE ROLAMENTO, COM ESPESSURA DE 5,0 CM - EXCLUSIVE TRANSPORTE. AF_03/2017 (PAVIMENTAÇÃO ESTRADA) | B132: m³ | C132: 131.95 | D132: 1021.43 | E132: 1273.416781 | F132: 134777.69 | G132: 168027.34 | H132: 95995 | I132: SINAPI
A133: CONSTRUÇÃO DE PAVIMENTO COM APLICAÇÃO DE CONCRETO BETUMINOSO USINADO A QUENTE (CBUQ), CAMADA DE ROLAMENTO, COM ESPESSURA DE 5,0 CM - EXCLUSIVE TRANSPORTE. AF_03/2017 (PAVIMENTAÇÃO ESTRADA) | B133: m³ | C133: 84.22 | D133: 1021.43 | E133: 1273.416781 | F133: 86024.83 | G133: 107247.16 | H133: 95995 | I133: SINAPI
A134: CONSTRUÇÃO DE PAVIMENTO COM APLICAÇÃO DE CONCRETO BETUMINOSO USINADO A QUENTE (CBUQ), CAMADA DE ROLAMENTO, COM ESPESSURA DE 5,0 CM - EXCLUSIVE TRANSPORTE. AF_03/2017 (PAVIMENTAÇÃO ESTRADA) | B134: m³ | C134: 799.03 | D134: 1021.43 | E134: 1273.416781 | F134: 816153.21 | G134: 1017498.21 | H134: 95995 | I134: SINAPI
A135: CONSTRUÇÃO DE PAVIMENTO COM APLICAÇÃO DE CONCRETO BETUMINOSO USINADO A QUENTE (CBUQ), CAMADA DE ROLAMENTO, COM ESPESSURA DE 5,0 CM - EXCLUSIVE TRANSPORTE. AF_03/2017 (PAVIMENTAÇÃO ESTRADA) | B135: m³ | D135: 1021.43 | E135: 1273.416781 | F135: 0 | G135: 0 | H135: 95995 | I135: SINAPI
A136: CONSTRUÇÃO DE PAVIMENTO COM APLICAÇÃO DE CONCRETO BETUMINOSO USINADO A QUENTE (CBUQ), CAMADA DE ROLAMENTO, COM ESPESSURA DE 5,0 CM - EXCLUSIVE TRANSPORTE. AF_03/2017 (PAVIMENTAÇÃO ESTRADA) | B136: m³ | D136: 1021.43 | E136: 1273.416781 | F136: 0 | G136: 0 | H136: 95995 | I136: SINAPI
A137: CONSTRUÇÃO DE PAVIMENTO COM APLICAÇÃO DE CONCRETO BETUMINOSO USINADO A QUENTE (CBUQ), CAMADA DE ROLAMENTO, COM ESPESSURA DE 5,0 CM - EXCLUSIVE TRANSPORTE. AF_03/2017 (PAVIMENTAÇÃO OAE) | B137: m³ | C137: 28 | D137: 1021.43 | E137: 1273.416781 | F137: 28600.04 | G137: 35655.67 | H137: 95995 | I137: SINAPI
A138: CONSTRUÇÃO DE PAVIMENTO COM APLICAÇÃO DE CONCRETO BETUMINOSO USINADO A QUENTE (CBUQ), CAMADA DE ROLAMENTO, COM ESPESSURA DE 5,0 CM - EXCLUSIVE TRANSPORTE. AF_03/2017 (PAVIMENTAÇÃO OAE) | B138: m³ | C138: 24 | D138: 1021.43 | E138: =D138*(1+$G$5) -> 1273.416781 | F138: =ROUND(C138*D138,2) -> 24514.32 | G138: =ROUND(C138*E138,2) -> 30562 | H138: 95995 | I138: SINAPI
A139: CONSTRUÇÃO DE PAVIMENTO COM APLICAÇÃO DE CONCRETO BETUMINOSO USINADO A QUENTE (CBUQ), CAMADA DE ROLAMENTO, COM ESPESSURA DE 5,0 CM - EXCLUSIVE TRANSPORTE. AF_03/2017 (PAVIMENTAÇÃO OAE) | B139: m³ | C139: 96.13 | D139: 1021.43 | E139: 1273.416781 | F139: 98190.07 | G139: 122413.56 | H139: 95995 | I139: SINAPI
A140: CORDOALHA CP 190 RB D = 12,7 MM - FORNECIMENTO, PREPARO E COLOCAÇÃO | B140: Kg | C140: 5425.2 | D140: 9.25 | E140: 11.531975 | F140: 50183.1 | G140: 62563.27 | H140: 4507956 | I140: DNIT/MG
A141: CORDOALHA CP 190 RB D = 12,7 MM - FORNECIMENTO, PREPARO E COLOCAÇÃO | B141: Kg | C141: 3903.2 | D141: 9.25 | E141: 11.531975 | F141: 36104.6 | G141: 45011.6 | H141: 4507956 | I141: DNIT/MG
A142: CORDOALHA CP 190 RB D = 12,7 MM - FORNECIMENTO, PREPARO E COLOCAÇÃO | B142: Kg | C142: 23155.2 | D142: 9.25 | E142: 11.531975 | F142: 214185.6 | G142: 267025.19 | H142: 4507956 | I142: DNIT/MG
A143: CORDOALHA CP 190 RB D = 12,7 MM - FORNECIMENTO, PREPARO E COLOCAÇÃO | B143: Kg | D143: 9.25 | E143: 11.531975 | F143: 0 | G143: 0 | H143: 4507956 | I143: DNIT/MG
A144: CORDOALHA CP 190 RB D = 12,7 MM - FORNECIMENTO, PREPARO E COLOCAÇÃO | B144: Kg | D144: 9.25 | E144: 11.531975 | F144: 0 | G144: 0 | H144: 4507956 | I144: DNIT/MG
A145: CORPO BSTC ø 100, AREIA, BRITA E PEDRA DE MÃO COMERCIAIS | B145: m | C145: 63 | D145: 525.29 | E145: 654.879043 | F145: 33093.27 | G145: 41257.38 | H145: 804037 | I145: DNIT/MG
A146: CORPO BSTC ø 80, AREIA, BRITA E PEDRA DE MÃO COMERCIAIS | B146: m | C146: 11 | D146: 380.71 | E146: 474.631157 | F146: 4187.81 | G146: 5220.94 | H146: 804029 | I146: DNIT/MG
A147: CORTE E DOBRA DE AÇO CA-25, DIÂMETRO DE 20,0 MM. AF_12/2015 | B147: kg | C147: 372 | D147: 5.88 | E147: 7.330596 | F147: 2187.36 | G147: 2726.98 | H147: 92880 | I147: SINAPI
A148: CORTE E DOBRA DE AÇO CA-25, DIÂMETRO DE 20,0 MM. AF_12/2015 | B148: kg | C148: 448 | D148: 5.88 | E148: 7.330596 | F148: 2634.24 | G148: 3284.11 | H148: 92880 | I148: SINAPI
A149: CORTE E DOBRA DE AÇO CA-25, DIÂMETRO DE 20,0 MM. AF_12/2015 | B149: kg | C149: 1105 | D149: 5.88 | E149: 7.330596 | F149: 6497.4 | G149: 8100.31 | H149: 92880 | I149: SINAPI
A150: CORTE E DOBRA DE AÇO CA-25, DIÂMETRO DE 20,0 MM. AF_12/2015 | B150: kg | C150: 792.2682425 | D150: 5.88 | E150: 7.330596 | F150: 4658.54 | G150: 5807.8 | H150: 92880 | I150: SINAPI
A151: CORTE E DOBRA DE AÇO CA-25, DIÂMETRO DE 25,0 MM. AF_12/2015 | B151: kg | C151: 415.5847893 | D151: 100000 | E151: 124670 | F151: 41558478.93 | G151: 51810955.68 | H151: 92881 | I151: SINAPI
A152: CORTE E DOBRA DE AÇO CA-50, DIÂMETRO DE 10,0 MM, UTILIZADO EM ESTRUTURAS DIVERSAS | B152: kg | C152: 10991 | D152: 5.57 | E152: 6.944119 | F152: 61219.87 | G152: 76322.81 | H152: 92794 | I152: SINAPI
A153: CORTE E DOBRA DE AÇO CA-50, DIÂMETRO DE 10,0 MM, UTILIZADO EM ESTRUTURAS DIVERSAS | B153: kg | C153: 9471 | D153: 5.57 | E153: 6.944119 | F153: 52753.47 | G153: 65767.75 | H153: 92794 | I153: SINAPI
A154: CORTE E DOBRA DE AÇO CA-50, DIÂMETRO DE 10,0 MM, UTILIZADO EM ESTRUTURAS DIVERSAS | B154: kg | C154: 21632 | D154: 5.57 | E154: 6.944119 | F154: 120490.24 | G154: 150215.18 | H154: 92794 | I154: SINAPI
A155: CORTE E DOBRA DE AÇO CA-50, DIÂMETRO DE 10,0 MM, UTILIZADO EM ESTRUTURAS DIVERSAS | B155: kg | C155: 23408.11896 | D155: 5.57 | E155: 6.944119 | F155: 130383.22 | G155: 162548.76 | H155: 92794 | I155: SINAPI
A156: CORTE E DOBRA DE AÇO CA-50, DIÂMETRO DE 10,0 MM, UTILIZADO EM ESTRUTURAS DIVERSAS | B156: kg | C156: 12278.74306 | D156: 5.57 | E156: 6.944119 | F156: 68392.6 | G156: 85265.05 | H156: 92794 | I156: SINAPI
A157: CORTE E DOBRA DE AÇO CA-50, DIÂMETRO DE 10,0 MM, UTILIZADO EM ESTRUTURAS DIVERSAS | B157: KG | C157: 6173.118026 | D157: 5.57 | E157: 6.944119 | F157: 34384.27 | G157: 42866.87 | H157: 92794 | I157: SINAPI
A158: CORTE E DOBRA DE AÇO CA-50, DIÂMETRO DE 10,0 MM, UTILIZADO EM ESTRUTURAS DIVERSAS | B158: KG | C158: 9557.391304 | D158: 5.57 | E158: 6.944119 | F158: 53234.67 | G158: 66367.66 | H158: 92794 | I158: SINAPI
A159: CORTE E DOBRA DE AÇO CA-50, DIÂMETRO DE 10,0 MM, UTILIZADO EM ESTRUTURAS DIVERSAS | B159: KG | C159: 2972.053526 | D159: 5.57 | E159: 6.944119 | F159: 16554.34 | G159: 20638.29 | H159: 92794 | I159: SINAPI
A160: CORTE E DOBRA DE AÇO CA-50, DIÂMETRO DE 12,5 MM, UTILIZADO EM ESTRUTURAS DIVERSAS | B160: kg | C160: 6416 | D160: 4.74 | E160: 5.909358 | F160: 30411.84 | G160: 37914.44 | H160: 92795 | I160: SINAPI
A161: CORTE E DOBRA DE AÇO CA-50, DIÂMETRO DE 12,5 MM, UTILIZADO EM ESTRUTURAS DIVERSAS | B161: kg | C161: 7154 | D161: 4.74 | E161: 5.909358 | F161: 33909.96 | G161: 42275.55 | H161: 92795 | I161: SINAPI
A162: CORTE E DOBRA DE AÇO CA-50, DIÂMETRO DE 12,5 MM, UTILIZADO EM ESTRUTURAS DIVERSAS | B162: kg | C162: 17666 | D162: 4.74 | E162: 5.909358 | F162: 83736.84 | G162: 104394.72 | H162: 92795 | I162: SINAPI
A163: CORTE E DOBRA DE AÇO CA-50, DIÂMETRO DE 12,5 MM, UTILIZADO EM ESTRUTURAS DIVERSAS | B163: kg | C163: 13664.49743 | D163: 4.74 | E163: 5.909358 | F163: 64769.72 | G163: 80748.41 | H163: 92795 | I163: SINAPI
A164: CORTE E DOBRA DE AÇO CA-50, DIÂMETRO DE 12,5 MM, UTILIZADO EM ESTRUTURAS DIVERSAS | B164: kg | C164: 7167.720452 | D164: 4.74 | E164: 5.909358 | F164: 33974.99 | G164: 42356.63 | H164: 92795 | I164: SINAPI
A165: CORTE E DOBRA DE AÇO CA-50, DIÂMETRO DE 12,5 MM, UTILIZADO EM ESTRUTURAS DIVERSAS | B165: KG | C165: 3603.559754 | D165: 4.74 | E165: 5.909358 | F165: 17080.87 | G165: 21294.72 | H165: 92795 | I165: SINAPI
A166: CORTE E DOBRA DE AÇO CA-50, DIÂMETRO DE 12,5 MM, UTILIZADO EM ESTRUTURAS DIVERSAS | B166: KG | C166: 5579.130435 | D166: 4.74 | E166: 5.909358 | F166: 26445.08 | G166: 32969.08 | H166: 92795 | I166: SINAPI
A167: CORTE E DOBRA DE AÇO CA-50, DIÂMETRO DE 12,5 MM, UTILIZADO EM ESTRUTURAS DIVERSAS | B167: KG | C167: 1734.93726 | D167: 4.74 | E167: 5.909358 | F167: 8223.6 | G167: 10252.37 | H167: 92795 | I167: SINAPI
A168: CORTE E DOBRA DE AÇO CA-50, DIÂMETRO DE 16,0 MM, UTILIZADO EM ESTRUTURAS DIVERSAS | B168: kg | C168: 10454 | D168: 4.66 | E168: 5.809622 | F168: 48715.64 | G168: 60733.79 | H168: 92796 | I168: SINAPI
A169: CORTE E DOBRA DE AÇO CA-50, DIÂMETRO DE 16,0 MM, UTILIZADO EM ESTRUTURAS DIVERSAS | B169: kg | C169: 7751 | D169: 4.66 | E169: 5.809622 | F169: 36119.66 | G169: 45030.38 | H169: 92796 | I169: SINAPI
A170: CORTE E DOBRA DE AÇO CA-50, DIÂMETRO DE 16,0 MM, UTILIZADO EM ESTRUTURAS DIVERSAS | B170: kg | C170: 43652 | D170: 4.66 | E170: 5.809622 | F170: =ROUND(C170*D170,2) -> 203418.32 | G170: 253601.62 | H170: 92796 | I170: SINAPI
A171: CORTE E DOBRA DE AÇO CA-50, DIÂMETRO DE 16,0 MM, UTILIZADO EM ESTRUTURAS DIVERSAS | B171: kg | C171: 22264.44142 | D171: 4.66 | E171: 5.809622 | F171: 103752.3 | G171: 129347.99 | H171: 92796 | I171: SINAPI
A172: CORTE E DOBRA DE AÇO CA-50, DIÂMETRO DE 16,0 MM, UTILIZADO EM ESTRUTURAS DIVERSAS | B172: kg | C172: 11678.82631 | D172: 4.66 | E172: 5.809622 | F172: 54423.33 | G172: 67849.57 | H172: 92796 | I172: SINAPI
A173: CORTE E DOBRA DE AÇO CA-50, DIÂMETRO DE 20,0 MM, UTILIZADO EM ESTRUTURAS DIVERSAS | B173: kg | C173: 6163 | D173: 5.47 | E173: 6.819449 | F173: 33711.61 | G173: 42028.26 | H173: 92797 | I173: SINAPI
A174: CORTE E DOBRA DE AÇO CA-50, DIÂMETRO DE 20,0 MM, UTILIZADO EM ESTRUTURAS DIVERSAS | B174: kg | C174: 4017 | D174: 5.47 | E174: 6.819449 | F174: 21972.99 | G174: 27393.73 | H174: 92797 | I174: SINAPI
A175: CORTE E DOBRA DE AÇO CA-50, DIÂMETRO DE 20,0 MM, UTILIZADO EM ESTRUTURAS DIVERSAS | B175: kg | C175: 2791 | D175: 5.47 | E175: 6.819449 | F175: 15266.77 | G175: 19033.08 | H175: 92797 | I175: SINAPI
A176: CORTE E DOBRA DE AÇO CA-50, DIÂMETRO DE 20,0 MM, UTILIZADO EM ESTRUTURAS DIVERSAS | B176: kg | C176: 13125.66984 | D176: 5.47 | E176: 6.819449 | F176: 71797.41 | G176: 89509.84 | H176: 92797 | I176: SINAPI
A177: CORTE E DOBRA DE AÇO CA-50, DIÂMETRO DE 20,0 MM, UTILIZADO EM ESTRUTURAS DIVERSAS | B177: kg | C177: 6885.078109 | D177: 5.47 | E177: 6.819449 | F177: 37661.38 | G177: 46952.44 | H177: 92797 | I177: SINAPI
